Workbook

Sheet Dashboard
C6: Financial Year | D6: 2024-25
C8: As at the end of | D8: Jan-25 | F8: =Sheet5!E9 -> 2400412 | I8: =IF(MONTH(D8)<4,Sheet5!N9,Sheet5!M9) -> 0.7627716908 | J8: =Sheet5!K9 -> 0.06584172836 | K8: =Sheet5!L9 -> 0.06584172836 | M8: =Sheet5!E11 -> 3569954 | Q8: =IF(MONTH(D8)<4,Sheet5!N11,Sheet5!M11) -> 0.7569095388 | R8: =Sheet5!K11 -> 0.06415538657 | S8: =Sheet5!L11 -> 0.06415538657 | U8: =Sheet5!E13 -> 1169542
I9: =CONCATENATE("of ",B58) -> of RE | J9: YoY Growth | Q9: =CONCATENATE("of ",B58) -> of RE | R9: YoY Growth
U10: =IF(MONTH(D8)<4,Sheet5!N13,Sheet5!M13) -> 0.7451557061 | W10: =CONCATENATE("of ",B58) -> of RE
U11: =Sheet5!O13 -> 0.03583494664 | W11: of GDP
U12: =Sheet5!K13 -> 0.06071093649 | W12: =Sheet5!L13 -> 0.06071093649
U13: YoY Growth
F14: =Sheet5!E15 -> 1903558 | M14: =Sheet5!E21 -> 2812595
F15: =IF(MONTH(D8)<4,Sheet5!N15,Sheet5!M15) -> 0.7444613917 | G15: =CONCATENATE("of ",B58) -> of RE | M15: =IF(MONTH(D8)<4,Sheet5!N21,Sheet5!M21) -> 0.760560002 | N15: =CONCATENATE("of ",B58) -> of RE
F16: =Sheet5!K15 -> 0.01261703124 | H16: =Sheet5!L15 -> 0.01261703124 | M16: =Sheet5!K21 -> 0.06798901708 | O16: =Sheet5!L21 -> 0.06798901708
F17: YoY Growth | M17: YoY Growth
U18: =Sheet5!E37 -> 441407
F20: Non Tax Revenue | U20: =IF(MONTH(D8)<4,Sheet5!N37,Sheet5!M37) -> 0.7235017981 | W20: =CONCATENATE("of ",B58) -> of RE
U21: =Sheet5!O37 -> 0.01352477832 | W21: of GDP
F22: =Sheet5!E17 -> 467630 | U22: =Sheet5!K37 -> 0.06200888282 | W22: =Sheet5!L37 -> 0.06200888282
F23: =IF(MONTH(D8)<4,Sheet5!N17,Sheet5!M17) -> 0.8806591337 | G23: =CONCATENATE("of ",B58) -> of RE | U23: YoY Growth
F24: =Sheet5!K17 -> 0.383238333 | H24: =Sheet5!L17 -> 0.383238333
F25: YoY Growth
U29: =Sheet5!E41 -> 294081
F31: =Sheet5!E19 -> 29224 | M31: =Sheet5!E23 -> 757359 | U31: =IF(MONTH(D8)<4,Sheet5!N41,Sheet5!M41) -> 0.6813944813 | W31: =CONCATENATE("of ",B58) -> of RE
F32: =IF(MONTH(D8)<4,Sheet5!N19,Sheet5!M19) -> 0.4953220339 | G32: =CONCATENATE("of ",B58) -> of RE | M32: =IF(MONTH(D8)<4,Sheet5!N23,Sheet5!M23) -> 0.7436541968 | N32: =CONCATENATE("of ",B58) -> of RE | U32: =Sheet5!O41 -> 0.00901068704 | W32: of GDP
F33: =Sheet5!K19 -> -0.1459715363 | H33: =Sheet5!L19 -> -0.1459715363 | M33: =Sheet5!K23 -> 0.05015620082 | O33: =Sheet5!L23 -> 0.05015620082 | U33: =Sheet5!K41 -> 0.04703226748 | W33: =Sheet5!L41 -> 0.04703226748
F34: YoY Growth | M34: YoY Growth | U34: YoY Growth
B38: Disclaimer :
A39: 1. | B39: All content included in the dashboard is for informative purposes only. Information herein contains both original Budget, Expenditure, GDP data and estimates and is subject to updation, correction and revision with more information available.
A40: 2. | B40: The presentation of the graphical information herein does not imply the expression of any opinion concerning the performance, error, omission etc. of any institution or authorities.
A41: 3. | B41: Discrepancies between information contained in this dashboard and other documents, analysis, articles and publication may exist due to the different timing and presentation of information in accordance to various purposes.
A42: 4. | B42: This disclaimer of liability applies to all claims for damages, including, but not limited to: failure of performance, error, omission, deletion, defect, computer virus or unauthorized access to or alteration of data.
B43: Queries and feedback may be addressed to dama-cga@nic.in or vpthomas.17@gov.in
J53: =INDEX(actual!B:B,COUNTA(actual!B:B)) -> Jan-25 | M53: =DATEVALUE(J53)+1 -> 45659
B58: =IF(MONTH(D8)<4,"RE","BE") -> RE | D58: Row Labels | J58: =CONCATENATE("Apr-",MID($D$6,3,2)) -> Apr-24 | Q58: =IF(IF(DATEVALUE(CONCATENATE("Apr-",MID($D$6,3,2)))<$M$53,DATEVALUE(CONCATENATE("Apr-",MID($D$6,3,2))),0)>0,CONCATENATE("Apr-",MID($D$6,3,2))," ") -> Apr-24
D59: 2014-15 | J59: =CONCATENATE("May-",MID($D$6,3,2)) -> May-24 | Q59: =IF(IF(DATEVALUE(CONCATENATE("May-",MID($D$6,3,2)))<$M$53,DATEVALUE(CONCATENATE("May-",MID($D$6,3,2))),0)>0,CONCATENATE("May-",MID($D$6,3,2))," ") -> May-24
D60: 2015-16 | J60: =CONCATENATE("Jun-",MID($D$6,3,2)) -> Jun-24 | Q60: =IF(IF(DATEVALUE(CONCATENATE("Jun-",MID($D$6,3,2)))<$M$53,DATEVALUE(CONCATENATE("Jun-",MID($D$6,3,2))),0)>0,CONCATENATE("Jun-",MID($D$6,3,2))," ") -> Jun-24
D61: 2016-17 | J61: =CONCATENATE("Jul-",MID($D$6,3,2)) -> Jul-24 | Q61: =IF(IF(DATEVALUE(CONCATENATE("Jul-",MID($D$6,3,2)))<$M$53,DATEVALUE(CONCATENATE("Jul-",MID($D$6,3,2))),0)>0,CONCATENATE("Jul-",MID($D$6,3,2))," ") -> Jul-24
D62: 2017-18 | J62: =CONCATENATE("Aug-",MID($D$6,3,2)) -> Aug-24 | Q62: =IF(IF(DATEVALUE(CONCATENATE("Aug-",MID($D$6,3,2)))<$M$53,DATEVALUE(CONCATENATE("Aug-",MID($D$6,3,2))),0)>0,CONCATENATE("Aug-",MID($D$6,3,2))," ") -> Aug-24
D63: 2018-19 | J63: =CONCATENATE("Sep-",MID($D$6,3,2)) -> Sep-24 | Q63: =IF(IF(DATEVALUE(CONCATENATE("Sep-",MID($D$6,3,2)))<$M$53,DATEVALUE(CONCATENATE("Sep-",MID($D$6,3,2))),0)>0,CONCATENATE("Sep-",MID($D$6,3,2))," ") -> Sep-24
D64: 2019-20 | J64: =CONCATENATE("Oct-",MID($D$6,3,2)) -> Oct-24 | Q64: =IF(IF(DATEVALUE(CONCATENATE("Oct-",MID($D$6,3,2)))<$M$53,DATEVALUE(CONCATENATE("Oct-",MID($D$6,3,2))),0)>0,CONCATENATE("Oct-",MID($D$6,3,2))," ") -> Oct-24
D65: 2020-21 | J65: =CONCATENATE("Nov-",MID($D$6,3,2)) -> Nov-24 | Q65: =IF(IF(DATEVALUE(CONCATENATE("Nov-",MID($D$6,3,2)))<$M$53,DATEVALUE(CONCATENATE("Nov-",MID($D$6,3,2))),0)>0,CONCATENATE("Nov-",MID($D$6,3,2))," ") -> Nov-24
D66: 2021-22 | J66: =CONCATENATE("Dec-",MID($D$6,3,2)) -> Dec-24 | Q66: =IF(IF(DATEVALUE(CONCATENATE("Dec-",MID($D$6,3,2)))<$M$53,DATEVALUE(CONCATENATE("Dec-",MID($D$6,3,2))),0)>0,CONCATENATE("Dec-",MID($D$6,3,2))," ") -> Dec-24
D67: 2022-23 | J67: =CONCATENATE("Jan-",MID($D$6,6,2)) -> Jan-25 | Q67: =IF(IF(DATEVALUE(CONCATENATE("Jan-",MID($D$6,6,2)))<$M$53,DATEVALUE(CONCATENATE("Jan-",MID($D$6,6,2))),0)>0,CONCATENATE("Jan-",MID($D$6,6,2))," ") -> Jan-25
D68: 2023-24 | J68: =CONCATENATE("Feb-",MID($D$6,6,2)) -> Feb-25 | Q68: =IF(IF(DATEVALUE(CONCATENATE("Feb-",MID($D$6,6,2)))<$M$53,DATEVALUE(CONCATENATE("Feb-",MID($D$6,6,2))),0)>0,CONCATENATE("Feb-",MID($D$6,6,2))," ") -> 
D69: 2024-25 | J69: =CONCATENATE("Mar-",MID($D$6,6,2)) -> Mar-25 | Q69: =IF(IF(DATEVALUE(CONCATENATE("Mar-",MID($D$6,6,2)))<$M$53,DATEVALUE(CONCATENATE("Mar-",MID($D$6,6,2))),0)>0,CONCATENATE("Mar-",MID($D$6,6,2))," ") -> 
D70: (blank)

Sheet Receipts

Sheet Expenditure

Sheet Deficit

Sheet actual
A1: FY | B1: Month | C1: Corporation Tax | D1: Income Tax | E1: Securities Transcation Tax | F1: CGST | G1: IGST | H1: UTGST | I1: Compensation Cess | J1: Customs | K1: Union Excise | L1: Service Tax | M1: Other Taxes | N1: Surcharge for financing of NCCF | O1: Devolution to State | P1: Interest receipts | Q1: Dividends and Profits | R1: Other Non Tax Receipts | S1: Recovery of Loans & Advances | T1: Disinvestment Receipts | U1: Revenue Expenditure | V1: Interest Payments | W1: Defence Services | X1: Grants in Aid to States & UTs | Y1: Pensions | Z1: Major Subsidies | AA1: Grants for Creation of Capital Assets | AB1: Capital Expenditure | AE1: Revenue Deficit | AF1: Effective revenue Deficit | AG1: Fiscal Deficit | AH1: Primary Deficit
A2: 2014-15 | B2: Apr-14 | C2: -5845 | D2: 20348 | E2: 168 | J2: 11754 | K2: -2817 | L2: 4876 | M2: 310 | N2: 122 | O2: 27695 | P2: 514 | Q2: 825 | R2: 4613 | S2: 144 | T2: 0 | U2: 108084 | V2: 23284 | W2: 19381 | X2: 962 | Y2: 5507 | Z2: 31779 | AA2: 10112 | AB2: 12443 | AD2: =SUM(actual1[[#This Row],[Corporation Tax]:[Other Taxes]])-actual1[[#This Row],[Surcharge for financing of NCCF]]-actual1[[#This Row],[Devolution to State]]+SUM(P2:R2)+SUM(S2:T2) -> 7073 | AE2: =actual1[[#This Row],[Revenue Expenditure]]-(SUM(actual1[[#This Row],[Corporation Tax]:[Other Taxes]])-actual1[[#This Row],[Surcharge for financing of NCCF]]-actual1[[#This Row],[Devolution to State]]+SUM(P2:R2)) -> 101155 | AF2: =AE2-actual1[[#This Row],[Grants for Creation of Capital Assets]] -> 91043 | AG2: =U2+AB2-(SUM(actual1[[#This Row],[Corporation Tax]:[Other Taxes]])-actual1[[#This Row],[Surcharge for financing of NCCF]]-actual1[[#This Row],[Devolution to State]]+SUM(P2:R2)+SUM(S2:T2)) -> 113454 | AH2: =AG2-actual1[[#This Row],[Interest Payments]] -> 90170
A3: 2014-15 | B3: May-14 | C3: 2980 | D3: 35449 | E3: 626 | J3: 24800 | K3: 5569 | L3: 14431 | M3: 661 | N3: 474 | O3: 55391 | P3: 645 | Q3: 837 | R3: 8372 | S3: 997 | T3: 0 | U3: 243585 | V3: 54857 | W3: 35705 | X3: 2122 | Y3: 14766 | Z3: 71250 | AA3: 21456 | AB3: 36754 | AD3: =U2+AB2 -> 120527 | AE3: =actual1[[#This Row],[Revenue Expenditure]]-(SUM(actual1[[#This Row],[Corporation Tax]:[Other Taxes]])-actual1[[#This Row],[Surcharge for financing of NCCF]]-actual1[[#This Row],[Devolution to State]]+SUM(P3:R3)) -> 205080 | AF3: =AE3-actual1[[#This Row],[Grants for Creation of Capital Assets]] -> 183624 | AG3: =U3+AB3-(SUM(actual1[[#This Row],[Corporation Tax]:[Other Taxes]])-actual1[[#This Row],[Surcharge for financing of NCCF]]-actual1[[#This Row],[Devolution to State]]+SUM(P3:R3)+SUM(S3:T3)) -> 240837 | AH3: =AG3-actual1[[#This Row],[Interest Payments]] -> 185980
A4: 2014-15 | B4: Jun-14 | C4: 50447 | D4: 46398 | E4: 1374 | J4: 38649 | K4: 18403 | L4: 26628 | M4: 1129 | N4: 856 | O4: 83086 | P4: 2005 | Q4: 2195 | R4: 11140 | S4: 1208 | T4: 109 | U4: 363785 | V4: 90694 | W4: 49351 | X4: 5501 | Y4: 22449 | Z4: 81443 | AA4: 32274 | AB4: 49818 | AE4: =actual1[[#This Row],[Revenue Expenditure]]-(SUM(actual1[[#This Row],[Corporation Tax]:[Other Taxes]])-actual1[[#This Row],[Surcharge for financing of NCCF]]-actual1[[#This Row],[Devolution to State]]+SUM(P4:R4)) -> 249359 | AF4: =AE4-actual1[[#This Row],[Grants for Creation of Capital Assets]] -> 217085 | AG4: =U4+AB4-(SUM(actual1[[#This Row],[Corporation Tax]:[Other Taxes]])-actual1[[#This Row],[Surcharge for financing of NCCF]]-actual1[[#This Row],[Devolution to State]]+SUM(P4:R4)+SUM(S4:T4)) -> 297860 | AH4: =AG4-actual1[[#This Row],[Interest Payments]] -> 207166
A5: 2014-15 | B5: Jul-14 | C5: 62518 | D5: 64905 | E5: 2067 | J5: 53881 | K5: 32264 | L5: 41628 | M5: 1610 | N5: 1227 | O5: 110781 | P5: 3546 | Q5: 3721 | R5: 21500 | S5: 3262 | T5: 122 | U5: 442051 | V5: 118615 | W5: 65913 | X5: 11908 | Y5: 29129 | Z5: 83557 | AA5: 36213 | AB5: 61889 | AE5: =actual1[[#This Row],[Revenue Expenditure]]-(SUM(actual1[[#This Row],[Corporation Tax]:[Other Taxes]])-actual1[[#This Row],[Surcharge for financing of NCCF]]-actual1[[#This Row],[Devolution to State]]+SUM(P5:R5)) -> 266419 | AF5: =AE5-actual1[[#This Row],[Grants for Creation of Capital Assets]] -> 230206 | AG5: =U5+AB5-(SUM(actual1[[#This Row],[Corporation Tax]:[Other Taxes]])-actual1[[#This Row],[Surcharge for financing of NCCF]]-actual1[[#This Row],[Devolution to State]]+SUM(P5:R5)+SUM(S5:T5)) -> 324924 | AH5: =AG5-actual1[[#This Row],[Interest Payments]] -> 206309
A6: 2014-15 | B6: Aug-14 | C6: 73569 | D6: 78535 | E6: 2717 | J6: 69838 | K6: 45453 | L6: 52817 | M6: 2009 | N6: 1555 | O6: 137924 | P6: 4440 | Q6: 56274 | R6: 24282 | S6: 4212 | T6: 122 | U6: 595219 | V6: 153876 | W6: 82049 | X6: 18024 | Y6: 38354 | Z6: 125762 | AA6: 53551 | AB6: 77499 | AE6: =actual1[[#This Row],[Revenue Expenditure]]-(SUM(actual1[[#This Row],[Corporation Tax]:[Other Taxes]])-actual1[[#This Row],[Surcharge for financing of NCCF]]-actual1[[#This Row],[Devolution to State]]+SUM(P6:R6)) -> 324764 | AF6: =AE6-actual1[[#This Row],[Grants for Creation of Capital Assets]] -> 271213 | AG6: =U6+AB6-(SUM(actual1[[#This Row],[Corporation Tax]:[Other Taxes]])-actual1[[#This Row],[Surcharge for financing of NCCF]]-actual1[[#This Row],[Devolution to State]]+SUM(P6:R6)+SUM(S6:T6)) -> 397929 | AH6: =AG6-actual1[[#This Row],[Interest Payments]] -> 244053
A7: 2014-15 | B7: Sep-14 | C7: 162269 | D7: 109412 | E7: 3223 | J7: 87408 | K7: 60547 | L7: 65201 | M7: 2558 | N7: 2012 | O7: 165415 | P7: 6347 | Q7: 61388 | R7: 26970 | S7: 5210 | T7: 121 | U7: 762949 | V7: 185670 | W7: 102021 | X7: 24324 | Y7: 46206 | Z7: 160133 | AA7: 66269 | AB7: 99104 | AE7: =actual1[[#This Row],[Revenue Expenditure]]-(SUM(actual1[[#This Row],[Corporation Tax]:[Other Taxes]])-actual1[[#This Row],[Surcharge for financing of NCCF]]-actual1[[#This Row],[Devolution to State]]+SUM(P7:R7)) -> 345053 | AF7: =AE7-actual1[[#This Row],[Grants for Creation of Capital Assets]] -> 278784 | AG7: =U7+AB7-(SUM(actual1[[#This Row],[Corporation Tax]:[Other Taxes]])-actual1[[#This Row],[Surcharge for financing of NCCF]]-actual1[[#This Row],[Devolution to State]]+SUM(P7:R7)+SUM(S7:T7)) -> 438826 | AH7: =AG7-actual1[[#This Row],[Interest Payments]] -> 253156
A8: 2014-15 | B8: Oct-14 | C8: 173381 | D8: 124972 | E8: 3876 | J8: 104104 | K8: 73105 | L8: 81213 | M8: 2947 | N8: 2515 | O8: 192211 | P8: 10651 | Q8: 63856 | R8: 36694 | S8: 6142 | T8: 122 | U8: 852707 | V8: 205974 | W8: 119070 | X8: 28317 | Y8: 53737 | Z8: 178105 | AA8: 73705 | AB8: 109382 | AE8: =actual1[[#This Row],[Revenue Expenditure]]-(SUM(actual1[[#This Row],[Corporation Tax]:[Other Taxes]])-actual1[[#This Row],[Surcharge for financing of NCCF]]-actual1[[#This Row],[Devolution to State]]+SUM(P8:R8)) -> 372634 | AF8: =AE8-actual1[[#This Row],[Grants for Creation of Capital Assets]] -> 298929 | AG8: =U8+AB8-(SUM(actual1[[#This Row],[Corporation Tax]:[Other Taxes]])-actual1[[#This Row],[Surcharge for financing of NCCF]]-actual1[[#This Row],[Devolution to State]]+SUM(P8:R8)+SUM(S8:T8)) -> 475752 | AH8: =AG8-actual1[[#This Row],[Interest Payments]] -> 269778
A9: 2014-15 | B9: Nov-14 | C9: 188553 | D9: 140150 | E9: 4357 | J9: 120225 | K9: 85925 | L9: 92903 | M9: 3470 | N9: 2918 | O9: 219355 | P9: 11629 | Q9: 63959 | R9: 52755 | S9: 7174 | T9: 222 | U9: 952728 | V9: 232650 | W9: 135526 | X9: 33124 | Y9: 61316 | Z9: 195504 | AA9: 81584 | AB9: 121455 | AE9: =actual1[[#This Row],[Revenue Expenditure]]-(SUM(actual1[[#This Row],[Corporation Tax]:[Other Taxes]])-actual1[[#This Row],[Surcharge for financing of NCCF]]-actual1[[#This Row],[Devolution to State]]+SUM(P9:R9)) -> 411075 | AF9: =AE9-actual1[[#This Row],[Grants for Creation of Capital Assets]] -> 329491 | AG9: =U9+AB9-(SUM(actual1[[#This Row],[Corporation Tax]:[Other Taxes]])-actual1[[#This Row],[Surcharge for financing of NCCF]]-actual1[[#This Row],[Devolution to State]]+SUM(P9:R9)+SUM(S9:T9)) -> 525134 | AH9: =AG9-actual1[[#This Row],[Interest Payments]] -> 292484
A10: 2014-15 | B10: Dec-14 | C10: 277620 | D10: 166556 | E10: 4939 | J10: 135596 | K10: 101859 | L10: 105196 | M10: 3920 | N10: 3362 | O10: 246610 | P10: 15808 | Q10: 69674 | R10: 62577 | S10: 8282 | T10: 1952 | U10: 1095548 | V10: 275220 | W10: 157318 | X10: 34598 | Y10: 68104 | Z10: 212418 | AA10: 97863 | AB10: 140840 | AE10: =actual1[[#This Row],[Revenue Expenditure]]-(SUM(actual1[[#This Row],[Corporation Tax]:[Other Taxes]])-actual1[[#This Row],[Surcharge for financing of NCCF]]-actual1[[#This Row],[Devolution to State]]+SUM(P10:R10)) -> 401775 | AF10: =AE10-actual1[[#This Row],[Grants for Creation of Capital Assets]] -> 303912 | AG10: =U10+AB10-(SUM(actual1[[#This Row],[Corporation Tax]:[Other Taxes]])-actual1[[#This Row],[Surcharge for financing of NCCF]]-actual1[[#This Row],[Devolution to State]]+SUM(P10:R10)+SUM(S10:T10)) -> 532381 | AH10: =AG10-actual1[[#This Row],[Interest Payments]] -> 257161
A11: 2014-15 | B11: Jan-15 | C11: 287720 | D11: 182077 | E11: 5556 | J11: 151849 | K11: 118109 | L11: 122450 | M11: 4323 | N11: 3645 | O11: 273642 | P11: 17236 | Q11: 70019 | R11: 71055 | S11: 9954 | T11: 7068 | U11: 1194613 | V11: 312260 | W11: 174307 | X11: 37023 | Y11: 76133 | Z11: 231788 | AA11: 102208 | AB11: 143655 | AE11: =actual1[[#This Row],[Revenue Expenditure]]-(SUM(actual1[[#This Row],[Corporation Tax]:[Other Taxes]])-actual1[[#This Row],[Surcharge for financing of NCCF]]-actual1[[#This Row],[Devolution to State]]+SUM(P11:R11)) -> 441506 | AF11: =AE11-actual1[[#This Row],[Grants for Creation of Capital Assets]] -> 339298 | AG11: =U11+AB11-(SUM(actual1[[#This Row],[Corporation Tax]:[Other Taxes]])-actual1[[#This Row],[Surcharge for financing of NCCF]]-actual1[[#This Row],[Devolution to State]]+SUM(P11:R11)+SUM(S11:T11)) -> 568139 | AH11: =AG11-actual1[[#This Row],[Interest Payments]] -> 255879
A12: 2014-15 | B12: Feb-15 | C12: 301761 | D12: 199496 | E12: 6280 | J12: 167492 | K12: 140322 | L12: 134889 | M12: 4713 | N12: 4035 | O12: 299499 | P12: 18561 | Q12: 72397 | R12: 73861 | S12: 11063 | T12: 29701 | U12: 1299492 | V12: 346256 | W12: 193989 | X12: 46673 | Y12: 80321 | Z12: 237878 | AA12: 114070 | AB12: 160044 | AE12: =actual1[[#This Row],[Revenue Expenditure]]-(SUM(actual1[[#This Row],[Corporation Tax]:[Other Taxes]])-actual1[[#This Row],[Surcharge for financing of NCCF]]-actual1[[#This Row],[Devolution to State]]+SUM(P12:R12)) -> 483254 | AF12: =AE12-actual1[[#This Row],[Grants for Creation of Capital Assets]] -> 369184 | AG12: =U12+AB12-(SUM(actual1[[#This Row],[Corporation Tax]:[Other Taxes]])-actual1[[#This Row],[Surcharge for financing of NCCF]]-actual1[[#This Row],[Devolution to State]]+SUM(P12:R12)+SUM(S12:T12)) -> 602534 | AH12: =AG12-actual1[[#This Row],[Interest Payments]] -> 256278
A13: 2014-15 | B13: Mar-15 | C13: 428925 | D13: 258334 | E13: 7398 | J13: 188016 | K13: 189953 | L13: 167969 | M13: 4289 | N13: 3461 | O13: 337808 | P13: 23734 | Q13: 89861 | R13: 84171 | S13: 13738 | T13: 37737 | U13: 1466992 | V13: 402444 | W13: 218694 | X13: 77198 | Y13: 93611 | Z13: 249220 | AA13: 130760 | AB13: 196681 | AE13: =actual1[[#This Row],[Revenue Expenditure]]-(SUM(actual1[[#This Row],[Corporation Tax]:[Other Taxes]])-actual1[[#This Row],[Surcharge for financing of NCCF]]-actual1[[#This Row],[Devolution to State]]+SUM(P13:R13)) -> 365611 | AF13: =AE13-actual1[[#This Row],[Grants for Creation of Capital Assets]] -> 234851 | AG13: =U13+AB13-(SUM(actual1[[#This Row],[Corporation Tax]:[Other Taxes]])-actual1[[#This Row],[Surcharge for financing of NCCF]]-actual1[[#This Row],[Devolution to State]]+SUM(P13:R13)+SUM(S13:T13)) -> 510817 | AH13: =AG13-actual1[[#This Row],[Interest Payments]] -> 108373
A14: 2015-16 | B14: Apr-15 | C14: -4319 | D14: 19878 | E14: 268 | J14: 14452 | K14: -2696 | L14: 6874 | M14: 359 | N14: 208 | O14: 37421 | P14: 768 | Q14: 1 | R14: 27357 | S14: 173 | T14: 1608 | U14: 128408 | V14: 16994 | W14: 18512 | X14: 4856 | Y14: 9031 | Z14: 41130 | AA14: 18367 | AB14: 26209 | AE14: =actual1[[#This Row],[Revenue Expenditure]]-(SUM(actual1[[#This Row],[Corporation Tax]:[Other Taxes]])-actual1[[#This Row],[Surcharge for financing of NCCF]]-actual1[[#This Row],[Devolution to State]]+SUM(P14:R14)) -> 103095 | AF14: =AE14-actual1[[#This Row],[Grants for Creation of Capital Assets]] -> 84728 | AG14: =U14+AB14-(SUM(actual1[[#This Row],[Corporation Tax]:[Other Taxes]])-actual1[[#This Row],[Surcharge for financing of NCCF]]-actual1[[#This Row],[Devolution to State]]+SUM(P14:R14)+SUM(S14:T14)) -> 127523 | AH14: =AG14-actual1[[#This Row],[Interest Payments]] -> 110529
A15: 2015-16 | B15: May-15 | C15: 1047 | D15: 31604 | E15: 939 | J15: 29907 | K15: 13649 | L15: 17411 | M15: 775 | N15: 596 | O15: 74847 | P15: 1535 | Q15: 5 | R15: 30932 | S15: 238 | T15: 1608 | U15: 225088 | V15: 48447 | W15: 34670 | X15: 13137 | Y15: 15671 | Z15: 49557 | AA15: 22138 | AB15: 37743 | AE15: =actual1[[#This Row],[Revenue Expenditure]]-(SUM(actual1[[#This Row],[Corporation Tax]:[Other Taxes]])-actual1[[#This Row],[Surcharge for financing of NCCF]]-actual1[[#This Row],[Devolution to State]]+SUM(P15:R15)) -> 172727 | AF15: =AE15-actual1[[#This Row],[Grants for Creation of Capital Assets]] -> 150589 | AG15: =U15+AB15-(SUM(actual1[[#This Row],[Corporation Tax]:[Other Taxes]])-actual1[[#This Row],[Surcharge for financing of NCCF]]-actual1[[#This Row],[Devolution to State]]+SUM(P15:R15)+SUM(S15:T15)) -> 208624 | AH15: =AG15-actual1[[#This Row],[Interest Payments]] -> 160177
A16: 2015-16 | B16: Jun-15 | C16: 52055 | D16: 45070 | E16: 1574 | J16: 47157 | K16: 37545 | L16: 30413 | M16: 1299 | N16: 1155 | O16: 112273 | P16: 2811 | Q16: 2052 | R16: 34656 | S16: 1386 | T16: 1708 | U16: 372384 | V16: 95493 | W16: 53419 | X16: 22650 | Y16: 30458 | Z16: 60301 | AA16: 35159 | AB16: 58609 | AE16: =actual1[[#This Row],[Revenue Expenditure]]-(SUM(actual1[[#This Row],[Corporation Tax]:[Other Taxes]])-actual1[[#This Row],[Surcharge for financing of NCCF]]-actual1[[#This Row],[Devolution to State]]+SUM(P16:R16)) -> 231180 | AF16: =AE16-actual1[[#This Row],[Grants for Creation of Capital Assets]] -> 196021 | AG16: =U16+AB16-(SUM(actual1[[#This Row],[Corporation Tax]:[Other Taxes]])-actual1[[#This Row],[Surcharge for financing of NCCF]]-actual1[[#This Row],[Devolution to State]]+SUM(P16:R16)+SUM(S16:T16)) -> 286695 | AH16: =AG16-actual1[[#This Row],[Interest Payments]] -> 191202
A17: 2015-16 | B17: Jul-15 | C17: 66319 | D17: 61950 | E17: 2165 | J17: 66399 | K17: 58033 | L17: 48535 | M17: 1709 | N17: 1560 | O17: 149699 | P17: 3999 | Q17: 6057 | R17: 45075 | S17: 3514 | T17: 3380 | U17: 514953 | V17: 127637 | W17: 71489 | X17: 36396 | Y17: 39781 | Z17: 89794 | AA17: 43389 | AB17: 86026 | AE17: =actual1[[#This Row],[Revenue Expenditure]]-(SUM(actual1[[#This Row],[Corporation Tax]:[Other Taxes]])-actual1[[#This Row],[Surcharge for financing of NCCF]]-actual1[[#This Row],[Devolution to State]]+SUM(P17:R17)) -> 305971 | AF17: =AE17-actual1[[#This Row],[Grants for Creation of Capital Assets]] -> 262582 | AG17: =U17+AB17-(SUM(actual1[[#This Row],[Corporation Tax]:[Other Taxes]])-actual1[[#This Row],[Surcharge for financing of NCCF]]-actual1[[#This Row],[Devolution to State]]+SUM(P17:R17)+SUM(S17:T17)) -> 385103 | AH17: =AG17-actual1[[#This Row],[Interest Payments]] -> 257466
A18: 2015-16 | B18: Aug-15 | C18: 81647 | D18: 83322 | E18: 2821 | J18: 85270 | K18: 80208 | L18: 63534 | M18: 2283 | N18: 2030 | O18: 187125 | P18: 5594 | Q18: 72147 | R18: 57865 | S18: 4559 | T18: 12803 | U18: 640255 | V18: 163469 | W18: 87261 | X18: 40353 | Y18: 47711 | Z18: 112499 | AA18: 55064 | AB18: 91938 | AE18: =actual1[[#This Row],[Revenue Expenditure]]-(SUM(actual1[[#This Row],[Corporation Tax]:[Other Taxes]])-actual1[[#This Row],[Surcharge for financing of NCCF]]-actual1[[#This Row],[Devolution to State]]+SUM(P18:R18)) -> 294719 | AF18: =AE18-actual1[[#This Row],[Grants for Creation of Capital Assets]] -> 239655 | AG18: =U18+AB18-(SUM(actual1[[#This Row],[Corporation Tax]:[Other Taxes]])-actual1[[#This Row],[Surcharge for financing of NCCF]]-actual1[[#This Row],[Devolution to State]]+SUM(P18:R18)+SUM(S18:T18)) -> 369295 | AH18: =AG18-actual1[[#This Row],[Interest Payments]] -> 205826
A19: 2015-16 | B19: Sep-15 | C19: 182635 | D19: 122424 | E19: 3556 | J19: 103625 | K19: 103008 | L19: 78735 | M19: 2901 | N19: 2597 | O19: 224551 | P19: 6795 | Q19: 75545 | R19: 61293 | S19: 5810 | T19: 12803 | U19: 782377 | V19: 197653 | W19: 104554 | X19: 52992 | Y19: 55171 | Z19: 140259 | AA19: 64874 | AB19: 128168 | AE19: =actual1[[#This Row],[Revenue Expenditure]]-(SUM(actual1[[#This Row],[Corporation Tax]:[Other Taxes]])-actual1[[#This Row],[Surcharge for financing of NCCF]]-actual1[[#This Row],[Devolution to State]]+SUM(P19:R19)) -> 269008 | AF19: =AE19-actual1[[#This Row],[Grants for Creation of Capital Assets]] -> 204134 | AG19: =U19+AB19-(SUM(actual1[[#This Row],[Corporation Tax]:[Other Taxes]])-actual1[[#This Row],[Surcharge for financing of NCCF]]-actual1[[#This Row],[Devolution to State]]+SUM(P19:R19)+SUM(S19:T19)) -> 378563 | AH19: =AG19-actual1[[#This Row],[Interest Payments]] -> 180910
A20: 2015-16 | B20: Oct-15 | C20: 198338 | D20: 142420 | E20: 4126 | J20: 121944 | K20: 123363 | L20: 100333 | M20: 3318 | N20: 3062 | O20: 261977 | P20: 12835 | Q20: 78298 | R20: 70802 | S20: 6833 | T20: 12803 | U20: 878291 | V20: 215332 | W20: 123501 | X20: 60215 | Y20: 62993 | Z20: 168439 | AA20: 68193 | AB20: 143329 | AE20: =actual1[[#This Row],[Revenue Expenditure]]-(SUM(actual1[[#This Row],[Corporation Tax]:[Other Taxes]])-actual1[[#This Row],[Surcharge for financing of NCCF]]-actual1[[#This Row],[Devolution to State]]+SUM(P20:R20)) -> 287553 | AF20: =AE20-actual1[[#This Row],[Grants for Creation of Capital Assets]] -> 219360 | AG20: =U20+AB20-(SUM(actual1[[#This Row],[Corporation Tax]:[Other Taxes]])-actual1[[#This Row],[Surcharge for financing of NCCF]]-actual1[[#This Row],[Devolution to State]]+SUM(P20:R20)+SUM(S20:T20)) -> 411246 | AH20: =AG20-actual1[[#This Row],[Interest Payments]] -> 195914
A21: 2015-16 | B21: Nov-15 | C21: 203985 | D21: 154345 | E21: 4690 | J21: 139050 | K21: 146324 | L21: 115527 | M21: 3914 | N21: 3568 | O21: 299403 | P21: 14113 | Q21: 83225 | R21: 75854 | S21: 7875 | T21: 12853 | U21: 983384 | V21: 252599 | W21: 142622 | X21: 66220 | Y21: 60471 | Z21: 188394 | AA21: 80924 | AB21: 158923 | AE21: =actual1[[#This Row],[Revenue Expenditure]]-(SUM(actual1[[#This Row],[Corporation Tax]:[Other Taxes]])-actual1[[#This Row],[Surcharge for financing of NCCF]]-actual1[[#This Row],[Devolution to State]]+SUM(P21:R21)) -> 345328 | AF21: =AE21-actual1[[#This Row],[Grants for Creation of Capital Assets]] -> 264404 | AG21: =U21+AB21-(SUM(actual1[[#This Row],[Corporation Tax]:[Other Taxes]])-actual1[[#This Row],[Surcharge for financing of NCCF]]-actual1[[#This Row],[Devolution to State]]+SUM(P21:R21)+SUM(S21:T21)) -> 483523 | AH21: =AG21-actual1[[#This Row],[Interest Payments]] -> 230924
A22: 2015-16 | B22: Dec-15 | C22: 305666 | D22: 186105 | E22: 5217 | J22: 159484 | K22: 171420 | L22: 130924 | M22: 4413 | N22: 4152 | O22: 336830 | P22: 15872 | Q22: 83425 | R22: 82264 | S22: 9138 | T22: 12866 | U22: 1126042 | V22: 302298 | W22: 165985 | X22: 73910 | Y22: 69467 | Z22: 208759 | AA22: 92788 | AB22: 187955 | AE22: =actual1[[#This Row],[Revenue Expenditure]]-(SUM(actual1[[#This Row],[Corporation Tax]:[Other Taxes]])-actual1[[#This Row],[Surcharge for financing of NCCF]]-actual1[[#This Row],[Devolution to State]]+SUM(P22:R22)) -> 322234 | AF22: =AE22-actual1[[#This Row],[Grants for Creation of Capital Assets]] -> 229446 | AG22: =U22+AB22-(SUM(actual1[[#This Row],[Corporation Tax]:[Other Taxes]])-actual1[[#This Row],[Surcharge for financing of NCCF]]-actual1[[#This Row],[Devolution to State]]+SUM(P22:R22)+SUM(S22:T22)) -> 488185 | AH22: =AG22-actual1[[#This Row],[Interest Payments]] -> 185887
A23: 2015-16 | B23: Jan-16 | C23: 317155 | D23: 205028 | E23: 5781 | J23: 177115 | K23: 194837 | L23: 153025 | M23: 4763 | N23: 4556 | O23: 374256 | P23: 17622 | Q23: 86631 | R23: 98037 | S23: 10011 | T23: 12866 | U23: 1227356 | V23: 341634 | W23: 184131 | X23: 79419 | Y23: 77335 | Z23: 212864 | AA23: 99268 | AB23: 208984 | AE23: =actual1[[#This Row],[Revenue Expenditure]]-(SUM(actual1[[#This Row],[Corporation Tax]:[Other Taxes]])-actual1[[#This Row],[Surcharge for financing of NCCF]]-actual1[[#This Row],[Devolution to State]]+SUM(P23:R23)) -> 346174 | AF23: =AE23-actual1[[#This Row],[Grants for Creation of Capital Assets]] -> 246906 | AG23: =U23+AB23-(SUM(actual1[[#This Row],[Corporation Tax]:[Other Taxes]])-actual1[[#This Row],[Surcharge for financing of NCCF]]-actual1[[#This Row],[Devolution to State]]+SUM(P23:R23)+SUM(S23:T23)) -> 532281 | AH23: =AG23-actual1[[#This Row],[Interest Payments]] -> 190647
A24: 2015-16 | B24: Feb-16 | C24: 332259 | D24: 221952 | E24: 6368 | J24: 193846 | K24: 222476 | L24: 170428 | M24: 5216 | N24: 5085 | O24: 411682 | P24: 19028 | Q24: 91135 | R24: 101109 | S24: 17428 | T24: 18523 | U24: 1337860 | V24: 379485 | W24: 202265 | X24: 87706 | Y24: 85945 | Z24: 216552 | AA24: 110796 | AB24: 218013 | AE24: =actual1[[#This Row],[Revenue Expenditure]]-(SUM(actual1[[#This Row],[Corporation Tax]:[Other Taxes]])-actual1[[#This Row],[Surcharge for financing of NCCF]]-actual1[[#This Row],[Devolution to State]]+SUM(P24:R24)) -> 390810 | AF24: =AE24-actual1[[#This Row],[Grants for Creation of Capital Assets]] -> 280014 | AG24: =U24+AB24-(SUM(actual1[[#This Row],[Corporation Tax]:[Other Taxes]])-actual1[[#This Row],[Surcharge for financing of NCCF]]-actual1[[#This Row],[Devolution to State]]+SUM(P24:R24)+SUM(S24:T24)) -> 572872 | AH24: =AG24-actual1[[#This Row],[Interest Payments]] -> 193387
A25: 2015-16 | B25: Mar-16 | C25: 453228 | D25: 280323 | E25: 7350 | J25: 210338 | K25: 287148 | L25: 211415 | M25: 5846 | N25: 5690 | O25: 506193 | P25: 25378 | Q25: 112127 | R25: 113755 | S25: 20843 | T25: 42132 | U25: 1537761 | V25: 441659 | W25: 225895 | X25: 105444 | Y25: 96771 | Z25: 242447 | AA25: 130955 | AB25: 253022 | AE25: =actual1[[#This Row],[Revenue Expenditure]]-(SUM(actual1[[#This Row],[Corporation Tax]:[Other Taxes]])-actual1[[#This Row],[Surcharge for financing of NCCF]]-actual1[[#This Row],[Devolution to State]]+SUM(P25:R25)) -> 342736 | AF25: =AE25-actual1[[#This Row],[Grants for Creation of Capital Assets]] -> 211781 | AG25: =U25+AB25-(SUM(actual1[[#This Row],[Corporation Tax]:[Other Taxes]])-actual1[[#This Row],[Surcharge for financing of NCCF]]-actual1[[#This Row],[Devolution to State]]+SUM(P25:R25)+SUM(S25:T25)) -> 532783 | AH25: =AG25-actual1[[#This Row],[Interest Payments]] -> 91124
A26: 2016-17 | B26: Apr-16 | C26: -2818 | D26: 30831 | E26: 238 | J26: 17659 | K26: -402 | L26: 7789 | M26: 404 | N26: 202 | O26: 40733 | P26: 515 | Q26: 3006 | R26: 5788 | S26: 248 | T26: 2336 | U26: 141150 | V26: 15856 | W26: 16101 | X26: 31294 | Y26: 7259 | Z26: 29147 | AA26: 23962 | AB26: 20835 | AE26: =actual1[[#This Row],[Revenue Expenditure]]-(SUM(actual1[[#This Row],[Corporation Tax]:[Other Taxes]])-actual1[[#This Row],[Surcharge for financing of NCCF]]-actual1[[#This Row],[Devolution to State]]+SUM(P26:R26)) -> 119075 | AF26: =AE26-actual1[[#This Row],[Grants for Creation of Capital Assets]] -> 95113 | AG26: =U26+AB26-(SUM(actual1[[#This Row],[Corporation Tax]:[Other Taxes]])-actual1[[#This Row],[Surcharge for financing of NCCF]]-actual1[[#This Row],[Devolution to State]]+SUM(P26:R26)+SUM(S26:T26)) -> 137326 | AH26: =AG26-actual1[[#This Row],[Interest Payments]] -> 121470
A27: 2016-17 | B27: May-16 | C27: -685 | D27: 45124 | E27: 783 | J27: 36626 | K27: 26560 | L27: 22650 | M27: 800 | N27: 696 | O27: 81472 | P27: 911 | Q27: 3006 | R27: 12084 | S27: 390 | T27: 2979 | U27: 264814 | V27: 54714 | W27: 27737 | X27: 59836 | Y27: 18870 | Z27: 45751 | AA27: 33863 | AB27: 33232 | AE27: =actual1[[#This Row],[Revenue Expenditure]]-(SUM(actual1[[#This Row],[Corporation Tax]:[Other Taxes]])-actual1[[#This Row],[Surcharge for financing of NCCF]]-actual1[[#This Row],[Devolution to State]]+SUM(P27:R27)) -> 199123 | AF27: =AE27-actual1[[#This Row],[Grants for Creation of Capital Assets]] -> 165260 | AG27: =U27+AB27-(SUM(actual1[[#This Row],[Corporation Tax]:[Other Taxes]])-actual1[[#This Row],[Surcharge for financing of NCCF]]-actual1[[#This Row],[Devolution to State]]+SUM(P27:R27)+SUM(S27:T27)) -> 228986 | AH27: =AG27-actual1[[#This Row],[Interest Payments]] -> 174272
A28: 2016-17 | B28: Jun-16 | C28: 54110 | D28: 69140 | E28: 1438 | J28: 55528 | K28: 60273 | L28: 39086 | M28: 1278 | N28: 1339 | O28: 122211 | P28: 1868 | Q28: 4221 | R28: 17395 | S28: 1743 | T28: 2979 | U28: 462836 | V28: 108802 | W28: 40230 | X28: 95327 | Y28: 27863 | Z28: 92287 | AA28: 53773 | AB28: 48996 | AE28: =actual1[[#This Row],[Revenue Expenditure]]-(SUM(actual1[[#This Row],[Corporation Tax]:[Other Taxes]])-actual1[[#This Row],[Surcharge for financing of NCCF]]-actual1[[#This Row],[Devolution to State]]+SUM(P28:R28)) -> 282049 | AF28: =AE28-actual1[[#This Row],[Grants for Creation of Capital Assets]] -> 228276 | AG28: =U28+AB28-(SUM(actual1[[#This Row],[Corporation Tax]:[Other Taxes]])-actual1[[#This Row],[Surcharge for financing of NCCF]]-actual1[[#This Row],[Devolution to State]]+SUM(P28:R28)+SUM(S28:T28)) -> 326323 | AH28: =AG28-actual1[[#This Row],[Interest Payments]] -> 217521
A29: 2016-17 | B29: Jul-16 | C29: 67061 | D29: 91834 | E29: 1952 | F29: 0 | G29: 0 | H29: 0 | I29: 0 | J29: 72153 | K29: 90328 | L29: 61195 | M29: 1916 | N29: 1822 | O29: 162949 | P29: 2866 | Q29: 4522 | R29: 26710 | S29: 4251 | T29: 3183 | U29: 585404 | V29: 140479 | W29: 52565 | X29: 119808 | Y29: 36867 | Z29: 105879 | AA29: 63211 | AB29: 71283 | AE29: =actual1[[#This Row],[Revenue Expenditure]]-(SUM(actual1[[#This Row],[Corporation Tax]:[Other Taxes]])-actual1[[#This Row],[Surcharge for financing of NCCF]]-actual1[[#This Row],[Devolution to State]]+SUM(P29:R29)) -> 329638 | AF29: =AE29-actual1[[#This Row],[Grants for Creation of Capital Assets]] -> 266427 | AG29: =U29+AB29-(SUM(actual1[[#This Row],[Corporation Tax]:[Other Taxes]])-actual1[[#This Row],[Surcharge for financing of NCCF]]-actual1[[#This Row],[Devolution to State]]+SUM(P29:R29)+SUM(S29:T29)) -> 393487 | AH29: =AG29-actual1[[#This Row],[Interest Payments]] -> 253008
A30: 2016-17 | B30: Aug-16 | C30: 80464 | D30: 109918 | E30: 2812 | F30: 0 | G30: 0 | H30: 0 | I30: 0 | J30: 90774 | K30: 120935 | L30: 79039 | M30: 2414 | N30: 2413 | O30: 203688 | P30: 3891 | Q30: 70678 | R30: 30499 | S30: 5335 | T30: 3183 | U30: 710329 | V30: 174472 | W30: 65949 | X30: 147192 | Y30: 48052 | Z30: 115219 | AA30: 70380 | AB30: 91332 | AE30: =actual1[[#This Row],[Revenue Expenditure]]-(SUM(actual1[[#This Row],[Corporation Tax]:[Other Taxes]])-actual1[[#This Row],[Surcharge for financing of NCCF]]-actual1[[#This Row],[Devolution to State]]+SUM(P30:R30)) -> 325006 | AF30: =AE30-actual1[[#This Row],[Grants for Creation of Capital Assets]] -> 254626 | AG30: =U30+AB30-(SUM(actual1[[#This Row],[Corporation Tax]:[Other Taxes]])-actual1[[#This Row],[Surcharge for financing of NCCF]]-actual1[[#This Row],[Devolution to State]]+SUM(P30:R30)+SUM(S30:T30)) -> 407820 | AH30: =AG30-actual1[[#This Row],[Interest Payments]] -> 233348
A31: 2016-17 | B31: Sep-16 | C31: 186789 | D31: 144233 | E31: 3607 | F31: 0 | G31: 0 | H31: 0 | I31: 0 | J31: 109087 | K31: 152347 | L31: 96673 | M31: 2957 | N31: 3111 | O31: 244427 | P31: 6223 | Q31: 79046 | R31: 33499 | S31: 6802 | T31: 6015 | U31: 892803 | V31: 213229 | W31: 78764 | X31: 188886 | Y31: 59643 | Z31: 142643 | AA31: 100762 | AB31: 134925 | AE31: =actual1[[#This Row],[Revenue Expenditure]]-(SUM(actual1[[#This Row],[Corporation Tax]:[Other Taxes]])-actual1[[#This Row],[Surcharge for financing of NCCF]]-actual1[[#This Row],[Devolution to State]]+SUM(P31:R31)) -> 325880 | AF31: =AE31-actual1[[#This Row],[Grants for Creation of Capital Assets]] -> 225118 | AG31: =U31+AB31-(SUM(actual1[[#This Row],[Corporation Tax]:[Other Taxes]])-actual1[[#This Row],[Surcharge for financing of NCCF]]-actual1[[#This Row],[Devolution to State]]+SUM(P31:R31)+SUM(S31:T31)) -> 447988 | AH31: =AG31-actual1[[#This Row],[Interest Payments]] -> 234759
A32: 2016-17 | B32: Oct-16 | C32: 207334 | D32: 169891 | E32: 4416 | F32: 0 | G32: 0 | H32: 0 | I32: 0 | J32: 127971 | K32: 180663 | L32: 124912 | M32: 3697 | N32: 3703 | O32: 285166 | P32: 7581 | Q32: 83225 | R32: 77167 | S32: 7938 | T32: 21410 | U32: 1025884 | V32: 226807 | W32: 99185 | X32: 207331 | Y32: 70097 | Z32: 192395 | AA32: 105256 | AB32: 124959 | AE32: =actual1[[#This Row],[Revenue Expenditure]]-(SUM(actual1[[#This Row],[Corporation Tax]:[Other Taxes]])-actual1[[#This Row],[Surcharge for financing of NCCF]]-actual1[[#This Row],[Devolution to State]]+SUM(P32:R32)) -> 327896 | AF32: =AE32-actual1[[#This Row],[Grants for Creation of Capital Assets]] -> 222640 | AG32: =U32+AB32-(SUM(actual1[[#This Row],[Corporation Tax]:[Other Taxes]])-actual1[[#This Row],[Surcharge for financing of NCCF]]-actual1[[#This Row],[Devolution to State]]+SUM(P32:R32)+SUM(S32:T32)) -> 423507 | AH32: =AG32-actual1[[#This Row],[Interest Payments]] -> 196700
A33: 2016-17 | B33: Nov-16 | C33: 222258 | D33: 186675 | E33: 5109 | F33: 0 | G33: 0 | H33: 0 | I33: 0 | J33: 148501 | K33: 213584 | L33: 146839 | M33: 10314 | N33: 4294 | O33: 307814 | P33: 9007 | Q33: 86460 | R33: 79484 | S33: 9033 | T33: 23529 | U33: 1144334 | V33: 266678 | W33: 111244 | X33: 221296 | Y33: 81111 | Z33: 197791 | AA33: 112921 | AB33: 142347 | AE33: =actual1[[#This Row],[Revenue Expenditure]]-(SUM(actual1[[#This Row],[Corporation Tax]:[Other Taxes]])-actual1[[#This Row],[Surcharge for financing of NCCF]]-actual1[[#This Row],[Devolution to State]]+SUM(P33:R33)) -> 348211 | AF33: =AE33-actual1[[#This Row],[Grants for Creation of Capital Assets]] -> 235290 | AG33: =U33+AB33-(SUM(actual1[[#This Row],[Corporation Tax]:[Other Taxes]])-actual1[[#This Row],[Surcharge for financing of NCCF]]-actual1[[#This Row],[Devolution to State]]+SUM(P33:R33)+SUM(S33:T33)) -> 457996 | AH33: =AG33-actual1[[#This Row],[Interest Payments]] -> 191318
A34: 2016-17 | B34: Dec-16 | C34: 320280 | D34: 224241 | E34: 5931 | F34: 0 | G34: 0 | H34: 0 | I34: 0 | J34: 167294 | K34: 246335 | L34: 163646 | M34: 11360 | N34: 4864 | O34: 382107 | P34: 10787 | Q34: 86908 | R34: 84755 | S34: 10403 | T34: 23529 | U34: 1288862 | V34: 325684 | W34: 126595 | X34: 251796 | Y34: 93394 | Z34: 214320 | AA34: 125523 | AB34: 180886 | AE34: =actual1[[#This Row],[Revenue Expenditure]]-(SUM(actual1[[#This Row],[Corporation Tax]:[Other Taxes]])-actual1[[#This Row],[Surcharge for financing of NCCF]]-actual1[[#This Row],[Devolution to State]]+SUM(P34:R34)) -> 354296 | AF34: =AE34-actual1[[#This Row],[Grants for Creation of Capital Assets]] -> 228773 | AG34: =U34+AB34-(SUM(actual1[[#This Row],[Corporation Tax]:[Other Taxes]])-actual1[[#This Row],[Surcharge for financing of NCCF]]-actual1[[#This Row],[Devolution to State]]+SUM(P34:R34)+SUM(S34:T34)) -> 501250 | AH34: =AG34-actual1[[#This Row],[Interest Payments]] -> 175566
A35: 2016-17 | B35: Jan-17 | C35: 327303 | D35: 245413 | E35: 6523 | F35: 0 | G35: 0 | H35: 0 | I35: 0 | J35: 186291 | K35: 278330 | L35: 188752 | M35: 12058 | N35: 5470 | O35: 422846 | P35: 12842 | Q35: 88325 | R35: 91873 | S35: 13057 | T35: 31014 | U35: 1414220 | V35: 368592 | W35: 140910 | X35: 275458 | Y35: 113148 | Z35: 216266 | AA35: 135063 | AB35: 203437 | AE35: =actual1[[#This Row],[Revenue Expenditure]]-(SUM(actual1[[#This Row],[Corporation Tax]:[Other Taxes]])-actual1[[#This Row],[Surcharge for financing of NCCF]]-actual1[[#This Row],[Devolution to State]]+SUM(P35:R35)) -> 404826 | AF35: =AE35-actual1[[#This Row],[Grants for Creation of Capital Assets]] -> 269763 | AG35: =U35+AB35-(SUM(actual1[[#This Row],[Corporation Tax]:[Other Taxes]])-actual1[[#This Row],[Surcharge for financing of NCCF]]-actual1[[#This Row],[Devolution to State]]+SUM(P35:R35)+SUM(S35:T35)) -> 564192 | AH35: =AG35-actual1[[#This Row],[Interest Payments]] -> 195600
A36: 2016-17 | B36: Feb-17 | C36: 343945 | D36: 268313 | E36: 7218 | F36: 0 | G36: 0 | H36: 0 | I36: 0 | J36: 203880 | K36: 312241 | L36: 206673 | M36: 12672 | N36: 6085 | O36: 463585 | P36: 13775 | Q36: 96957 | R36: 98179 | S36: 14180 | T36: 39043 | U36: 1538224 | V36: 403984 | W36: 154043 | X36: 295708 | Y36: 123174 | Z36: 226746 | AA36: 145377 | AB36: 214796 | AE36: =actual1[[#This Row],[Revenue Expenditure]]-(SUM(actual1[[#This Row],[Corporation Tax]:[Other Taxes]])-actual1[[#This Row],[Surcharge for financing of NCCF]]-actual1[[#This Row],[Devolution to State]]+SUM(P36:R36)) -> 444041 | AF36: =AE36-actual1[[#This Row],[Grants for Creation of Capital Assets]] -> 298664 | AG36: =U36+AB36-(SUM(actual1[[#This Row],[Corporation Tax]:[Other Taxes]])-actual1[[#This Row],[Surcharge for financing of NCCF]]-actual1[[#This Row],[Devolution to State]]+SUM(P36:R36)+SUM(S36:T36)) -> 605614 | AH36: =AG36-actual1[[#This Row],[Interest Payments]] -> 201630
A37: 2016-17 | B37: Mar-17 | C37: 484924 | D37: 340592 | E37: 8998 | F37: 0 | G37: 0 | H37: 0 | I37: 0 | J37: 225370 | K37: 380496 | L37: 254499 | M37: 20943 | N37: 6450 | O37: 608000 | P37: 16264 | Q37: 123021 | R37: 135299 | S37: 17770 | T37: 47743 | U37: 1692986 | V37: 480714 | W37: 165410 | X37: 285876 | Y37: 131401 | Z37: 206666 | AA37: 166560 | AB37: 286282 | AE37: =actual1[[#This Row],[Revenue Expenditure]]-(SUM(actual1[[#This Row],[Corporation Tax]:[Other Taxes]])-actual1[[#This Row],[Surcharge for financing of NCCF]]-actual1[[#This Row],[Devolution to State]]+SUM(P37:R37)) -> 317030 | AF37: =AE37-actual1[[#This Row],[Grants for Creation of Capital Assets]] -> 150470 | AG37: =U37+AB37-(SUM(actual1[[#This Row],[Corporation Tax]:[Other Taxes]])-actual1[[#This Row],[Surcharge for financing of NCCF]]-actual1[[#This Row],[Devolution to State]]+SUM(P37:R37)+SUM(S37:T37)) -> 537799 | AH37: =AG37-actual1[[#This Row],[Interest Payments]] -> 57085
A38: 2017-18 | B38: Apr-17 | C38: 6266 | D38: 33310 | E38: 410 | F38: 0 | G38: 0 | H38: 0 | I38: 0 | J38: 20574 | K38: 1323 | L38: 8901 | M38: 613 | N38: 187 | O38: 48178 | P38: 426 | Q38: 15 | R38: 11608 | S38: 255 | T38: 1193 | U38: 213464 | V38: 19422 | W38: 17828 | X38: 35733 | Y38: 17855 | Z38: 79480 | AA38: 24666 | AB38: 28687 | AE38: =actual1[[#This Row],[Revenue Expenditure]]-(SUM(actual1[[#This Row],[Corporation Tax]:[Other Taxes]])-actual1[[#This Row],[Surcharge for financing of NCCF]]-actual1[[#This Row],[Devolution to State]]+SUM(P38:R38)) -> 178383 | AF38: =AE38-actual1[[#This Row],[Grants for Creation of Capital Assets]] -> 153717 | AG38: =U38+AB38-(SUM(actual1[[#This Row],[Corporation Tax]:[Other Taxes]])-actual1[[#This Row],[Surcharge for financing of NCCF]]-actual1[[#This Row],[Devolution to State]]+SUM(P38:R38)+SUM(S38:T38)) -> 205622 | AH38: =AG38-actual1[[#This Row],[Interest Payments]] -> 186200
A39: 2017-18 | B39: May-17 | C39: 13482 | D39: 50275 | E39: 1189 | F39: 0 | G39: 0 | H39: 0 | I39: 0 | J39: 43058 | K39: 30778 | L39: 24958 | M39: 1093 | N39: 804 | O39: 96361 | P39: 696 | Q39: 16 | R39: 14632 | S39: 398 | T39: 2255 | U39: 406490 | V39: 69014 | W39: 39548 | X39: 63029 | Y39: 36027 | Z39: 117215 | AA39: 42805 | AB39: 52536 | AE39: =actual1[[#This Row],[Revenue Expenditure]]-(SUM(actual1[[#This Row],[Corporation Tax]:[Other Taxes]])-actual1[[#This Row],[Surcharge for financing of NCCF]]-actual1[[#This Row],[Devolution to State]]+SUM(P39:R39)) -> 323478 | AF39: =AE39-actual1[[#This Row],[Grants for Creation of Capital Assets]] -> 280673 | AG39: =U39+AB39-(SUM(actual1[[#This Row],[Corporation Tax]:[Other Taxes]])-actual1[[#This Row],[Surcharge for financing of NCCF]]-actual1[[#This Row],[Devolution to State]]+SUM(P39:R39)+SUM(S39:T39)) -> 373361 | AH39: =AG39-actual1[[#This Row],[Interest Payments]] -> 304347
A40: 2017-18 | B40: Jun-17 | C40: 67259 | D40: 76497 | E40: 2147 | F40: 0 | G40: 0 | H40: 0 | I40: 0 | J40: 63859 | K40: 64673 | L40: 47048 | M40: 1937 | N40: 1538 | O40: 144545 | P40: 1487 | Q40: 1297 | R40: 19181 | S40: 2054 | T40: 7690 | U40: 582403 | V40: 133410 | W40: 56447 | X40: 95816 | Y40: 48090 | Z40: 135450 | AA40: 55515 | AB40: 68328 | AE40: =actual1[[#This Row],[Revenue Expenditure]]-(SUM(actual1[[#This Row],[Corporation Tax]:[Other Taxes]])-actual1[[#This Row],[Surcharge for financing of NCCF]]-actual1[[#This Row],[Devolution to State]]+SUM(P40:R40)) -> 383101 | AF40: =AE40-actual1[[#This Row],[Grants for Creation of Capital Assets]] -> 327586 | AG40: =U40+AB40-(SUM(actual1[[#This Row],[Corporation Tax]:[Other Taxes]])-actual1[[#This Row],[Surcharge for financing of NCCF]]-actual1[[#This Row],[Devolution to State]]+SUM(P40:R40)+SUM(S40:T40)) -> 441685 | AH40: =AG40-actual1[[#This Row],[Interest Payments]] -> 308275
A41: 2017-18 | B41: Jul-17 | C41: 83305 | D41: 109128 | E41: 3009 | F41: 10 | G41: 34 | H41: 0 | I41: 0 | J41: 95006 | K41: 89784 | L41: 69947 | M41: 2304 | N41: 1916 | O41: 192728 | P41: 2282 | Q41: 1799 | R41: 29055 | S41: 4179 | T41: 8323 | U41: 713291 | V41: 160841 | W41: 70764 | X41: 128005 | Y41: 61508 | Z41: 150726 | AA41: 73725 | AB41: 95126 | AE41: =actual1[[#This Row],[Revenue Expenditure]]-(SUM(actual1[[#This Row],[Corporation Tax]:[Other Taxes]])-actual1[[#This Row],[Surcharge for financing of NCCF]]-actual1[[#This Row],[Devolution to State]]+SUM(P41:R41)) -> 422272 | AF41: =AE41-actual1[[#This Row],[Grants for Creation of Capital Assets]] -> 348547 | AG41: =U41+AB41-(SUM(actual1[[#This Row],[Corporation Tax]:[Other Taxes]])-actual1[[#This Row],[Surcharge for financing of NCCF]]-actual1[[#This Row],[Devolution to State]]+SUM(P41:R41)+SUM(S41:T41)) -> 504896 | AH41: =AG41-actual1[[#This Row],[Interest Payments]] -> 344055
A42: 2017-18 | B42: Aug-17 | C42: 92939 | D42: 124520 | E42: 3712 | F42: 15263 | G42: 70952 | H42: 0 | I42: 7749 | J42: 80527 | K42: 111059 | L42: 73875 | M42: 3030 | N42: 2102 | O42: 240912 | P42: 3224 | Q42: 33076 | R42: 32956 | S42: 5562 | T42: 9972 | U42: 840799 | V42: 196393 | W42: 85591 | X42: 146433 | Y42: 74351 | Z42: 166978 | AA42: 84800 | AB42: 109648 | AE42: =actual1[[#This Row],[Revenue Expenditure]]-(SUM(actual1[[#This Row],[Corporation Tax]:[Other Taxes]])-actual1[[#This Row],[Surcharge for financing of NCCF]]-actual1[[#This Row],[Devolution to State]]+SUM(P42:R42)) -> 430931 | AF42: =AE42-actual1[[#This Row],[Grants for Creation of Capital Assets]] -> 346131 | AG42: =U42+AB42-(SUM(actual1[[#This Row],[Corporation Tax]:[Other Taxes]])-actual1[[#This Row],[Surcharge for financing of NCCF]]-actual1[[#This Row],[Devolution to State]]+SUM(P42:R42)+SUM(S42:T42)) -> 525045 | AH42: =AG42-actual1[[#This Row],[Interest Payments]] -> 328652
A43: 2017-18 | B43: Sep-17 | C43: 207904 | D43: 167851 | E43: 4808 | F43: 30398 | G43: 101347 | H43: 0 | I43: 15773 | J43: 87060 | K43: 129973 | L43: 75923 | M43: 12803 | N43: 2386 | O43: 289096 | P43: 4461 | Q43: 39309 | R43: 37079 | S43: 7284 | T43: 19758 | U43: 1002798 | V43: 225766 | W43: 100428 | X43: 183539 | Y43: 84091 | Z43: 186043 | AA43: 106592 | AB43: 146389 | AE43: =actual1[[#This Row],[Revenue Expenditure]]-(SUM(actual1[[#This Row],[Corporation Tax]:[Other Taxes]])-actual1[[#This Row],[Surcharge for financing of NCCF]]-actual1[[#This Row],[Devolution to State]]+SUM(P43:R43)) -> 379591 | AF43: =AE43-actual1[[#This Row],[Grants for Creation of Capital Assets]] -> 272999 | AG43: =U43+AB43-(SUM(actual1[[#This Row],[Corporation Tax]:[Other Taxes]])-actual1[[#This Row],[Surcharge for financing of NCCF]]-actual1[[#This Row],[Devolution to State]]+SUM(P43:R43)+SUM(S43:T43)) -> 498938 | AH43: =AG43-actual1[[#This Row],[Interest Payments]] -> 273172
A44: 2017-18 | B44: Oct-17 | C44: 231855 | D44: 197350 | E44: 5574 | F44: 61585 | G44: 119717 | H44: 21 | I44: 23804 | J44: 94431 | K44: 147699 | L44: 77980 | M44: 13396 | N44: 2515 | O44: 337280 | P44: 5786 | Q44: 42415 | R44: 46950 | S44: 8394 | T44: 30165 | U44: 1129853 | V44: 257909 | W44: 116243 | X44: 212568 | Y44: 97799 | Z44: 191336 | AA44: 115854 | AB44: 162795 | AE44: =actual1[[#This Row],[Revenue Expenditure]]-(SUM(actual1[[#This Row],[Corporation Tax]:[Other Taxes]])-actual1[[#This Row],[Surcharge for financing of NCCF]]-actual1[[#This Row],[Devolution to State]]+SUM(P44:R44)) -> 401085 | AF44: =AE44-actual1[[#This Row],[Grants for Creation of Capital Assets]] -> 285231 | AG44: =U44+AB44-(SUM(actual1[[#This Row],[Corporation Tax]:[Other Taxes]])-actual1[[#This Row],[Surcharge for financing of NCCF]]-actual1[[#This Row],[Devolution to State]]+SUM(P44:R44)+SUM(S44:T44)) -> 525321 | AH44: =AG44-actual1[[#This Row],[Interest Payments]] -> 267412
A45: 2017-18 | B45: Nov-17 | C45: 249829 | D45: 215183 | E45: 6562 | F45: 85424 | G45: 138344 | H45: 96 | I45: 30907 | J45: 102837 | K45: 165167 | L45: 79129 | M45: 13824 | N45: 2624 | O45: 385286 | P45: 6953 | Q45: 47115 | R45: 51401 | S45: 9471 | T45: 52378 | U45: 1294700 | V45: 309799 | W45: 131079 | X45: 251489 | Y45: 111593 | Z45: 206068 | AA45: 128434 | AB45: 184115 | AE45: =actual1[[#This Row],[Revenue Expenditure]]-(SUM(actual1[[#This Row],[Corporation Tax]:[Other Taxes]])-actual1[[#This Row],[Surcharge for financing of NCCF]]-actual1[[#This Row],[Devolution to State]]+SUM(P45:R45)) -> 489839 | AF45: =AE45-actual1[[#This Row],[Grants for Creation of Capital Assets]] -> 361405 | AG45: =U45+AB45-(SUM(actual1[[#This Row],[Corporation Tax]:[Other Taxes]])-actual1[[#This Row],[Surcharge for financing of NCCF]]-actual1[[#This Row],[Devolution to State]]+SUM(P45:R45)+SUM(S45:T45)) -> 612105 | AH45: =AG45-actual1[[#This Row],[Interest Payments]] -> 302306
A46: 2017-18 | B46: Dec-17 | C46: 375116 | D46: 262320 | E46: 7703 | F46: 109639 | G46: 155486 | H46: 312 | I46: 38806 | J46: 110152 | K46: 183044 | L46: 79930 | M46: 14058 | N46: 2972 | O46: 433470 | P46: 8281 | Q46: 49383 | R46: 55834 | S46: 10640 | T46: 53744 | U46: 1462359 | V46: 373956 | W46: 146139 | X46: 285444 | Y46: 121981 | Z46: 214845 | AA46: 146249 | AB46: 236596 | AE46: =actual1[[#This Row],[Revenue Expenditure]]-(SUM(actual1[[#This Row],[Corporation Tax]:[Other Taxes]])-actual1[[#This Row],[Surcharge for financing of NCCF]]-actual1[[#This Row],[Devolution to State]]+SUM(P46:R46)) -> 448737 | AF46: =AE46-actual1[[#This Row],[Grants for Creation of Capital Assets]] -> 302488 | AG46: =U46+AB46-(SUM(actual1[[#This Row],[Corporation Tax]:[Other Taxes]])-actual1[[#This Row],[Surcharge for financing of NCCF]]-actual1[[#This Row],[Devolution to State]]+SUM(P46:R46)+SUM(S46:T46)) -> 620949 | AH46: =AG46-actual1[[#This Row],[Interest Payments]] -> 246993
A47: 2017-18 | B47: Jan-18 | C47: 389571 | D47: 288297 | E47: 8698 | F47: 132772 | G47: 174888 | H47: 505 | I47: 46830 | J47: 118459 | K47: 201050 | L47: 80479 | M47: 14297 | N47: 3046 | O47: 481477 | P47: 9697 | Q47: 50165 | R47: 64502 | S47: 12156 | T47: 55543 | U47: 1575780 | V47: 414238 | W47: 160438 | X47: 305881 | Y47: 134907 | Z47: 218581 | AA47: 153736 | AB47: 264165 | AE47: =actual1[[#This Row],[Revenue Expenditure]]-(SUM(actual1[[#This Row],[Corporation Tax]:[Other Taxes]])-actual1[[#This Row],[Surcharge for financing of NCCF]]-actual1[[#This Row],[Devolution to State]]+SUM(P47:R47)) -> 480093 | AF47: =AE47-actual1[[#This Row],[Grants for Creation of Capital Assets]] -> 326357 | AG47: =U47+AB47-(SUM(actual1[[#This Row],[Corporation Tax]:[Other Taxes]])-actual1[[#This Row],[Surcharge for financing of NCCF]]-actual1[[#This Row],[Devolution to State]]+SUM(P47:R47)+SUM(S47:T47)) -> 676559 | AH47: =AG47-actual1[[#This Row],[Interest Payments]] -> 262321
A48: 2017-18 | B48: Feb-18 | C48: 411814 | D48: 315698 | E48: 9934 | F48: 175863 | G48: 155163 | H48: 594 | I48: 55027 | J48: 127940 | K48: 221032 | L48: 80840 | M48: 14486 | N48: 3221 | O48: 529624 | P48: 14165 | Q48: 59264 | R48: 68703 | S48: 13301 | T48: 92493 | U48: 1702085 | V48: 450729 | W48: 174514 | X48: 328359 | Y48: 145026 | Z48: 227678 | AA48: 164649 | AB48: 297086 | AE48: =actual1[[#This Row],[Revenue Expenditure]]-(SUM(actual1[[#This Row],[Corporation Tax]:[Other Taxes]])-actual1[[#This Row],[Surcharge for financing of NCCF]]-actual1[[#This Row],[Devolution to State]]+SUM(P48:R48)) -> 524407 | AF48: =AE48-actual1[[#This Row],[Grants for Creation of Capital Assets]] -> 359758 | AG48: =U48+AB48-(SUM(actual1[[#This Row],[Corporation Tax]:[Other Taxes]])-actual1[[#This Row],[Surcharge for financing of NCCF]]-actual1[[#This Row],[Devolution to State]]+SUM(P48:R48)+SUM(S48:T48)) -> 715699 | AH48: =AG48-actual1[[#This Row],[Interest Payments]] -> 264970
A49: 2017-18 | B49: Mar-18 | C49: 571202 | D49: 408203 | E49: 11881 | F49: 203261 | G49: 176688 | H49: 1635 | I49: 62612 | J49: 129030 | K49: 258636 | L49: 81229 | M49: 14632 | N49: 3517 | O49: 673005 | P49: 13581 | Q49: 91367 | R49: 82969 | S49: 20311 | T49: 100045 | U49: 1879346 | V49: 528952 | W49: 186127 | X49: 376502 | Y49: 145745 | Z49: 191110 | AA49: 192520 | AB49: 262476 | AE49: =actual1[[#This Row],[Revenue Expenditure]]-(SUM(actual1[[#This Row],[Corporation Tax]:[Other Taxes]])-actual1[[#This Row],[Surcharge for financing of NCCF]]-actual1[[#This Row],[Devolution to State]]+SUM(P49:R49)) -> 448942 | AF49: =AE49-actual1[[#This Row],[Grants for Creation of Capital Assets]] -> 256422 | AG49: =U49+AB49-(SUM(actual1[[#This Row],[Corporation Tax]:[Other Taxes]])-actual1[[#This Row],[Surcharge for financing of NCCF]]-actual1[[#This Row],[Devolution to State]]+SUM(P49:R49)+SUM(S49:T49)) -> 591062 | AH49: =AG49-actual1[[#This Row],[Interest Payments]] -> 62110
A50: 2018-19 | B50: Apr-18 | C50: 7771 | D50: 34136 | E50: 231 | F50: 32089 | G50: 19996 | H50: 90 | I50: 8503 | J50: 10128 | K50: -551 | L50: 684 | M50: 253 | N50: 8 | O50: 55789 | P50: 1277 | Q50: 17 | R50: 11830 | S50: 359 | T50: 434 | U50: 176714 | V50: 15618 | W50: 20651 | X50: 21114 | Y50: 21810 | Z50: 58136 | AA50: 22655 | AB50: 46703 | AE50: =actual1[[#This Row],[Revenue Expenditure]]-(SUM(actual1[[#This Row],[Corporation Tax]:[Other Taxes]])-actual1[[#This Row],[Surcharge for financing of NCCF]]-actual1[[#This Row],[Devolution to State]]+SUM(P50:R50)) -> 106057 | AF50: =AE50-actual1[[#This Row],[Grants for Creation of Capital Assets]] -> 83402 | AG50: =U50+AB50-(SUM(actual1[[#This Row],[Corporation Tax]:[Other Taxes]])-actual1[[#This Row],[Surcharge for financing of NCCF]]-actual1[[#This Row],[Devolution to State]]+SUM(P50:R50)+SUM(S50:T50)) -> 151967 | AH50: =AG50-actual1[[#This Row],[Interest Payments]] -> 136349
A51: 2018-19 | B51: May-18 | C51: 2328 | D51: 52680 | E51: 1180 | F51: 60208 | G51: 36928 | H51: 144 | I51: 15704 | J51: 23260 | K51: 18411 | L51: 2740 | M51: 515 | N51: 112 | O51: 111578 | P51: 1603 | Q51: 18 | R51: 22428 | S51: 570 | T51: 434 | U51: 409163 | V51: 73606 | W51: 39291 | X51: 70149 | Y51: 42312 | Z51: 88689 | AA51: 45808 | AB51: 63791 | AE51: =actual1[[#This Row],[Revenue Expenditure]]-(SUM(actual1[[#This Row],[Corporation Tax]:[Other Taxes]])-actual1[[#This Row],[Surcharge for financing of NCCF]]-actual1[[#This Row],[Devolution to State]]+SUM(P51:R51)) -> 282706 | AF51: =AE51-actual1[[#This Row],[Grants for Creation of Capital Assets]] -> 236898 | AG51: =U51+AB51-(SUM(actual1[[#This Row],[Corporation Tax]:[Other Taxes]])-actual1[[#This Row],[Surcharge for financing of NCCF]]-actual1[[#This Row],[Devolution to State]]+SUM(P51:R51)+SUM(S51:T51)) -> 345493 | AH51: =AG51-actual1[[#This Row],[Interest Payments]] -> 271887
A52: 2018-19 | B52: Jun-18 | C52: 66427 | D52: 86297 | E52: 2210 | F52: 91144 | G52: 47140 | H52: 206 | I52: 23720 | J52: 33779 | K52: 40052 | L52: 3212 | M52: 851 | N52: 341 | O52: 157527 | P52: 2473 | Q52: 18 | R52: 28110 | S52: 2083 | T52: 8760 | U52: 620659 | V52: 144915 | W52: 55139 | X52: 110962 | Y52: 56257 | Z52: 116820 | AA52: 63060 | AB52: 86988 | AE52: =actual1[[#This Row],[Revenue Expenditure]]-(SUM(actual1[[#This Row],[Corporation Tax]:[Other Taxes]])-actual1[[#This Row],[Surcharge for financing of NCCF]]-actual1[[#This Row],[Devolution to State]]+SUM(P52:R52)) -> 352888 | AF52: =AE52-actual1[[#This Row],[Grants for Creation of Capital Assets]] -> 289828 | AG52: =U52+AB52-(SUM(actual1[[#This Row],[Corporation Tax]:[Other Taxes]])-actual1[[#This Row],[Surcharge for financing of NCCF]]-actual1[[#This Row],[Devolution to State]]+SUM(P52:R52)+SUM(S52:T52)) -> 429033 | AH52: =AG52-actual1[[#This Row],[Interest Payments]] -> 284118
A53: 2018-19 | B53: Jul-18 | C53: 83787 | D53: 121502 | E53: 3142 | F53: 149037 | G53: 7237 | H53: 369 | I53: 31683 | J53: 42874 | K53: 61075 | L53: 3630 | M53: 1148 | N53: 459 | O53: 212414 | P53: 3444 | Q53: 87 | R53: 39594 | S53: 4512 | T53: 9219 | U53: 778387 | V53: 180844 | W53: 72580 | X53: 143830 | Y53: 70055 | Z53: 141682 | AA53: 79645 | AB53: 111337 | AE53: =actual1[[#This Row],[Revenue Expenditure]]-(SUM(actual1[[#This Row],[Corporation Tax]:[Other Taxes]])-actual1[[#This Row],[Surcharge for financing of NCCF]]-actual1[[#This Row],[Devolution to State]]+SUM(P53:R53)) -> 442651 | AF53: =AE53-actual1[[#This Row],[Grants for Creation of Capital Assets]] -> 363006 | AG53: =U53+AB53-(SUM(actual1[[#This Row],[Corporation Tax]:[Other Taxes]])-actual1[[#This Row],[Surcharge for financing of NCCF]]-actual1[[#This Row],[Devolution to State]]+SUM(P53:R53)+SUM(S53:T53)) -> 540257 | AH53: =AG53-actual1[[#This Row],[Interest Payments]] -> 359413
A54: 2018-19 | B54: Aug-18 | C54: 106268 | D54: 146249 | E54: 4102 | F54: 185084 | G54: 12436 | H54: 696 | I54: 39088 | J54: 53263 | K54: 81388 | L54: 4120 | M54: 1437 | N54: 613 | O54: 267302 | P54: 4207 | Q54: 40457 | R54: 53668 | S54: 5596 | T54: 9424 | U54: 938641 | V54: 219111 | W54: 88885 | X54: 163782 | Y54: 84995 | Z54: 170617 | AA54: 94822 | AB54: 132218 | AE54: =actual1[[#This Row],[Revenue Expenditure]]-(SUM(actual1[[#This Row],[Corporation Tax]:[Other Taxes]])-actual1[[#This Row],[Surcharge for financing of NCCF]]-actual1[[#This Row],[Devolution to State]]+SUM(P54:R54)) -> 474093 | AF54: =AE54-actual1[[#This Row],[Grants for Creation of Capital Assets]] -> 379271 | AG54: =U54+AB54-(SUM(actual1[[#This Row],[Corporation Tax]:[Other Taxes]])-actual1[[#This Row],[Surcharge for financing of NCCF]]-actual1[[#This Row],[Devolution to State]]+SUM(P54:R54)+SUM(S54:T54)) -> 591291 | AH54: =AG54-actual1[[#This Row],[Interest Payments]] -> 372180
A55: 2018-19 | B55: Sep-18 | C55: 243742 | D55: 195603 | E55: 5095 | F55: 214946 | G55: 27189 | H55: 805 | I55: 46938 | J55: 64456 | K55: 100590 | L55: 4707 | M55: 1728 | N55: 827 | O55: 322189 | P55: 5842 | Q55: 44695 | R55: 58432 | S55: 7786 | T55: 9945 | U55: 1141586 | V55: 255432 | W55: 104840 | X55: 229246 | Y55: 100631 | Z55: 188291 | AA55: 119217 | AB55: 162629 | AE55: =actual1[[#This Row],[Revenue Expenditure]]-(SUM(actual1[[#This Row],[Corporation Tax]:[Other Taxes]])-actual1[[#This Row],[Surcharge for financing of NCCF]]-actual1[[#This Row],[Devolution to State]]+SUM(P55:R55)) -> 449834 | AF55: =AE55-actual1[[#This Row],[Grants for Creation of Capital Assets]] -> 330617 | AG55: =U55+AB55-(SUM(actual1[[#This Row],[Corporation Tax]:[Other Taxes]])-actual1[[#This Row],[Surcharge for financing of NCCF]]-actual1[[#This Row],[Devolution to State]]+SUM(P55:R55)+SUM(S55:T55)) -> 594732 | AH55: =AG55-actual1[[#This Row],[Interest Payments]] -> 339300
A56: 2018-19 | B56: Oct-18 | C56: 270390 | D56: 229091 | E56: 6143 | F56: 262897 | G56: 12974 | H56: 931 | I56: 54662 | J56: 75919 | K56: 118694 | L56: 5370 | M56: 2019 | N56: 901 | O56: 377076 | P56: 7269 | Q56: 49368 | R56: 71079 | S56: 9080 | T56: 10101 | U56: 1279494 | V56: 292093 | W56: 122130 | X56: 243854 | Y56: 115531 | Z56: 208421 | AA56: 124740 | AB56: 177099 | AE56: =actual1[[#This Row],[Revenue Expenditure]]-(SUM(actual1[[#This Row],[Corporation Tax]:[Other Taxes]])-actual1[[#This Row],[Surcharge for financing of NCCF]]-actual1[[#This Row],[Devolution to State]]+SUM(P56:R56)) -> 490665 | AF56: =AE56-actual1[[#This Row],[Grants for Creation of Capital Assets]] -> 365925 | AG56: =U56+AB56-(SUM(actual1[[#This Row],[Corporation Tax]:[Other Taxes]])-actual1[[#This Row],[Surcharge for financing of NCCF]]-actual1[[#This Row],[Devolution to State]]+SUM(P56:R56)+SUM(S56:T56)) -> 648583 | AH56: =AG56-actual1[[#This Row],[Interest Payments]] -> 356490
A57: 2018-19 | B57: Nov-18 | C57: 291254 | D57: 250412 | E57: 7225 | F57: 297295 | G57: 22011 | H57: 1007 | I57: 62598 | J57: 86788 | K57: 138123 | L57: 5630 | M57: 2342 | N57: 1053 | O57: 431963 | P57: 7871 | Q57: 55253 | R57: 75513 | S57: 10467 | T57: 15810 | U57: 1421778 | V57: 348233 | W57: 138281 | X57: 260223 | Y57: 130079 | Z57: 219046 | AA57: 134787 | AB57: 191430 | AE57: =actual1[[#This Row],[Revenue Expenditure]]-(SUM(actual1[[#This Row],[Corporation Tax]:[Other Taxes]])-actual1[[#This Row],[Surcharge for financing of NCCF]]-actual1[[#This Row],[Devolution to State]]+SUM(P57:R57)) -> 551472 | AF57: =AE57-actual1[[#This Row],[Grants for Creation of Capital Assets]] -> 416685 | AG57: =U57+AB57-(SUM(actual1[[#This Row],[Corporation Tax]:[Other Taxes]])-actual1[[#This Row],[Surcharge for financing of NCCF]]-actual1[[#This Row],[Devolution to State]]+SUM(P57:R57)+SUM(S57:T57)) -> 716625 | AH57: =AG57-actual1[[#This Row],[Interest Payments]] -> 368392
A58: 2018-19 | B58: Dec-18 | C58: 427481 | D58: 302164 | E58: 8101 | F58: 340370 | G58: 12643 | H58: 1592 | I58: 70298 | J58: 97047 | K58: 156354 | L58: 5767 | M58: 2634 | N58: 1267 | O58: 486851 | P58: 9218 | Q58: 58994 | R58: 79499 | S58: 12317 | T58: 34215 | U58: 1620211 | V58: 421193 | W58: 153652 | X58: 287474 | Y58: 144472 | Z58: 244977 | AA58: 151018 | AB58: 211822 | AE58: =actual1[[#This Row],[Revenue Expenditure]]-(SUM(actual1[[#This Row],[Corporation Tax]:[Other Taxes]])-actual1[[#This Row],[Surcharge for financing of NCCF]]-actual1[[#This Row],[Devolution to State]]+SUM(P58:R58)) -> 536167 | AF58: =AE58-actual1[[#This Row],[Grants for Creation of Capital Assets]] -> 385149 | AG58: =U58+AB58-(SUM(actual1[[#This Row],[Corporation Tax]:[Other Taxes]])-actual1[[#This Row],[Surcharge for financing of NCCF]]-actual1[[#This Row],[Devolution to State]]+SUM(P58:R58)+SUM(S58:T58)) -> 701457 | AH58: =AG58-actual1[[#This Row],[Interest Payments]] -> 280264
A59: 2018-19 | B59: Jan-19 | C59: 454689 | D59: 329660 | E59: 8914 | F59: 375436 | G59: 22154 | H59: 1718 | I59: 78733 | J59: 107501 | K59: 174620 | L59: 6031 | M59: 2927 | N59: 1357 | O59: 541738 | P59: 9831 | Q59: 62443 | R59: 89852 | S59: 13717 | T59: 35606 | U59: 1771851 | V59: 463325 | W59: 169331 | X59: 331611 | Y59: 156116 | Z59: 259900 | AA59: 157820 | AB59: 229731 | AE59: =actual1[[#This Row],[Revenue Expenditure]]-(SUM(actual1[[#This Row],[Corporation Tax]:[Other Taxes]])-actual1[[#This Row],[Surcharge for financing of NCCF]]-actual1[[#This Row],[Devolution to State]]+SUM(P59:R59)) -> 590437 | AF59: =AE59-actual1[[#This Row],[Grants for Creation of Capital Assets]] -> 432617 | AG59: =U59+AB59-(SUM(actual1[[#This Row],[Corporation Tax]:[Other Taxes]])-actual1[[#This Row],[Surcharge for financing of NCCF]]-actual1[[#This Row],[Devolution to State]]+SUM(P59:R59)+SUM(S59:T59)) -> 770845 | AH59: =AG59-actual1[[#This Row],[Interest Payments]] -> 307520
A60: 2018-19 | B60: Feb-19 | C60: 475365 | D60: 360448 | E60: 9844 | F60: 411344 | G60: 26607 | H60: 1823 | I60: 86906 | J60: 116689 | K60: 193274 | L60: 6557 | M60: 3253 | N60: 1520 | O60: 596667 | P60: 10848 | Q60: 65974 | R60: 94933 | S60: 15042 | T60: 56620 | U60: 1915303 | V60: 501160 | W60: 185322 | X60: 370236 | Y60: 162201 | Z60: 263868 | AA60: 176996 | AB60: 273536 | AE60: =actual1[[#This Row],[Revenue Expenditure]]-(SUM(actual1[[#This Row],[Corporation Tax]:[Other Taxes]])-actual1[[#This Row],[Surcharge for financing of NCCF]]-actual1[[#This Row],[Devolution to State]]+SUM(P60:R60)) -> 649625 | AF60: =AE60-actual1[[#This Row],[Grants for Creation of Capital Assets]] -> 472629 | AG60: =U60+AB60-(SUM(actual1[[#This Row],[Corporation Tax]:[Other Taxes]])-actual1[[#This Row],[Surcharge for financing of NCCF]]-actual1[[#This Row],[Devolution to State]]+SUM(P60:R60)+SUM(S60:T60)) -> 851499 | AH60: =AG60-actual1[[#This Row],[Interest Payments]] -> 350339
A61: 2018-19 | B61: Mar-19 | C61: 663572 | D61: 461652 | E61: 11527 | F61: 457534 | G61: 28944 | H61: 2779 | I61: 95081 | J61: 117813 | K61: 230992 | L61: 6904 | M61: 3667 | N61: 1800 | O61: 761454 | P61: 12167 | Q61: 113427 | R61: 110206 | S61: 17957 | T61: 94727 | U61: 2008024 | V61: 582648 | W61: 195572 | X61: 375997 | Y61: 160212 | Z61: 196496 | AA61: 191220 | AB61: 307089 | AE61: =actual1[[#This Row],[Revenue Expenditure]]-(SUM(actual1[[#This Row],[Corporation Tax]:[Other Taxes]])-actual1[[#This Row],[Surcharge for financing of NCCF]]-actual1[[#This Row],[Devolution to State]]+SUM(P61:R61)) -> 455013 | AF61: =AE61-actual1[[#This Row],[Grants for Creation of Capital Assets]] -> 263793 | AG61: =U61+AB61-(SUM(actual1[[#This Row],[Corporation Tax]:[Other Taxes]])-actual1[[#This Row],[Surcharge for financing of NCCF]]-actual1[[#This Row],[Devolution to State]]+SUM(P61:R61)+SUM(S61:T61)) -> 649418 | AH61: =AG61-actual1[[#This Row],[Interest Payments]] -> 66770
A62: 2019-20 | B62: Apr-19 | C62: 12376 | D62: 39716 | E62: 282 | F62: 46848 | G62: -564 | H62: 171 | I62: 8874 | J62: 13105 | K62: -114 | L62: 219 | M62: 277 | N62: 9 | O62: 49544 | P62: 1489 | Q62: 35 | R62: 21769 | S62: 350 | T62: 2351 | U62: 224091 | V62: 19557 | W62: 24973 | X62: 24514 | Y62: 34739 | Z62: 68974 | AA62: 17560 | AB62: 30588 | AE62: =actual1[[#This Row],[Revenue Expenditure]]-(SUM(actual1[[#This Row],[Corporation Tax]:[Other Taxes]])-actual1[[#This Row],[Surcharge for financing of NCCF]]-actual1[[#This Row],[Devolution to State]]+SUM(P62:R62)) -> 129161 | AF62: =AE62-actual1[[#This Row],[Grants for Creation of Capital Assets]] -> 111601 | AG62: =U62+AB62-(SUM(actual1[[#This Row],[Corporation Tax]:[Other Taxes]])-actual1[[#This Row],[Surcharge for financing of NCCF]]-actual1[[#This Row],[Devolution to State]]+SUM(P62:R62)+SUM(S62:T62)) -> 157048 | AH62: =AG62-actual1[[#This Row],[Interest Payments]] -> 137491
A63: 2019-20 | B63: May-19 | C63: 1126 | D63: 60556 | E63: 1172 | F63: 81405 | G63: 6631 | H63: 325 | I63: 16587 | J63: 28229 | K63: 17333 | L63: 541 | M63: 674 | N63: 152 | O63: 99087 | P63: 2175 | Q63: 35 | R63: 26213 | S63: 712 | T63: 2355 | U63: 465284 | V63: 74804 | W63: 43462 | X63: 66019 | Y63: 53964 | Z63: 115059 | AA63: 30023 | AB63: 47703 | AE63: =actual1[[#This Row],[Revenue Expenditure]]-(SUM(actual1[[#This Row],[Corporation Tax]:[Other Taxes]])-actual1[[#This Row],[Surcharge for financing of NCCF]]-actual1[[#This Row],[Devolution to State]]+SUM(P63:R63)) -> 321521 | AF63: =AE63-actual1[[#This Row],[Grants for Creation of Capital Assets]] -> 291498 | AG63: =U63+AB63-(SUM(actual1[[#This Row],[Corporation Tax]:[Other Taxes]])-actual1[[#This Row],[Surcharge for financing of NCCF]]-actual1[[#This Row],[Devolution to State]]+SUM(P63:R63)+SUM(S63:T63)) -> 366157 | AH63: =AG63-actual1[[#This Row],[Interest Payments]] -> 291353
A64: 2019-20 | B64: Jun-19 | C64: 70640 | D64: 96927 | E64: 2261 | F64: 116805 | G64: 10670 | H64: 513 | I64: 24613 | J64: 39480 | K64: 36951 | L64: 648 | M64: 913 | N64: 379 | O64: 148631 | P64: 3259 | Q64: 283 | R64: 29933 | S64: 2407 | T64: 2357 | U64: 658705 | V64: 141755 | W64: 58790 | X64: 97932 | Y64: 57184 | Z64: 151824 | AA64: 45753 | AB64: 63000 | AE64: =actual1[[#This Row],[Revenue Expenditure]]-(SUM(actual1[[#This Row],[Corporation Tax]:[Other Taxes]])-actual1[[#This Row],[Surcharge for financing of NCCF]]-actual1[[#This Row],[Devolution to State]]+SUM(P64:R64)) -> 373819 | AF64: =AE64-actual1[[#This Row],[Grants for Creation of Capital Assets]] -> 328066 | AG64: =U64+AB64-(SUM(actual1[[#This Row],[Corporation Tax]:[Other Taxes]])-actual1[[#This Row],[Surcharge for financing of NCCF]]-actual1[[#This Row],[Devolution to State]]+SUM(P64:R64)+SUM(S64:T64)) -> 432055 | AH64: =AG64-actual1[[#This Row],[Interest Payments]] -> 290300
A65: 2019-20 | B65: Jul-19 | C65: 88381 | D65: 128752 | E65: 3096 | F65: 140900 | G65: 35920 | H65: 710 | I65: 32796 | J65: 51719 | K65: 54844 | L65: 719 | M65: 1231 | N65: 451 | O65: 199912 | P65: 4127 | Q65: 278 | R65: 39500 | S65: 4705 | T65: 12358 | U65: 839673 | V65: 183524 | W65: 75895 | X65: 142075 | Y65: 67000 | Z65: 169660 | AA65: 58191 | AB65: 107605 | AE65: =actual1[[#This Row],[Revenue Expenditure]]-(SUM(actual1[[#This Row],[Corporation Tax]:[Other Taxes]])-actual1[[#This Row],[Surcharge for financing of NCCF]]-actual1[[#This Row],[Devolution to State]]+SUM(P65:R65)) -> 457063 | AF65: =AE65-actual1[[#This Row],[Grants for Creation of Capital Assets]] -> 398872 | AG65: =U65+AB65-(SUM(actual1[[#This Row],[Corporation Tax]:[Other Taxes]])-actual1[[#This Row],[Surcharge for financing of NCCF]]-actual1[[#This Row],[Devolution to State]]+SUM(P65:R65)+SUM(S65:T65)) -> 547605 | AH65: =AG65-actual1[[#This Row],[Interest Payments]] -> 364081
A66: 2019-20 | B66: Aug-19 | C66: 111166 | D66: 165500 | E66: 4066 | F66: 209445 | G66: -10178 | H66: 827 | I66: 39618 | J66: 62031 | K66: 76032 | L66: 672 | M66: 1595 | N66: 589 | O66: 255605 | P66: 5021 | Q66: 149859 | R66: 43741 | S66: 5902 | T66: 12358 | U66: 1039125 | V66: 219026 | W66: 93595 | X66: 183811 | Y66: 105835 | Z66: 189527 | AA66: 82399 | AB66: 136176 | AE66: =actual1[[#This Row],[Revenue Expenditure]]-(SUM(actual1[[#This Row],[Corporation Tax]:[Other Taxes]])-actual1[[#This Row],[Surcharge for financing of NCCF]]-actual1[[#This Row],[Devolution to State]]+SUM(P66:R66)) -> 435924 | AF66: =AE66-actual1[[#This Row],[Grants for Creation of Capital Assets]] -> 353525 | AG66: =U66+AB66-(SUM(actual1[[#This Row],[Corporation Tax]:[Other Taxes]])-actual1[[#This Row],[Surcharge for financing of NCCF]]-actual1[[#This Row],[Devolution to State]]+SUM(P66:R66)+SUM(S66:T66)) -> 553840 | AH66: =AG66-actual1[[#This Row],[Interest Payments]] -> 334814
A67: 2019-20 | B67: Sep-19 | C67: 249327 | D67: 213004 | E67: 5038 | F67: 247577 | G67: -13828 | H67: 1309 | I67: 46766 | J67: 71838 | K67: 95930 | L67: 642 | M67: 1867 | N67: 823 | O67: 311218 | P67: 6479 | Q67: 154798 | R67: 47761 | S67: 8239 | T67: 12359 | U67: 1301082 | V67: 270696 | W67: 110931 | X67: 267424 | Y67: 121112 | Z67: 211388 | AA67: 105374 | AB67: 187537 | AE67: =actual1[[#This Row],[Revenue Expenditure]]-(SUM(actual1[[#This Row],[Corporation Tax]:[Other Taxes]])-actual1[[#This Row],[Surcharge for financing of NCCF]]-actual1[[#This Row],[Devolution to State]]+SUM(P67:R67)) -> 484615 | AF67: =AE67-actual1[[#This Row],[Grants for Creation of Capital Assets]] -> 379241 | AG67: =U67+AB67-(SUM(actual1[[#This Row],[Corporation Tax]:[Other Taxes]])-actual1[[#This Row],[Surcharge for financing of NCCF]]-actual1[[#This Row],[Devolution to State]]+SUM(P67:R67)+SUM(S67:T67)) -> 651554 | AH67: =AG67-actual1[[#This Row],[Interest Payments]] -> 380858
A68: 2019-20 | B68: Oct-19 | C68: 272756 | D68: 244394 | E68: 6054 | F68: 284712 | G68: 5745 | H68: 1499 | I68: 55467 | J68: 64459 | K68: 113951 | L68: 508 | M68: 2259 | N68: 1447 | O68: 366871 | P68: 6685 | Q68: 157879 | R68: 59584 | S68: 9461 | T68: 17365 | U68: 1453632 | V68: 289565 | W68: 129820 | X68: 308479 | Y68: 135102 | Z68: 226724 | AA68: 117770 | AB68: 201273 | AE68: =actual1[[#This Row],[Revenue Expenditure]]-(SUM(actual1[[#This Row],[Corporation Tax]:[Other Taxes]])-actual1[[#This Row],[Surcharge for financing of NCCF]]-actual1[[#This Row],[Devolution to State]]+SUM(P68:R68)) -> 545998 | AF68: =AE68-actual1[[#This Row],[Grants for Creation of Capital Assets]] -> 428228 | AG68: =U68+AB68-(SUM(actual1[[#This Row],[Corporation Tax]:[Other Taxes]])-actual1[[#This Row],[Surcharge for financing of NCCF]]-actual1[[#This Row],[Devolution to State]]+SUM(P68:R68)+SUM(S68:T68)) -> 720445 | AH68: =AG68-actual1[[#This Row],[Interest Payments]] -> 430880
A69: 2019-20 | B69: Nov-19 | C69: 288602 | D69: 267929 | E69: 7054 | F69: 328366 | G69: 5992 | H69: 1696 | I69: 62586 | J69: 75933 | K69: 132899 | L69: 532 | M69: 2554 | N69: 1679 | O69: 421850 | P69: 7539 | Q69: 158385 | R69: 66676 | S69: 10910 | T69: 18099 | U69: 1606215 | V69: 341812 | W69: 145450 | X69: 332099 | Y69: 150825 | Z69: 235015 | AA69: 129218 | AB69: 213842 | AE69: =actual1[[#This Row],[Revenue Expenditure]]-(SUM(actual1[[#This Row],[Corporation Tax]:[Other Taxes]])-actual1[[#This Row],[Surcharge for financing of NCCF]]-actual1[[#This Row],[Devolution to State]]+SUM(P69:R69)) -> 623001 | AF69: =AE69-actual1[[#This Row],[Grants for Creation of Capital Assets]] -> 493783 | AG69: =U69+AB69-(SUM(actual1[[#This Row],[Corporation Tax]:[Other Taxes]])-actual1[[#This Row],[Surcharge for financing of NCCF]]-actual1[[#This Row],[Devolution to State]]+SUM(P69:R69)+SUM(S69:T69)) -> 807834 | AH69: =AG69-actual1[[#This Row],[Interest Payments]] -> 466022
A70: 2019-20 | B70: Dec-19 | C70: 369533 | D70: 317652 | E70: 8141 | F70: 368838 | G70: 4168 | H70: 1866 | I70: 70499 | J70: 85154 | K70: 153199 | L70: 1074 | M70: 2911 | N70: 1978 | O70: 476113 | P70: 8620 | Q70: 161979 | R70: 71354 | S70: 12925 | T70: 18100 | U70: 1854125 | V70: 424314 | W70: 162106 | X70: 401585 | Y70: 160656 | Z70: 252038 | AA70: 142945 | AB70: 255522 | AE70: =actual1[[#This Row],[Revenue Expenditure]]-(SUM(actual1[[#This Row],[Corporation Tax]:[Other Taxes]])-actual1[[#This Row],[Surcharge for financing of NCCF]]-actual1[[#This Row],[Devolution to State]]+SUM(P70:R70)) -> 707228 | AF70: =AE70-actual1[[#This Row],[Grants for Creation of Capital Assets]] -> 564283 | AG70: =U70+AB70-(SUM(actual1[[#This Row],[Corporation Tax]:[Other Taxes]])-actual1[[#This Row],[Surcharge for financing of NCCF]]-actual1[[#This Row],[Devolution to State]]+SUM(P70:R70)+SUM(S70:T70)) -> 931725 | AH70: =AG70-actual1[[#This Row],[Interest Payments]] -> 507411
A71: 2019-20 | B71: Jan-20 | C71: 393249 | D71: 352427 | E71: 9031 | F71: 412620 | G71: 6296 | H71: 2023 | I71: 78858 | J71: 95760 | K71: 174528 | L71: 2832 | M71: 3317 | N71: 2169 | O71: 530735 | P71: 9386 | Q71: 162226 | R71: 80471 | S71: 14386 | T71: 18351 | U71: 2000595 | V71: 471916 | W71: 178460 | X71: 418070 | Y71: 174294 | Z71: 262978 | AA71: 152505 | AB71: 267734 | AE71: =actual1[[#This Row],[Revenue Expenditure]]-(SUM(actual1[[#This Row],[Corporation Tax]:[Other Taxes]])-actual1[[#This Row],[Surcharge for financing of NCCF]]-actual1[[#This Row],[Devolution to State]]+SUM(P71:R71)) -> 750475 | AF71: =AE71-actual1[[#This Row],[Grants for Creation of Capital Assets]] -> 597970 | AG71: =U71+AB71-(SUM(actual1[[#This Row],[Corporation Tax]:[Other Taxes]])-actual1[[#This Row],[Surcharge for financing of NCCF]]-actual1[[#This Row],[Devolution to State]]+SUM(P71:R71)+SUM(S71:T71)) -> 985472 | AH71: =AG71-actual1[[#This Row],[Interest Payments]] -> 513556
A72: 2019-20 | B72: Feb-20 | C72: 418554 | D72: 388299 | E72: 10142 | F72: 453911 | G72: 6849 | H72: 2182 | I72: 87462 | J72: 104972 | K72: 196855 | L72: 4866 | M72: 3695 | N72: 2431 | O72: 560720 | P72: 10197 | Q72: 164531 | R72: 88413 | S72: 15849 | T72: 35243 | U72: 2160701 | V72: 512984 | W72: 196546 | X72: 469999 | Y72: 182540 | Z72: 265781 | AA72: 168827 | AB72: 304653 | AE72: =actual1[[#This Row],[Revenue Expenditure]]-(SUM(actual1[[#This Row],[Corporation Tax]:[Other Taxes]])-actual1[[#This Row],[Surcharge for financing of NCCF]]-actual1[[#This Row],[Devolution to State]]+SUM(P72:R72)) -> 782924 | AF72: =AE72-actual1[[#This Row],[Grants for Creation of Capital Assets]] -> 614097 | AG72: =U72+AB72-(SUM(actual1[[#This Row],[Corporation Tax]:[Other Taxes]])-actual1[[#This Row],[Surcharge for financing of NCCF]]-actual1[[#This Row],[Devolution to State]]+SUM(P72:R72)+SUM(S72:T72)) -> 1036485 | AH72: =AG72-actual1[[#This Row],[Interest Payments]] -> 523501
A73: 2019-20 | B73: Mar-20 | C73: 556876 | D73: 480341 | E73: 12374 | F73: 494070 | G73: 9204 | H73: 2629 | I73: 95551 | J73: 109171 | K73: 239599 | L73: 6043 | M73: 4024 | N73: 3319 | O73: 650677 | P73: 11627 | Q73: 186142 | R73: 128452 | S73: 18316 | T73: 50304 | U73: 2349618 | V73: 611036 | W73: 207542 | X73: 512050 | Y73: 183637 | Z73: 223213 | AA73: 187372 | AB73: 336744 | AE73: =actual1[[#This Row],[Revenue Expenditure]]-(SUM(actual1[[#This Row],[Corporation Tax]:[Other Taxes]])-actual1[[#This Row],[Surcharge for financing of NCCF]]-actual1[[#This Row],[Devolution to State]]+SUM(P73:R73)) -> 667511 | AF73: =AE73-actual1[[#This Row],[Grants for Creation of Capital Assets]] -> 480139 | AG73: =U73+AB73-(SUM(actual1[[#This Row],[Corporation Tax]:[Other Taxes]])-actual1[[#This Row],[Surcharge for financing of NCCF]]-actual1[[#This Row],[Devolution to State]]+SUM(P73:R73)+SUM(S73:T73)) -> 935635 | AH73: =AG73-actual1[[#This Row],[Interest Payments]] -> 324599
A74: 2020-21 | B74: Apr-20 | C74: 19514 | D74: 26978 | E74: 369 | F74: 5934 | G74: 9749 | H74: 34 | I74: 990 | J74: 3934 | K74: 80 | L74: -106 | M74: 81 | N74: 106 | O74: 46039 | P74: 294 | Q74: 2 | R74: 5475 | S74: 365 | T74: 0 | U74: 278754 | V74: 26696 | W74: 22886 | X74: 68821 | Y74: 29816 | Z74: 44069 | AA74: 25619 | AB74: 28306 | AE74: =actual1[[#This Row],[Revenue Expenditure]]-(SUM(actual1[[#This Row],[Corporation Tax]:[Other Taxes]])-actual1[[#This Row],[Surcharge for financing of NCCF]]-actual1[[#This Row],[Devolution to State]]+SUM(P74:R74)) -> 251571 | AF74: =AE74-actual1[[#This Row],[Grants for Creation of Capital Assets]] -> 225952 | AG74: =U74+AB74-(SUM(actual1[[#This Row],[Corporation Tax]:[Other Taxes]])-actual1[[#This Row],[Surcharge for financing of NCCF]]-actual1[[#This Row],[Devolution to State]]+SUM(P74:R74)+SUM(S74:T74)) -> 279512 | AH74: =AG74-actual1[[#This Row],[Interest Payments]] -> 252816
A75: 2020-21 | B75: May-20 | C75: 16981 | D75: 35726 | E75: 1386 | F75: 24895 | G75: 19392 | H75: 141 | I75: 7010 | J75: 9567 | K75: 10956 | L75: -171 | M75: 227 | N75: 183 | O75: 92077 | P75: 610 | Q75: 2154 | R75: 8053 | S75: 831 | T75: 0 | U75: 456635 | V75: 78265 | W75: 37395 | X75: 96549 | Y75: 41589 | Z75: 67469 | AA75: 36845 | AB75: 55206 | AE75: =actual1[[#This Row],[Revenue Expenditure]]-(SUM(actual1[[#This Row],[Corporation Tax]:[Other Taxes]])-actual1[[#This Row],[Surcharge for financing of NCCF]]-actual1[[#This Row],[Devolution to State]]+SUM(P75:R75)) -> 411968 | AF75: =AE75-actual1[[#This Row],[Grants for Creation of Capital Assets]] -> 375123 | AG75: =U75+AB75-(SUM(actual1[[#This Row],[Corporation Tax]:[Other Taxes]])-actual1[[#This Row],[Surcharge for financing of NCCF]]-actual1[[#This Row],[Devolution to State]]+SUM(P75:R75)+SUM(S75:T75)) -> 466343 | AH75: =AG75-actual1[[#This Row],[Interest Payments]] -> 388078
A76: 2020-21 | B76: Jun-20 | C76: 54212 | D76: 62123 | E76: 2568 | F76: 55047 | G76: 29064 | H76: 295 | I76: 14482 | J76: 15416 | K76: 35347 | L76: 754 | M76: 378 | N76: 821 | O76: 134043 | P76: 1629 | Q76: 2349 | R76: 11208 | S76: 3573 | T76: 0 | U76: 727671 | V76: 160493 | W76: 53968 | X76: 171682 | Y76: 65705 | Z76: 78964 | AA76: 59765 | AB76: 88273 | AE76: =actual1[[#This Row],[Revenue Expenditure]]-(SUM(actual1[[#This Row],[Corporation Tax]:[Other Taxes]])-actual1[[#This Row],[Surcharge for financing of NCCF]]-actual1[[#This Row],[Devolution to State]]+SUM(P76:R76)) -> 577663 | AF76: =AE76-actual1[[#This Row],[Grants for Creation of Capital Assets]] -> 517898 | AG76: =U76+AB76-(SUM(actual1[[#This Row],[Corporation Tax]:[Other Taxes]])-actual1[[#This Row],[Surcharge for financing of NCCF]]-actual1[[#This Row],[Devolution to State]]+SUM(P76:R76)+SUM(S76:T76)) -> 662363 | AH76: =AG76-actual1[[#This Row],[Interest Payments]] -> 501870
A77: 2020-21 | B77: Jul-20 | C77: 53724 | D77: 91244 | E77: 4133 | F77: 92949 | G77: 23038 | H77: 519 | I77: 21298 | J77: 23747 | K77: 67895 | L77: 740 | M77: 713 | N77: 1203 | O77: 176009 | P77: 2819 | Q77: 2420 | R77: 19375 | S77: 5455 | T77: 3 | U77: 942360 | V77: 198584 | W77: 70789 | X77: 229308 | Y77: 82554 | Z77: 104638 | AA77: 78661 | AB77: 111849 | AE77: =actual1[[#This Row],[Revenue Expenditure]]-(SUM(actual1[[#This Row],[Corporation Tax]:[Other Taxes]])-actual1[[#This Row],[Surcharge for financing of NCCF]]-actual1[[#This Row],[Devolution to State]]+SUM(P77:R77)) -> 714958 | AF77: =AE77-actual1[[#This Row],[Grants for Creation of Capital Assets]] -> 636297 | AG77: =U77+AB77-(SUM(actual1[[#This Row],[Corporation Tax]:[Other Taxes]])-actual1[[#This Row],[Surcharge for financing of NCCF]]-actual1[[#This Row],[Devolution to State]]+SUM(P77:R77)+SUM(S77:T77)) -> 821349 | AH77: =AG77-actual1[[#This Row],[Interest Payments]] -> 622765
A78: 2020-21 | B78: Aug-20 | C78: 64715 | D78: 117738 | E78: 4860 | F78: 125308 | G78: 28236 | H78: 710 | I78: 28154 | J78: 32302 | K78: 100398 | L78: 793 | M78: 986 | N78: 1729 | O78: 217976 | P78: 4070 | Q78: 59578 | R78: 22499 | S78: 6635 | T78: 29 | U78: 1113206 | V78: 237662 | W78: 86720 | X78: 255394 | Y78: 97547 | Z78: 130700 | AA78: 94140 | AB78: 134447 | AE78: =actual1[[#This Row],[Revenue Expenditure]]-(SUM(actual1[[#This Row],[Corporation Tax]:[Other Taxes]])-actual1[[#This Row],[Surcharge for financing of NCCF]]-actual1[[#This Row],[Devolution to State]]+SUM(P78:R78)) -> 742564 | AF78: =AE78-actual1[[#This Row],[Grants for Creation of Capital Assets]] -> 648424 | AG78: =U78+AB78-(SUM(actual1[[#This Row],[Corporation Tax]:[Other Taxes]])-actual1[[#This Row],[Surcharge for financing of NCCF]]-actual1[[#This Row],[Devolution to State]]+SUM(P78:R78)+SUM(S78:T78)) -> 870347 | AH78: =AG78-actual1[[#This Row],[Interest Payments]] -> 632685
A79: 2020-21 | B79: Sep-20 | C79: 150464 | D79: 166489 | E79: 6332 | F79: 162479 | G79: 27946 | H79: 953 | I79: 34964 | J79: 40347 | K79: 128753 | L79: 916 | M79: 1253 | N79: 2447 | O79: 259941 | P79: 5749 | Q79: 59951 | R79: 26574 | S79: 8854 | T79: 5781 | U79: 1313574 | V79: 305652 | W79: 103220 | X79: 281336 | Y79: 111231 | Z79: 156210 | AA79: 106282 | AB79: 165836 | AE79: =actual1[[#This Row],[Revenue Expenditure]]-(SUM(actual1[[#This Row],[Corporation Tax]:[Other Taxes]])-actual1[[#This Row],[Surcharge for financing of NCCF]]-actual1[[#This Row],[Devolution to State]]+SUM(P79:R79)) -> 762792 | AF79: =AE79-actual1[[#This Row],[Grants for Creation of Capital Assets]] -> 656510 | AG79: =U79+AB79-(SUM(actual1[[#This Row],[Corporation Tax]:[Other Taxes]])-actual1[[#This Row],[Surcharge for financing of NCCF]]-actual1[[#This Row],[Devolution to State]]+SUM(P79:R79)+SUM(S79:T79)) -> 913993 | AH79: =AG79-actual1[[#This Row],[Interest Payments]] -> 608341
A80: 2020-21 | B80: Oct-20 | C80: 172735 | D80: 203101 | E80: 8497 | F80: 205380 | G80: 28138 | H80: 1089 | I80: 42804 | J80: 50519 | K80: 160639 | L80: 997 | M80: 1692 | N80: 2720 | O80: 297174 | P80: 8138 | Q80: 67082 | R80: 40986 | S80: 10218 | T80: 6179 | U80: 1464099 | V80: 333456 | W80: 120058 | X80: 297433 | Y80: 128037 | Z80: 185400 | AA80: 120877 | AB80: 197355 | AE80: =actual1[[#This Row],[Revenue Expenditure]]-(SUM(actual1[[#This Row],[Corporation Tax]:[Other Taxes]])-actual1[[#This Row],[Surcharge for financing of NCCF]]-actual1[[#This Row],[Devolution to State]]+SUM(P80:R80)) -> 772196 | AF80: =AE80-actual1[[#This Row],[Grants for Creation of Capital Assets]] -> 651319 | AG80: =U80+AB80-(SUM(actual1[[#This Row],[Corporation Tax]:[Other Taxes]])-actual1[[#This Row],[Surcharge for financing of NCCF]]-actual1[[#This Row],[Devolution to State]]+SUM(P80:R80)+SUM(S80:T80)) -> 953154 | AH80: =AG80-actual1[[#This Row],[Interest Payments]] -> 619698
A81: 2020-21 | B81: Nov-20 | C81: 185699 | D81: 235038 | E81: 9776 | F81: 245183 | G81: 35750 | H81: 1221 | I81: 50833 | J81: 63050 | K81: 196342 | L81: 1059 | M81: 2104 | N81: 3218 | O81: 334407 | P81: 9568 | Q81: 70614 | R81: 44098 | S81: 11962 | T81: 6179 | U81: 1665200 | V81: 383425 | W81: 135880 | X81: 356808 | Y81: 141461 | Z81: 202119 | AA81: 136412 | AB81: 241158 | AE81: =actual1[[#This Row],[Revenue Expenditure]]-(SUM(actual1[[#This Row],[Corporation Tax]:[Other Taxes]])-actual1[[#This Row],[Surcharge for financing of NCCF]]-actual1[[#This Row],[Devolution to State]]+SUM(P81:R81)) -> 852490 | AF81: =AE81-actual1[[#This Row],[Grants for Creation of Capital Assets]] -> 716078 | AG81: =U81+AB81-(SUM(actual1[[#This Row],[Corporation Tax]:[Other Taxes]])-actual1[[#This Row],[Surcharge for financing of NCCF]]-actual1[[#This Row],[Devolution to State]]+SUM(P81:R81)+SUM(S81:T81)) -> 1075507 | AH81: =AG81-actual1[[#This Row],[Interest Payments]] -> 692082
A82: 2020-21 | B82: Dec-20 | C82: 312532 | D82: 297806 | E82: 11443 | F82: 288223 | G82: 48158 | H82: 1365 | I82: 59081 | J82: 79598 | K82: 235993 | L82: 1183 | M82: 2744 | N82: 4087 | O82: 371640 | P82: 11267 | Q82: 70848 | R82: 44066 | S82: 14202 | T82: 18896 | U82: 1971173 | V82: 472171 | W82: 153857 | X82: 439785 | Y82: 159146 | Z82: 227352 | AA82: 155707 | AB82: 308974 | AE82: =actual1[[#This Row],[Revenue Expenditure]]-(SUM(actual1[[#This Row],[Corporation Tax]:[Other Taxes]])-actual1[[#This Row],[Surcharge for financing of NCCF]]-actual1[[#This Row],[Devolution to State]]+SUM(P82:R82)) -> 882593 | AF82: =AE82-actual1[[#This Row],[Grants for Creation of Capital Assets]] -> 726886 | AG82: =U82+AB82-(SUM(actual1[[#This Row],[Corporation Tax]:[Other Taxes]])-actual1[[#This Row],[Surcharge for financing of NCCF]]-actual1[[#This Row],[Devolution to State]]+SUM(P82:R82)+SUM(S82:T82)) -> 1158469 | AH82: =AG82-actual1[[#This Row],[Interest Payments]] -> 686298
A83: 2020-21 | B83: Jan-21 | C83: 334485 | D83: 333173 | E83: 13115 | F83: 332889 | G83: 54927 | H83: 1689 | I83: 67413 | J83: 97511 | K83: 275474 | L83: 1285 | M83: 3139 | N83: 4372 | O83: 408873 | P83: 12662 | Q83: 74371 | R83: 54071 | S83: 15804 | T83: 24551 | U83: 2155210 | V83: 519597 | W83: 171692 | X83: 476409 | Y83: 175714 | Z83: 252656 | AA83: 169400 | AB83: 362108 | AE83: =actual1[[#This Row],[Revenue Expenditure]]-(SUM(actual1[[#This Row],[Corporation Tax]:[Other Taxes]])-actual1[[#This Row],[Surcharge for financing of NCCF]]-actual1[[#This Row],[Devolution to State]]+SUM(P83:R83)) -> 912251 | AF83: =AE83-actual1[[#This Row],[Grants for Creation of Capital Assets]] -> 742851 | AG83: =U83+AB83-(SUM(actual1[[#This Row],[Corporation Tax]:[Other Taxes]])-actual1[[#This Row],[Surcharge for financing of NCCF]]-actual1[[#This Row],[Devolution to State]]+SUM(P83:R83)+SUM(S83:T83)) -> 1234004 | AH83: =AG83-actual1[[#This Row],[Interest Payments]] -> 714407
A84: 2020-21 | B84: Feb-21 | C84: 350582 | D84: 372043 | E84: 14902 | F84: 399530 | G84: 17619 | H84: 2099 | I84: 76762 | J84: 112752 | K84: 314140 | L84: 1338 | M84: 3536 | N84: 5063 | O84: 444154 | P84: 13917 | Q84: 81986 | R84: 58283 | S84: 17156 | T84: 25668 | U84: 2413375 | V84: 559483 | W84: 190547 | X84: 509709 | Y84: 192253 | Z84: 365570 | AA84: 183926 | AB84: 405268 | AE84: =actual1[[#This Row],[Revenue Expenditure]]-(SUM(actual1[[#This Row],[Corporation Tax]:[Other Taxes]])-actual1[[#This Row],[Surcharge for financing of NCCF]]-actual1[[#This Row],[Devolution to State]]+SUM(P84:R84)) -> 1043103 | AF84: =AE84-actual1[[#This Row],[Grants for Creation of Capital Assets]] -> 859177 | AG84: =U84+AB84-(SUM(actual1[[#This Row],[Corporation Tax]:[Other Taxes]])-actual1[[#This Row],[Surcharge for financing of NCCF]]-actual1[[#This Row],[Devolution to State]]+SUM(P84:R84)+SUM(S84:T84)) -> 1405547 | AH84: =AG84-actual1[[#This Row],[Interest Payments]] -> 846064
A85: 2020-21 | B85: Mar-21 | C85: 457719 | D85: 470633 | E85: 16927 | F85: 456334 | G85: 7252 | H85: 2764 | I85: 85192 | J85: 134750 | K85: 389667 | L85: 1615 | M85: 4251 | N85: 5820 | O85: 594997 | P85: 17124 | Q85: 96889 | R85: 93619 | S85: 19729 | T85: 37897 | U85: 3084258 | V85: 679869 | W85: 205789 | X85: 576881 | Y85: 208473 | Z85: 707130 | AA85: 222391 | AB85: 425578 | AE85: =actual1[[#This Row],[Revenue Expenditure]]-(SUM(actual1[[#This Row],[Corporation Tax]:[Other Taxes]])-actual1[[#This Row],[Surcharge for financing of NCCF]]-actual1[[#This Row],[Devolution to State]]+SUM(P85:R85)) -> 1450339 | AF85: =AE85-actual1[[#This Row],[Grants for Creation of Capital Assets]] -> 1227948 | AG85: =U85+AB85-(SUM(actual1[[#This Row],[Corporation Tax]:[Other Taxes]])-actual1[[#This Row],[Surcharge for financing of NCCF]]-actual1[[#This Row],[Devolution to State]]+SUM(P85:R85)+SUM(S85:T85)) -> 1818291 | AH85: =AG85-actual1[[#This Row],[Interest Payments]] -> 1138422
A86: 2021-22 | B86: Apr-21 | C86: 32375 | D86: 47673 | E86: 1864 | F86: 55458 | G86: 4787 | H86: 161 | I86: 9187 | J86: 17906 | K86: 154 | L86: 55 | M86: 502 | N86: 136 | O86: 39175 | P86: 7009 | Q86: 236 | R86: 9563 | S86: 372 | T86: 0 | U86: 179564 | V86: 29671 | W86: 23688 | X86: 26447 | Y86: 11560 | Z86: 37369 | AA86: 5644 | AB86: 47126 | AE86: =actual1[[#This Row],[Revenue Expenditure]]-(SUM(actual1[[#This Row],[Corporation Tax]:[Other Taxes]])-actual1[[#This Row],[Surcharge for financing of NCCF]]-actual1[[#This Row],[Devolution to State]]+SUM(P86:R86)) -> 31945 | AF86: =AE86-actual1[[#This Row],[Grants for Creation of Capital Assets]] -> 26301 | AG86: =U86+AB86-(SUM(actual1[[#This Row],[Corporation Tax]:[Other Taxes]])-actual1[[#This Row],[Surcharge for financing of NCCF]]-actual1[[#This Row],[Devolution to State]]+SUM(P86:R86)+SUM(S86:T86)) -> 78699 | AH86: =AG86-actual1[[#This Row],[Interest Payments]] -> 49028
A87: 2021-22 | B87: May-21 | C87: 43454 | D87: 75381 | E87: 3491 | F87: 83750 | G87: 20128 | H87: 325 | I87: 18073 | J87: 30190 | K87: 36963 | L87: 90 | M87: 834 | N87: 765 | O87: 78349 | P87: 2759 | Q87: 99628 | R87: 14025 | S87: 815 | T87: 3995 | U87: 415000 | V87: 88573 | W87: 39229 | X87: 79704 | Y87: 31288 | Z87: 62664 | AA87: 25119 | AB87: 62961 | AE87: =actual1[[#This Row],[Revenue Expenditure]]-(SUM(actual1[[#This Row],[Corporation Tax]:[Other Taxes]])-actual1[[#This Row],[Surcharge for financing of NCCF]]-actual1[[#This Row],[Devolution to State]]+SUM(P87:R87)) -> 65023 | AF87: =AE87-actual1[[#This Row],[Grants for Creation of Capital Assets]] -> 39904 | AG87: =U87+AB87-(SUM(actual1[[#This Row],[Corporation Tax]:[Other Taxes]])-actual1[[#This Row],[Surcharge for financing of NCCF]]-actual1[[#This Row],[Devolution to State]]+SUM(P87:R87)+SUM(S87:T87)) -> 123174 | AH87: =AG87-actual1[[#This Row],[Interest Payments]] -> 34601
A88: 2021-22 | B88: Jun-21 | C88: 123689 | D88: 122692 | E88: 5374 | F88: 117446 | G88: 26505 | H88: 495 | I88: 24638 | J88: 41356 | K88: 67907 | L88: 162 | M88: 1342 | N88: 1402 | O88: 117524 | P88: 4669 | Q88: 101711 | R88: 20937 | S88: 3406 | T88: 3996 | U88: 710148 | V88: 184295 | W88: 59113 | X88: 149296 | Y88: 47636 | Z88: 100090 | AA88: 54773 | AB88: 111496 | AE88: =actual1[[#This Row],[Revenue Expenditure]]-(SUM(actual1[[#This Row],[Corporation Tax]:[Other Taxes]])-actual1[[#This Row],[Surcharge for financing of NCCF]]-actual1[[#This Row],[Devolution to State]]+SUM(P88:R88)) -> 170151 | AF88: =AE88-actual1[[#This Row],[Grants for Creation of Capital Assets]] -> 115378 | AG88: =U88+AB88-(SUM(actual1[[#This Row],[Corporation Tax]:[Other Taxes]])-actual1[[#This Row],[Surcharge for financing of NCCF]]-actual1[[#This Row],[Devolution to State]]+SUM(P88:R88)+SUM(S88:T88)) -> 274245 | AH88: =AG88-actual1[[#This Row],[Interest Payments]] -> 89950
A89: 2021-22 | B89: Jul-21 | C89: 145851 | D89: 161221 | E89: 7366 | F89: 165347 | G89: 22772 | H89: 749 | I89: 32168 | J89: 57964 | K89: 100387 | L89: 73 | M89: 1990 | N89: 1635 | O89: 165064 | P89: 6550 | Q89: 101726 | R89: 31684 | S89: 5777 | T89: 8371 | U89: 876012 | V89: 225817 | W89: 79219 | X89: 167493 | Y89: 63902 | Z89: 120069 | AA89: 68101 | AB89: 128428 | AE89: =actual1[[#This Row],[Revenue Expenditure]]-(SUM(actual1[[#This Row],[Corporation Tax]:[Other Taxes]])-actual1[[#This Row],[Surcharge for financing of NCCF]]-actual1[[#This Row],[Devolution to State]]+SUM(P89:R89)) -> 206863 | AF89: =AE89-actual1[[#This Row],[Grants for Creation of Capital Assets]] -> 138762 | AG89: =U89+AB89-(SUM(actual1[[#This Row],[Corporation Tax]:[Other Taxes]])-actual1[[#This Row],[Surcharge for financing of NCCF]]-actual1[[#This Row],[Devolution to State]]+SUM(P89:R89)+SUM(S89:T89)) -> 321143 | AH89: =AG89-actual1[[#This Row],[Interest Payments]] -> 95326
A90: 2021-22 | B90: Aug-21 | C90: 168052 | D90: 199383 | E90: 9142 | F90: 218673 | G90: 6577 | H90: 1038 | I90: 40642 | J90: 76225 | K90: 137236 | L90: 126 | M90: 2486 | N90: 2131 | O90: 212606 | P90: 8407 | Q90: 101942 | R90: 38301 | S90: 6808 | T90: 8371 | U90: 1104813 | V90: 278371 | W90: 98399 | X90: 221658 | Y90: 78862 | Z90: 147398 | AA90: 87192 | AB90: 171868 | AE90: =actual1[[#This Row],[Revenue Expenditure]]-(SUM(actual1[[#This Row],[Corporation Tax]:[Other Taxes]])-actual1[[#This Row],[Surcharge for financing of NCCF]]-actual1[[#This Row],[Devolution to State]]+SUM(P90:R90)) -> 311320 | AF90: =AE90-actual1[[#This Row],[Grants for Creation of Capital Assets]] -> 224128 | AG90: =U90+AB90-(SUM(actual1[[#This Row],[Corporation Tax]:[Other Taxes]])-actual1[[#This Row],[Surcharge for financing of NCCF]]-actual1[[#This Row],[Devolution to State]]+SUM(P90:R90)+SUM(S90:T90)) -> 468009 | AH90: =AG90-actual1[[#This Row],[Interest Payments]] -> 189638
A91: 2021-22 | B91: Sep-21 | C91: 308663 | D91: 274172 | E91: 10967 | F91: 266052 | G91: 5943 | H91: 1260 | I91: 49131 | J91: 92653 | K91: 171684 | L91: 226 | M91: 3057 | N91: 2970 | O91: 260146 | P91: 10310 | Q91: 105920 | R91: 44126 | S91: 9003 | T91: 9115 | U91: 1396666 | V91: 365207 | W91: 123265 | X91: 277995 | Y91: 98584 | Z91: 180959 | AA91: 110243 | AB91: 229351 | AE91: =actual1[[#This Row],[Revenue Expenditure]]-(SUM(actual1[[#This Row],[Corporation Tax]:[Other Taxes]])-actual1[[#This Row],[Surcharge for financing of NCCF]]-actual1[[#This Row],[Devolution to State]]+SUM(P91:R91)) -> 315618 | AF91: =AE91-actual1[[#This Row],[Grants for Creation of Capital Assets]] -> 205375 | AG91: =U91+AB91-(SUM(actual1[[#This Row],[Corporation Tax]:[Other Taxes]])-actual1[[#This Row],[Surcharge for financing of NCCF]]-actual1[[#This Row],[Devolution to State]]+SUM(P91:R91)+SUM(S91:T91)) -> 526851 | AH91: =AG91-actual1[[#This Row],[Interest Payments]] -> 161644
A92: 2021-22 | B92: Oct-21 | C92: 330885 | D92: 311292 | E92: 13073 | F92: 314598 | G92: 14913 | H92: 1400 | I92: 57352 | J92: 112279 | K92: 204063 | L92: 430 | M92: 3816 | N92: 3279 | O92: 307687 | P92: 12425 | Q92: 117823 | R92: 76594 | S92: 10358 | T92: 9364 | U92: 1573455 | V92: 401187 | W92: 142512 | X92: 310155 | Y92: 115035 | Z92: 209916 | AA92: 119915 | AB92: 253270 | AE92: =actual1[[#This Row],[Revenue Expenditure]]-(SUM(actual1[[#This Row],[Corporation Tax]:[Other Taxes]])-actual1[[#This Row],[Surcharge for financing of NCCF]]-actual1[[#This Row],[Devolution to State]]+SUM(P92:R92)) -> 313478 | AF92: =AE92-actual1[[#This Row],[Grants for Creation of Capital Assets]] -> 193563 | AG92: =U92+AB92-(SUM(actual1[[#This Row],[Corporation Tax]:[Other Taxes]])-actual1[[#This Row],[Surcharge for financing of NCCF]]-actual1[[#This Row],[Devolution to State]]+SUM(P92:R92)+SUM(S92:T92)) -> 547026 | AH92: =AG92-actual1[[#This Row],[Interest Payments]] -> 145839
A93: 2021-22 | B93: Nov-21 | C93: 353584 | D93: 346086 | E93: 15365 | F93: 363836 | G93: 22151 | H93: 1518 | I93: 66794 | J93: 125782 | K93: 241930 | L93: 502 | M93: 4372 | N93: 3887 | O93: 402769 | P93: 13957 | Q93: 127909 | R93: 81160 | S93: 11339 | T93: 9364 | U93: 1800977 | V93: 461773 | W93: 160680 | X93: 373771 | Y93: 127331 | Z93: 230607 | AA93: 132012 | AB93: 273630 | AE93: =actual1[[#This Row],[Revenue Expenditure]]-(SUM(actual1[[#This Row],[Corporation Tax]:[Other Taxes]])-actual1[[#This Row],[Surcharge for financing of NCCF]]-actual1[[#This Row],[Devolution to State]]+SUM(P93:R93)) -> 442687 | AF93: =AE93-actual1[[#This Row],[Grants for Creation of Capital Assets]] -> 310675 | AG93: =U93+AB93-(SUM(actual1[[#This Row],[Corporation Tax]:[Other Taxes]])-actual1[[#This Row],[Surcharge for financing of NCCF]]-actual1[[#This Row],[Devolution to State]]+SUM(P93:R93)+SUM(S93:T93)) -> 695614 | AH93: =AG93-actual1[[#This Row],[Interest Payments]] -> 233841
A94: 2021-22 | B94: Dec-21 | C94: 520332 | D94: 448102 | E94: 17348 | F94: 410063 | G94: 36786 | H94: 1772 | I94: 75935 | J94: 141080 | K94: 271862 | L94: 577 | M94: 5138 | N94: 4876 | O94: 450310 | P94: 16055 | Q94: 137068 | R94: 106291 | S94: 19105 | T94: 9364 | U94: 2129414 | V94: 565864 | W94: 179859 | X94: 426909 | Y94: 146150 | Z94: 271374 | AA94: 157950 | AB94: 391644 | AE94: =actual1[[#This Row],[Revenue Expenditure]]-(SUM(actual1[[#This Row],[Corporation Tax]:[Other Taxes]])-actual1[[#This Row],[Surcharge for financing of NCCF]]-actual1[[#This Row],[Devolution to State]]+SUM(P94:R94)) -> 396191 | AF94: =AE94-actual1[[#This Row],[Grants for Creation of Capital Assets]] -> 238241 | AG94: =U94+AB94-(SUM(actual1[[#This Row],[Corporation Tax]:[Other Taxes]])-actual1[[#This Row],[Surcharge for financing of NCCF]]-actual1[[#This Row],[Devolution to State]]+SUM(P94:R94)+SUM(S94:T94)) -> 759366 | AH94: =AG94-actual1[[#This Row],[Interest Payments]] -> 193502
A95: 2021-22 | B95: Jan-22 | C95: 547725 | D95: 494254 | E95: 19219 | F95: 479725 | G95: 8868 | H95: 2204 | I95: 85400 | J95: 152599 | K95: 301746 | L95: 653 | M95: 5787 | N95: 5352 | O95: 545392 | P95: 18170 | Q95: 141753 | R95: 131562 | S95: 20527 | T95: 12068 | U95: 2367698 | V95: 616076 | W95: 198220 | X95: 468740 | Y95: 166517 | Z95: 327703 | AA95: 167675 | AB95: 441686 | AE95: =actual1[[#This Row],[Revenue Expenditure]]-(SUM(actual1[[#This Row],[Corporation Tax]:[Other Taxes]])-actual1[[#This Row],[Surcharge for financing of NCCF]]-actual1[[#This Row],[Devolution to State]]+SUM(P95:R95)) -> 528777 | AF95: =AE95-actual1[[#This Row],[Grants for Creation of Capital Assets]] -> 361102 | AG95: =U95+AB95-(SUM(actual1[[#This Row],[Corporation Tax]:[Other Taxes]])-actual1[[#This Row],[Surcharge for financing of NCCF]]-actual1[[#This Row],[Devolution to State]]+SUM(P95:R95)+SUM(S95:T95)) -> 937868 | AH95: =AG95-actual1[[#This Row],[Interest Payments]] -> 321792
A96: 2021-22 | B96: Feb-22 | C96: 565628 | D96: 542054 | E96: 21237 | F96: 527894 | G96: 16771 | H96: 2363 | I96: 95500 | J96: 165244 | K96: 331155 | L96: 691 | M96: 6256 | N96: 6085 | O96: 787822 | P96: 20176 | Q96: 146600 | R96: 143355 | S96: 22749 | T96: 13514 | U96: 2658694 | V96: 671951 | W96: 216911 | X96: 501935 | Y96: 179716 | Z96: 382161 | AA96: 186954 | AB96: 485181 | AE96: =actual1[[#This Row],[Revenue Expenditure]]-(SUM(actual1[[#This Row],[Corporation Tax]:[Other Taxes]])-actual1[[#This Row],[Surcharge for financing of NCCF]]-actual1[[#This Row],[Devolution to State]]+SUM(P96:R96)) -> 867677 | AF96: =AE96-actual1[[#This Row],[Grants for Creation of Capital Assets]] -> 680723 | AG96: =U96+AB96-(SUM(actual1[[#This Row],[Corporation Tax]:[Other Taxes]])-actual1[[#This Row],[Surcharge for financing of NCCF]]-actual1[[#This Row],[Devolution to State]]+SUM(P96:R96)+SUM(S96:T96)) -> 1316595 | AH96: =AG96-actual1[[#This Row],[Interest Payments]] -> 644644
A97: 2021-22 | B97: Mar-22 | C97: 712037 | D97: 673414 | E97: 23191 | F97: 591226 | G97: 2119 | H97: 3991 | I97: 104769 | J97: 199728 | K97: 390808 | L97: 1012 | M97: 7020 | N97: 6130 | O97: 898391 | P97: 21888 | Q97: 160653 | R97: 182571 | S97: 24737 | T97: 14638 | U97: 3201672 | V97: 805499 | W97: 228559 | X97: 616141 | Y97: 198946 | Z97: 446147 | AA97: 242646 | AB97: 592128 | AE97: =actual1[[#This Row],[Revenue Expenditure]]-(SUM(actual1[[#This Row],[Corporation Tax]:[Other Taxes]])-actual1[[#This Row],[Surcharge for financing of NCCF]]-actual1[[#This Row],[Devolution to State]]+SUM(P97:R97)) -> 1031766 | AF97: =AE97-actual1[[#This Row],[Grants for Creation of Capital Assets]] -> 789120 | AG97: =U97+AB97-(SUM(actual1[[#This Row],[Corporation Tax]:[Other Taxes]])-actual1[[#This Row],[Surcharge for financing of NCCF]]-actual1[[#This Row],[Devolution to State]]+SUM(P97:R97)+SUM(S97:T97)) -> 1584519 | AH97: =AG97-actual1[[#This Row],[Interest Payments]] -> 779020
A98: 2022-23 | B98: Apr-22 | C98: 56720 | D98: 76088 | E98: 2340 | F98: 64093 | G98: 11345 | H98: 162 | I98: 10435 | J98: 10372 | K98: 96 | L98: 86 | M98: 529 | N98: 117 | O98: 47592 | P98: 630 | Q98: 300 | R98: 11008 | S98: 429 | T98: 3059 | U98: 195904 | V98: 41288 | W98: 29865 | X98: 18863 | Y98: 14915 | Z98: 10151 | AA98: 4929 | AB98: 78925 | AE98: =actual1[[#This Row],[Revenue Expenditure]]-(SUM(actual1[[#This Row],[Corporation Tax]:[Other Taxes]])-actual1[[#This Row],[Surcharge for financing of NCCF]]-actual1[[#This Row],[Devolution to State]]+SUM(P98:R98)) -> -591 | AF98: =AE98-actual1[[#This Row],[Grants for Creation of Capital Assets]] -> -5520 | AG98: =U98+AB98-(SUM(actual1[[#This Row],[Corporation Tax]:[Other Taxes]])-actual1[[#This Row],[Surcharge for financing of NCCF]]-actual1[[#This Row],[Devolution to State]]+SUM(P98:R98)+SUM(S98:T98)) -> 74846 | AH98: =AG98-actual1[[#This Row],[Interest Payments]] -> 33558
A99: 2022-23 | B99: May-22 | C99: 78525 | D99: 113029 | E99: 4385 | F99: 113969 | G99: 16086 | H99: 406 | I99: 20634 | J99: 24509 | K99: 30826 | L99: 168 | M99: 985 | N99: 750 | O99: 95183 | P99: 2666 | Q99: 30715 | R99: 15870 | S99: 966 | T99: 24047 | U99: 478700 | V99: 105422 | W99: 53864 | X99: 119984 | Y99: 36017 | Z99: 35809 | AA99: 18767 | AB99: 107074 | AE99: =actual1[[#This Row],[Revenue Expenditure]]-(SUM(actual1[[#This Row],[Corporation Tax]:[Other Taxes]])-actual1[[#This Row],[Surcharge for financing of NCCF]]-actual1[[#This Row],[Devolution to State]]+SUM(P99:R99)) -> 121860 | AF99: =AE99-actual1[[#This Row],[Grants for Creation of Capital Assets]] -> 103093 | AG99: =U99+AB99-(SUM(actual1[[#This Row],[Corporation Tax]:[Other Taxes]])-actual1[[#This Row],[Surcharge for financing of NCCF]]-actual1[[#This Row],[Devolution to State]]+SUM(P99:R99)+SUM(S99:T99)) -> 203921 | AH99: =AG99-actual1[[#This Row],[Interest Payments]] -> 98499
A100: 2022-23 | B100: Jun-22 | C100: 160822 | D100: 172661 | E100: 6395 | F100: 179392 | G100: -310 | H100: 665 | I100: 31383 | J100: 36467 | K100: 61228 | L100: 203 | M100: 1583 | N100: 1816 | O100: 142775 | P100: 5057 | Q100: 34703 | R100: 22400 | S100: 3423 | T100: 24559 | U100: 772847 | V100: 228595 | W100: 74042 | X100: 167610 | Y100: 53313 | Z100: 67980 | AA100: 52041 | AB100: 175064 | AE100: =actual1[[#This Row],[Revenue Expenditure]]-(SUM(actual1[[#This Row],[Corporation Tax]:[Other Taxes]])-actual1[[#This Row],[Surcharge for financing of NCCF]]-actual1[[#This Row],[Devolution to State]]+SUM(P100:R100)) -> 204789 | AF100: =AE100-actual1[[#This Row],[Grants for Creation of Capital Assets]] -> 152748 | AG100: =U100+AB100-(SUM(actual1[[#This Row],[Corporation Tax]:[Other Taxes]])-actual1[[#This Row],[Surcharge for financing of NCCF]]-actual1[[#This Row],[Devolution to State]]+SUM(P100:R100)+SUM(S100:T100)) -> 351871 | AH100: =AG100-actual1[[#This Row],[Interest Payments]] -> 123276
A101: 2022-23 | B101: Jul-22 | C101: 196476 | D101: 241786 | E101: 8107 | F101: 234749 | G101: 6588 | H101: 820 | I101: 42037 | J101: 51010 | K101: 85147 | L101: 262 | M101: 2479 | N101: 2141 | O101: 201108 | P101: 7489 | Q101: 42266 | R101: 39828 | S101: 5559 | T101: 24560 | U101: 918075 | V101: 283870 | W101: 94029 | X101: 128827 | Y101: 72081 | Z101: 109707 | AA101: 68910 | AB101: 208670 | AE101: =actual1[[#This Row],[Revenue Expenditure]]-(SUM(actual1[[#This Row],[Corporation Tax]:[Other Taxes]])-actual1[[#This Row],[Surcharge for financing of NCCF]]-actual1[[#This Row],[Devolution to State]]+SUM(P101:R101)) -> 162280 | AF101: =AE101-actual1[[#This Row],[Grants for Creation of Capital Assets]] -> 93370 | AG101: =U101+AB101-(SUM(actual1[[#This Row],[Corporation Tax]:[Other Taxes]])-actual1[[#This Row],[Surcharge for financing of NCCF]]-actual1[[#This Row],[Devolution to State]]+SUM(P101:R101)+SUM(S101:T101)) -> 340831 | AH101: =AG101-actual1[[#This Row],[Interest Payments]] -> 56961
A102: 2022-23 | B102: Aug-22 | C102: 207635 | D102: 265599 | E102: 9823 | F102: 286660 | G102: 15526 | H102: 969 | I102: 51926 | J102: 65325 | K102: 113963 | L102: 108 | M102: 3055 | N102: 2722 | O102: 317773 | P102: 10071 | Q102: 42676 | R102: 64057 | S102: 6967 | T102: 24560 | U102: 1137698 | V102: 338637 | W102: 112142 | X102: 161633 | Y102: 91501 | Z102: 136452 | AA102: 93605 | AB102: 252328 | AE102: =actual1[[#This Row],[Revenue Expenditure]]-(SUM(actual1[[#This Row],[Corporation Tax]:[Other Taxes]])-actual1[[#This Row],[Surcharge for financing of NCCF]]-actual1[[#This Row],[Devolution to State]]+SUM(P102:R102)) -> 320800 | AF102: =AE102-actual1[[#This Row],[Grants for Creation of Capital Assets]] -> 227195 | AG102: =U102+AB102-(SUM(actual1[[#This Row],[Corporation Tax]:[Other Taxes]])-actual1[[#This Row],[Surcharge for financing of NCCF]]-actual1[[#This Row],[Devolution to State]]+SUM(P102:R102)+SUM(S102:T102)) -> 541601 | AH102: =AG102-actual1[[#This Row],[Interest Payments]] -> 202964
A103: 2022-23 | B103: Sep-22 | C103: 375308 | D103: 344548 | E103: 11827 | F103: 341349 | G103: 25490 | H103: 1375 | I103: 61893 | J103: 86267 | K103: 139874 | L103: 201 | M103: 3674 | N103: 3739 | O103: 376106 | P103: 12484 | Q103: 53065 | R103: 92051 | S103: 9597 | T103: 24590 | U103: 1480708 | V103: 436682 | W103: 129733 | X103: 222852 | Y103: 112208 | Z103: 198879 | AA103: 130571 | AB103: 342889 | AE103: =actual1[[#This Row],[Revenue Expenditure]]-(SUM(actual1[[#This Row],[Corporation Tax]:[Other Taxes]])-actual1[[#This Row],[Surcharge for financing of NCCF]]-actual1[[#This Row],[Devolution to State]]+SUM(P103:R103)) -> 311147 | AF103: =AE103-actual1[[#This Row],[Grants for Creation of Capital Assets]] -> 180576 | AG103: =U103+AB103-(SUM(actual1[[#This Row],[Corporation Tax]:[Other Taxes]])-actual1[[#This Row],[Surcharge for financing of NCCF]]-actual1[[#This Row],[Devolution to State]]+SUM(P103:R103)+SUM(S103:T103)) -> 619849 | AH103: =AG103-actual1[[#This Row],[Interest Payments]] -> 183167
A104: 2022-23 | B104: Oct-22 | C104: 410587 | D104: 397605 | E104: 14261 | F104: 413568 | G104: 6116 | H104: 1970 | I104: 72174 | J104: 122926 | K104: 165652 | L104: 278 | M104: 4468 | N104: 4063 | O104: 434439 | P104: 14146 | Q104: 58176 | R104: 106457 | S104: 11102 | T104: 24590 | U104: 1734697 | V104: 481172 | W104: 148204 | X104: 290651 | Y104: 132573 | Z104: 238909 | AA104: 145621 | AB104: 409014 | AE104: =actual1[[#This Row],[Revenue Expenditure]]-(SUM(actual1[[#This Row],[Corporation Tax]:[Other Taxes]])-actual1[[#This Row],[Surcharge for financing of NCCF]]-actual1[[#This Row],[Devolution to State]]+SUM(P104:R104)) -> 384815 | AF104: =AE104-actual1[[#This Row],[Grants for Creation of Capital Assets]] -> 239194 | AG104: =U104+AB104-(SUM(actual1[[#This Row],[Corporation Tax]:[Other Taxes]])-actual1[[#This Row],[Surcharge for financing of NCCF]]-actual1[[#This Row],[Devolution to State]]+SUM(P104:R104)+SUM(S104:T104)) -> 758137 | AH104: =AG104-actual1[[#This Row],[Interest Payments]] -> 276965
A105: 2022-23 | B105: Nov-22 | C105: 428226 | D105: 438622 | E105: 16032 | F105: 471416 | G105: 3536 | H105: 2485 | I105: 82497 | J105: 141393 | K105: 191251 | L105: 408 | M105: 4788 | N105: 4716 | O105: 551105 | P105: 16632 | Q105: 68254 | R105: 113433 | S105: 13052 | T105: 28429 | U105: 1995674 | V105: 545199 | W105: 164210 | X105: 341660 | Y105: 147766 | Z105: 301083 | AA105: 159277 | AB105: 447113 | AE105: =actual1[[#This Row],[Revenue Expenditure]]-(SUM(actual1[[#This Row],[Corporation Tax]:[Other Taxes]])-actual1[[#This Row],[Surcharge for financing of NCCF]]-actual1[[#This Row],[Devolution to State]]+SUM(P105:R105)) -> 572522 | AF105: =AE105-actual1[[#This Row],[Grants for Creation of Capital Assets]] -> 413245 | AG105: =U105+AB105-(SUM(actual1[[#This Row],[Corporation Tax]:[Other Taxes]])-actual1[[#This Row],[Surcharge for financing of NCCF]]-actual1[[#This Row],[Devolution to State]]+SUM(P105:R105)+SUM(S105:T105)) -> 978154 | AH105: =AG105-actual1[[#This Row],[Interest Payments]] -> 432955
A106: 2022-23 | B106: Dec-22 | C106: 608168 | D106: 534108 | E106: 18104 | F106: 532194 | G106: 142 | H106: 2717 | I106: 93408 | J106: 158507 | K106: 217825 | L106: 139 | M106: 5386 | N106: 5569 | O106: 609437 | P106: 18870 | Q106: 76362 | R106: 119070 | S106: 16435 | T106: 38671 | U106: 2328132 | V106: 680853 | W106: 184962 | X106: 387918 | Y106: 168439 | Z106: 350524 | AA106: 185533 | AB106: 489944 | AE106: =actual1[[#This Row],[Revenue Expenditure]]-(SUM(actual1[[#This Row],[Corporation Tax]:[Other Taxes]])-actual1[[#This Row],[Surcharge for financing of NCCF]]-actual1[[#This Row],[Devolution to State]]+SUM(P106:R106)) -> 558138 | AF106: =AE106-actual1[[#This Row],[Grants for Creation of Capital Assets]] -> 372605 | AG106: =U106+AB106-(SUM(actual1[[#This Row],[Corporation Tax]:[Other Taxes]])-actual1[[#This Row],[Surcharge for financing of NCCF]]-actual1[[#This Row],[Devolution to State]]+SUM(P106:R106)+SUM(S106:T106)) -> 992976 | AH106: =AG106-actual1[[#This Row],[Interest Payments]] -> 312123
A107: 2022-23 | B107: Jan-23 | C107: 629013 | D107: 587615 | E107: 19527 | F107: 597365 | G107: -1529 | H107: 2955 | I107: 103835 | J107: 173375 | K107: 243608 | L107: 189 | M107: 6724 | N107: 6197 | O107: 667770 | P107: 20357 | Q107: 77303 | R107: 133279 | S107: 18523 | T107: 38671 | U107: 2597756 | V107: 738658 | W107: 212340 | X107: 423054 | Y107: 189100 | Z107: 399400 | AA107: 204418 | AB107: 569892 | AE107: =actual1[[#This Row],[Revenue Expenditure]]-(SUM(actual1[[#This Row],[Corporation Tax]:[Other Taxes]])-actual1[[#This Row],[Surcharge for financing of NCCF]]-actual1[[#This Row],[Devolution to State]]+SUM(P107:R107)) -> 678107 | AF107: =AE107-actual1[[#This Row],[Grants for Creation of Capital Assets]] -> 473689 | AG107: =U107+AB107-(SUM(actual1[[#This Row],[Corporation Tax]:[Other Taxes]])-actual1[[#This Row],[Surcharge for financing of NCCF]]-actual1[[#This Row],[Devolution to State]]+SUM(P107:R107)+SUM(S107:T107)) -> 1190805 | AH107: =AG107-actual1[[#This Row],[Interest Payments]] -> 452147
A108: 2022-23 | B108: Feb-23 | C108: 641844 | D108: 645554 | E108: 21480 | F108: 657440 | G108: -3817 | H108: 3349 | I108: 115636 | J108: 188973 | K108: 269493 | L108: 302 | M108: 7047 | N108: 7020 | O108: 808088 | P108: 23139 | Q108: 84220 | R108: 141276 | S108: 20229 | T108: 38671 | U108: 2903363 | V108: 798957 | W108: 236452 | X108: 489099 | Y108: 205827 | Z108: 459547 | AA108: 235030 | AB108: 590227 | AE108: =actual1[[#This Row],[Revenue Expenditure]]-(SUM(actual1[[#This Row],[Corporation Tax]:[Other Taxes]])-actual1[[#This Row],[Surcharge for financing of NCCF]]-actual1[[#This Row],[Devolution to State]]+SUM(P108:R108)) -> 922535 | AF108: =AE108-actual1[[#This Row],[Grants for Creation of Capital Assets]] -> 687505 | AG108: =U108+AB108-(SUM(actual1[[#This Row],[Corporation Tax]:[Other Taxes]])-actual1[[#This Row],[Surcharge for financing of NCCF]]-actual1[[#This Row],[Devolution to State]]+SUM(P108:R108)+SUM(S108:T108)) -> 1453862 | AH108: =AG108-actual1[[#This Row],[Interest Payments]] -> 654905
A109: 2022-23 | B109: Mar-23 | C109: 825834 | D109: 808221 | E109: 25085 | F109: 718522 | G109: 4748 | H109: 4768 | I109: 125862 | J109: 213371 | K109: 319000 | L109: 431 | M109: 8349 | N109: 8000 | O109: 948406 | P109: 27865 | Q109: 99922 | R109: 157634 | S109: 26161 | T109: 46035 | U109: 3453638 | V109: 928517 | W109: 256183 | X109: 651648 | Y109: 241599 | Z109: 530959 | AA109: 306264 | AB109: 739519 | AE109: =actual1[[#This Row],[Revenue Expenditure]]-(SUM(actual1[[#This Row],[Corporation Tax]:[Other Taxes]])-actual1[[#This Row],[Surcharge for financing of NCCF]]-actual1[[#This Row],[Devolution to State]]+SUM(P109:R109)) -> 1070432 | AF109: =AE109-actual1[[#This Row],[Grants for Creation of Capital Assets]] -> 764168 | AG109: =U109+AB109-(SUM(actual1[[#This Row],[Corporation Tax]:[Other Taxes]])-actual1[[#This Row],[Surcharge for financing of NCCF]]-actual1[[#This Row],[Devolution to State]]+SUM(P109:R109)+SUM(S109:T109)) -> 1737755 | AH109: =AG109-actual1[[#This Row],[Interest Payments]] -> 809238
A110: 2023-24 | B110: Apr-23 | C110: 38571 | D110: 82035 | E110: 406 | F110: 80902 | G110: -9304 | H110: 308 | I110: 11861 | J110: 11749 | K110: 960 | L110: 143 | M110: 514 | N110: 104 | O110: 59140 | P110: 799 | Q110: 80 | R110: 10079 | S110: 592 | T110: 50 | U110: 225639 | V110: 47929 | W110: 34116 | X110: 8582 | Y110: 31838 | Z110: 25161 | AA110: 6055 | AB110: 78457 | AE110: =actual1[[#This Row],[Revenue Expenditure]]-(SUM(actual1[[#This Row],[Corporation Tax]:[Other Taxes]])-actual1[[#This Row],[Surcharge for financing of NCCF]]-actual1[[#This Row],[Devolution to State]]+SUM(P110:R110)) -> 55780 | AF110: =AE110-actual1[[#This Row],[Grants for Creation of Capital Assets]] -> 49725 | AG110: =U110+AB110-(SUM(actual1[[#This Row],[Corporation Tax]:[Other Taxes]])-actual1[[#This Row],[Surcharge for financing of NCCF]]-actual1[[#This Row],[Devolution to State]]+SUM(P110:R110)+SUM(S110:T110)) -> 133595 | AH110: =AG110-actual1[[#This Row],[Interest Payments]] -> 85666
A111: 2023-24 | B111: May-23 | C111: 56531 | D111: 127298 | E111: 2159 | F111: 141569 | G111: -8353 | H111: 571 | I111: 23102 | J111: 27052 | K111: 25804 | L111: 244 | M111: 977 | N111: 629 | O111: 118280 | P111: 5493 | Q111: 87595 | R111: 41567 | S111: 2941 | T111: 50 | U111: 458189 | V111: 110663 | W111: 57304 | X111: 50873 | Y111: 53153 | Z111: 55316 | AA111: 30858 | AB111: 167789 | AE111: =actual1[[#This Row],[Revenue Expenditure]]-(SUM(actual1[[#This Row],[Corporation Tax]:[Other Taxes]])-actual1[[#This Row],[Surcharge for financing of NCCF]]-actual1[[#This Row],[Devolution to State]]+SUM(P111:R111)) -> 45489 | AF111: =AE111-actual1[[#This Row],[Grants for Creation of Capital Assets]] -> 14631 | AG111: =U111+AB111-(SUM(actual1[[#This Row],[Corporation Tax]:[Other Taxes]])-actual1[[#This Row],[Surcharge for financing of NCCF]]-actual1[[#This Row],[Devolution to State]]+SUM(P111:R111)+SUM(S111:T111)) -> 210287 | AH111: =AG111-actual1[[#This Row],[Interest Payments]] -> 99624
A112: 2023-24 | B112: Jun-23 | C112: 138503 | D112: 191735 | E112: 3455 | F112: 206379 | G112: -6748 | H112: 914 | I112: 34924 | J112: 49201 | K112: 51813 | L112: 326 | M112: 1381 | N112: 1703 | O112: 236560 | P112: 9546 | Q112: 95870 | R112: 49552 | S112: 6468 | T112: 4235 | U112: 772181 | V112: 243705 | W112: 82692 | X112: 87803 | Y112: 72942 | Z112: 87035 | AA112: 62729 | AB112: 278480 | AE112: =actual1[[#This Row],[Revenue Expenditure]]-(SUM(actual1[[#This Row],[Corporation Tax]:[Other Taxes]])-actual1[[#This Row],[Surcharge for financing of NCCF]]-actual1[[#This Row],[Devolution to State]]+SUM(P112:R112)) -> 183593 | AF112: =AE112-actual1[[#This Row],[Grants for Creation of Capital Assets]] -> 120864 | AG112: =U112+AB112-(SUM(actual1[[#This Row],[Corporation Tax]:[Other Taxes]])-actual1[[#This Row],[Surcharge for financing of NCCF]]-actual1[[#This Row],[Devolution to State]]+SUM(P112:R112)+SUM(S112:T112)) -> 451370 | AH112: =AG112-actual1[[#This Row],[Interest Payments]] -> 207665
A113: 2023-24 | B113: Jul-23 | C113: 176131 | D113: 257162 | E113: 4861 | F113: 273613 | G113: -9144 | H113: 1164 | I113: 46316 | J113: 65029 | K113: 76200 | L113: 377 | M113: 2441 | N113: 2044 | O113: 309521 | P113: 11304 | Q113: 103943 | R113: 63557 | S113: 8253 | T113: 5465 | U113: 1063621 | V113: 299889 | W113: 106210 | X113: 144631 | Y113: 91526 | Z113: 140996 | AA113: 91648 | AB113: 317079 | AE113: =actual1[[#This Row],[Revenue Expenditure]]-(SUM(actual1[[#This Row],[Corporation Tax]:[Other Taxes]])-actual1[[#This Row],[Surcharge for financing of NCCF]]-actual1[[#This Row],[Devolution to State]]+SUM(P113:R113)) -> 302232 | AF113: =AE113-actual1[[#This Row],[Grants for Creation of Capital Assets]] -> 210584 | AG113: =U113+AB113-(SUM(actual1[[#This Row],[Corporation Tax]:[Other Taxes]])-actual1[[#This Row],[Surcharge for financing of NCCF]]-actual1[[#This Row],[Devolution to State]]+SUM(P113:R113)+SUM(S113:T113)) -> 605593 | AH113: =AG113-actual1[[#This Row],[Interest Payments]] -> 305704
A114: 2023-24 | B114: Aug-23 | C114: 238948 | D114: 360381 | E114: 10240 | F114: 336333 | G114: -2894 | H114: 1470 | I114: 57746 | J114: 83518 | K114: 99776 | L114: 430 | M114: 3232 | N114: 2754 | O114: 382482 | P114: 14595 | Q114: 106620 | R114: 88367 | S114: 9804 | T114: 5601 | U114: 1297958 | V114: 367539 | W114: 127423 | X114: 180723 | Y114: 106581 | Z114: 180739 | AA114: 119099 | AB114: 373799 | AE114: =actual1[[#This Row],[Revenue Expenditure]]-(SUM(actual1[[#This Row],[Corporation Tax]:[Other Taxes]])-actual1[[#This Row],[Surcharge for financing of NCCF]]-actual1[[#This Row],[Devolution to State]]+SUM(P114:R114)) -> 284432 | AF114: =AE114-actual1[[#This Row],[Grants for Creation of Capital Assets]] -> 165333 | AG114: =U114+AB114-(SUM(actual1[[#This Row],[Corporation Tax]:[Other Taxes]])-actual1[[#This Row],[Surcharge for financing of NCCF]]-actual1[[#This Row],[Devolution to State]]+SUM(P114:R114)+SUM(S114:T114)) -> 642826 | AH114: =AG114-actual1[[#This Row],[Interest Payments]] -> 275287
A115: 2023-24 | B115: Sep-23 | C115: 451283 | D115: 451628 | E115: 13358 | F115: 398064 | G115: -1208 | H115: 1669 | I115: 69131 | J115: 106184 | K115: 124758 | L115: 476 | M115: 3928 | N115: 3487 | O115: 455444 | P115: 17310 | Q115: 120657 | R115: 98805 | S115: 13216 | T115: 6950 | U115: 1628511 | V115: 484329 | W115: 148970 | X115: 248564 | Y115: 134717 | Z115: 206396 | AA115: 145278 | AB115: 490628 | AE115: =actual1[[#This Row],[Revenue Expenditure]]-(SUM(actual1[[#This Row],[Corporation Tax]:[Other Taxes]])-actual1[[#This Row],[Surcharge for financing of NCCF]]-actual1[[#This Row],[Devolution to State]]+SUM(P115:R115)) -> 231399 | AF115: =AE115-actual1[[#This Row],[Grants for Creation of Capital Assets]] -> 86121 | AG115: =U115+AB115-(SUM(actual1[[#This Row],[Corporation Tax]:[Other Taxes]])-actual1[[#This Row],[Surcharge for financing of NCCF]]-actual1[[#This Row],[Devolution to State]]+SUM(P115:R115)+SUM(S115:T115)) -> 701861 | AH115: =AG115-actual1[[#This Row],[Interest Payments]] -> 217532
A116: 2023-24 | B116: Oct-23 | C116: 481969 | D116: 521211 | E116: 16376 | F116: 468574 | G116: -17096 | H116: 2791 | I116: 81029 | J116: 124384 | K116: 150215 | L116: 433 | M116: 4632 | N116: 4156 | O116: 528405 | P116: 19543 | Q116: 124530 | R116: 121692 | S116: 14990 | T116: 8000 | U116: 1847488 | V116: 545086 | W116: 172445 | X116: 281784 | Y116: 152012 | Z116: 231694 | AA116: 162244 | AB116: 546924 | AE116: =actual1[[#This Row],[Revenue Expenditure]]-(SUM(actual1[[#This Row],[Corporation Tax]:[Other Taxes]])-actual1[[#This Row],[Surcharge for financing of NCCF]]-actual1[[#This Row],[Devolution to State]]+SUM(P116:R116)) -> 279766 | AF116: =AE116-actual1[[#This Row],[Grants for Creation of Capital Assets]] -> 117522 | AG116: =U116+AB116-(SUM(actual1[[#This Row],[Corporation Tax]:[Other Taxes]])-actual1[[#This Row],[Surcharge for financing of NCCF]]-actual1[[#This Row],[Devolution to State]]+SUM(P116:R116)+SUM(S116:T116)) -> 803700 | AH116: =AG116-actual1[[#This Row],[Interest Payments]] -> 258614
A117: 2023-24 | B117: Nov-23 | C117: 514374 | D117: 567404 | E117: 18920 | F117: 534653 | G117: -12795 | H117: 3042 | I117: 92831 | J117: 141764 | K117: 176187 | L117: 395 | M117: 5252 | N117: 4906 | O117: 601366 | P117: 23515 | Q117: 131109 | R117: 129741 | S117: 16604 | T117: 8859 | U117: 2066522 | V117: 607963 | W117: 193993 | X117: 303619 | Y117: 175013 | Z117: 242756 | AA117: 174978 | AB117: 585645 | AE117: =actual1[[#This Row],[Revenue Expenditure]]-(SUM(actual1[[#This Row],[Corporation Tax]:[Other Taxes]])-actual1[[#This Row],[Surcharge for financing of NCCF]]-actual1[[#This Row],[Devolution to State]]+SUM(P117:R117)) -> 346402 | AF117: =AE117-actual1[[#This Row],[Grants for Creation of Capital Assets]] -> 171424 | AG117: =U117+AB117-(SUM(actual1[[#This Row],[Corporation Tax]:[Other Taxes]])-actual1[[#This Row],[Surcharge for financing of NCCF]]-actual1[[#This Row],[Devolution to State]]+SUM(P117:R117)+SUM(S117:T117)) -> 906584 | AH117: =AG117-actual1[[#This Row],[Interest Payments]] -> 298621
A118: 2023-24 | B118: Dec-23 | C118: 721671 | D118: 685597 | E118: 21630 | F118: 602701 | G118: -24071 | H118: 3491 | I118: 104615 | J118: 158193 | K118: 202469 | L118: 397 | M118: 5806 | N118: 5280 | O118: 747288 | P118: 26959 | Q118: 147232 | R118: 138167 | S118: 19597 | T118: 10053 | U118: 2380587 | V118: 748207 | W118: 215181 | X118: 349946 | Y118: 191905 | Z118: 276804 | AA118: 213323 | AB118: 673630 | AE118: =actual1[[#This Row],[Revenue Expenditure]]-(SUM(actual1[[#This Row],[Corporation Tax]:[Other Taxes]])-actual1[[#This Row],[Surcharge for financing of NCCF]]-actual1[[#This Row],[Devolution to State]]+SUM(P118:R118)) -> 338298 | AF118: =AE118-actual1[[#This Row],[Grants for Creation of Capital Assets]] -> 124975 | AG118: =U118+AB118-(SUM(actual1[[#This Row],[Corporation Tax]:[Other Taxes]])-actual1[[#This Row],[Surcharge for financing of NCCF]]-actual1[[#This Row],[Devolution to State]]+SUM(P118:R118)+SUM(S118:T118)) -> 982278 | AH118: =AG118-actual1[[#This Row],[Interest Payments]] -> 234071
A119: 2023-24 | B119: Jan-24 | C119: 755569 | D119: 748252 | E119: 25411 | F119: 676386 | G119: -30601 | H119: 3960 | I119: 116198 | J119: 175052 | K119: 228968 | L119: 469 | M119: 6533 | N119: 6107 | O119: 820250 | P119: 29736 | Q119: 147848 | R119: 160485 | S119: 21664 | T119: 12555 | U119: 2633543 | V119: 821731 | W119: 237358 | X119: 401814 | Y119: 214188 | Z119: 315559 | AA119: 228255 | AB119: 721187 | AE119: =actual1[[#This Row],[Revenue Expenditure]]-(SUM(actual1[[#This Row],[Corporation Tax]:[Other Taxes]])-actual1[[#This Row],[Surcharge for financing of NCCF]]-actual1[[#This Row],[Devolution to State]]+SUM(P119:R119)) -> 415634 | AF119: =AE119-actual1[[#This Row],[Grants for Creation of Capital Assets]] -> 187379 | AG119: =U119+AB119-(SUM(actual1[[#This Row],[Corporation Tax]:[Other Taxes]])-actual1[[#This Row],[Surcharge for financing of NCCF]]-actual1[[#This Row],[Devolution to State]]+SUM(P119:R119)+SUM(S119:T119)) -> 1102602 | AH119: =AG119-actual1[[#This Row],[Interest Payments]] -> 280871
A120: 2023-24 | B120: Feb-24 | C120: 752718 | D120: 812371 | E120: 29804 | F120: 747515 | G120: -43291 | H120: 4336 | I120: 128727 | J120: 196352 | K120: 253835 | L120: 467 | M120: 7017 | N120: 6966 | O120: 1033433 | P120: 34036 | Q120: 157070 | R120: 169224 | S120: 23480 | T120: 12660 | U120: 2941674 | V120: 880788 | W120: 269224 | X120: 465234 | Y120: 232075 | Z120: 360997 | AA120: 254355 | AB120: 805613 | AE120: =actual1[[#This Row],[Revenue Expenditure]]-(SUM(actual1[[#This Row],[Corporation Tax]:[Other Taxes]])-actual1[[#This Row],[Surcharge for financing of NCCF]]-actual1[[#This Row],[Devolution to State]]+SUM(P120:R120)) -> 731892 | AF120: =AE120-actual1[[#This Row],[Grants for Creation of Capital Assets]] -> 477537 | AG120: =U120+AB120-(SUM(actual1[[#This Row],[Corporation Tax]:[Other Taxes]])-actual1[[#This Row],[Surcharge for financing of NCCF]]-actual1[[#This Row],[Devolution to State]]+SUM(P120:R120)+SUM(S120:T120)) -> 1501365 | AH120: =AG120-actual1[[#This Row],[Interest Payments]] -> 620577
A121: 2023-24 | B121: Mar-24 | C121: 911055 | D121: 1010948 | E121: 33778 | F121: 820622 | G121: -5026 | H121: 5031 | I121: 141436 | J121: 233067 | K121: 305330 | L121: 424 | M121: 8127 | N121: 8774 | O121: 1129494 | P121: 38297 | Q121: 170444 | R121: 193147 | S121: 27338 | T121: 33122 | U121: 3494036 | V121: 1063871 | W121: 290437 | X121: 610134 | Y121: 235325 | Z121: 413542 | AA121: 303787 | AB121: 948506 | AE121: =actual1[[#This Row],[Revenue Expenditure]]-(SUM(actual1[[#This Row],[Corporation Tax]:[Other Taxes]])-actual1[[#This Row],[Surcharge for financing of NCCF]]-actual1[[#This Row],[Devolution to State]]+SUM(P121:R121)) -> 765624 | AF121: =AE121-actual1[[#This Row],[Grants for Creation of Capital Assets]] -> 461837 | AG121: =U121+AB121-(SUM(actual1[[#This Row],[Corporation Tax]:[Other Taxes]])-actual1[[#This Row],[Surcharge for financing of NCCF]]-actual1[[#This Row],[Devolution to State]]+SUM(P121:R121)+SUM(S121:T121)) -> 1653670 | AH121: =AG121-actual1[[#This Row],[Interest Payments]] -> 589799
A122: 2024-25 | B122: Apr-24 | C122: 36189 | D122: 98951 | E122: 3504 | F122: 91188 | G122: -2645 | H122: 292 | I122: 13042 | J122: 13956 | K122: 70 | L122: -97 | M122: 556 | N122: 133 | O122: 69875 | P122: 3531 | Q122: 3637 | R122: 20127 | S122: 1041 | T122: 0 | U122: 324235 | V122: 128263 | W122: 30524 | X122: 10480 | Y122: 36908 | Z122: 19407 | AA122: 18206 | AB122: 99235 | AE122: =actual1[[#This Row],[Revenue Expenditure]]-(SUM(actual1[[#This Row],[Corporation Tax]:[Other Taxes]])-actual1[[#This Row],[Surcharge for financing of NCCF]]-actual1[[#This Row],[Devolution to State]]+SUM(P122:R122)) -> 111942 | AF122: =AE122-actual1[[#This Row],[Grants for Creation of Capital Assets]] -> 93736 | AG122: =U122+AB122-(SUM(actual1[[#This Row],[Corporation Tax]:[Other Taxes]])-actual1[[#This Row],[Surcharge for financing of NCCF]]-actual1[[#This Row],[Devolution to State]]+SUM(P122:R122)+SUM(S122:T122)) -> 210136 | AH122: =AG122-actual1[[#This Row],[Interest Payments]] -> 81873
A123: 2024-25 | B123: May-24 | C123: 45313 | D123: 180291 | E123: 7235 | F123: 158841 | G123: -10883 | H123: 598 | I123: 24828 | J123: 28090 | K123: 24317 | L123: -87 | M123: 1086 | N123: 842 | O123: 139751 | P123: 7924 | Q123: 215829 | R123: 27969 | S123: 2083 | T123: 4 | U123: 479835 | V123: 123810 | W123: 53032 | X123: 37881 | Y123: 60607 | Z123: 54688 | AA123: 46235 | AB123: 143625 | AE123: =actual1[[#This Row],[Revenue Expenditure]]-(SUM(actual1[[#This Row],[Corporation Tax]:[Other Taxes]])-actual1[[#This Row],[Surcharge for financing of NCCF]]-actual1[[#This Row],[Devolution to State]]+SUM(P123:R123)) -> -90923 | AF123: =AE123-actual1[[#This Row],[Grants for Creation of Capital Assets]] -> -137158 | AG123: =U123+AB123-(SUM(actual1[[#This Row],[Corporation Tax]:[Other Taxes]])-actual1[[#This Row],[Surcharge for financing of NCCF]]-actual1[[#This Row],[Devolution to State]]+SUM(P123:R123)+SUM(S123:T123)) -> 50615 | AH123: =AG123-actual1[[#This Row],[Interest Payments]] -> -73195
A124: 2024-25 | B124: Jun-24 | C124: 174774 | D124: 287336 | E124: 11606 | F124: 228328 | G124: -10176 | H124: 877 | I124: 37768 | J124: 47065 | K124: 51357 | L124: -38 | M124: 1900 | N124: 1662 | O124: 279502 | P124: 11715 | Q124: 224325 | R124: 44004 | S124: 4516 | T124: 4 | U124: 788858 | V124: 264052 | W124: 73712 | X124: 63299 | Y124: 82097 | Z124: 90174 | AA124: 58961 | AB124: 181051 | AE124: =actual1[[#This Row],[Revenue Expenditure]]-(SUM(actual1[[#This Row],[Corporation Tax]:[Other Taxes]])-actual1[[#This Row],[Surcharge for financing of NCCF]]-actual1[[#This Row],[Devolution to State]]+SUM(P124:R124)) -> -40819 | AF124: =AE124-actual1[[#This Row],[Grants for Creation of Capital Assets]] -> -99780 | AG124: =U124+AB124-(SUM(actual1[[#This Row],[Corporation Tax]:[Other Taxes]])-actual1[[#This Row],[Surcharge for financing of NCCF]]-actual1[[#This Row],[Devolution to State]]+SUM(P124:R124)+SUM(S124:T124)) -> 135712 | AH124: =AG124-actual1[[#This Row],[Interest Payments]] -> -128340
A125: 2024-25 | B125: Jul-24 | C125: 184574 | D125: 394488 | E125: 16635 | F125: 300616 | G125: -10659 | H125: 934 | I125: 50547 | J125: 67522 | K125: 76812 | L125: 13 | M125: 2747 | N125: 2375 | O125: 366630 | P125: 13840 | Q125: 228823 | R125: 59133 | S125: 6381 | T125: 5 | U125: 1039091 | V125: 327887 | W125: 98753 | X125: 91422 | Y125: 102506 | Z125: 125639 | AA125: 84957 | AB125: 261260 | AE125: =actual1[[#This Row],[Revenue Expenditure]]-(SUM(actual1[[#This Row],[Corporation Tax]:[Other Taxes]])-actual1[[#This Row],[Surcharge for financing of NCCF]]-actual1[[#This Row],[Devolution to State]]+SUM(P125:R125)) -> 22071 | AF125: =AE125-actual1[[#This Row],[Grants for Creation of Capital Assets]] -> -62886 | AG125: =U125+AB125-(SUM(actual1[[#This Row],[Corporation Tax]:[Other Taxes]])-actual1[[#This Row],[Surcharge for financing of NCCF]]-actual1[[#This Row],[Devolution to State]]+SUM(P125:R125)+SUM(S125:T125)) -> 276945 | AH125: =AG125-actual1[[#This Row],[Interest Payments]] -> -50942
A126: 2024-25 | B126: Aug-24 | C126: 224639 | D126: 452286 | E126: 21607 | F126: 371222 | G126: -2446 | H126: 1286 | I126: 62462 | J126: 94329 | K126: 104006 | L126: 32 | M126: 3299 | N126: 3160 | O126: 455717 | P126: 17530 | Q126: 239695 | R126: 77242 | S126: 8046 | T126: 820 | U126: 1351367 | V126: 400160 | W126: 120192 | X126: 182174 | Y126: 126598 | Z126: 178625 | AA126: 111066 | AB126: 300987 | AE126: =actual1[[#This Row],[Revenue Expenditure]]-(SUM(actual1[[#This Row],[Corporation Tax]:[Other Taxes]])-actual1[[#This Row],[Surcharge for financing of NCCF]]-actual1[[#This Row],[Devolution to State]]+SUM(P126:R126)) -> 143055 | AF126: =AE126-actual1[[#This Row],[Grants for Creation of Capital Assets]] -> 31989 | AG126: =U126+AB126-(SUM(actual1[[#This Row],[Corporation Tax]:[Other Taxes]])-actual1[[#This Row],[Surcharge for financing of NCCF]]-actual1[[#This Row],[Devolution to State]]+SUM(P126:R126)+SUM(S126:T126)) -> 435176 | AH126: =AG126-actual1[[#This Row],[Interest Payments]] -> 35016
A127: 2024-25 | B127: Sep-24 | C127: 461506 | D127: 564517 | E127: 26156 | F127: 441220 | G127: -846 | H127: 1624 | I127: 74323 | J127: 112959 | K127: 128466 | L127: 94 | M127: 3823 | N127: 3880 | O127: 544803 | P127: 20355 | Q127: 250633 | R127: 86226 | S127: 11434 | T127: 3167 | U127: 1696528 | V127: 515010 | W127: 145181 | X127: 239296 | Y127: 148989 | Z127: 214658 | AA127: 145208 | AB127: 414966 | AE127: =actual1[[#This Row],[Revenue Expenditure]]-(SUM(actual1[[#This Row],[Corporation Tax]:[Other Taxes]])-actual1[[#This Row],[Surcharge for financing of NCCF]]-actual1[[#This Row],[Devolution to State]]+SUM(P127:R127)) -> 74155 | AF127: =AE127-actual1[[#This Row],[Grants for Creation of Capital Assets]] -> -71053 | AG127: =U127+AB127-(SUM(actual1[[#This Row],[Corporation Tax]:[Other Taxes]])-actual1[[#This Row],[Surcharge for financing of NCCF]]-actual1[[#This Row],[Devolution to State]]+SUM(P127:R127)+SUM(S127:T127)) -> 474520 | AH127: =AG127-actual1[[#This Row],[Interest Payments]] -> -40490
A128: 2024-25 | B128: Oct-24 | C128: 487862 | D128: 626454 | E128: 30687 | F128: 521599 | G128: -10448 | H128: 1947 | I128: 86482 | J128: 132112 | K128: 151190 | L128: 87 | M128: 4662 | N128: 4685 | O128: 722976 | P128: 22701 | Q128: 264278 | R128: 112315 | S128: 13275 | T128: 5532 | U128: 2007353 | V128: 596347 | W128: 170571 | X128: 286362 | Y128: 170215 | Z128: 248670 | AA128: 163690 | AB128: 466545 | AE128: =actual1[[#This Row],[Revenue Expenditure]]-(SUM(actual1[[#This Row],[Corporation Tax]:[Other Taxes]])-actual1[[#This Row],[Surcharge for financing of NCCF]]-actual1[[#This Row],[Devolution to State]]+SUM(P128:R128)) -> 303086 | AF128: =AE128-actual1[[#This Row],[Grants for Creation of Capital Assets]] -> 139396 | AG128: =U128+AB128-(SUM(actual1[[#This Row],[Corporation Tax]:[Other Taxes]])-actual1[[#This Row],[Surcharge for financing of NCCF]]-actual1[[#This Row],[Devolution to State]]+SUM(P128:R128)+SUM(S128:T128)) -> 750824 | AH128: =AG128-actual1[[#This Row],[Interest Payments]] -> 154477
A129: 2024-25 | B129: Nov-24 | C129: 511636 | D129: 700775 | E129: 35932 | F129: 603873 | G129: -27854 | H129: 2427 | I129: 99598 | J129: 154142 | K129: 175100 | L129: 96 | M129: 5250 | N129: 5477 | O129: 812063 | P129: 26842 | Q129: 279061 | R129: 121117 | S129: 14972 | T129: 8981 | U129: 2227502 | V129: 658494 | W129: 194107 | X129: 306087 | Y129: 193346 | Z129: 279211 | AA129: 178614 | AB129: 513500 | AE129: =actual1[[#This Row],[Revenue Expenditure]]-(SUM(actual1[[#This Row],[Corporation Tax]:[Other Taxes]])-actual1[[#This Row],[Surcharge for financing of NCCF]]-actual1[[#This Row],[Devolution to State]]+SUM(P129:R129)) -> 357047 | AF129: =AE129-actual1[[#This Row],[Grants for Creation of Capital Assets]] -> 178433 | AG129: =U129+AB129-(SUM(actual1[[#This Row],[Corporation Tax]:[Other Taxes]])-actual1[[#This Row],[Surcharge for financing of NCCF]]-actual1[[#This Row],[Devolution to State]]+SUM(P129:R129)+SUM(S129:T129)) -> 846594 | AH129: =AG129-actual1[[#This Row],[Interest Payments]] -> 188100
A130: 2024-25 | B130: Dec-24 | C130: 740926 | D130: 837817 | E130: 40136 | F130: 673256 | G130: -31590 | H130: 2696 | I130: 111556 | J130: 170175 | K130: 199630 | L130: 36 | M130: 5790 | N130: 6225 | O130: 901150 | P130: 29903 | Q130: 284772 | R130: 132982 | S130: 18301 | T130: 8994 | U130: 2546757 | V130: 808313 | W130: 215520 | X130: 348245 | Y130: 215263 | Z130: 306994 | AA130: 199530 | AB130: 685337 | AE130: =actual1[[#This Row],[Revenue Expenditure]]-(SUM(actual1[[#This Row],[Corporation Tax]:[Other Taxes]])-actual1[[#This Row],[Surcharge for financing of NCCF]]-actual1[[#This Row],[Devolution to State]]+SUM(P130:R130)) -> 256047 | AF130: =AE130-actual1[[#This Row],[Grants for Creation of Capital Assets]] -> 56517 | AG130: =U130+AB130-(SUM(actual1[[#This Row],[Corporation Tax]:[Other Taxes]])-actual1[[#This Row],[Surcharge for financing of NCCF]]-actual1[[#This Row],[Devolution to State]]+SUM(P130:R130)+SUM(S130:T130)) -> 914089 | AH130: =AG130-actual1[[#This Row],[Interest Payments]] -> 105776
A131: 2024-25 | B131: Jan-25 | C131: 751319 | D131: 912792 | E131: 44541 | F131: 752514 | G131: -27610 | H131: 3560 | I131: 124971 | J131: 190176 | K131: 225902 | L131: 7 | M131: =6176+8 -> 6184 | N131: 6619 | O131: 1074179 | P131: 32162 | Q131: 285868 | R131: 149600 | S131: 20205 | T131: 9019 | U131: 2812595 | V131: 875461 | W131: 242924 | X131: 410867 | Y131: 237358 | Z131: 337733 | AA131: 218396 | AB131: 757359 | AE131: =actual1[[#This Row],[Revenue Expenditure]]-(SUM(actual1[[#This Row],[Corporation Tax]:[Other Taxes]])-actual1[[#This Row],[Surcharge for financing of NCCF]]-actual1[[#This Row],[Devolution to State]]+SUM(P131:R131)) -> 441407 | AF131: =AE131-actual1[[#This Row],[Grants for Creation of Capital Assets]] -> 223011 | AG131: =U131+AB131-(SUM(actual1[[#This Row],[Corporation Tax]:[Other Taxes]])-actual1[[#This Row],[Surcharge for financing of NCCF]]-actual1[[#This Row],[Devolution to State]]+SUM(P131:R131)+SUM(S131:T131)) -> 1169542 | AH131: =AG131-actual1[[#This Row],[Interest Payments]] -> 294081
AE132: =actual1[[#This Row],[Revenue Expenditure]]-(SUM(actual1[[#This Row],[Corporation Tax]:[Other Taxes]])-actual1[[#This Row],[Surcharge for financing of NCCF]]-actual1[[#This Row],[Devolution to State]]+SUM(P132:R132)) -> 0 | AF132: =AE132-actual1[[#This Row],[Grants for Creation of Capital Assets]] -> 0 | AG132: =U132+AB132-(SUM(actual1[[#This Row],[Corporation Tax]:[Other Taxes]])-actual1[[#This Row],[Surcharge for financing of NCCF]]-actual1[[#This Row],[Devolution to State]]+SUM(P132:R132)+SUM(S132:T132)) -> 0 | AH132: =AG132-actual1[[#This Row],[Interest Payments]] -> 0
AE133: =actual1[[#This Row],[Revenue Expenditure]]-(SUM(actual1[[#This Row],[Corporation Tax]:[Other Taxes]])-actual1[[#This Row],[Surcharge for financing of NCCF]]-actual1[[#This Row],[Devolution to State]]+SUM(P133:R133)) -> 0 | AF133: =AE133-actual1[[#This Row],[Grants for Creation of Capital Assets]] -> 0 | AG133: =U133+AB133-(SUM(actual1[[#This Row],[Corporation Tax]:[Other Taxes]])-actual1[[#This Row],[Surcharge for financing of NCCF]]-actual1[[#This Row],[Devolution to State]]+SUM(P133:R133)+SUM(S133:T133)) -> 0 | AH133: =AG133-actual1[[#This Row],[Interest Payments]] -> 0
AE134: =actual1[[#This Row],[Revenue Expenditure]]-(SUM(actual1[[#This Row],[Corporation Tax]:[Other Taxes]])-actual1[[#This Row],[Surcharge for financing of NCCF]]-actual1[[#This Row],[Devolution to State]]+SUM(P134:R134)) -> 0 | AF134: =AE134-actual1[[#This Row],[Grants for Creation of Capital Assets]] -> 0 | AG134: =U134+AB134-(SUM(actual1[[#This Row],[Corporation Tax]:[Other Taxes]])-actual1[[#This Row],[Surcharge for financing of NCCF]]-actual1[[#This Row],[Devolution to State]]+SUM(P134:R134)+SUM(S134:T134)) -> 0 | AH134: =AG134-actual1[[#This Row],[Interest Payments]] -> 0
AE135: =actual1[[#This Row],[Revenue Expenditure]]-(SUM(actual1[[#This Row],[Corporation Tax]:[Other Taxes]])-actual1[[#This Row],[Surcharge for financing of NCCF]]-actual1[[#This Row],[Devolution to State]]+SUM(P135:R135)) -> 0 | AF135: =AE135-actual1[[#This Row],[Grants for Creation of Capital Assets]] -> 0 | AG135: =U135+AB135-(SUM(actual1[[#This Row],[Corporation Tax]:[Other Taxes]])-actual1[[#This Row],[Surcharge for financing of NCCF]]-actual1[[#This Row],[Devolution to State]]+SUM(P135:R135)+SUM(S135:T135)) -> 0 | AH135: =AG135-actual1[[#This Row],[Interest Payments]] -> 0
AE136: =actual1[[#This Row],[Revenue Expenditure]]-(SUM(actual1[[#This Row],[Corporation Tax]:[Other Taxes]])-actual1[[#This Row],[Surcharge for financing of NCCF]]-actual1[[#This Row],[Devolution to State]]+SUM(P136:R136)) -> 0 | AF136: =AE136-actual1[[#This Row],[Grants for Creation of Capital Assets]] -> 0 | AG136: =U136+AB136-(SUM(actual1[[#This Row],[Corporation Tax]:[Other Taxes]])-actual1[[#This Row],[Surcharge for financing of NCCF]]-actual1[[#This Row],[Devolution to State]]+SUM(P136:R136)+SUM(S136:T136)) -> 0 | AH136: =AG136-actual1[[#This Row],[Interest Payments]] -> 0
AE137: =actual1[[#This Row],[Revenue Expenditure]]-(SUM(actual1[[#This Row],[Corporation Tax]:[Other Taxes]])-actual1[[#This Row],[Surcharge for financing of NCCF]]-actual1[[#This Row],[Devolution to State]]+SUM(P137:R137)) -> 0 | AF137: =AE137-actual1[[#This Row],[Grants for Creation of Capital Assets]] -> 0 | AG137: =U137+AB137-(SUM(actual1[[#This Row],[Corporation Tax]:[Other Taxes]])-actual1[[#This Row],[Surcharge for financing of NCCF]]-actual1[[#This Row],[Devolution to State]]+SUM(P137:R137)+SUM(S137:T137)) -> 0 | AH137: =AG137-actual1[[#This Row],[Interest Payments]] -> 0
AE138: =actual1[[#This Row],[Revenue Expenditure]]-(SUM(actual1[[#This Row],[Corporation Tax]:[Other Taxes]])-actual1[[#This Row],[Surcharge for financing of NCCF]]-actual1[[#This Row],[Devolution to State]]+SUM(P138:R138)) -> 0 | AF138: =AE138-actual1[[#This Row],[Grants for Creation of Capital Assets]] -> 0 | AG138: =U138+AB138-(SUM(actual1[[#This Row],[Corporation Tax]:[Other Taxes]])-actual1[[#This Row],[Surcharge for financing of NCCF]]-actual1[[#This Row],[Devolution to State]]+SUM(P138:R138)+SUM(S138:T138)) -> 0 | AH138: =AG138-actual1[[#This Row],[Interest Payments]] -> 0
AE139: =actual1[[#This Row],[Revenue Expenditure]]-(SUM(actual1[[#This Row],[Corporation Tax]:[Other Taxes]])-actual1[[#This Row],[Surcharge for financing of NCCF]]-actual1[[#This Row],[Devolution to State]]+SUM(P139:R139)) -> 0 | AF139: =AE139-actual1[[#This Row],[Grants for Creation of Capital Assets]] -> 0 | AG139: =U139+AB139-(SUM(actual1[[#This Row],[Corporation Tax]:[Other Taxes]])-actual1[[#This Row],[Surcharge for financing of NCCF]]-actual1[[#This Row],[Devolution to State]]+SUM(P139:R139)+SUM(S139:T139)) -> 0 | AH139: =AG139-actual1[[#This Row],[Interest Payments]] -> 0
AE140: =actual1[[#This Row],[Revenue Expenditure]]-(SUM(actual1[[#This Row],[Corporation Tax]:[Other Taxes]])-actual1[[#This Row],[Surcharge for financing of NCCF]]-actual1[[#This Row],[Devolution to State]]+SUM(P140:R140)) -> 0 | AF140: =AE140-actual1[[#This Row],[Grants for Creation of Capital Assets]] -> 0 | AG140: =U140+AB140-(SUM(actual1[[#This Row],[Corporation Tax]:[Other Taxes]])-actual1[[#This Row],[Surcharge for financing of NCCF]]-actual1[[#This Row],[Devolution to State]]+SUM(P140:R140)+SUM(S140:T140)) -> 0 | AH140: =AG140-actual1[[#This Row],[Interest Payments]] -> 0
AE141: =actual1[[#This Row],[Revenue Expenditure]]-(SUM(actual1[[#This Row],[Corporation Tax]:[Other Taxes]])-actual1[[#This Row],[Surcharge for financing of NCCF]]-actual1[[#This Row],[Devolution to State]]+SUM(P141:R141)) -> 0 | AF141: =AE141-actual1[[#This Row],[Grants for Creation of Capital Assets]] -> 0 | AG141: =U141+AB141-(SUM(actual1[[#This Row],[Corporation Tax]:[Other Taxes]])-actual1[[#This Row],[Surcharge for financing of NCCF]]-actual1[[#This Row],[Devolution to State]]+SUM(P141:R141)+SUM(S141:T141)) -> 0 | AH141: =AG141-actual1[[#This Row],[Interest Payments]] -> 0
AE142: =actual1[[#This Row],[Revenue Expenditure]]-(SUM(actual1[[#This Row],[Corporation Tax]:[Other Taxes]])-actual1[[#This Row],[Surcharge for financing of NCCF]]-actual1[[#This Row],[Devolution to State]]+SUM(P142:R142)) -> 0 | AF142: =AE142-actual1[[#This Row],[Grants for Creation of Capital Assets]] -> 0 | AG142: =U142+AB142-(SUM(actual1[[#This Row],[Corporation Tax]:[Other Taxes]])-actual1[[#This Row],[Surcharge for financing of NCCF]]-actual1[[#This Row],[Devolution to State]]+SUM(P142:R142)+SUM(S142:T142)) -> 0 | AH142: =AG142-actual1[[#This Row],[Interest Payments]] -> 0
AE143: =actual1[[#This Row],[Revenue Expenditure]]-(SUM(actual1[[#This Row],[Corporation Tax]:[Other Taxes]])-actual1[[#This Row],[Surcharge for financing of NCCF]]-actual1[[#This Row],[Devolution to State]]+SUM(P143:R143)) -> 0 | AF143: =AE143-actual1[[#This Row],[Grants for Creation of Capital Assets]] -> 0 | AG143: =U143+AB143-(SUM(actual1[[#This Row],[Corporation Tax]:[Other Taxes]])-actual1[[#This Row],[Surcharge for financing of NCCF]]-actual1[[#This Row],[Devolution to State]]+SUM(P143:R143)+SUM(S143:T143)) -> 0 | AH143: =AG143-actual1[[#This Row],[Interest Payments]] -> 0
AE144: =actual1[[#This Row],[Revenue Expenditure]]-(SUM(actual1[[#This Row],[Corporation Tax]:[Other Taxes]])-actual1[[#This Row],[Surcharge for financing of NCCF]]-actual1[[#This Row],[Devolution to State]]+SUM(P144:R144)) -> 0 | AF144: =AE144-actual1[[#This Row],[Grants for Creation of Capital Assets]] -> 0 | AG144: =U144+AB144-(SUM(actual1[[#This Row],[Corporation Tax]:[Other Taxes]])-actual1[[#This Row],[Surcharge for financing of NCCF]]-actual1[[#This Row],[Devolution to State]]+SUM(P144:R144)+SUM(S144:T144)) -> 0 | AH144: =AG144-actual1[[#This Row],[Interest Payments]] -> 0
AE145: =actual1[[#This Row],[Revenue Expenditure]]-(SUM(actual1[[#This Row],[Corporation Tax]:[Other Taxes]])-actual1[[#This Row],[Surcharge for financing of NCCF]]-actual1[[#This Row],[Devolution to State]]+SUM(P145:R145)) -> 0 | AF145: =AE145-actual1[[#This Row],[Grants for Creation of Capital Assets]] -> 0 | AG145: =U145+AB145-(SUM(actual1[[#This Row],[Corporation Tax]:[Other Taxes]])-actual1[[#This Row],[Surcharge for financing of NCCF]]-actual1[[#This Row],[Devolution to State]]+SUM(P145:R145)+SUM(S145:T145)) -> 0 | AH145: =AG145-actual1[[#This Row],[Interest Payments]] -> 0
AE146: =actual1[[#This Row],[Revenue Expenditure]]-(SUM(actual1[[#This Row],[Corporation Tax]:[Other Taxes]])-actual1[[#This Row],[Surcharge for financing of NCCF]]-actual1[[#This Row],[Devolution to State]]+SUM(P146:R146)) -> 0 | AF146: =AE146-actual1[[#This Row],[Grants for Creation of Capital Assets]] -> 0 | AG146: =U146+AB146-(SUM(actual1[[#This Row],[Corporation Tax]:[Other Taxes]])-actual1[[#This Row],[Surcharge for financing of NCCF]]-actual1[[#This Row],[Devolution to State]]+SUM(P146:R146)+SUM(S146:T146)) -> 0 | AH146: =AG146-actual1[[#This Row],[Interest Payments]] -> 0
AE147: =actual1[[#This Row],[Revenue Expenditure]]-(SUM(actual1[[#This Row],[Corporation Tax]:[Other Taxes]])-actual1[[#This Row],[Surcharge for financing of NCCF]]-actual1[[#This Row],[Devolution to State]]+SUM(P147:R147)) -> 0 | AF147: =AE147-actual1[[#This Row],[Grants for Creation of Capital Assets]] -> 0 | AG147: =U147+AB147-(SUM(actual1[[#This Row],[Corporation Tax]:[Other Taxes]])-actual1[[#This Row],[Surcharge for financing of NCCF]]-actual1[[#This Row],[Devolution to State]]+SUM(P147:R147)+SUM(S147:T147)) -> 0 | AH147: =AG147-actual1[[#This Row],[Interest Payments]] -> 0
AE148: =actual1[[#This Row],[Revenue Expenditure]]-(SUM(actual1[[#This Row],[Corporation Tax]:[Other Taxes]])-actual1[[#This Row],[Surcharge for financing of NCCF]]-actual1[[#This Row],[Devolution to State]]+SUM(P148:R148)) -> 0 | AF148: =AE148-actual1[[#This Row],[Grants for Creation of Capital Assets]] -> 0 | AG148: =U148+AB148-(SUM(actual1[[#This Row],[Corporation Tax]:[Other Taxes]])-actual1[[#This Row],[Surcharge for financing of NCCF]]-actual1[[#This Row],[Devolution to State]]+SUM(P148:R148)+SUM(S148:T148)) -> 0 | AH148: =AG148-actual1[[#This Row],[Interest Payments]] -> 0
AE149: =actual1[[#This Row],[Revenue Expenditure]]-(SUM(actual1[[#This Row],[Corporation Tax]:[Other Taxes]])-actual1[[#This Row],[Surcharge for financing of NCCF]]-actual1[[#This Row],[Devolution to State]]+SUM(P149:R149)) -> 0 | AF149: =AE149-actual1[[#This Row],[Grants for Creation of Capital Assets]] -> 0 | AG149: =U149+AB149-(SUM(actual1[[#This Row],[Corporation Tax]:[Other Taxes]])-actual1[[#This Row],[Surcharge for financing of NCCF]]-actual1[[#This Row],[Devolution to State]]+SUM(P149:R149)+SUM(S149:T149)) -> 0 | AH149: =AG149-actual1[[#This Row],[Interest Payments]] -> 0
AE150: =actual1[[#This Row],[Revenue Expenditure]]-(SUM(actual1[[#This Row],[Corporation Tax]:[Other Taxes]])-actual1[[#This Row],[Surcharge for financing of NCCF]]-actual1[[#This Row],[Devolution to State]]+SUM(P150:R150)) -> 0 | AF150: =AE150-actual1[[#This Row],[Grants for Creation of Capital Assets]] -> 0 | AG150: =U150+AB150-(SUM(actual1[[#This Row],[Corporation Tax]:[Other Taxes]])-actual1[[#This Row],[Surcharge for financing of NCCF]]-actual1[[#This Row],[Devolution to State]]+SUM(P150:R150)+SUM(S150:T150)) -> 0 | AH150: =AG150-actual1[[#This Row],[Interest Payments]] -> 0

Sheet BERE
A1: FY | B1: Month | C1: Corporation Tax | D1: Income Tax | E1: Securities Transcation Tax | F1: CGST | G1: IGST | H1: UTGST | I1: Compensation Cess | J1: Customs | K1: Union Excise | L1: Service Tax | M1: Other Taxes | N1: Surcharge for financing of NCCF | O1: Devolution to State | P1: Interest receipts | Q1: Dividends and Profits | R1: Other Non Tax Receipts | S1: Recovery of Loans & Advances | T1: Disinvestment Receipts | U1: Revenue Expenditure | V1: Interest Payments | W1: Defence Services | X1: Grants in Aid to States & UTs | Y1: Pensions | Z1: Major Subsidies | AA1: Grants for Creation of Capital Assets | AB1: Capital Expenditure | AG1: Other Non-Debt Capital Receipts
A2: 2014-15 | B2: BE | C2: 451005 | D2: 278275 | E2: 5991 | J2: 201819 | K2: 207110 | L2: 215973 | M2: 4351 | N2: 5050 | O2: 382216 | P2: 19751 | Q2: 90229 | R2: 102525 | S2: 10527 | T2: 63425 | U2: 1568111 | V2: 427011 | W2: 229000 | X2: 70019 | Y2: 81983 | Z2: 251397 | AA2: 168104 | AB2: 226781
A3: 2014-15 | B3: RE | C3: 426079 | D3: 272607 | E3: 5992 | J3: 188713 | K3: 185480 | L3: 168132 | M3: 4388 | N3: 5120 | O3: 337808 | P3: 22166 | Q3: 88781 | R3: 106884 | S3: 10886 | T3: 31350 | U3: 1488780 | V3: 411354 | W3: 222370 | X3: 80338 | Y3: 81705 | Z3: 253913 | AA3: 131898 | AB3: 192379
A4: 2015-16 | B4: BE | C4: 470628 | D4: 320836 | E4: 6531 | J4: 208336 | K4: 229808 | L4: 209774 | M4: 3577 | N4: 5690 | O4: 523958 | P4: 23600 | Q4: 100651 | R4: 97482 | S4: 10753 | T4: 69500 | U4: 1536047 | V4: 456145 | W4: 246727 | X4: 108630 | Y4: 88521 | Z4: 227388 | AA4: 110551 | AB4: 241430
A5: 2015-16 | B5: RE | C5: 452970 | D5: 291653 | E5: 7398 | J5: 209500 | K5: 284142 | L5: 210000 | M5: 3948 | N5: 5910 | O5: 506193 | P5: 23142 | Q5: 118271 | R5: 117163 | S5: 18905 | T5: 25312 | U5: 1547673 | V5: 442620 | W5: 224636 | X5: 108312 | Y5: 95731 | Z5: 257801 | AA5: 132004 | AB5: 237718
A6: 2016-17 | B6: BE | C6: 493924 | D6: 345776 | E6: 7398 | F6: 0 | G6: 0 | H6: 0 | I6: 0 | J6: 230000 | K6: 318669 | L6: 231000 | M6: 4121 | N6: 6450 | O6: 570337 | P6: 29620 | Q6: 123780 | R6: 169521 | S6: 10634 | T6: 56500 | U6: 1731535 | V6: 492670 | W6: 162759 | X6: 275116 | Y6: 123368 | Z6: 231782 | AA6: 166840 | AB6: 246525
A7: 2016-17 | B7: RE | C7: 493923 | D7: 345776 | E7: 7398 | F7: 0 | G7: 0 | H7: 0 | I7: 0 | J7: 217000 | K7: 387368 | L7: 247500 | M7: 4277 | N7: 6450 | O7: 608000 | P7: 18149 | Q7: 153222 | R7: 163399 | S7: 11071 | T7: 45500 | U7: 1735220 | V7: 483069 | W7: 168635 | X7: 280839 | Y7: 128166 | Z7: 229716 | AA7: 171472 | AB7: 279187
A8: 2017-18 | B8: BE | C8: 538745 | D8: 433487 | E8: 7768 | F8: 0 | G8: 0 | H8: 0 | I8: 0 | J8: 245000 | K8: 406900 | L8: 275000 | M8: 4679 | N8: 10000 | O8: 674565 | P8: 19021 | Q8: 142430 | R8: 127306 | S8: 11932 | T8: 72500 | U8: 1837505 | V8: 523078 | W8: 175861 | X8: 292968 | Y8: 131201 | Z8: 240339 | AA8: 195350 | AB8: 309230
A9: 2017-18 | B9: RE | C9: 563745 | D9: 433487 | E9: 7768 | F9: 221400 | G9: 161900 | H9: 1424 | I9: 61331 | J9: 135242 | K9: 276995 | L9: 79507 | M9: 3320 | N9: 3660 | O9: 673005 | P9: 13551 | Q9: 106433 | R9: 115990 | S9: 17473 | T9: 100000 | U9: 1944999 | V9: 530843 | W9: 180608 | X9: 369010 | Y9: 147387 | Z9: 229716 | AA9: 189245 | AB9: 272751
A10: 2018-19 | B10: BE | C10: 621000 | D10: 518000 | E10: 11000 | F10: 603900 | G10: 50000 | H10: 2530 | I10: 90000 | J10: 112500 | K10: 259600 | L10: 0 | M10: 2712 | N10: 2500 | O10: 788093 | P10: 15162 | Q10: 107312 | R10: 122615 | S10: 12199 | T10: 80000 | U10: 2142283 | V10: 575795 | W10: 188723 | X10: 420591 | Y10: 168466 | Z10: 264336 | AA10: 195345 | AB10: 299930
A11: 2018-19 | B11: RE | C11: 671000 | D11: 518000 | E11: 11000 | F11: 503900 | G11: 50000 | H11: 2530 | I11: 90000 | J11: 130038 | K11: 259612 | L11: 9283 | M11: 2812 | N11: 2315 | O11: 761454 | P11: 12047 | Q11: 119265 | R11: 113964 | S11: 13155 | T11: 80000 | U11: 2141351 | V11: 587570 | W11: 191431 | X11: 389212 | Y11: 166618 | Z11: 266206 | AA11: 200300 | AB11: 315884
A12: 2019-20 | B12: BE | C12: 766000 | D12: 556200 | E12: 12800 | F12: 526000 | G12: 28000 | H12: 2768 | I12: 109343 | J12: 155904 | K12: 300000 | L12: 0 | M12: 4180 | N12: 2480 | O12: 809133 | P12: 13711 | Q12: 163528 | R12: 135940 | S12: 14828 | T12: 105000 | U12: 2448264 | V12: 660471 | W12: 201902 | X12: 467339 | Y12: 174300 | Z12: 301694 | AA12: 207333 | AB12: 338085
A13: 2019-20 | B13: RE | C13: 610500 | D13: 547000 | E13: 12500 | F13: 514000 | G13: 0 | H13: 2704 | I13: 98327 | J13: 125000 | K13: 248012 | L13: 1200 | M13: 4180 | N13: 2790 | O13: 656046 | P13: 11027 | Q13: 199893 | R13: 134594 | S13: 16605 | T13: 65000 | U13: 2350438 | V13: 625105 | W13: 205902 | X13: 475152 | Y13: 184147 | Z13: 227255 | AA13: 191737 | AB13: 348114
A14: 2020-21 | B14: BE | C14: 681000 | D14: 625000 | E14: 13000 | F14: 580000 | G14: 0 | H14: 3000 | I14: 110500 | J14: 138000 | K14: 267000 | L14: 1020 | M14: 4500 | N14: 2930 | O14: 784181 | P14: 11042 | Q14: 155395 | R14: 218580 | S14: 14967 | T14: 210000 | U14: 2630221 | V14: 708203 | W14: 209319 | X14: 562046 | Y14: 210682 | Z14: 227794 | AA14: 206500 | AB14: 412009
A15: 2020-21 | B15: RE | C15: 446000 | D15: 447000 | E15: 12000 | F15: 431000 | G15: 0 | H15: 2720 | I15: 84100 | J15: 112000 | K15: 361000 | L15: 1400 | M15: 3060 | N15: 5820 | O15: 549959 | P15: 14005 | Q15: 96544 | R15: 100103 | S15: 14497 | T15: 32000 | U15: 3011916 | V15: 692900 | W15: 209312 | X15: 559025 | Y15: 204393 | Z15: 595620 | AA15: 230376 | AB15: 438389
A16: 2021-22 | B16: BE | C16: 547000 | D16: 548500 | E16: 12500 | F16: 530000 | G16: 0 | H16: 3327 | I16: 100000 | J16: 136000 | K16: 335000 | L16: 1000 | M16: 3732 | N16: 6100 | O16: 665563 | P16: 11541 | Q16: 103538 | R16: 127949 | S16: 13000 | T16: 175000 | U16: 2929128 | V16: 809701 | W16: 212028 | X16: 605812 | Y16: 190328 | Z16: 336439 | AA16: 219112 | AB16: 554108
A17: 2021-22 | B17: RE | C17: 635000 | D17: 595000 | E17: 20000 | F17: 570000 | G17: 0 | H17: 3327 | I17: 105000 | J17: 189000 | K17: 394000 | L17: 1000 | M17: 3732 | N17: 6130 | O17: 744784 | P17: 20894 | Q17: 147353 | R17: 145544 | S17: 21975 | T17: 78000 | U17: 3168067 | V17: 813791 | W17: 229567 | X17: 587918 | Y17: 198962 | Z17: 422108 | AA17: 237685 | AB17: 601933
A18: 2022-23 | B18: BE | C18: 720000 | D18: 680000 | E18: 20000 | F18: 660000 | G18: 0 | H18: 3706 | I18: 120000 | J18: 213000 | K18: 335000 | L18: 2000 | M18: 4114 | N18: 6400 | O18: 816649 | P18: 18000 | Q18: 113948 | R18: 137703 | S18: 14291 | T18: 65000 | U18: 3195257 | V18: 940651 | W18: 233001 | X18: 617057 | Y18: 207132 | Z18: 317866 | AA18: 317643 | AB18: 749652
A19: 2022-23 | B19: RE | C19: 835000 | D19: 790000 | E19: 25000 | F19: 724000 | G19: 0 | H19: 3928 | I19: 130000 | J19: 210000 | K19: 320000 | L19: 1000 | M19: 4140 | N19: 8000 | O19: 948406 | P19: 24640 | Q19: 83953 | R19: 153158 | S19: 23500 | T19: 60000 | U19: 3459464 | V19: 940651 | W19: 259500 | X19: 613196 | Y19: 244780 | Z19: 521585 | AA19: 325588 | AB19: 727768
A20: 2023-24 | B20: BE | C20: 922675 | D20: 872950 | E20: 27625 | F20: 811600 | G20: 0 | H20: 3935 | I20: 145000 | J20: 233100 | K20: 339000 | L20: 500 | M20: 4474 | N20: 8780 | O20: 1021448 | P20: 24820 | Q20: 91000 | R20: 185830 | S20: 23000 | T20: 61000 | U20: 3502724 | V20: 1079971 | W20: 270120 | X20: 659736 | Y20: 234359 | Z20: 374707 | AA20: 369988 | AB20: 1000373
A21: 2023-24 | B21: RE | C21: 922675 | D21: 990325 | E21: 32000 | F21: 811600 | G21: 0 | H21: 4330 | I21: 145000 | J21: 218680 | K21: 303600 | L21: 500 | M21: 8501 | N21: 8800 | O21: 1104493 | P21: 31778 | Q21: 154407 | R21: 189610 | S21: 26000 | T21: 30000 | U21: 3540931 | V21: 1055427 | W21: 298669 | X21: 590531 | Y21: 238049 | Z21: 413466 | AA21: 321190 | AB21: 949555
A22: 2024-25 | B22: BE | C22: 1020000 | D22: 1150000 | E22: 37000 | F22: 910890 | G22: 0 | H22: 4900 | I22: 151009 | J22: 237745 | K22: 319000 | L22: 100 | M22: 9526 | N22: 9460 | O22: 1247211 | P22: 38224 | Q22: 289134 | R22: 218343 | S22: 28000 | T22: 50000 | U22: 3709401 | V22: 1162940 | W22: 282773 | X22: 641460 | Y22: 243296 | Z22: 381175 | AA22: 390778 | AB22: 1111111
A23: 2024-25 | B23: RE | C23: 980000 | D23: 1199300 | E23: 55000 | F23: 908459 | G23: 0 | H23: 4940 | I23: 153440 | J23: 235000 | K23: 305000 | L23: 100 | M23: =9516+2700 -> 12216 | N23: 9610 | O23: 1286885 | P23: 34042 | Q23: 289285 | R23: 207673 | S23: 26000 | T23: 33000 | U23: 3698058 | V23: 1137940 | W23: 297222 | X23: 594207 | Y23: 275103 | Z23: 383419 | AA23: 299891 | AB23: 1018429

Sheet GDP
A1: FY | B1: GDP
A2: 2014-15 | B2: 12467959
A3: 2015-16 | B3: 13771874
A4: 2016-17 | B4: 15391669
A5: 2017-18 | B5: 17090042
A6: 2018-19 | B6: 18899668
A7: 2019-20 | B7: 20103593
A8: 2020-21 | B8: 19854096
A9: 2021-22 | B9: 23597399
A10: 2022-23 | B10: 26949646
A11: 2023-24 | B11: 29535667
A12: 2024-25 | B12: 32636912

Sheet actual2
A1: FY | B1: Month | C1: Gross Tax Revenue | D1: Net Tax Revenue | E1: Non Tax Revenue | F1: Revenue Receipts | G1: Non Debt Capital Receipts | H1: Total Receipts | I1: Other Revenue Expenditure | J1: Total Expenditure | K1: Fiscal Deficit | L1: Revenue Deficit | M1: Effective Revenue Deficit | N1: Primary Deficit
A2: =actual!A2 -> 2014-15 | B2: =actual!B2 -> Apr-14 | C2: =SUM(actual!C2:M2) -> 28794 | D2: =C2-actual!N2-actual!O2 -> 977 | E2: =SUM(actual!P2:R2) -> 5952 | F2: =SUM(D2:E2) -> 6929 | G2: =SUM(actual!S2:T2) -> 144 | H2: =SUM(F2:G2) -> 7073 | I2: =actual!U2-actual!V2-actual!W2-actual!X2-actual!Y2-actual!Z2 -> 27171 | J2: =actual!U2+actual!AB2 -> 120527 | K2: =actual2!J2-actual2!H2 -> 113454 | L2: =actual!U2-actual2!F2 -> 101155 | M2: =L2-actual!AA2 -> 91043 | N2: =K2-actual!V2 -> 90170
A3: =actual!A3 -> 2014-15 | B3: =actual!B3 -> May-14 | C3: =SUM(actual!C3:M3) -> 84516 | D3: =C3-actual!N3-actual!O3 -> 28651 | E3: =SUM(actual!P3:R3) -> 9854 | F3: =SUM(D3:E3) -> 38505 | G3: =SUM(actual!S3:T3) -> 997 | H3: =SUM(F3:G3) -> 39502 | I3: =actual!U3-actual!V3-actual!W3-actual!X3-actual!Y3-actual!Z3 -> 64885 | J3: =actual!U3+actual!AB3 -> 280339 | K3: =actual2!J3-actual2!H3 -> 240837 | L3: =actual!U3-actual2!F3 -> 205080 | M3: =L3-actual!AA3 -> 183624 | N3: =K3-actual!V3 -> 185980
A4: =actual!A4 -> 2014-15 | B4: =actual!B4 -> Jun-14 | C4: =SUM(actual!C4:M4) -> 183028 | D4: =C4-actual!N4-actual!O4 -> 99086 | E4: =SUM(actual!P4:R4) -> 15340 | F4: 114426 | G4: =SUM(actual!S4:T4) -> 1317 | H4: 115743 | I4: =actual!U4-actual!V4-actual!W4-actual!X4-actual!Y4-actual!Z4 -> 114347 | J4: =actual!U4+actual!AB4 -> 413603 | K4: =actual2!J4-actual2!H4 -> 297860 | L4: =actual!U4-actual2!F4 -> 249359 | M4: =L4-actual!AA4 -> 217085 | N4: =K4-actual!V4 -> 207166
A5: =actual!A5 -> 2014-15 | B5: =actual!B5 -> Jul-14 | C5: =SUM(actual!C5:M5) -> 258873 | D5: =C5-actual!N5-actual!O5 -> 146865 | E5: =SUM(actual!P5:R5) -> 28767 | F5: 175632 | G5: =SUM(actual!S5:T5) -> 3384 | H5: 179016 | I5: =actual!U5-actual!V5-actual!W5-actual!X5-actual!Y5-actual!Z5 -> 132929 | J5: =actual!U5+actual!AB5 -> 503940 | K5: =actual2!J5-actual2!H5 -> 324924 | L5: =actual!U5-actual2!F5 -> 266419 | M5: =L5-actual!AA5 -> 230206 | N5: =K5-actual!V5 -> 206309
A6: =actual!A6 -> 2014-15 | B6: =actual!B6 -> Aug-14 | C6: =SUM(actual!C6:M6) -> 324938 | D6: =C6-actual!N6-actual!O6 -> 185459 | E6: =SUM(actual!P6:R6) -> 84996 | F6: 270455 | G6: =SUM(actual!S6:T6) -> 4334 | H6: 274789 | I6: =actual!U6-actual!V6-actual!W6-actual!X6-actual!Y6-actual!Z6 -> 177154 | J6: =actual!U6+actual!AB6 -> 672718 | K6: =actual2!J6-actual2!H6 -> 397929 | L6: =actual!U6-actual2!F6 -> 324764 | M6: =L6-actual!AA6 -> 271213 | N6: =K6-actual!V6 -> 244053
A7: =actual!A7 -> 2014-15 | B7: =actual!B7 -> Sep-14 | C7: =SUM(actual!C7:M7) -> 490618 | D7: =C7-actual!N7-actual!O7 -> 323191 | E7: =SUM(actual!P7:R7) -> 94705 | F7: 417896 | G7: =SUM(actual!S7:T7) -> 5331 | H7: 423227 | I7: =actual!U7-actual!V7-actual!W7-actual!X7-actual!Y7-actual!Z7 -> 244595 | J7: =actual!U7+actual!AB7 -> 862053 | K7: =actual2!J7-actual2!H7 -> 438826 | L7: =actual!U7-actual2!F7 -> 345053 | M7: =L7-actual!AA7 -> 278784 | N7: =K7-actual!V7 -> 253156
A8: =actual!A8 -> 2014-15 | B8: =actual!B8 -> Oct-14 | C8: =SUM(actual!C8:M8) -> 563598 | D8: =C8-actual!N8-actual!O8 -> 368872 | E8: =SUM(actual!P8:R8) -> 111201 | F8: 480073 | G8: =SUM(actual!S8:T8) -> 6264 | H8: 486337 | I8: =actual!U8-actual!V8-actual!W8-actual!X8-actual!Y8-actual!Z8 -> 267504 | J8: =actual!U8+actual!AB8 -> 962089 | K8: =actual2!J8-actual2!H8 -> 475752 | L8: =actual!U8-actual2!F8 -> 372634 | M8: =L8-actual!AA8 -> 298929 | N8: =K8-actual!V8 -> 269778
A9: =actual!A9 -> 2014-15 | B9: =actual!B9 -> Nov-14 | C9: =SUM(actual!C9:M9) -> 635583 | D9: =C9-actual!N9-actual!O9 -> 413310 | E9: =SUM(actual!P9:R9) -> 128343 | F9: 541653 | G9: =SUM(actual!S9:T9) -> 7396 | H9: 549049 | I9: =actual!U9-actual!V9-actual!W9-actual!X9-actual!Y9-actual!Z9 -> 294608 | J9: =actual!U9+actual!AB9 -> 1074183 | K9: =actual2!J9-actual2!H9 -> 525134 | L9: =actual!U9-actual2!F9 -> 411075 | M9: =L9-actual!AA9 -> 329491 | N9: =K9-actual!V9 -> 292484
A10: =actual!A10 -> 2014-15 | B10: =actual!B10 -> Dec-14 | C10: =SUM(actual!C10:M10) -> 795686 | D10: =C10-actual!N10-actual!O10 -> 545714 | E10: =SUM(actual!P10:R10) -> 148059 | F10: 693773 | G10: =SUM(actual!S10:T10) -> 10234 | H10: 704007 | I10: =actual!U10-actual!V10-actual!W10-actual!X10-actual!Y10-actual!Z10 -> 347890 | J10: =actual!U10+actual!AB10 -> 1236388 | K10: =actual2!J10-actual2!H10 -> 532381 | L10: =actual!U10-actual2!F10 -> 401775 | M10: =L10-actual!AA10 -> 303912 | N10: =K10-actual!V10 -> 257161
A11: =actual!A11 -> 2014-15 | B11: =actual!B11 -> Jan-15 | C11: =SUM(actual!C11:M11) -> 872084 | D11: =C11-actual!N11-actual!O11 -> 594797 | E11: =SUM(actual!P11:R11) -> 158310 | F11: 753107 | G11: =SUM(actual!S11:T11) -> 17022 | H11: 770129 | I11: =actual!U11-actual!V11-actual!W11-actual!X11-actual!Y11-actual!Z11 -> 363102 | J11: =actual!U11+actual!AB11 -> 1338268 | K11: =actual2!J11-actual2!H11 -> 568139 | L11: =actual!U11-actual2!F11 -> 441506 | M11: =L11-actual!AA11 -> 339298 | N11: =K11-actual!V11 -> 255879
A12: =actual!A12 -> 2014-15 | B12: =actual!B12 -> Feb-15 | C12: =SUM(actual!C12:M12) -> 954953 | D12: =C12-actual!N12-actual!O12 -> 651419 | E12: =SUM(actual!P12:R12) -> 164819 | F12: 816238 | G12: =SUM(actual!S12:T12) -> 40764 | H12: 857002 | I12: =actual!U12-actual!V12-actual!W12-actual!X12-actual!Y12-actual!Z12 -> 394375 | J12: =actual!U12+actual!AB12 -> 1459536 | K12: =actual2!J12-actual2!H12 -> 602534 | L12: =actual!U12-actual2!F12 -> 483254 | M12: =L12-actual!AA12 -> 369184 | N12: =K12-actual!V12 -> 256278
A13: =actual!A13 -> 2014-15 | B13: =actual!B13 -> Mar-15 | C13: =SUM(actual!C13:M13) -> 1244884 | D13: =C13-actual!N13-actual!O13 -> 903615 | E13: =SUM(actual!P13:R13) -> 197766 | F13: 1101381 | G13: =SUM(actual!S13:T13) -> 51475 | H13: 1152856 | I13: =actual!U13-actual!V13-actual!W13-actual!X13-actual!Y13-actual!Z13 -> 425825 | J13: =actual!U13+actual!AB13 -> 1663673 | K13: =actual2!J13-actual2!H13 -> 510817 | L13: =actual!U13-actual2!F13 -> 365611 | M13: =L13-actual!AA13 -> 234851 | N13: =K13-actual!V13 -> 108373
A14: =actual!A14 -> 2015-16 | B14: =actual!B14 -> Apr-15 | C14: =SUM(actual!C14:M14) -> 34816 | D14: =C14-actual!N14-actual!O14 -> -2813 | E14: =SUM(actual!P14:R14) -> 28126 | F14: 25313 | G14: =SUM(actual!S14:T14) -> 1781 | H14: 27094 | I14: =actual!U14-actual!V14-actual!W14-actual!X14-actual!Y14-actual!Z14 -> 37885 | J14: =actual!U14+actual!AB14 -> 154617 | K14: =actual2!J14-actual2!H14 -> 127523 | L14: =actual!U14-actual2!F14 -> 103095 | M14: =L14-actual!AA14 -> 84728 | N14: =K14-actual!V14 -> 110529
A15: =actual!A15 -> 2015-16 | B15: =actual!B15 -> May-15 | C15: =SUM(actual!C15:M15) -> 95332 | D15: =C15-actual!N15-actual!O15 -> 19889 | E15: =SUM(actual!P15:R15) -> 32472 | F15: 52361 | G15: =SUM(actual!S15:T15) -> 1846 | H15: 54207 | I15: =actual!U15-actual!V15-actual!W15-actual!X15-actual!Y15-actual!Z15 -> 63606 | J15: =actual!U15+actual!AB15 -> 262831 | K15: =actual2!J15-actual2!H15 -> 208624 | L15: =actual!U15-actual2!F15 -> 172727 | M15: =L15-actual!AA15 -> 150589 | N15: =K15-actual!V15 -> 160177
A16: =actual!A16 -> 2015-16 | B16: =actual!B16 -> Jun-15 | C16: =SUM(actual!C16:M16) -> 215113 | D16: =C16-actual!N16-actual!O16 -> 101685 | E16: =SUM(actual!P16:R16) -> 39519 | F16: 141204 | G16: =SUM(actual!S16:T16) -> 3094 | H16: 144298 | I16: =actual!U16-actual!V16-actual!W16-actual!X16-actual!Y16-actual!Z16 -> 110063 | J16: =actual!U16+actual!AB16 -> 430993 | K16: =actual2!J16-actual2!H16 -> 286695 | L16: =actual!U16-actual2!F16 -> 231180 | M16: =L16-actual!AA16 -> 196021 | N16: =K16-actual!V16 -> 191202
A17: =actual!A17 -> 2015-16 | B17: =actual!B17 -> Jul-15 | C17: =SUM(actual!C17:M17) -> 305110 | D17: =C17-actual!N17-actual!O17 -> 153851 | E17: =SUM(actual!P17:R17) -> 55131 | F17: 208982 | G17: =SUM(actual!S17:T17) -> 6894 | H17: 215876 | I17: =actual!U17-actual!V17-actual!W17-actual!X17-actual!Y17-actual!Z17 -> 149856 | J17: =actual!U17+actual!AB17 -> 600979 | K17: =actual2!J17-actual2!H17 -> 385103 | L17: =actual!U17-actual2!F17 -> 305971 | M17: =L17-actual!AA17 -> 262582 | N17: =K17-actual!V17 -> 257466
A18: =actual!A18 -> 2015-16 | B18: =actual!B18 -> Aug-15 | C18: =SUM(actual!C18:M18) -> 399085 | D18: =C18-actual!N18-actual!O18 -> 209930 | E18: =SUM(actual!P18:R18) -> 135606 | F18: 345536 | G18: =SUM(actual!S18:T18) -> 17362 | H18: 362898 | I18: =actual!U18-actual!V18-actual!W18-actual!X18-actual!Y18-actual!Z18 -> 188962 | J18: =actual!U18+actual!AB18 -> 732193 | K18: =actual2!J18-actual2!H18 -> 369295 | L18: =actual!U18-actual2!F18 -> 294719 | M18: =L18-actual!AA18 -> 239655 | N18: =K18-actual!V18 -> 205826
A19: =actual!A19 -> 2015-16 | B19: =actual!B19 -> Sep-15 | C19: =SUM(actual!C19:M19) -> 596884 | D19: =C19-actual!N19-actual!O19 -> 369736 | E19: =SUM(actual!P19:R19) -> 143633 | F19: 513369 | G19: =SUM(actual!S19:T19) -> 18613 | H19: 531982 | I19: =actual!U19-actual!V19-actual!W19-actual!X19-actual!Y19-actual!Z19 -> 231748 | J19: =actual!U19+actual!AB19 -> 910545 | K19: =actual2!J19-actual2!H19 -> 378563 | L19: =actual!U19-actual2!F19 -> 269008 | M19: =L19-actual!AA19 -> 204134 | N19: =K19-actual!V19 -> 180910
A20: =actual!A20 -> 2015-16 | B20: =actual!B20 -> Oct-15 | C20: =SUM(actual!C20:M20) -> 693842 | D20: =C20-actual!N20-actual!O20 -> 428803 | E20: =SUM(actual!P20:R20) -> 161935 | F20: 590738 | G20: =SUM(actual!S20:T20) -> 19636 | H20: 610374 | I20: =actual!U20-actual!V20-actual!W20-actual!X20-actual!Y20-actual!Z20 -> 247811 | J20: =actual!U20+actual!AB20 -> 1021620 | K20: =actual2!J20-actual2!H20 -> 411246 | L20: =actual!U20-actual2!F20 -> 287553 | M20: =L20-actual!AA20 -> 219360 | N20: =K20-actual!V20 -> 195914
A21: =actual!A21 -> 2015-16 | B21: =actual!B21 -> Nov-15 | C21: =SUM(actual!C21:M21) -> 767835 | D21: =C21-actual!N21-actual!O21 -> 464864 | E21: =SUM(actual!P21:R21) -> 173192 | F21: 638056 | G21: =SUM(actual!S21:T21) -> 20728 | H21: 658784 | I21: =actual!U21-actual!V21-actual!W21-actual!X21-actual!Y21-actual!Z21 -> 273078 | J21: =actual!U21+actual!AB21 -> 1142307 | K21: =actual2!J21-actual2!H21 -> 483523 | L21: =actual!U21-actual2!F21 -> 345328 | M21: =L21-actual!AA21 -> 264404 | N21: =K21-actual!V21 -> 230924
A22: =actual!A22 -> 2015-16 | B22: =actual!B22 -> Dec-15 | C22: =SUM(actual!C22:M22) -> 963229 | D22: =C22-actual!N22-actual!O22 -> 622247 | E22: =SUM(actual!P22:R22) -> 181561 | F22: 803808 | G22: =SUM(actual!S22:T22) -> 22004 | H22: 825812 | I22: =actual!U22-actual!V22-actual!W22-actual!X22-actual!Y22-actual!Z22 -> 305623 | J22: =actual!U22+actual!AB22 -> 1313997 | K22: =actual2!J22-actual2!H22 -> 488185 | L22: =actual!U22-actual2!F22 -> 322234 | M22: =L22-actual!AA22 -> 229446 | N22: =K22-actual!V22 -> 185887
A23: =actual!A23 -> 2015-16 | B23: =actual!B23 -> Jan-16 | C23: =SUM(actual!C23:M23) -> 1057704 | D23: =C23-actual!N23-actual!O23 -> 678892 | E23: =SUM(actual!P23:R23) -> 202290 | F23: 881182 | G23: =SUM(actual!S23:T23) -> 22877 | H23: 904059 | I23: =actual!U23-actual!V23-actual!W23-actual!X23-actual!Y23-actual!Z23 -> 331973 | J23: =actual!U23+actual!AB23 -> 1436340 | K23: =actual2!J23-actual2!H23 -> 532281 | L23: =actual!U23-actual2!F23 -> 346174 | M23: =L23-actual!AA23 -> 246906 | N23: =K23-actual!V23 -> 190647
A24: =actual!A24 -> 2015-16 | B24: =actual!B24 -> Feb-16 | C24: =SUM(actual!C24:M24) -> 1152545 | D24: =C24-actual!N24-actual!O24 -> 735778 | E24: =SUM(actual!P24:R24) -> 211272 | F24: 947050 | G24: =SUM(actual!S24:T24) -> 35951 | H24: 983001 | I24: =actual!U24-actual!V24-actual!W24-actual!X24-actual!Y24-actual!Z24 -> 365907 | J24: =actual!U24+actual!AB24 -> 1555873 | K24: =actual2!J24-actual2!H24 -> 572872 | L24: =actual!U24-actual2!F24 -> 390810 | M24: =L24-actual!AA24 -> 280014 | N24: =K24-actual!V24 -> 193387
A25: =actual!A25 -> 2015-16 | B25: =actual!B25 -> Mar-16 | C25: =SUM(actual!C25:M25) -> 1455648 | D25: =C25-actual!N25-actual!O25 -> 943765 | E25: =SUM(actual!P25:R25) -> 251260 | F25: 1195025 | G25: =SUM(actual!S25:T25) -> 62975 | H25: 1258000 | I25: =actual!U25-actual!V25-actual!W25-actual!X25-actual!Y25-actual!Z25 -> 425545 | J25: =actual!U25+actual!AB25 -> 1790783 | K25: =actual2!J25-actual2!H25 -> 532783 | L25: =actual!U25-actual2!F25 -> 342736 | M25: =L25-actual!AA25 -> 211781 | N25: =K25-actual!V25 -> 91124
A26: =actual!A26 -> 2016-17 | B26: =actual!B26 -> Apr-16 | C26: =SUM(actual!C26:M26) -> 53701 | D26: =C26-actual!N26-actual!O26 -> 12766 | E26: =SUM(actual!P26:R26) -> 9309 | F26: 22075 | G26: =SUM(actual!S26:T26) -> 2584 | H26: 24659 | I26: =actual!U26-actual!V26-actual!W26-actual!X26-actual!Y26-actual!Z26 -> 41493 | J26: =actual!U26+actual!AB26 -> 161985 | K26: =actual2!J26-actual2!H26 -> 137326 | L26: =actual!U26-actual2!F26 -> 119075 | M26: =L26-actual!AA26 -> 95113 | N26: =K26-actual!V26 -> 121470
A27: =actual!A27 -> 2016-17 | B27: =actual!B27 -> May-16 | C27: =SUM(actual!C27:M27) -> 131858 | D27: =C27-actual!N27-actual!O27 -> 49690 | E27: =SUM(actual!P27:R27) -> 16001 | F27: 65691 | G27: =SUM(actual!S27:T27) -> 3369 | H27: 69060 | I27: =actual!U27-actual!V27-actual!W27-actual!X27-actual!Y27-actual!Z27 -> 57906 | J27: =actual!U27+actual!AB27 -> 298046 | K27: =actual2!J27-actual2!H27 -> 228986 | L27: =actual!U27-actual2!F27 -> 199123 | M27: =L27-actual!AA27 -> 165260 | N27: =K27-actual!V27 -> 174272
A28: =actual!A28 -> 2016-17 | B28: =actual!B28 -> Jun-16 | C28: =SUM(actual!C28:M28) -> 280853 | D28: =C28-actual!N28-actual!O28 -> 157303 | E28: =SUM(actual!P28:R28) -> 23484 | F28: 180787 | G28: =SUM(actual!S28:T28) -> 4722 | H28: 185509 | I28: =actual!U28-actual!V28-actual!W28-actual!X28-actual!Y28-actual!Z28 -> 98327 | J28: =actual!U28+actual!AB28 -> 511832 | K28: =actual2!J28-actual2!H28 -> 326323 | L28: =actual!U28-actual2!F28 -> 282049 | M28: =L28-actual!AA28 -> 228276 | N28: =K28-actual!V28 -> 217521
A29: =actual!A29 -> 2016-17 | B29: =actual!B29 -> Jul-16 | C29: =SUM(actual!C29:M29) -> 386439 | D29: =C29-actual!N29-actual!O29 -> 221668 | E29: =SUM(actual!P29:R29) -> 34098 | F29: 255766 | G29: =SUM(actual!S29:T29) -> 7434 | H29: 263200 | I29: =actual!U29-actual!V29-actual!W29-actual!X29-actual!Y29-actual!Z29 -> 129806 | J29: =actual!U29+actual!AB29 -> 656687 | K29: =actual2!J29-actual2!H29 -> 393487 | L29: =actual!U29-actual2!F29 -> 329638 | M29: =L29-actual!AA29 -> 266427 | N29: =K29-actual!V29 -> 253008
A30: =actual!A30 -> 2016-17 | B30: =actual!B30 -> Aug-16 | C30: =SUM(actual!C30:M30) -> 486356 | D30: =C30-actual!N30-actual!O30 -> 280255 | E30: =SUM(actual!P30:R30) -> 105068 | F30: 385323 | G30: =SUM(actual!S30:T30) -> 8518 | H30: 393841 | I30: =actual!U30-actual!V30-actual!W30-actual!X30-actual!Y30-actual!Z30 -> 159445 | J30: =actual!U30+actual!AB30 -> 801661 | K30: =actual2!J30-actual2!H30 -> 407820 | L30: =actual!U30-actual2!F30 -> 325006 | M30: =L30-actual!AA30 -> 254626 | N30: =K30-actual!V30 -> 233348
A31: =actual!A31 -> 2016-17 | B31: =actual!B31 -> Sep-16 | C31: =SUM(actual!C31:M31) -> 695693 | D31: =C31-actual!N31-actual!O31 -> 448155 | E31: =SUM(actual!P31:R31) -> 118768 | F31: 566923 | G31: =SUM(actual!S31:T31) -> 12817 | H31: 579740 | I31: =actual!U31-actual!V31-actual!W31-actual!X31-actual!Y31-actual!Z31 -> 209638 | J31: =actual!U31+actual!AB31 -> 1027728 | K31: =actual2!J31-actual2!H31 -> 447988 | L31: =actual!U31-actual2!F31 -> 325880 | M31: =L31-actual!AA31 -> 225118 | N31: =K31-actual!V31 -> 234759
A32: =actual!A32 -> 2016-17 | B32: =actual!B32 -> Oct-16 | C32: =SUM(actual!C32:M32) -> 818884 | D32: =C32-actual!N32-actual!O32 -> 530015 | E32: =SUM(actual!P32:R32) -> 167973 | F32: 697988 | G32: =SUM(actual!S32:T32) -> 29348 | H32: 727336 | I32: =actual!U32-actual!V32-actual!W32-actual!X32-actual!Y32-actual!Z32 -> 230069 | J32: =actual!U32+actual!AB32 -> 1150843 | K32: =actual2!J32-actual2!H32 -> 423507 | L32: =actual!U32-actual2!F32 -> 327896 | M32: =L32-actual!AA32 -> 222640 | N32: =K32-actual!V32 -> 196700
A33: =actual!A33 -> 2016-17 | B33: =actual!B33 -> Nov-16 | C33: =SUM(actual!C33:M33) -> 933280 | D33: =C33-actual!N33-actual!O33 -> 621172 | E33: =SUM(actual!P33:R33) -> 174951 | F33: 796123 | G33: =SUM(actual!S33:T33) -> 32562 | H33: 828685 | I33: =actual!U33-actual!V33-actual!W33-actual!X33-actual!Y33-actual!Z33 -> 266214 | J33: =actual!U33+actual!AB33 -> 1286681 | K33: =actual2!J33-actual2!H33 -> 457996 | L33: =actual!U33-actual2!F33 -> 348211 | M33: =L33-actual!AA33 -> 235290 | N33: =K33-actual!V33 -> 191318
A34: =actual!A34 -> 2016-17 | B34: =actual!B34 -> Dec-16 | C34: =SUM(actual!C34:M34) -> 1139087 | D34: =C34-actual!N34-actual!O34 -> 752116 | E34: =SUM(actual!P34:R34) -> 182450 | F34: 934566 | G34: =SUM(actual!S34:T34) -> 33932 | H34: 968498 | I34: =actual!U34-actual!V34-actual!W34-actual!X34-actual!Y34-actual!Z34 -> 277073 | J34: =actual!U34+actual!AB34 -> 1469748 | K34: =actual2!J34-actual2!H34 -> 501250 | L34: =actual!U34-actual2!F34 -> 354296 | M34: =L34-actual!AA34 -> 228773 | N34: =K34-actual!V34 -> 175566
A35: =actual!A35 -> 2016-17 | B35: =actual!B35 -> Jan-17 | C35: =SUM(actual!C35:M35) -> 1244670 | D35: =C35-actual!N35-actual!O35 -> 816354 | E35: =SUM(actual!P35:R35) -> 193040 | F35: =SUM(D35:E35) -> 1009394 | G35: =SUM(actual!S35:T35) -> 44071 | H35: =SUM(F35:G35) -> 1053465 | I35: =actual!U35-actual!V35-actual!W35-actual!X35-actual!Y35-actual!Z35 -> 299846 | J35: =actual!U35+actual!AB35 -> 1617657 | K35: =actual2!J35-actual2!H35 -> 564192 | L35: =actual!U35-actual2!F35 -> 404826 | M35: =L35-actual!AA35 -> 269763 | N35: =K35-actual!V35 -> 195600
A36: =actual!A36 -> 2016-17 | B36: =actual!B36 -> Feb-17 | C36: =SUM(actual!C36:M36) -> 1354942 | D36: =C36-actual!N36-actual!O36 -> 885272 | E36: =SUM(actual!P36:R36) -> 208911 | F36: 1094183 | G36: =SUM(actual!S36:T36) -> 53223 | H36: 1147406 | I36: =actual!U36-actual!V36-actual!W36-actual!X36-actual!Y36-actual!Z36 -> 334569 | J36: =actual!U36+actual!AB36 -> 1753020 | K36: =actual2!J36-actual2!H36 -> 605614 | L36: =actual!U36-actual2!F36 -> 444041 | M36: =L36-actual!AA36 -> 298664 | N36: =K36-actual!V36 -> 201630
A37: =actual!A37 -> 2016-17 | B37: =actual!B37 -> Mar-17 | C37: =SUM(actual!C37:M37) -> 1715822 | D37: =C37-actual!N37-actual!O37 -> 1101372 | E37: =SUM(actual!P37:R37) -> 274584 | F37: 1375956 | G37: =SUM(actual!S37:T37) -> 65513 | H37: 1441469 | I37: =actual!U37-actual!V37-actual!W37-actual!X37-actual!Y37-actual!Z37 -> 422919 | J37: =actual!U37+actual!AB37 -> 1979268 | K37: =actual2!J37-actual2!H37 -> 537799 | L37: =actual!U37-actual2!F37 -> 317030 | M37: =L37-actual!AA37 -> 150470 | N37: =K37-actual!V37 -> 57085
A38: =actual!A38 -> 2017-18 | B38: =actual!B38 -> Apr-17 | C38: =SUM(actual!C38:M38) -> 71397 | D38: =C38-actual!N38-actual!O38 -> 23032 | E38: =SUM(actual!P38:R38) -> 12049 | F38: 35081 | G38: =SUM(actual!S38:T38) -> 1448 | H38: 36529 | I38: =actual!U38-actual!V38-actual!W38-actual!X38-actual!Y38-actual!Z38 -> 43146 | J38: =actual!U38+actual!AB38 -> 242151 | K38: =actual2!J38-actual2!H38 -> 205622 | L38: =actual!U38-actual2!F38 -> 178383 | M38: =L38-actual!AA38 -> 153717 | N38: =K38-actual!V38 -> 186200
A39: =actual!A39 -> 2017-18 | B39: =actual!B39 -> May-17 | C39: =SUM(actual!C39:M39) -> 164833 | D39: =C39-actual!N39-actual!O39 -> 67668 | E39: =SUM(actual!P39:R39) -> 15344 | F39: 83012 | G39: =SUM(actual!S39:T39) -> 2653 | H39: 85665 | I39: =actual!U39-actual!V39-actual!W39-actual!X39-actual!Y39-actual!Z39 -> 81657 | J39: =actual!U39+actual!AB39 -> 459026 | K39: =actual2!J39-actual2!H39 -> 373361 | L39: =actual!U39-actual2!F39 -> 323478 | M39: =L39-actual!AA39 -> 280673 | N39: =K39-actual!V39 -> 304347
A40: =actual!A40 -> 2017-18 | B40: =actual!B40 -> Jun-17 | C40: =SUM(actual!C40:M40) -> 323420 | D40: =C40-actual!N40-actual!O40 -> 177337 | E40: =SUM(actual!P40:R40) -> 21965 | F40: 199302 | G40: =SUM(actual!S40:T40) -> 9744 | H40: 209046 | I40: =actual!U40-actual!V40-actual!W40-actual!X40-actual!Y40-actual!Z40 -> 113190 | J40: =actual!U40+actual!AB40 -> 650731 | K40: =actual2!J40-actual2!H40 -> 441685 | L40: =actual!U40-actual2!F40 -> 383101 | M40: =L40-actual!AA40 -> 327586 | N40: =K40-actual!V40 -> 308275
A41: =actual!A41 -> 2017-18 | B41: =actual!B41 -> Jul-17 | C41: =SUM(actual!C41:M41) -> 452527 | D41: =C41-actual!N41-actual!O41 -> 257883 | E41: =SUM(actual!P41:R41) -> 33136 | F41: 291019 | G41: =SUM(actual!S41:T41) -> 12502 | H41: 303521 | I41: =actual!U41-actual!V41-actual!W41-actual!X41-actual!Y41-actual!Z41 -> 141447 | J41: =actual!U41+actual!AB41 -> 808417 | K41: =actual2!J41-actual2!H41 -> 504896 | L41: =actual!U41-actual2!F41 -> 422272 | M41: =L41-actual!AA41 -> 348547 | N41: =K41-actual!V41 -> 344055
A42: =actual!A42 -> 2017-18 | B42: =actual!B42 -> Aug-17 | C42: =SUM(actual!C42:M42) -> 583626 | D42: =C42-actual!N42-actual!O42 -> 340612 | E42: =SUM(actual!P42:R42) -> 69256 | F42: 409868 | G42: =SUM(actual!S42:T42) -> 15534 | H42: 425402 | I42: =actual!U42-actual!V42-actual!W42-actual!X42-actual!Y42-actual!Z42 -> 171053 | J42: =actual!U42+actual!AB42 -> 950447 | K42: =actual2!J42-actual2!H42 -> 525045 | L42: =actual!U42-actual2!F42 -> 430931 | M42: =L42-actual!AA42 -> 346131 | N42: =K42-actual!V42 -> 328652
A43: =actual!A42 -> 2017-18 | B43: =actual!B42 -> Aug-17 | C43: =SUM(actual!C42:M42) -> 583626 | D43: =C43-actual!N42-actual!O42 -> 340612 | E43: =SUM(actual!P42:R42) -> 69256 | F43: =SUM(D43:E43) -> 409868 | G43: =SUM(actual!S42:T42) -> 15534 | H43: =SUM(F43:G43) -> 425402 | I43: =actual!U42-actual!V42-actual!W42-actual!X42-actual!Y42-actual!Z42 -> 171053 | J43: =actual!U42+actual!AB42 -> 950447 | K43: =actual2!J43-actual2!H43 -> 525045 | L43: =actual!U42-actual2!F43 -> 430931 | M43: =L43-actual!AA42 -> 346131 | N43: =K43-actual!V42 -> 328652
A44: =actual!A43 -> 2017-18 | B44: =actual!B43 -> Sep-17 | C44: =SUM(actual!C43:M43) -> 833840 | D44: =C44-actual!N43-actual!O43 -> 542358 | E44: =SUM(actual!P43:R43) -> 80849 | F44: 623207 | G44: =SUM(actual!S43:T43) -> 27042 | H44: 650249 | I44: =actual!U43-actual!V43-actual!W43-actual!X43-actual!Y43-actual!Z43 -> 222931 | J44: =actual!U43+actual!AB43 -> 1149187 | K44: =actual2!J44-actual2!H44 -> 498938 | L44: =actual!U43-actual2!F44 -> 379591 | M44: =L44-actual!AA43 -> 272999 | N44: =K44-actual!V43 -> 273172
A45: =actual!A44 -> 2017-18 | B45: =actual!B44 -> Oct-17 | C45: =SUM(actual!C44:M44) -> 973412 | D45: =C45-actual!N44-actual!O44 -> 633617 | E45: =SUM(actual!P44:R44) -> 95151 | F45: =SUM(D45:E45) -> 728768 | G45: =SUM(actual!S44:T44) -> 38559 | H45: =SUM(F45:G45) -> 767327 | I45: =actual!U44-actual!V44-actual!W44-actual!X44-actual!Y44-actual!Z44 -> 253998 | J45: =actual!U44+actual!AB44 -> 1292648 | K45: =actual2!J45-actual2!H45 -> 525321 | L45: =actual!U44-actual2!F45 -> 401085 | M45: =L45-actual!AA44 -> 285231 | N45: =K45-actual!V44 -> 267412
A46: =actual!A45 -> 2017-18 | B46: =actual!B45 -> Nov-17 | C46: =SUM(actual!C45:M45) -> 1087302 | D46: =C46-actual!N45-actual!O45 -> 699392 | E46: =SUM(actual!P45:R45) -> 105469 | F46: 804861 | G46: =SUM(actual!S45:T45) -> 61849 | H46: 866710 | I46: =actual!U45-actual!V45-actual!W45-actual!X45-actual!Y45-actual!Z45 -> 284672 | J46: =actual!U45+actual!AB45 -> 1478815 | K46: =actual2!J46-actual2!H46 -> 612105 | L46: =actual!U45-actual2!F46 -> 489839 | M46: =L46-actual!AA45 -> 361405 | N46: =K46-actual!V45 -> 302306
A47: =actual!A46 -> 2017-18 | B47: =actual!B46 -> Dec-17 | C47: =SUM(actual!C46:M46) -> 1336566 | D47: =C47-actual!N46-actual!O46 -> 900124 | E47: =SUM(actual!P46:R46) -> 113498 | F47: 1013622 | G47: =SUM(actual!S46:T46) -> 64384 | H47: 1078006 | I47: =actual!U46-actual!V46-actual!W46-actual!X46-actual!Y46-actual!Z46 -> 319994 | J47: =actual!U46+actual!AB46 -> 1698955 | K47: =actual2!J47-actual2!H47 -> 620949 | L47: =actual!U46-actual2!F47 -> 448737 | M47: =L47-actual!AA46 -> 302488 | N47: =K47-actual!V46 -> 246993
A48: =actual!A47 -> 2017-18 | B48: =actual!B47 -> Jan-18 | C48: =SUM(actual!C47:M47) -> 1455846 | D48: =C48-actual!N47-actual!O47 -> 971323 | E48: =SUM(actual!P47:R47) -> 124364 | F48: 1095687 | G48: =SUM(actual!S47:T47) -> 67699 | H48: 1163386 | I48: =actual!U47-actual!V47-actual!W47-actual!X47-actual!Y47-actual!Z47 -> 341735 | J48: =actual!U47+actual!AB47 -> 1839945 | K48: =actual2!J48-actual2!H48 -> 676559 | L48: =actual!U47-actual2!F48 -> 480093 | M48: =L48-actual!AA47 -> 326357 | N48: =K48-actual!V47 -> 262321
A49: =actual!A48 -> 2017-18 | B49: =actual!B48 -> Feb-18 | C49: =SUM(actual!C48:M48) -> 1568391 | D49: =C49-actual!N48-actual!O48 -> 1035546 | E49: =SUM(actual!P48:R48) -> 142132 | F49: 1177678 | G49: =SUM(actual!S48:T48) -> 105794 | H49: 1283472 | I49: =actual!U48-actual!V48-actual!W48-actual!X48-actual!Y48-actual!Z48 -> 375779 | J49: =actual!U48+actual!AB48 -> 1999171 | K49: =actual2!J49-actual2!H49 -> 715699 | L49: =actual!U48-actual2!F49 -> 524407 | M49: =L49-actual!AA48 -> 359758 | N49: =K49-actual!V48 -> 264970
A50: =actual!A49 -> 2017-18 | B50: =actual!B49 -> Mar-18 | C50: =SUM(actual!C49:M49) -> 1919009 | D50: =C50-actual!N49-actual!O49 -> 1242487 | E50: =SUM(actual!P49:R49) -> 187917 | F50: 1430404 | G50: =SUM(actual!S49:T49) -> 120356 | H50: 1550760 | I50: =actual!U49-actual!V49-actual!W49-actual!X49-actual!Y49-actual!Z49 -> 450910 | J50: =actual!U49+actual!AB49 -> 2141822 | K50: =actual2!J50-actual2!H50 -> 591062 | L50: =actual!U49-actual2!F50 -> 448942 | M50: =L50-actual!AA49 -> 256422 | N50: =K50-actual!V49 -> 62110
A51: =actual!A50 -> 2018-19 | B51: =actual!B50 -> Apr-18 | C51: =SUM(actual!C50:M50) -> 113330 | D51: =C51-actual!N50-actual!O50 -> 57533 | E51: =SUM(actual!P50:R50) -> 13124 | F51: 70657 | G51: =SUM(actual!S50:T50) -> 793 | H51: 71450 | I51: =actual!U50-actual!V50-actual!W50-actual!X50-actual!Y50-actual!Z50 -> 39385 | J51: =actual!U50+actual!AB50 -> 223417 | K51: =actual2!J51-actual2!H51 -> 151967 | L51: =actual!U50-actual2!F51 -> 106057 | M51: =L51-actual!AA50 -> 83402 | N51: =K51-actual!V50 -> 136349
A52: =actual!A51 -> 2018-19 | B52: =actual!B51 -> May-18 | C52: =SUM(actual!C51:M51) -> 214098 | D52: =C52-actual!N51-actual!O51 -> 102408 | E52: =SUM(actual!P51:R51) -> 24049 | F52: 126457 | G52: =SUM(actual!S51:T51) -> 1004 | H52: 127461 | I52: =actual!U51-actual!V51-actual!W51-actual!X51-actual!Y51-actual!Z51 -> 95116 | J52: =actual!U51+actual!AB51 -> 472954 | K52: =actual2!J52-actual2!H52 -> 345493 | L52: =actual!U51-actual2!F52 -> 282706 | M52: =L52-actual!AA51 -> 236898 | N52: =K52-actual!V51 -> 271887
A53: =actual!A52 -> 2018-19 | B53: =actual!B52 -> Jun-18 | C53: =SUM(actual!C52:M52) -> 395038 | D53: =C53-actual!N52-actual!O52 -> 237170 | E53: =SUM(actual!P52:R52) -> 30601 | F53: 267771 | G53: =SUM(actual!S52:T52) -> 10843 | H53: 278614 | I53: =actual!U52-actual!V52-actual!W52-actual!X52-actual!Y52-actual!Z52 -> 136566 | J53: =actual!U52+actual!AB52 -> 707647 | K53: =actual2!J53-actual2!H53 -> 429033 | L53: =actual!U52-actual2!F53 -> 352888 | M53: =L53-actual!AA52 -> 289828 | N53: =K53-actual!V52 -> 284118
A54: =actual!A53 -> 2018-19 | B54: =actual!B53 -> Jul-18 | C54: =SUM(actual!C53:M53) -> 505484 | D54: =C54-actual!N53-actual!O53 -> 292611 | E54: =SUM(actual!P53:R53) -> 43125 | F54: 335736 | G54: =SUM(actual!S53:T53) -> 13731 | H54: 349467 | I54: =actual!U53-actual!V53-actual!W53-actual!X53-actual!Y53-actual!Z53 -> 169396 | J54: =actual!U53+actual!AB53 -> 889724 | K54: =actual2!J54-actual2!H54 -> 540257 | L54: =actual!U53-actual2!F54 -> 442651 | M54: =L54-actual!AA53 -> 363006 | N54: =K54-actual!V53 -> 359413
A55: =actual!A54 -> 2018-19 | B55: =actual!B54 -> Aug-18 | C55: =SUM(actual!C54:M54) -> 634131 | D55: =C55-actual!N54-actual!O54 -> 366216 | E55: =SUM(actual!P54:R54) -> 98332 | F55: 464548 | G55: =SUM(actual!S54:T54) -> 15020 | H55: 479568 | I55: =actual!U54-actual!V54-actual!W54-actual!X54-actual!Y54-actual!Z54 -> 211251 | J55: =actual!U54+actual!AB54 -> 1070859 | K55: =actual2!J55-actual2!H55 -> 591291 | L55: =actual!U54-actual2!F55 -> 474093 | M55: =L55-actual!AA54 -> 379271 | N55: =K55-actual!V54 -> 372180
A56: =actual!A55 -> 2018-19 | B56: =actual!B55 -> Sep-18 | C56: =SUM(actual!C55:M55) -> 905799 | D56: =C56-actual!N55-actual!O55 -> 582783 | E56: =SUM(actual!P55:R55) -> 108969 | F56: 691752 | G56: =SUM(actual!S55:T55) -> 17731 | H56: 709483 | I56: =actual!U55-actual!V55-actual!W55-actual!X55-actual!Y55-actual!Z55 -> 263146 | J56: =actual!U55+actual!AB55 -> 1304215 | K56: =actual2!J56-actual2!H56 -> 594732 | L56: =actual!U55-actual2!F56 -> 449834 | M56: =L56-actual!AA55 -> 330617 | N56: =K56-actual!V55 -> 339300
A57: =actual!A56 -> 2018-19 | B57: =actual!B56 -> Oct-18 | C57: =SUM(actual!C56:M56) -> 1039090 | D57: =C57-actual!N56-actual!O56 -> 661113 | E57: =SUM(actual!P56:R56) -> 127716 | F57: 788829 | G57: =SUM(actual!S56:T56) -> 19181 | H57: 808010 | I57: =actual!U56-actual!V56-actual!W56-actual!X56-actual!Y56-actual!Z56 -> 297465 | J57: =actual!U56+actual!AB56 -> 1456593 | K57: =actual2!J57-actual2!H57 -> 648583 | L57: =actual!U56-actual2!F57 -> 490665 | M57: =L57-actual!AA56 -> 365925 | N57: =K57-actual!V56 -> 356490
A58: =actual!A57 -> 2018-19 | B58: =actual!B57 -> Nov-18 | C58: =SUM(actual!C57:M57) -> 1164685 | D58: =C58-actual!N57-actual!O57 -> 731669 | E58: =SUM(actual!P57:R57) -> 138637 | F58: 870306 | G58: =SUM(actual!S57:T57) -> 26277 | H58: 896583 | I58: =actual!U57-actual!V57-actual!W57-actual!X57-actual!Y57-actual!Z57 -> 325916 | J58: =actual!U57+actual!AB57 -> 1613208 | K58: =actual2!J58-actual2!H58 -> 716625 | L58: =actual!U57-actual2!F58 -> 551472 | M58: =L58-actual!AA57 -> 416685 | N58: =K58-actual!V57 -> 368392
A59: =actual!A58 -> 2018-19 | B59: =actual!B58 -> Dec-18 | C59: =SUM(actual!C58:M58) -> 1424451 | D59: =C59-actual!N58-actual!O58 -> 936333 | E59: =SUM(actual!P58:R58) -> 147711 | F59: 1084044 | G59: =SUM(actual!S58:T58) -> 46532 | H59: 1130576 | I59: =actual!U58-actual!V58-actual!W58-actual!X58-actual!Y58-actual!Z58 -> 368443 | J59: =actual!U58+actual!AB58 -> 1832033 | K59: =actual2!J59-actual2!H59 -> 701457 | L59: =actual!U58-actual2!F59 -> 536167 | M59: =L59-actual!AA58 -> 385149 | N59: =K59-actual!V58 -> 280264
A60: =actual!A59 -> 2018-19 | B60: =actual!B59 -> Jan-19 | C60: =SUM(actual!C59:M59) -> 1562383 | D60: =C60-actual!N59-actual!O59 -> 1019288 | E60: =SUM(actual!P59:R59) -> 162126 | F60: 1181414 | G60: =SUM(actual!S59:T59) -> 49323 | H60: 1230737 | I60: =actual!U59-actual!V59-actual!W59-actual!X59-actual!Y59-actual!Z59 -> 391568 | J60: =actual!U59+actual!AB59 -> 2001582 | K60: =actual2!J60-actual2!H60 -> 770845 | L60: =actual!U59-actual2!F60 -> 590437 | M60: =L60-actual!AA59 -> 432617 | N60: =K60-actual!V59 -> 307520
A61: =actual!A60 -> 2018-19 | B61: =actual!B60 -> Feb-19 | C61: =SUM(actual!C60:M60) -> 1692110 | D61: =C61-actual!N60-actual!O60 -> 1093923 | E61: =SUM(actual!P60:R60) -> 171755 | F61: 1265678 | G61: =SUM(actual!S60:T60) -> 71662 | H61: 1337340 | I61: =actual!U60-actual!V60-actual!W60-actual!X60-actual!Y60-actual!Z60 -> 432516 | J61: =actual!U60+actual!AB60 -> 2188839 | K61: =actual2!J61-actual2!H61 -> 851499 | L61: =actual!U60-actual2!F61 -> 649625 | M61: =L61-actual!AA60 -> 472629 | N61: =K61-actual!V60 -> 350339
A62: =actual!A61 -> 2018-19 | B62: =actual!B61 -> Mar-19 | C62: =SUM(actual!C61:M61) -> 2080465 | D62: =C62-actual!N61-actual!O61 -> 1317211 | E62: =SUM(actual!P61:R61) -> 235800 | F62: 1553011 | G62: =SUM(actual!S61:T61) -> 112684 | H62: 1665695 | I62: =actual!U61-actual!V61-actual!W61-actual!X61-actual!Y61-actual!Z61 -> 497099 | J62: =actual!U61+actual!AB61 -> 2315113 | K62: =actual2!J62-actual2!H62 -> 649418 | L62: =actual!U61-actual2!F62 -> 455013 | M62: =L62-actual!AA61 -> 263793 | N62: =K62-actual!V61 -> 66770
A63: =actual!A62 -> 2019-20 | B63: =actual!B62 -> Apr-19 | C63: =SUM(actual!C62:M62) -> 121190 | D63: =C63-actual!N62-actual!O62 -> 71637 | E63: =SUM(actual!P62:R62) -> 23293 | F63: 94930 | G63: =SUM(actual!S62:T62) -> 2701 | H63: 97631 | I63: =actual!U62-actual!V62-actual!W62-actual!X62-actual!Y62-actual!Z62 -> 51334 | J63: =actual!U62+actual!AB62 -> 254679 | K63: =actual2!J63-actual2!H63 -> 157048 | L63: =actual!U62-actual2!F63 -> 129161 | M63: =L63-actual!AA62 -> 111601 | N63: =K63-actual!V62 -> 137491
A64: =actual!A63 -> 2019-20 | B64: =actual!B63 -> May-19 | C64: =SUM(actual!C63:M63) -> 214579 | D64: =C64-actual!N63-actual!O63 -> 115340 | E64: =SUM(actual!P63:R63) -> 28423 | F64: 143763 | G64: =SUM(actual!S63:T63) -> 3067 | H64: 146830 | I64: =actual!U63-actual!V63-actual!W63-actual!X63-actual!Y63-actual!Z63 -> 111976 | J64: =actual!U63+actual!AB63 -> 512987 | K64: =actual2!J64-actual2!H64 -> 366157 | L64: =actual!U63-actual2!F64 -> 321521 | M64: =L64-actual!AA63 -> 291498 | N64: =K64-actual!V63 -> 291353
A65: =actual!A64 -> 2019-20 | B65: =actual!B64 -> Jun-19 | C65: =SUM(actual!C64:M64) -> 400421 | D65: =C65-actual!N64-actual!O64 -> 251411 | E65: =SUM(actual!P64:R64) -> 33475 | F65: 284886 | G65: =SUM(actual!S64:T64) -> 4764 | H65: 289650 | I65: =actual!U64-actual!V64-actual!W64-actual!X64-actual!Y64-actual!Z64 -> 151220 | J65: =actual!U64+actual!AB64 -> 721705 | K65: =actual2!J65-actual2!H65 -> 432055 | L65: =actual!U64-actual2!F65 -> 373819 | M65: =L65-actual!AA64 -> 328066 | N65: =K65-actual!V64 -> 290300
A66: =actual!A65 -> 2019-20 | B66: =actual!B65 -> Jul-19 | C66: =SUM(actual!C65:M65) -> 539068 | D66: =C66-actual!N65-actual!O65 -> 338705 | E66: =SUM(actual!P65:R65) -> 43905 | F66: 382610 | G66: =SUM(actual!S65:T65) -> 17063 | H66: 399673 | I66: =actual!U65-actual!V65-actual!W65-actual!X65-actual!Y65-actual!Z65 -> 201519 | J66: =actual!U65+actual!AB65 -> 947278 | K66: =actual2!J66-actual2!H66 -> 547605 | L66: =actual!U65-actual2!F66 -> 457063 | M66: =L66-actual!AA65 -> 398872 | N66: =K66-actual!V65 -> 364081
A67: =actual!A66 -> 2019-20 | B67: =actual!B66 -> Aug-19 | C67: =SUM(actual!C66:M66) -> 660774 | D67: =C67-actual!N66-actual!O66 -> 404580 | E67: =SUM(actual!P66:R66) -> 198621 | F67: 603201 | G67: =SUM(actual!S66:T66) -> 18260 | H67: 621461 | I67: =actual!U66-actual!V66-actual!W66-actual!X66-actual!Y66-actual!Z66 -> 247331 | J67: =actual!U66+actual!AB66 -> 1175301 | K67: =actual2!J67-actual2!H67 -> 553840 | L67: =actual!U66-actual2!F67 -> 435924 | M67: =L67-actual!AA66 -> 353525 | N67: =K67-actual!V66 -> 334814
A68: =actual!A67 -> 2019-20 | B68: =actual!B67 -> Sep-19 | C68: =SUM(actual!C67:M67) -> 919470 | D68: =C68-actual!N67-actual!O67 -> 607429 | E68: =SUM(actual!P67:R67) -> 209038 | F68: 816467 | G68: =SUM(actual!S67:T67) -> 20598 | H68: 837065 | I68: =actual!U67-actual!V67-actual!W67-actual!X67-actual!Y67-actual!Z67 -> 319531 | J68: =actual!U67+actual!AB67 -> 1488619 | K68: =actual2!J68-actual2!H68 -> 651554 | L68: =actual!U67-actual2!F68 -> 484615 | M68: =L68-actual!AA67 -> 379241 | N68: =K68-actual!V67 -> 380858
A69: =actual!A68 -> 2019-20 | B69: =actual!B68 -> Oct-19 | C69: =SUM(actual!C68:M68) -> 1051804 | D69: =C69-actual!N68-actual!O68 -> 683486 | E69: =SUM(actual!P68:R68) -> 224148 | F69: 907634 | G69: =SUM(actual!S68:T68) -> 26826 | H69: 934460 | I69: =actual!U68-actual!V68-actual!W68-actual!X68-actual!Y68-actual!Z68 -> 363942 | J69: =actual!U68+actual!AB68 -> 1654905 | K69: =actual2!J69-actual2!H69 -> 720445 | L69: =actual!U68-actual2!F69 -> 545998 | M69: =L69-actual!AA68 -> 428228 | N69: =K69-actual!V68 -> 430880
A70: =actual!A69 -> 2019-20 | B70: =actual!B69 -> Nov-19 | C70: =SUM(actual!C69:M69) -> 1174143 | D70: =C70-actual!N69-actual!O69 -> 750614 | E70: =SUM(actual!P69:R69) -> 232600 | F70: 983214 | G70: =SUM(actual!S69:T69) -> 29009 | H70: 1012223 | I70: =actual!U69-actual!V69-actual!W69-actual!X69-actual!Y69-actual!Z69 -> 401014 | J70: =actual!U69+actual!AB69 -> 1820057 | K70: =actual2!J70-actual2!H70 -> 807834 | L70: =actual!U69-actual2!F70 -> 623001 | M70: =L70-actual!AA69 -> 493783 | N70: =K70-actual!V69 -> 466022
A71: =actual!A70 -> 2019-20 | B71: =actual!B70 -> Dec-19 | C71: =SUM(actual!C70:M70) -> 1383035 | D71: =C71-actual!N70-actual!O70 -> 904944 | E71: =SUM(actual!P70:R70) -> 241953 | F71: 1146897 | G71: =SUM(actual!S70:T70) -> 31025 | H71: 1177922 | I71: =actual!U70-actual!V70-actual!W70-actual!X70-actual!Y70-actual!Z70 -> 453426 | J71: =actual!U70+actual!AB70 -> 2109647 | K71: =actual2!J71-actual2!H71 -> 931725 | L71: =actual!U70-actual2!F71 -> 707228 | M71: =L71-actual!AA70 -> 564283 | N71: =K71-actual!V70 -> 507411
A72: =actual!A71 -> 2019-20 | B72: =actual!B71 -> Jan-20 | C72: =SUM(actual!C71:M71) -> 1530941 | D72: =C72-actual!N71-actual!O71 -> 998037 | E72: =SUM(actual!P71:R71) -> 252083 | F72: 1250120 | G72: =SUM(actual!S71:T71) -> 32737 | H72: 1282857 | I72: =actual!U71-actual!V71-actual!W71-actual!X71-actual!Y71-actual!Z71 -> 494877 | J72: =actual!U71+actual!AB71 -> 2268329 | K72: =actual2!J72-actual2!H72 -> 985472 | L72: =actual!U71-actual2!F72 -> 750475 | M72: =L72-actual!AA71 -> 597970 | N72: =K72-actual!V71 -> 513556
A73: =actual!A72 -> 2019-20 | B73: =actual!B72 -> Feb-20 | C73: =SUM(actual!C72:M72) -> 1677787 | D73: =C73-actual!N72-actual!O72 -> 1114636 | E73: =SUM(actual!P72:R72) -> 263141 | F73: 1377777 | G73: =SUM(actual!S72:T72) -> 51092 | H73: 1428869 | I73: =actual!U72-actual!V72-actual!W72-actual!X72-actual!Y72-actual!Z72 -> 532851 | J73: =actual!U72+actual!AB72 -> 2465354 | K73: =actual2!J73-actual2!H73 -> 1036485 | L73: =actual!U72-actual2!F73 -> 782924 | M73: =L73-actual!AA72 -> 614097 | N73: =K73-actual!V72 -> 523501
A74: =actual!A73 -> 2019-20 | B74: =actual!B73 -> Mar-20 | C74: =SUM(actual!C73:M73) -> 2009882 | D74: =C74-actual!N73-actual!O73 -> 1355886 | E74: =SUM(actual!P73:R73) -> 326221 | F74: 1682107 | G74: =SUM(actual!S73:T73) -> 68620 | H74: 1750727 | I74: =actual!U73-actual!V73-actual!W73-actual!X73-actual!Y73-actual!Z73 -> 612140 | J74: =actual!U73+actual!AB73 -> 2686362 | K74: =actual2!J74-actual2!H74 -> 935635 | L74: =actual!U73-actual2!F74 -> 667511 | M74: =L74-actual!AA73 -> 480139 | N74: =K74-actual!V73 -> 324599
A75: =actual!A74 -> 2020-21 | B75: =actual!B74 -> Apr-20 | C75: =SUM(actual!C74:M74) -> 67557 | D75: =C75-actual!N74-actual!O74 -> 21412 | E75: =SUM(actual!P74:R74) -> 5771 | F75: 27183 | G75: =SUM(actual!S74:T74) -> 365 | H75: 27548 | I75: =actual!U74-actual!V74-actual!W74-actual!X74-actual!Y74-actual!Z74 -> 86466 | J75: =actual!U74+actual!AB74 -> 307060 | K75: =actual2!J75-actual2!H75 -> 279512 | L75: =actual!U74-actual2!F75 -> 251571 | M75: =L75-actual!AA74 -> 225952 | N75: =K75-actual!V74 -> 252816
A76: =actual!A75 -> 2020-21 | B76: =actual!B75 -> May-20 | C76: =SUM(actual!C75:M75) -> 126110 | D76: =C76-actual!N75-actual!O75 -> 33850 | E76: =SUM(actual!P75:R75) -> 10817 | F76: 44667 | G76: =SUM(actual!S75:T75) -> 831 | H76: 45498 | I76: =actual!U75-actual!V75-actual!W75-actual!X75-actual!Y75-actual!Z75 -> 135368 | J76: =actual!U75+actual!AB75 -> 511841 | K76: =actual2!J76-actual2!H76 -> 466343 | L76: =actual!U75-actual2!F76 -> 411968 | M76: =L76-actual!AA75 -> 375123 | N76: =K76-actual!V75 -> 388078
A77: =actual!A76 -> 2020-21 | B77: =actual!B76 -> Jun-20 | C77: =SUM(actual!C76:M76) -> 269686 | D77: =C77-actual!N76-actual!O76 -> 134822 | E77: =SUM(actual!P76:R76) -> 15186 | F77: 150008 | G77: =SUM(actual!S76:T76) -> 3573 | H77: 153581 | I77: =actual!U76-actual!V76-actual!W76-actual!X76-actual!Y76-actual!Z76 -> 196859 | J77: =actual!U76+actual!AB76 -> 815944 | K77: =actual2!J77-actual2!H77 -> 662363 | L77: =actual!U76-actual2!F77 -> 577663 | M77: =L77-actual!AA76 -> 517898 | N77: =K77-actual!V76 -> 501870
A78: =actual!A77 -> 2020-21 | B78: =actual!B77 -> Jul-20 | C78: =SUM(actual!C77:M77) -> 380000 | D78: =C78-actual!N77-actual!O77 -> 202788 | E78: =SUM(actual!P77:R77) -> 24614 | F78: 227402 | G78: =SUM(actual!S77:T77) -> 5458 | H78: 232860 | I78: =actual!U77-actual!V77-actual!W77-actual!X77-actual!Y77-actual!Z77 -> 256487 | J78: =actual!U77+actual!AB77 -> 1054209 | K78: =actual2!J78-actual2!H78 -> 821349 | L78: =actual!U77-actual2!F78 -> 714958 | M78: =L78-actual!AA77 -> 636297 | N78: =K78-actual!V77 -> 622765
A79: =actual!A78 -> 2020-21 | B79: =actual!B78 -> Aug-20 | C79: =SUM(actual!C78:M78) -> 504200 | D79: =C79-actual!N78-actual!O78 -> 284495 | E79: =SUM(actual!P78:R78) -> 86147 | F79: 370642 | G79: =SUM(actual!S78:T78) -> 6664 | H79: 377306 | I79: =actual!U78-actual!V78-actual!W78-actual!X78-actual!Y78-actual!Z78 -> 305183 | J79: =actual!U78+actual!AB78 -> 1247653 | K79: =actual2!J79-actual2!H79 -> 870347 | L79: =actual!U78-actual2!F79 -> 742564 | M79: =L79-actual!AA78 -> 648424 | N79: =K79-actual!V78 -> 632685
A80: =actual!A79 -> 2020-21 | B80: =actual!B79 -> Sep-20 | C80: =SUM(actual!C79:M79) -> 720896 | D80: =C80-actual!N79-actual!O79 -> 458508 | E80: =SUM(actual!P79:R79) -> 92274 | F80: 550782 | G80: =SUM(actual!S79:T79) -> 14635 | H80: 565417 | I80: =actual!U79-actual!V79-actual!W79-actual!X79-actual!Y79-actual!Z79 -> 355925 | J80: =actual!U79+actual!AB79 -> 1479410 | K80: =actual2!J80-actual2!H80 -> 913993 | L80: =actual!U79-actual2!F80 -> 762792 | M80: =L80-actual!AA79 -> 656510 | N80: =K80-actual!V79 -> 608341
A81: =actual!A80 -> 2020-21 | B81: =actual!B80 -> Oct-20 | C81: =SUM(actual!C80:M80) -> 875591 | D81: =C81-actual!N80-actual!O80 -> 575697 | E81: =SUM(actual!P80:R80) -> 116206 | F81: 691903 | G81: =SUM(actual!S80:T80) -> 16397 | H81: 708300 | I81: =actual!U80-actual!V80-actual!W80-actual!X80-actual!Y80-actual!Z80 -> 399715 | J81: =actual!U80+actual!AB80 -> 1661454 | K81: =actual2!J81-actual2!H81 -> 953154 | L81: =actual!U80-actual2!F81 -> 772196 | M81: =L81-actual!AA80 -> 651319 | N81: =K81-actual!V80 -> 619698
A82: =actual!A81 -> 2020-21 | B82: =actual!B81 -> Nov-20 | C82: =SUM(actual!C81:M81) -> 1026055 | D82: =C82-actual!N81-actual!O81 -> 688430 | E82: =SUM(actual!P81:R81) -> 124280 | F82: 812710 | G82: =SUM(actual!S81:T81) -> 18141 | H82: 830851 | I82: =actual!U81-actual!V81-actual!W81-actual!X81-actual!Y81-actual!Z81 -> 445507 | J82: =actual!U81+actual!AB81 -> 1906358 | K82: =actual2!J82-actual2!H82 -> 1075507 | L82: =actual!U81-actual2!F82 -> 852490 | M82: =L82-actual!AA81 -> 716078 | N82: =K82-actual!V81 -> 692082
A83: =actual!A82 -> 2020-21 | B83: =actual!B82 -> Dec-20 | C83: =SUM(actual!C82:M82) -> 1338126 | D83: =C83-actual!N82-actual!O82 -> 962399 | E83: =SUM(actual!P82:R82) -> 126181 | F83: 1088580 | G83: =SUM(actual!S82:T82) -> 33098 | H83: 1121678 | I83: =actual!U82-actual!V82-actual!W82-actual!X82-actual!Y82-actual!Z82 -> 518862 | J83: =actual!U82+actual!AB82 -> 2280147 | K83: =actual2!J83-actual2!H83 -> 1158469 | L83: =actual!U82-actual2!F83 -> 882593 | M83: =L83-actual!AA82 -> 726886 | N83: =K83-actual!V82 -> 686298
A84: =actual!A83 -> 2020-21 | B84: =actual!B83 -> Jan-21 | C84: =SUM(actual!C83:M83) -> 1515100 | D84: =C84-actual!N83-actual!O83 -> 1101855 | E84: =SUM(actual!P83:R83) -> 141104 | F84: 1242959 | G84: =SUM(actual!S83:T83) -> 40355 | H84: 1283314 | I84: =actual!U83-actual!V83-actual!W83-actual!X83-actual!Y83-actual!Z83 -> 559142 | J84: =actual!U83+actual!AB83 -> 2517318 | K84: =actual2!J84-actual2!H84 -> 1234004 | L84: =actual!U83-actual2!F84 -> 912251 | M84: =L84-actual!AA83 -> 742851 | N84: =K84-actual!V83 -> 714407
A85: =actual!A84 -> 2020-21 | B85: =actual!B84 -> Feb-21 | C85: =SUM(actual!C84:M84) -> 1665303 | D85: =C85-actual!N84-actual!O84 -> 1216086 | E85: =SUM(actual!P84:R84) -> 154186 | F85: 1370272 | G85: =SUM(actual!S84:T84) -> 42824 | H85: 1413096 | I85: =actual!U84-actual!V84-actual!W84-actual!X84-actual!Y84-actual!Z84 -> 595813 | J85: =actual!U84+actual!AB84 -> 2818643 | K85: =actual2!J85-actual2!H85 -> 1405547 | L85: =actual!U84-actual2!F85 -> 1043103 | M85: =L85-actual!AA84 -> 859177 | N85: =K85-actual!V84 -> 846064
A86: =actual!A85 -> 2020-21 | B86: =actual!B85 -> Mar-21 | C86: =SUM(actual!C85:M85) -> 2027104 | D86: =C86-actual!N85-actual!O85 -> 1426287 | E86: =SUM(actual!P85:R85) -> 207632 | F86: 1633919 | G86: =SUM(actual!S85:T85) -> 57626 | H86: 1691545 | I86: =actual!U85-actual!V85-actual!W85-actual!X85-actual!Y85-actual!Z85 -> 706116 | J86: =actual!U85+actual!AB85 -> 3509836 | K86: =actual2!J86-actual2!H86 -> 1818291 | L86: =actual!U85-actual2!F86 -> 1450339 | M86: =L86-actual!AA85 -> 1227948 | N86: =K86-actual!V85 -> 1138422
A87: =actual!A86 -> 2021-22 | B87: =actual!B86 -> Apr-21 | C87: =SUM(actual!C86:M86) -> 170122 | D87: =C87-actual!N86-actual!O86 -> 130811 | E87: =SUM(actual!P86:R86) -> 16808 | F87: 147619 | G87: =SUM(actual!S86:T86) -> 372 | H87: 147991 | I87: =actual!U86-actual!V86-actual!W86-actual!X86-actual!Y86-actual!Z86 -> 50829 | J87: =actual!U86+actual!AB86 -> 226690 | K87: =actual2!J87-actual2!H87 -> 78699 | L87: =actual!U86-actual2!F87 -> 31945 | M87: =L87-actual!AA86 -> 26301 | N87: =K87-actual!V86 -> 49028
A88: =actual!A87 -> 2021-22 | B88: =actual!B87 -> May-21 | C88: =SUM(actual!C87:M87) -> 312679 | D88: =C88-actual!N87-actual!O87 -> 233565 | E88: =SUM(actual!P87:R87) -> 116412 | F88: 349977 | G88: =SUM(actual!S87:T87) -> 4810 | H88: 354787 | I88: =actual!U87-actual!V87-actual!W87-actual!X87-actual!Y87-actual!Z87 -> 113542 | J88: =actual!U87+actual!AB87 -> 477961 | K88: =actual2!J88-actual2!H88 -> 123174 | L88: =actual!U87-actual2!F88 -> 65023 | M88: =L88-actual!AA87 -> 39904 | N88: =K88-actual!V87 -> 34601
A89: =actual!A88 -> 2021-22 | B89: =actual!B88 -> Jun-21 | C89: =SUM(actual!C88:M88) -> 531606 | D89: =C89-actual!N88-actual!O88 -> 412680 | E89: =SUM(actual!P88:R88) -> 127317 | F89: 539997 | G89: =SUM(actual!S88:T88) -> 7402 | H89: 547399 | I89: =actual!U88-actual!V88-actual!W88-actual!X88-actual!Y88-actual!Z88 -> 169718 | J89: =actual!U88+actual!AB88 -> 821644 | K89: =actual2!J89-actual2!H89 -> 274245 | L89: =actual!U88-actual2!F89 -> 170151 | M89: =L89-actual!AA88 -> 115378 | N89: =K89-actual!V88 -> 89950
A90: =actual!A89 -> 2021-22 | B90: =actual!B89 -> Jul-21 | C90: =SUM(actual!C89:M89) -> 695888 | D90: =C90-actual!N89-actual!O89 -> 529189 | E90: =SUM(actual!P89:R89) -> 139960 | F90: 669149 | G90: =SUM(actual!S89:T89) -> 14148 | H90: 683297 | I90: =actual!U89-actual!V89-actual!W89-actual!X89-actual!Y89-actual!Z89 -> 219512 | J90: =actual!U89+actual!AB89 -> 1004440 | K90: =actual2!J90-actual2!H90 -> 321143 | L90: =actual!U89-actual2!F90 -> 206863 | M90: =L90-actual!AA89 -> 138762 | N90: =K90-actual!V89 -> 95326
A91: =actual!A90 -> 2021-22 | B91: =actual!B90 -> Aug-21 | C91: =SUM(actual!C90:M90) -> 859580 | D91: =C91-actual!N90-actual!O90 -> 644843 | E91: =SUM(actual!P90:R90) -> 148650 | F91: 793493 | G91: =SUM(actual!S90:T90) -> 15179 | H91: 808672 | I91: =actual!U90-actual!V90-actual!W90-actual!X90-actual!Y90-actual!Z90 -> 280125 | J91: =actual!U90+actual!AB90 -> 1276681 | K91: =actual2!J91-actual2!H91 -> 468009 | L91: =actual!U90-actual2!F91 -> 311320 | M91: =L91-actual!AA90 -> 224128 | N91: =K91-actual!V90 -> 189638
A92: =actual!A91 -> 2021-22 | B92: =actual!B91 -> Sep-21 | C92: =SUM(actual!C91:M91) -> 1183808 | D92: =C92-actual!N91-actual!O91 -> 920692 | E92: =SUM(actual!P91:R91) -> 160356 | F92: 1081048 | G92: =SUM(actual!S91:T91) -> 18118 | H92: 1099166 | I92: =actual!U91-actual!V91-actual!W91-actual!X91-actual!Y91-actual!Z91 -> 350656 | J92: =actual!U91+actual!AB91 -> 1626017 | K92: =actual2!J92-actual2!H92 -> 526851 | L92: =actual!U91-actual2!F92 -> 315618 | M92: =L92-actual!AA91 -> 205375 | N92: =K92-actual!V91 -> 161644
A93: =actual!A92 -> 2021-22 | B93: =actual!B92 -> Oct-21 | C93: =SUM(actual!C92:M92) -> 1364101 | D93: =C93-actual!N92-actual!O92 -> 1053135 | E93: =SUM(actual!P92:R92) -> 206842 | F93: 1259977 | G93: =SUM(actual!S92:T92) -> 19722 | H93: 1279699 | I93: =actual!U92-actual!V92-actual!W92-actual!X92-actual!Y92-actual!Z92 -> 394650 | J93: =actual!U92+actual!AB92 -> 1826725 | K93: =actual2!J93-actual2!H93 -> 547026 | L93: =actual!U92-actual2!F93 -> 313478 | M93: =L93-actual!AA92 -> 193563 | N93: =K93-actual!V92 -> 145839
A94: =actual!A93 -> 2021-22 | B94: =actual!B93 -> Nov-21 | C94: =SUM(actual!C93:M93) -> 1541920 | D94: =C94-actual!N93-actual!O93 -> 1135264 | E94: =SUM(actual!P93:R93) -> 223026 | F94: 1358290 | G94: =SUM(actual!S93:T93) -> 20703 | H94: 1378993 | I94: =actual!U93-actual!V93-actual!W93-actual!X93-actual!Y93-actual!Z93 -> 446815 | J94: =actual!U93+actual!AB93 -> 2074607 | K94: =actual2!J94-actual2!H94 -> 695614 | L94: =actual!U93-actual2!F94 -> 442687 | M94: =L94-actual!AA93 -> 310675 | N94: =K94-actual!V93 -> 233841
A95: =actual!A94 -> 2021-22 | B95: =actual!B94 -> Dec-21 | C95: =SUM(actual!C94:M94) -> 1928995 | D95: =C95-actual!N94-actual!O94 -> 1473809 | E95: =SUM(actual!P94:R94) -> 259414 | F95: 1733223 | G95: =SUM(actual!S94:T94) -> 28469 | H95: 1761692 | I95: =actual!U94-actual!V94-actual!W94-actual!X94-actual!Y94-actual!Z94 -> 539258 | J95: =actual!U94+actual!AB94 -> 2521058 | K95: =actual2!J95-actual2!H95 -> 759366 | L95: =actual!U94-actual2!F95 -> 396191 | M95: =L95-actual!AA94 -> 238241 | N95: =K95-actual!V94 -> 193502
A96: =actual!A95 -> 2021-22 | B96: =actual!B95 -> Jan-22 | C96: =SUM(actual!C95:M95) -> 2098180 | D96: =C96-actual!N95-actual!O95 -> 1547436 | E96: =SUM(actual!P95:R95) -> 291485 | F96: 1838921 | G96: =SUM(actual!S95:T95) -> 32595 | H96: 1871516 | I96: =actual!U95-actual!V95-actual!W95-actual!X95-actual!Y95-actual!Z95 -> 590442 | J96: =actual!U95+actual!AB95 -> 2809384 | K96: =actual2!J96-actual2!H96 -> 937868 | L96: =actual!U95-actual2!F96 -> 528777 | M96: =L96-actual!AA95 -> 361102 | N96: =K96-actual!V95 -> 321792
A97: =actual!A96 -> 2021-22 | B97: =actual!B96 -> Feb-22 | C97: =SUM(actual!C96:M96) -> 2274793 | D97: =C97-actual!N96-actual!O96 -> 1480886 | E97: =SUM(actual!P96:R96) -> 310131 | F97: =SUM(D97:E97) -> 1791017 | G97: =SUM(actual!S96:T96) -> 36263 | H97: =SUM(F97:G97) -> 1827280 | I97: =actual!U96-actual!V96-actual!W96-actual!X96-actual!Y96-actual!Z96 -> 706020 | J97: =actual!U96+actual!AB96 -> 3143875 | K97: =actual2!J97-actual2!H97 -> 1316595 | L97: =actual!U96-actual2!F97 -> 867677 | M97: =L97-actual!AA96 -> 680723 | N97: =K97-actual!V96 -> 644644
A98: =actual!A97 -> 2021-22 | B98: =actual!B97 -> Mar-22 | C98: =SUM(actual!C97:M97) -> 2709315 | D98: =C98-actual!N97-actual!O97 -> 1804794 | E98: =SUM(actual!P97:R97) -> 365112 | F98: 2169906 | G98: =SUM(actual!S97:T97) -> 39375 | H98: 2209281 | I98: =actual!U97-actual!V97-actual!W97-actual!X97-actual!Y97-actual!Z97 -> 906380 | J98: =actual!U97+actual!AB97 -> 3793800 | K98: =actual2!J98-actual2!H98 -> 1584519 | L98: =actual!U97-actual2!F98 -> 1031766 | M98: =L98-actual!AA97 -> 789120 | N98: =K98-actual!V97 -> 779020
A99: =actual!A98 -> 2022-23 | B99: =actual!B98 -> Apr-22 | C99: =SUM(actual!C98:M98) -> 232266 | D99: =C99-actual!N98-actual!O98 -> 184557 | E99: =SUM(actual!P98:R98) -> 11938 | F99: 196495 | G99: =SUM(actual!S98:T98) -> 3488 | H99: 199983 | I99: =actual!U98-actual!V98-actual!W98-actual!X98-actual!Y98-actual!Z98 -> 80822 | J99: =actual!U98+actual!AB98 -> 274829 | K99: =actual2!J99-actual2!H99 -> 74846 | L99: =actual!U98-actual2!F99 -> -591 | M99: =L99-actual!AA98 -> -5520 | N99: =K99-actual!V98 -> 33558
A100: =actual!A99 -> 2022-23 | B100: =actual!B99 -> May-22 | C100: =SUM(actual!C99:M99) -> 403522 | D100: =C100-actual!N99-actual!O99 -> 307589 | E100: =SUM(actual!P99:R99) -> 49251 | F100: 356840 | G100: =SUM(actual!S99:T99) -> 25013 | H100: 381853 | I100: =actual!U99-actual!V99-actual!W99-actual!X99-actual!Y99-actual!Z99 -> 127604 | J100: =actual!U99+actual!AB99 -> 585774 | K100: =actual2!J100-actual2!H100 -> 203921 | L100: =actual!U99-actual2!F100 -> 121860 | M100: =L100-actual!AA99 -> 103093 | N100: =K100-actual!V99 -> 98499
A101: =actual!A100 -> 2022-23 | B101: =actual!B100 -> Jun-22 | C101: =SUM(actual!C100:M100) -> 650489 | D101: =C101-actual!N100-actual!O100 -> 505898 | E101: =SUM(actual!P100:R100) -> 62160 | F101: 568058 | G101: =SUM(actual!S100:T100) -> 27982 | H101: 596040 | I101: =actual!U100-actual!V100-actual!W100-actual!X100-actual!Y100-actual!Z100 -> 181307 | J101: =actual!U100+actual!AB100 -> 947911 | K101: =actual2!J101-actual2!H101 -> 351871 | L101: =actual!U100-actual2!F101 -> 204789 | M101: =L101-actual!AA100 -> 152748 | N101: =K101-actual!V100 -> 123276
A102: =actual!A101 -> 2022-23 | B102: =actual!B101 -> Jul-22 | C102: =SUM(actual!C101:M101) -> 869461 | D102: =C102-actual!N101-actual!O101 -> 666212 | E102: =SUM(actual!P101:R101) -> 89583 | F102: 755795 | G102: =SUM(actual!S101:T101) -> 30119 | H102: 785914 | I102: =actual!U101-actual!V101-actual!W101-actual!X101-actual!Y101-actual!Z101 -> 229561 | J102: =actual!U101+actual!AB101 -> 1126745 | K102: =actual2!J102-actual2!H102 -> 340831 | L102: =actual!U101-actual2!F102 -> 162280 | M102: =L102-actual!AA101 -> 93370 | N102: =K102-actual!V101 -> 56961
A103: =actual!A102 -> 2022-23 | B103: =actual!B102 -> Aug-22 | C103: =SUM(actual!C102:M102) -> 1020589 | D103: =C103-actual!N102-actual!O102 -> 700094 | E103: =SUM(actual!P102:R102) -> 116804 | F103: 816898 | G103: =SUM(actual!S102:T102) -> 31527 | H103: 848425 | I103: =actual!U102-actual!V102-actual!W102-actual!X102-actual!Y102-actual!Z102 -> 297333 | J103: =actual!U102+actual!AB102 -> 1390026 | K103: =actual2!J103-actual2!H103 -> 541601 | L103: =actual!U102-actual2!F103 -> 320800 | M103: =L103-actual!AA102 -> 227195 | N103: =K103-actual!V102 -> 202964
A104: =actual!A103 -> 2022-23 | B104: =actual!B103 -> Sep-22 | C104: =SUM(actual!C103:M103) -> 1391806 | D104: =C104-actual!N103-actual!O103 -> 1011961 | E104: =SUM(actual!P103:R103) -> 157600 | F104: 1169561 | G104: =SUM(actual!S103:T103) -> 34187 | H104: 1203748 | I104: =actual!U103-actual!V103-actual!W103-actual!X103-actual!Y103-actual!Z103 -> 380354 | J104: =actual!U103+actual!AB103 -> 1823597 | K104: =actual2!J104-actual2!H104 -> 619849 | L104: =actual!U103-actual2!F104 -> 311147 | M104: =L104-actual!AA103 -> 180576 | N104: =K104-actual!V103 -> 183167
A105: =actual!A104 -> 2022-23 | B105: =actual!B104 -> Oct-22 | C105: =SUM(actual!C104:M104) -> 1609605 | D105: =C105-actual!N104-actual!O104 -> 1171103 | E105: =SUM(actual!P104:R104) -> 178779 | F105: 1349882 | G105: =SUM(actual!S104:T104) -> 35692 | H105: 1385574 | I105: =actual!U104-actual!V104-actual!W104-actual!X104-actual!Y104-actual!Z104 -> 443188 | J105: =actual!U104+actual!AB104 -> 2143711 | K105: =actual2!J105-actual2!H105 -> 758137 | L105: =actual!U104-actual2!F105 -> 384815 | M105: =L105-actual!AA104 -> 239194 | N105: =K105-actual!V104 -> 276965
A106: =actual!A105 -> 2022-23 | B106: =actual!B105 -> Nov-22 | C106: =SUM(actual!C105:M105) -> 1780654 | D106: =C106-actual!N105-actual!O105 -> 1224833 | E106: =SUM(actual!P105:R105) -> 198319 | F106: 1423152 | G106: =SUM(actual!S105:T105) -> 41481 | H106: 1464633 | I106: =actual!U105-actual!V105-actual!W105-actual!X105-actual!Y105-actual!Z105 -> 495756 | J106: =actual!U105+actual!AB105 -> 2442787 | K106: =actual2!J106-actual2!H106 -> 978154 | L106: =actual!U105-actual2!F106 -> 572522 | M106: =L106-actual!AA105 -> 413245 | N106: =K106-actual!V105 -> 432955
A107: =actual!A106 -> 2022-23 | B107: =actual!B106 -> Dec-22 | C107: =SUM(actual!C106:M106) -> 2170698 | D107: =C107-actual!N106-actual!O106 -> 1555692 | E107: =SUM(actual!P106:R106) -> 214302 | F107: 1769994 | G107: =SUM(actual!S106:T106) -> 55106 | H107: 1825100 | I107: =actual!U106-actual!V106-actual!W106-actual!X106-actual!Y106-actual!Z106 -> 555436 | J107: =actual!U106+actual!AB106 -> 2818076 | K107: =actual2!J107-actual2!H107 -> 992976 | L107: =actual!U106-actual2!F107 -> 558138 | M107: =L107-actual!AA106 -> 372605 | N107: =K107-actual!V106 -> 312123
A108: =actual!A107 -> 2022-23 | B108: =actual!B107 -> Jan-23 | C108: =SUM(actual!C107:M107) -> 2362677 | D108: =C108-actual!N107-actual!O107 -> 1688710 | E108: =SUM(actual!P107:R107) -> 230939 | F108: 1919649 | G108: =SUM(actual!S107:T107) -> 57194 | H108: 1976843 | I108: =actual!U107-actual!V107-actual!W107-actual!X107-actual!Y107-actual!Z107 -> 635204 | J108: =actual!U107+actual!AB107 -> 3167648 | K108: =actual2!J108-actual2!H108 -> 1190805 | L108: =actual!U107-actual2!F108 -> 678107 | M108: =L108-actual!AA107 -> 473689 | N108: =K108-actual!V107 -> 452147
A109: =actual!A108 -> 2022-23 | B109: =actual!B108 -> Feb-23 | C109: =SUM(actual!C108:M108) -> 2547301 | D109: =C109-actual!N108-actual!O108 -> 1732193 | E109: =SUM(actual!P108:R108) -> 248635 | F109: 1980828 | G109: =SUM(actual!S108:T108) -> 58900 | H109: 2039728 | I109: =actual!U108-actual!V108-actual!W108-actual!X108-actual!Y108-actual!Z108 -> 713481 | J109: =actual!U108+actual!AB108 -> 3493590 | K109: =actual2!J109-actual2!H109 -> 1453862 | L109: =actual!U108-actual2!F109 -> 922535 | M109: =L109-actual!AA108 -> 687505 | N109: =K109-actual!V108 -> 654905
A110: =actual!A109 -> 2022-23 | B110: =actual!B109 -> Mar-23 | C110: =SUM(actual!C109:M109) -> 3054191 | D110: =C110-actual!N109-actual!O109 -> 2097785 | E110: =SUM(actual!P109:R109) -> 285421 | F110: 2383206 | G110: =SUM(actual!S109:T109) -> 72196 | H110: 2455402 | I110: =actual!U109-actual!V109-actual!W109-actual!X109-actual!Y109-actual!Z109 -> 844732 | J110: =actual!U109+actual!AB109 -> 4193157 | K110: =actual2!J110-actual2!H110 -> 1737755 | L110: =actual!U109-actual2!F110 -> 1070432 | M110: =L110-actual!AA109 -> 764168 | N110: =K110-actual!V109 -> 809238
A111: =actual!A110 -> 2023-24 | B111: =actual!B110 -> Apr-23 | C111: =SUM(actual!C110:M110) -> 218145 | D111: =C111-actual!N110-actual!O110 -> 158901 | E111: =SUM(actual!P110:R110) -> 10958 | F111: 169859 | G111: =SUM(actual!S110:T110) -> 642 | H111: 170501 | I111: =actual!U110-actual!V110-actual!W110-actual!X110-actual!Y110-actual!Z110 -> 78013 | J111: =actual!U110+actual!AB110 -> 304096 | K111: =actual2!J111-actual2!H111 -> 133595 | L111: =actual!U110-actual2!F111 -> 55780 | M111: =L111-actual!AA110 -> 49725 | N111: =K111-actual!V110 -> 85666
A112: =actual!A111 -> 2023-24 | B112: =actual!B111 -> May-23 | C112: =SUM(actual!C111:M111) -> 396954 | D112: =C112-actual!N111-actual!O111 -> 278045 | E112: =SUM(actual!P111:R111) -> 134655 | F112: 412700 | G112: =SUM(actual!S111:T111) -> 2991 | H112: 415691 | I112: =actual!U111-actual!V111-actual!W111-actual!X111-actual!Y111-actual!Z111 -> 130880 | J112: =actual!U111+actual!AB111 -> 625978 | K112: =actual2!J112-actual2!H112 -> 210287 | L112: =actual!U111-actual2!F112 -> 45489 | M112: =L112-actual!AA111 -> 14631 | N112: =K112-actual!V111 -> 99624
A113: =actual!A112 -> 2023-24 | B113: =actual!B112 -> Jun-23 | C113: =SUM(actual!C112:M112) -> 671883 | D113: =C113-actual!N112-actual!O112 -> 433620 | E113: =SUM(actual!P112:R112) -> 154968 | F113: 588588 | G113: =SUM(actual!S112:T112) -> 10703 | H113: 599291 | I113: =actual!U112-actual!V112-actual!W112-actual!X112-actual!Y112-actual!Z112 -> 198004 | J113: =actual!U112+actual!AB112 -> 1050661 | K113: =actual2!J113-actual2!H113 -> 451370 | L113: =actual!U112-actual2!F113 -> 183593 | M113: =L113-actual!AA112 -> 120864 | N113: =K113-actual!V112 -> 207665
A114: =actual!A113 -> 2023-24 | B114: =actual!B113 -> Jul-23 | C114: =SUM(actual!C113:M113) -> 894150 | D114: =C114-actual!N113-actual!O113 -> 582585 | E114: =SUM(actual!P113:R113) -> 178804 | F114: 761389 | G114: =SUM(actual!S113:T113) -> 13718 | H114: 775107 | I114: =actual!U113-actual!V113-actual!W113-actual!X113-actual!Y113-actual!Z113 -> 280369 | J114: =actual!U113+actual!AB113 -> 1380700 | K114: =actual2!J114-actual2!H114 -> 605593 | L114: =actual!U113-actual2!F114 -> 302232 | M114: =L114-actual!AA113 -> 210584 | N114: =K114-actual!V113 -> 305704
A115: =actual!A114 -> 2023-24 | B115: =actual!B114 -> Aug-23 | C115: =SUM(actual!C114:M114) -> 1189180 | D115: =C115-actual!N114-actual!O114 -> 803944 | E115: =SUM(actual!P114:R114) -> 209582 | F115: 1013526 | G115: =SUM(actual!S114:T114) -> 15405 | H115: 1028931 | I115: =actual!U114-actual!V114-actual!W114-actual!X114-actual!Y114-actual!Z114 -> 334953 | J115: =actual!U114+actual!AB114 -> 1671757 | K115: =actual2!J115-actual2!H115 -> 642826 | L115: =actual!U114-actual2!F115 -> 284432 | M115: =L115-actual!AA114 -> 165333 | N115: =K115-actual!V114 -> 275287
A116: =actual!A115 -> 2023-24 | B116: =actual!B115 -> Sep-23 | C116: =SUM(actual!C115:M115) -> 1619271 | D116: =C116-actual!N115-actual!O115 -> 1160340 | E116: =SUM(actual!P115:R115) -> 236772 | F116: 1397112 | G116: =SUM(actual!S115:T115) -> 20166 | H116: 1417278 | I116: =actual!U115-actual!V115-actual!W115-actual!X115-actual!Y115-actual!Z115 -> 405535 | J116: =actual!U115+actual!AB115 -> 2119139 | K116: =actual2!J116-actual2!H116 -> 701861 | L116: =actual!U115-actual2!F116 -> 231399 | M116: =L116-actual!AA115 -> 86121 | N116: =K116-actual!V115 -> 217532
A117: =actual!A116 -> 2023-24 | B117: =actual!B116 -> Oct-23 | C117: =SUM(actual!C116:M116) -> 1834518 | D117: =C117-actual!N116-actual!O116 -> 1301957 | E117: =SUM(actual!P116:R116) -> 265765 | F117: 1567722 | G117: =SUM(actual!S116:T116) -> 22990 | H117: 1590712 | I117: =actual!U116-actual!V116-actual!W116-actual!X116-actual!Y116-actual!Z116 -> 464467 | J117: =actual!U116+actual!AB116 -> 2394412 | K117: =actual2!J117-actual2!H117 -> 803700 | L117: =actual!U116-actual2!F117 -> 279766 | M117: =L117-actual!AA116 -> 117522 | N117: =K117-actual!V116 -> 258614
A118: =actual!A117 -> 2023-24 | B118: =actual!B117 -> Nov-23 | C118: =SUM(actual!C117:M117) -> 2042027 | D118: =C118-actual!N117-actual!O117 -> 1435755 | E118: =SUM(actual!P117:R117) -> 284365 | F118: 1720120 | G118: =SUM(actual!S117:T117) -> 25463 | H118: 1745583 | I118: =actual!U117-actual!V117-actual!W117-actual!X117-actual!Y117-actual!Z117 -> 543178 | J118: =actual!U117+actual!AB117 -> 2652167 | K118: =actual2!J118-actual2!H118 -> 906584 | L118: =actual!U117-actual2!F118 -> 346402 | M118: =L118-actual!AA117 -> 171424 | N118: =K118-actual!V117 -> 298621
A119: =actual!A118 -> 2023-24 | B119: =actual!B118 -> Dec-23 | C119: =SUM(actual!C118:M118) -> 2482499 | D119: =C119-actual!N118-actual!O118 -> 1729931 | E119: =SUM(actual!P118:R118) -> 312358 | F119: 2042289 | G119: =SUM(actual!S118:T118) -> 29650 | H119: 2071939 | I119: =actual!U118-actual!V118-actual!W118-actual!X118-actual!Y118-actual!Z118 -> 598544 | J119: =actual!U118+actual!AB118 -> 3054217 | K119: =actual2!J119-actual2!H119 -> 982278 | L119: =actual!U118-actual2!F119 -> 338298 | M119: =L119-actual!AA118 -> 124975 | N119: =K119-actual!V118 -> 234071
A120: =actual!A119 -> 2023-24 | B120: =actual!B119 -> Jan-24 | C120: =SUM(actual!C119:M119) -> 2706197 | D120: =C120-actual!N119-actual!O119 -> 1879840 | E120: =SUM(actual!P119:R119) -> 338069 | F120: 2217909 | G120: =SUM(actual!S119:T119) -> 34219 | H120: 2252128 | I120: =actual!U119-actual!V119-actual!W119-actual!X119-actual!Y119-actual!Z119 -> 642893 | J120: =actual!U119+actual!AB119 -> 3354730 | K120: =actual2!J120-actual2!H120 -> 1102602 | L120: =actual!U119-actual2!F120 -> 415634 | M120: =L120-actual!AA119 -> 187379 | N120: =K120-actual!V119 -> 280871
A121: =actual!A120 -> 2023-24 | B121: =actual!B120 -> Feb-24 | C121: =SUM(actual!C120:M120) -> 2889851 | D121: =C121-actual!N120-actual!O120 -> 1849452 | E121: =SUM(actual!P120:R120) -> 360330 | F121: 2209782 | G121: =SUM(actual!S120:T120) -> 36140 | H121: 2245922 | I121: =actual!U120-actual!V120-actual!W120-actual!X120-actual!Y120-actual!Z120 -> 733356 | J121: =actual!U120+actual!AB120 -> 3747287 | K121: =actual2!J121-actual2!H121 -> 1501365 | L121: =actual!U120-actual2!F121 -> 731892 | M121: =L121-actual!AA120 -> 477537 | N121: =K121-actual!V120 -> 620577
A122: =actual!A121 -> 2023-24 | B122: =actual!B121 -> Mar-24 | C122: =SUM(actual!C121:M121) -> 3464792 | D122: =C122-actual!N121-actual!O121 -> 2326524 | E122: =SUM(actual!P121:R121) -> 401888 | F122: 2728412 | G122: =SUM(actual!S121:T121) -> 60460 | H122: 2788872 | I122: =actual!U121-actual!V121-actual!W121-actual!X121-actual!Y121-actual!Z121 -> 880727 | J122: =actual!U121+actual!AB121 -> 4442542 | K122: =actual2!J122-actual2!H122 -> 1653670 | L122: =actual!U121-actual2!F122 -> 765624 | M122: =L122-actual!AA121 -> 461837 | N122: =K122-actual!V121 -> 589799
A123: =actual!A122 -> 2024-25 | B123: =actual!B122 -> Apr-24 | C123: =SUM(actual!C122:M122) -> 255006 | D123: =C123-actual!N122-actual!O122 -> 184998 | E123: =SUM(actual!P122:R122) -> 27295 | F123: 212293 | G123: =SUM(actual!S122:T122) -> 1041 | H123: 213334 | I123: =actual!U122-actual!V122-actual!W122-actual!X122-actual!Y122-actual!Z122 -> 98653 | J123: =actual!U122+actual!AB122 -> 423470 | K123: =actual2!J123-actual2!H123 -> 210136 | L123: =actual!U122-actual2!F123 -> 111942 | M123: =L123-actual!AA122 -> 93736 | N123: =K123-actual!V122 -> 81873
A124: =actual!A123 -> 2024-25 | B124: =actual!B123 -> May-24 | C124: =SUM(actual!C123:M123) -> 459629 | D124: =C124-actual!N123-actual!O123 -> 319036 | E124: =SUM(actual!P123:R123) -> 251722 | F124: 570758 | G124: =SUM(actual!S123:T123) -> 2087 | H124: 572845 | I124: =actual!U123-actual!V123-actual!W123-actual!X123-actual!Y123-actual!Z123 -> 149817 | J124: =actual!U123+actual!AB123 -> 623460 | K124: =actual2!J124-actual2!H124 -> 50615 | L124: =actual!U123-actual2!F124 -> -90923 | M124: =L124-actual!AA123 -> -137158 | N124: =K124-actual!V123 -> -73195
A125: =actual!A124 -> 2024-25 | B125: =actual!B124 -> Jun-24 | C125: =SUM(actual!C124:M124) -> 830797 | D125: =C125-actual!N124-actual!O124 -> 549633 | E125: =SUM(actual!P124:R124) -> 280044 | F125: 829677 | G125: =SUM(actual!S124:T124) -> 4520 | H125: 834197 | I125: =actual!U124-actual!V124-actual!W124-actual!X124-actual!Y124-actual!Z124 -> 215524 | J125: =actual!U124+actual!AB124 -> 969909 | K125: =actual2!J125-actual2!H125 -> 135712 | L125: =actual!U124-actual2!F125 -> -40819 | M125: =L125-actual!AA124 -> -99780 | N125: =K125-actual!V124 -> -128340
A126: =actual!A125 -> 2024-25 | B126: =actual!B125 -> Jul-24 | C126: =SUM(actual!C125:M125) -> 1084229 | D126: =C126-actual!N125-actual!O125 -> 715224 | E126: =SUM(actual!P125:R125) -> 301796 | F126: 1017020 | G126: =SUM(actual!S125:T125) -> 6386 | H126: 1023406 | I126: =actual!U125-actual!V125-actual!W125-actual!X125-actual!Y125-actual!Z125 -> 292884 | J126: =actual!U125+actual!AB125 -> 1300351 | K126: =actual2!J126-actual2!H126 -> 276945 | L126: =actual!U125-actual2!F126 -> 22071 | M126: =L126-actual!AA125 -> -62886 | N126: =K126-actual!V125 -> -50942
A127: =actual!A126 -> 2024-25 | B127: =actual!B126 -> Aug-24 | C127: =SUM(actual!C126:M126) -> 1332722 | D127: =C127-actual!N126-actual!O126 -> 873845 | E127: =SUM(actual!P126:R126) -> 334467 | F127: 1208312 | G127: =SUM(actual!S126:T126) -> 8866 | H127: 1217178 | I127: =actual!U126-actual!V126-actual!W126-actual!X126-actual!Y126-actual!Z126 -> 343618 | J127: =actual!U126+actual!AB126 -> 1652354 | K127: =actual2!J127-actual2!H127 -> 435176 | L127: =actual!U126-actual2!F127 -> 143055 | M127: =L127-actual!AA126 -> 31989 | N127: =K127-actual!V126 -> 35016
A128: =actual!A127 -> 2024-25 | B128: =actual!B127 -> Sep-24 | C128: =SUM(actual!C127:M127) -> 1813842 | D128: =C128-actual!N127-actual!O127 -> 1265159 | E128: =SUM(actual!P127:R127) -> 357214 | F128: 1622373 | G128: =SUM(actual!S127:T127) -> 14601 | H128: 1636974 | I128: =actual!U127-actual!V127-actual!W127-actual!X127-actual!Y127-actual!Z127 -> 433394 | J128: =actual!U127+actual!AB127 -> 2111494 | K128: =actual2!J128-actual2!H128 -> 474520 | L128: =actual!U127-actual2!F128 -> 74155 | M128: =L128-actual!AA127 -> -71053 | N128: =K128-actual!V127 -> -40490
A129: =actual!A128 -> 2024-25 | B129: =actual!B128 -> Oct-24 | C129: =SUM(actual!C128:M128) -> 2032634 | D129: =C129-actual!N128-actual!O128 -> 1304973 | E129: =SUM(actual!P128:R128) -> 399294 | F129: 1704267 | G129: =SUM(actual!S128:T128) -> 18807 | H129: 1723074 | I129: =actual!U128-actual!V128-actual!W128-actual!X128-actual!Y128-actual!Z128 -> 535188 | J129: =actual!U128+actual!AB128 -> 2473898 | K129: =actual2!J129-actual2!H129 -> 750824 | L129: =actual!U128-actual2!F129 -> 303086 | M129: =L129-actual!AA128 -> 139396 | N129: =K129-actual!V128 -> 154477
A130: =actual!A129 -> 2024-25 | B130: =actual!B129 -> Nov-24 | C130: =SUM(actual!C129:M129) -> 2260975 | D130: =C130-actual!N129-actual!O129 -> 1443435 | E130: =SUM(actual!P129:R129) -> 427020 | F130: 1870455 | G130: =SUM(actual!S129:T129) -> 23953 | H130: 1894408 | I130: =actual!U129-actual!V129-actual!W129-actual!X129-actual!Y129-actual!Z129 -> 596257 | J130: =actual!U129+actual!AB129 -> 2741002 | K130: =actual2!J130-actual2!H130 -> 846594 | L130: =actual!U129-actual2!F130 -> 357047 | M130: =L130-actual!AA129 -> 178433 | N130: =K130-actual!V129 -> 188100
A131: =actual!A130 -> 2024-25 | B131: =actual!B130 -> Dec-24 | C131: =SUM(actual!C130:M130) -> 2750428 | D131: =C131-actual!N130-actual!O130 -> 1843053 | E131: =SUM(actual!P130:R130) -> 447657 | F131: 2290710 | G131: =SUM(actual!S130:T130) -> 27295 | H131: 2318005 | I131: =actual!U130-actual!V130-actual!W130-actual!X130-actual!Y130-actual!Z130 -> 652422 | J131: =actual!U130+actual!AB130 -> 3232094 | K131: =actual2!J131-actual2!H131 -> 914089 | L131: =actual!U130-actual2!F131 -> 256047 | M131: =L131-actual!AA130 -> 56517 | N131: =K131-actual!V130 -> 105776
A132: =actual!A131 -> 2024-25 | B132: =actual!B131 -> Jan-25 | C132: =SUM(actual!C131:M131) -> 2984356 | D132: =C132-actual!N131-actual!O131 -> 1903558 | E132: =SUM(actual!P131:R131) -> 467630 | F132: 2371188 | G132: =SUM(actual!S131:T131) -> 29224 | H132: 2400412 | I132: =actual!U131-actual!V131-actual!W131-actual!X131-actual!Y131-actual!Z131 -> 708252 | J132: =actual!U131+actual!AB131 -> 3569954 | K132: =actual2!J132-actual2!H132 -> 1169542 | L132: =actual!U131-actual2!F132 -> 441407 | M132: =L132-actual!AA131 -> 223011 | N132: =K132-actual!V131 -> 294081
A133: =actual!A132 -> 0 | B133: =actual!B132 -> 0 | C133: =SUM(actual!C132:M132) -> 0 | D133: =C133-actual!N132-actual!O132 -> 0 | E133: =SUM(actual!P132:R132) -> 0 | F133: 0 | G133: =SUM(actual!S132:T132) -> 0 | H133: 0 | I133: =actual!U132-actual!V132-actual!W132-actual!X132-actual!Y132-actual!Z132 -> 0 | J133: =actual!U132+actual!AB132 -> 0 | K133: =actual2!J133-actual2!H133 -> 0 | L133: =actual!U132-actual2!F133 -> 0 | M133: =L133-actual!AA132 -> 0 | N133: =K133-actual!V132 -> 0
A134: =actual!A133 -> 0 | B134: =actual!B133 -> 0 | C134: =SUM(actual!C133:M133) -> 0 | D134: =C134-actual!N133-actual!O133 -> 0 | E134: =SUM(actual!P133:R133) -> 0 | F134: 0 | G134: =SUM(actual!S133:T133) -> 0 | H134: 0 | I134: =actual!U133-actual!V133-actual!W133-actual!X133-actual!Y133-actual!Z133 -> 0 | J134: =actual!U133+actual!AB133 -> 0 | K134: =actual2!J134-actual2!H134 -> 0 | L134: =actual!U133-actual2!F134 -> 0 | M134: =L134-actual!AA133 -> 0 | N134: =K134-actual!V133 -> 0
A135: =actual!A134 -> 0 | B135: =actual!B134 -> 0 | C135: =SUM(actual!C134:M134) -> 0 | D135: =C135-actual!N134-actual!O134 -> 0 | E135: =SUM(actual!P134:R134) -> 0 | F135: 0 | G135: =SUM(actual!S134:T134) -> 0 | H135: 0 | I135: =actual!U134-actual!V134-actual!W134-actual!X134-actual!Y134-actual!Z134 -> 0 | J135: =actual!U134+actual!AB134 -> 0 | K135: =actual2!J135-actual2!H135 -> 0 | L135: =actual!U134-actual2!F135 -> 0 | M135: =L135-actual!AA134 -> 0 | N135: =K135-actual!V134 -> 0
A136: =actual!A135 -> 0 | B136: =actual!B135 -> 0 | C136: =SUM(actual!C135:M135) -> 0 | D136: =C136-actual!N135-actual!O135 -> 0 | E136: =SUM(actual!P135:R135) -> 0 | F136: 0 | G136: =SUM(actual!S135:T135) -> 0 | H136: 0 | I136: =actual!U135-actual!V135-actual!W135-actual!X135-actual!Y135-actual!Z135 -> 0 | J136: =actual!U135+actual!AB135 -> 0 | K136: =actual2!J136-actual2!H136 -> 0 | L136: =actual!U135-actual2!F136 -> 0 | M136: =L136-actual!AA135 -> 0 | N136: =K136-actual!V135 -> 0
A137: =actual!A136 -> 0 | B137: =actual!B136 -> 0 | C137: =SUM(actual!C136:M136) -> 0 | D137: =C137-actual!N136-actual!O136 -> 0 | E137: =SUM(actual!P136:R136) -> 0 | F137: 0 | G137: =SUM(actual!S136:T136) -> 0 | H137: 0 | I137: =actual!U136-actual!V136-actual!W136-actual!X136-actual!Y136-actual!Z136 -> 0 | J137: =actual!U136+actual!AB136 -> 0 | K137: =actual2!J137-actual2!H137 -> 0 | L137: =actual!U136-actual2!F137 -> 0 | M137: =L137-actual!AA136 -> 0 | N137: =K137-actual!V136 -> 0
A138: =actual!A137 -> 0 | B138: =actual!B137 -> 0 | C138: =SUM(actual!C137:M137) -> 0 | D138: =C138-actual!N137-actual!O137 -> 0 | E138: =SUM(actual!P137:R137) -> 0 | F138: 0 | G138: =SUM(actual!S137:T137) -> 0 | H138: 0 | I138: =actual!U137-actual!V137-actual!W137-actual!X137-actual!Y137-actual!Z137 -> 0 | J138: =actual!U137+actual!AB137 -> 0 | K138: =actual2!J138-actual2!H138 -> 0 | L138: =actual!U137-actual2!F138 -> 0 | M138: =L138-actual!AA137 -> 0 | N138: =K138-actual!V137 -> 0
A139: =actual!A138 -> 0 | B139: =actual!B138 -> 0 | C139: =SUM(actual!C138:M138) -> 0 | D139: =C139-actual!N138-actual!O138 -> 0 | E139: =SUM(actual!P138:R138) -> 0 | F139: 0 | G139: =SUM(actual!S138:T138) -> 0 | H139: 0 | I139: =actual!U138-actual!V138-actual!W138-actual!X138-actual!Y138-actual!Z138 -> 0 | J139: =actual!U138+actual!AB138 -> 0 | K139: =actual2!J139-actual2!H139 -> 0 | L139: =actual!U138-actual2!F139 -> 0 | M139: =L139-actual!AA138 -> 0 | N139: =K139-actual!V138 -> 0
A140: =actual!A139 -> 0 | B140: =actual!B139 -> 0 | C140: =SUM(actual!C139:M139) -> 0 | D140: =C140-actual!N139-actual!O139 -> 0 | E140: =SUM(actual!P139:R139) -> 0 | F140: 0 | G140: =SUM(actual!S139:T139) -> 0 | H140: 0 | I140: =actual!U139-actual!V139-actual!W139-actual!X139-actual!Y139-actual!Z139 -> 0 | J140: =actual!U139+actual!AB139 -> 0 | K140: =actual2!J140-actual2!H140 -> 0 | L140: =actual!U139-actual2!F140 -> 0 | M140: =L140-actual!AA139 -> 0 | N140: =K140-actual!V139 -> 0
A141: =actual!A140 -> 0 | B141: =actual!B140 -> 0 | C141: =SUM(actual!C140:M140) -> 0 | D141: =C141-actual!N140-actual!O140 -> 0 | E141: =SUM(actual!P140:R140) -> 0 | F141: 0 | G141: =SUM(actual!S140:T140) -> 0 | H141: 0 | I141: =actual!U140-actual!V140-actual!W140-actual!X140-actual!Y140-actual!Z140 -> 0 | J141: =actual!U140+actual!AB140 -> 0 | K141: =actual2!J141-actual2!H141 -> 0 | L141: =actual!U140-actual2!F141 -> 0 | M141: =L141-actual!AA140 -> 0 | N141: =K141-actual!V140 -> 0
A142: =actual!A141 -> 0 | B142: =actual!B141 -> 0 | C142: =SUM(actual!C141:M141) -> 0 | D142: =C142-actual!N141-actual!O141 -> 0 | E142: =SUM(actual!P141:R141) -> 0 | F142: 0 | G142: =SUM(actual!S141:T141) -> 0 | H142: 0 | I142: =actual!U141-actual!V141-actual!W141-actual!X141-actual!Y141-actual!Z141 -> 0 | J142: =actual!U141+actual!AB141 -> 0 | K142: =actual2!J142-actual2!H142 -> 0 | L142: =actual!U141-actual2!F142 -> 0 | M142: =L142-actual!AA141 -> 0 | N142: =K142-actual!V141 -> 0
A143: =actual!A142 -> 0 | B143: =actual!B142 -> 0 | C143: =SUM(actual!C142:M142) -> 0 | D143: =C143-actual!N142-actual!O142 -> 0 | E143: =SUM(actual!P142:R142) -> 0 | F143: 0 | G143: =SUM(actual!S142:T142) -> 0 | H143: 0 | I143: =actual!U142-actual!V142-actual!W142-actual!X142-actual!Y142-actual!Z142 -> 0 | J143: =actual!U142+actual!AB142 -> 0 | K143: =actual2!J143-actual2!H143 -> 0 | L143: =actual!U142-actual2!F143 -> 0 | M143: =L143-actual!AA142 -> 0 | N143: =K143-actual!V142 -> 0
A144: =actual!A143 -> 0 | B144: =actual!B143 -> 0 | C144: =SUM(actual!C143:M143) -> 0 | D144: =C144-actual!N143-actual!O143 -> 0 | E144: =SUM(actual!P143:R143) -> 0 | F144: 0 | G144: =SUM(actual!S143:T143) -> 0 | H144: 0 | I144: =actual!U143-actual!V143-actual!W143-actual!X143-actual!Y143-actual!Z143 -> 0 | J144: =actual!U143+actual!AB143 -> 0 | K144: =actual2!J144-actual2!H144 -> 0 | L144: =actual!U143-actual2!F144 -> 0 | M144: =L144-actual!AA143 -> 0 | N144: =K144-actual!V143 -> 0
A145: =actual!A144 -> 0 | B145: =actual!B144 -> 0 | C145: =SUM(actual!C144:M144) -> 0 | D145: =C145-actual!N144-actual!O144 -> 0 | E145: =SUM(actual!P144:R144) -> 0 | F145: 0 | G145: =SUM(actual!S144:T144) -> 0 | H145: 0 | I145: =actual!U144-actual!V144-actual!W144-actual!X144-actual!Y144-actual!Z144 -> 0 | J145: =actual!U144+actual!AB144 -> 0 | K145: =actual2!J145-actual2!H145 -> 0 | L145: =actual!U144-actual2!F145 -> 0 | M145: =L145-actual!AA144 -> 0 | N145: =K145-actual!V144 -> 0
A146: =actual!A145 -> 0 | B146: =actual!B145 -> 0 | C146: =SUM(actual!C145:M145) -> 0 | D146: =C146-actual!N145-actual!O145 -> 0 | E146: =SUM(actual!P145:R145) -> 0 | F146: 0 | G146: =SUM(actual!S145:T145) -> 0 | H146: 0 | I146: =actual!U145-actual!V145-actual!W145-actual!X145-actual!Y145-actual!Z145 -> 0 | J146: =actual!U145+actual!AB145 -> 0 | K146: =actual2!J146-actual2!H146 -> 0 | L146: =actual!U145-actual2!F146 -> 0 | M146: =L146-actual!AA145 -> 0 | N146: =K146-actual!V145 -> 0
A147: =actual!A146 -> 0 | B147: =actual!B146 -> 0 | C147: =SUM(actual!C146:M146) -> 0 | D147: =C147-actual!N146-actual!O146 -> 0 | E147: =SUM(actual!P146:R146) -> 0 | F147: 0 | G147: =SUM(actual!S146:T146) -> 0 | H147: 0 | I147: =actual!U146-actual!V146-actual!W146-actual!X146-actual!Y146-actual!Z146 -> 0 | J147: =actual!U146+actual!AB146 -> 0 | K147: =actual2!J147-actual2!H147 -> 0 | L147: =actual!U146-actual2!F147 -> 0 | M147: =L147-actual!AA146 -> 0 | N147: =K147-actual!V146 -> 0
A148: =actual!A147 -> 0 | B148: =actual!B147 -> 0 | C148: =SUM(actual!C147:M147) -> 0 | D148: =C148-actual!N147-actual!O147 -> 0 | E148: =SUM(actual!P147:R147) -> 0 | F148: 0 | G148: =SUM(actual!S147:T147) -> 0 | H148: 0 | I148: =actual!U147-actual!V147-actual!W147-actual!X147-actual!Y147-actual!Z147 -> 0 | J148: =actual!U147+actual!AB147 -> 0 | K148: =actual2!J148-actual2!H148 -> 0 | L148: =actual!U147-actual2!F148 -> 0 | M148: =L148-actual!AA147 -> 0 | N148: =K148-actual!V147 -> 0
A149: =actual!A148 -> 0 | B149: =actual!B148 -> 0 | C149: =SUM(actual!C148:M148) -> 0 | D149: =C149-actual!N148-actual!O148 -> 0 | E149: =SUM(actual!P148:R148) -> 0 | F149: 0 | G149: =SUM(actual!S148:T148) -> 0 | H149: 0 | I149: =actual!U148-actual!V148-actual!W148-actual!X148-actual!Y148-actual!Z148 -> 0 | J149: =actual!U148+actual!AB148 -> 0 | K149: =actual2!J149-actual2!H149 -> 0 | L149: =actual!U148-actual2!F149 -> 0 | M149: =L149-actual!AA148 -> 0 | N149: =K149-actual!V148 -> 0
A150: =actual!A149 -> 0 | B150: =actual!B149 -> 0 | C150: =SUM(actual!C149:M149) -> 0 | D150: =C150-actual!N149-actual!O149 -> 0 | E150: =SUM(actual!P149:R149) -> 0 | F150: 0 | G150: =SUM(actual!S149:T149) -> 0 | H150: 0 | I150: =actual!U149-actual!V149-actual!W149-actual!X149-actual!Y149-actual!Z149 -> 0 | J150: =actual!U149+actual!AB149 -> 0 | K150: =actual2!J150-actual2!H150 -> 0 | L150: =actual!U149-actual2!F150 -> 0 | M150: =L150-actual!AA149 -> 0 | N150: =K150-actual!V149 -> 0
A151: =actual!A150 -> 0 | B151: =actual!B150 -> 0 | C151: =SUM(actual!C150:M150) -> 0 | D151: =C151-actual!N150-actual!O150 -> 0 | E151: =SUM(actual!P150:R150) -> 0 | F151: 0 | G151: =SUM(actual!S150:T150) -> 0 | H151: 0 | I151: =actual!U150-actual!V150-actual!W150-actual!X150-actual!Y150-actual!Z150 -> 0 | J151: =actual!U150+actual!AB150 -> 0 | K151: =actual2!J151-actual2!H151 -> 0 | L151: =actual!U150-actual2!F151 -> 0 | M151: =L151-actual!AA150 -> 0 | N151: =K151-actual!V150 -> 0
A152: =actual!A151 -> 0 | B152: =actual!B151 -> 0 | C152: =SUM(actual!C151:M151) -> 0 | D152: =C152-actual!N151-actual!O151 -> 0 | E152: =SUM(actual!P151:R151) -> 0 | F152: 0 | G152: =SUM(actual!S151:T151) -> 0 | H152: 0 | I152: =actual!U151-actual!V151-actual!W151-actual!X151-actual!Y151-actual!Z151 -> 0 | J152: =actual!U151+actual!AB151 -> 0 | K152: =actual2!J152-actual2!H152 -> 0 | L152: =actual!U151-actual2!F152 -> 0 | M152: =L152-actual!AA151 -> 0 | N152: =K152-actual!V151 -> 0
A153: =actual!A152 -> 0 | B153: =actual!B152 -> 0 | C153: =SUM(actual!C152:M152) -> 0 | D153: =C153-actual!N152-actual!O152 -> 0 | E153: =SUM(actual!P152:R152) -> 0 | F153: 0 | G153: =SUM(actual!S152:T152) -> 0 | H153: 0 | I153: =actual!U152-actual!V152-actual!W152-actual!X152-actual!Y152-actual!Z152 -> 0 | J153: =actual!U152+actual!AB152 -> 0 | K153: =actual2!J153-actual2!H153 -> 0 | L153: =actual!U152-actual2!F153 -> 0 | M153: =L153-actual!AA152 -> 0 | N153: =K153-actual!V152 -> 0
A154: =actual!A153 -> 0 | B154: =actual!B153 -> 0 | C154: =SUM(actual!C153:M153) -> 0 | D154: =C154-actual!N153-actual!O153 -> 0 | E154: =SUM(actual!P153:R153) -> 0 | F154: 0 | G154: =SUM(actual!S153:T153) -> 0 | H154: 0 | I154: =actual!U153-actual!V153-actual!W153-actual!X153-actual!Y153-actual!Z153 -> 0 | J154: =actual!U153+actual!AB153 -> 0 | K154: =actual2!J154-actual2!H154 -> 0 | L154: =actual!U153-actual2!F154 -> 0 | M154: =L154-actual!AA153 -> 0 | N154: =K154-actual!V153 -> 0
A155: =actual!A154 -> 0 | B155: =actual!B154 -> 0 | C155: =SUM(actual!C154:M154) -> 0 | D155: =C155-actual!N154-actual!O154 -> 0 | E155: =SUM(actual!P154:R154) -> 0 | F155: 0 | G155: =SUM(actual!S154:T154) -> 0 | H155: 0 | I155: =actual!U154-actual!V154-actual!W154-actual!X154-actual!Y154-actual!Z154 -> 0 | J155: =actual!U154+actual!AB154 -> 0 | K155: =actual2!J155-actual2!H155 -> 0 | L155: =actual!U154-actual2!F155 -> 0 | M155: =L155-actual!AA154 -> 0 | N155: =K155-actual!V154 -> 0

Sheet BERE2
A1: FY | B1: Month | C1: Gross Tax Revenue | D1: Net Tax Revenue | E1: Non Tax Revenue | F1: Revenue Receipts | G1: Non Debt Capital Receipts | H1: Total Receipts | I1: Other Revenue Expenditure | J1: Total Expenditure | K1: Fiscal Deficit | L1: Revenue Deficit | M1: Effective Revenue Deficit | N1: Primary Deficit
A2: =BERE!A2 -> 2014-15 | B2: =BERE!B2 -> BE | C2: =SUM(BERE!C2:M2) -> 1364524 | D2: =C2-BERE!N2-BERE!O2 -> 977258 | E2: =SUM(BERE!P2:R2) -> 212505 | F2: =SUM(D2:E2) -> 1189763 | G2: =SUM(BERE!S2:T2) -> 73952 | H2: =SUM(F2:G2) -> 1263715 | I2: =BERE!U2-BERE!V2-BERE!W2-BERE!X2-BERE!Y2-BERE!Z2 -> 508701 | J2: =BERE!U2+BERE!AB2 -> 1794892 | K2: =BERE2!J2-BERE2!H2 -> 531177 | L2: =BERE!U2-BERE2!F2 -> 378348 | M2: =L2-BERE!AA2 -> 210244 | N2: =K2-BERE!V2 -> 104166
A3: =BERE!A3 -> 2014-15 | B3: =BERE!B3 -> RE | C3: =SUM(BERE!C3:M3) -> 1251391 | D3: =C3-BERE!N3-BERE!O3 -> 908463 | E3: =SUM(BERE!P3:R3) -> 217831 | F3: =SUM(D3:E3) -> 1126294 | G3: =SUM(BERE!S3:T3) -> 42236 | H3: =SUM(F3:G3) -> 1168530 | I3: =BERE!U3-BERE!V3-BERE!W3-BERE!X3-BERE!Y3-BERE!Z3 -> 439100 | J3: =BERE!U3+BERE!AB3 -> 1681159 | K3: =BERE2!J3-BERE2!H3 -> 512629 | L3: =BERE!U3-BERE2!F3 -> 362486 | M3: =L3-BERE!AA3 -> 230588 | N3: =K3-BERE!V3 -> 101275
A4: =BERE!A4 -> 2015-16 | B4: =BERE!B4 -> BE | C4: =SUM(BERE!C4:M4) -> 1449490 | D4: =C4-BERE!N4-BERE!O4 -> 919842 | E4: =SUM(BERE!P4:R4) -> 221733 | F4: 1141575 | G4: =SUM(BERE!S4:T4) -> 80253 | H4: 1221828 | I4: =BERE!U4-BERE!V4-BERE!W4-BERE!X4-BERE!Y4-BERE!Z4 -> 408636 | J4: =BERE!U4+BERE!AB4 -> 1777477 | K4: =BERE2!J4-BERE2!H4 -> 555649 | L4: =BERE!U4-BERE2!F4 -> 394472 | M4: =L4-BERE!AA4 -> 283921 | N4: =K4-BERE!V4 -> 99504
A5: =BERE!A5 -> 2015-16 | B5: =BERE!B5 -> RE | C5: =SUM(BERE!C5:M5) -> 1459611 | D5: =C5-BERE!N5-BERE!O5 -> 947508 | E5: =SUM(BERE!P5:R5) -> 258576 | F5: 1206084 | G5: =SUM(BERE!S5:T5) -> 44217 | H5: 1250301 | I5: =BERE!U5-BERE!V5-BERE!W5-BERE!X5-BERE!Y5-BERE!Z5 -> 418573 | J5: =BERE!U5+BERE!AB5 -> 1785391 | K5: =BERE2!J5-BERE2!H5 -> 535090 | L5: =BERE!U5-BERE2!F5 -> 341589 | M5: =L5-BERE!AA5 -> 209585 | N5: =K5-BERE!V5 -> 92470
A6: =BERE!A6 -> 2016-17 | B6: =BERE!B6 -> BE | C6: =SUM(BERE!C6:M6) -> 1630888 | D6: =C6-BERE!N6-BERE!O6 -> 1054101 | E6: =SUM(BERE!P6:R6) -> 322921 | F6: 1377022 | G6: =SUM(BERE!S6:T6) -> 67134 | H6: 1444156 | I6: =BERE!U6-BERE!V6-BERE!W6-BERE!X6-BERE!Y6-BERE!Z6 -> 445840 | J6: =BERE!U6+BERE!AB6 -> 1978060 | K6: =BERE2!J6-BERE2!H6 -> 533904 | L6: =BERE!U6-BERE2!F6 -> 354513 | M6: =L6-BERE!AA6 -> 187673 | N6: =K6-BERE!V6 -> 41234
A7: =BERE!A7 -> 2016-17 | B7: =BERE!B7 -> RE | C7: =SUM(BERE!C7:M7) -> 1703242 | D7: =C7-BERE!N7-BERE!O7 -> 1088792 | E7: =SUM(BERE!P7:R7) -> 334770 | F7: 1423562 | G7: =SUM(BERE!S7:T7) -> 56571 | H7: 1480133 | I7: =BERE!U7-BERE!V7-BERE!W7-BERE!X7-BERE!Y7-BERE!Z7 -> 444795 | J7: =BERE!U7+BERE!AB7 -> 2014407 | K7: =BERE2!J7-BERE2!H7 -> 534274 | L7: =BERE!U7-BERE2!F7 -> 311658 | M7: =L7-BERE!AA7 -> 140186 | N7: =K7-BERE!V7 -> 51205
A8: =BERE!A8 -> 2017-18 | B8: =BERE!B8 -> BE | C8: =SUM(BERE!C8:M8) -> 1911579 | D8: =C8-BERE!N8-BERE!O8 -> 1227014 | E8: =SUM(BERE!P8:R8) -> 288757 | F8: 1515771 | G8: =SUM(BERE!S8:T8) -> 84432 | H8: 1600203 | I8: =BERE!U8-BERE!V8-BERE!W8-BERE!X8-BERE!Y8-BERE!Z8 -> 474058 | J8: =BERE!U8+BERE!AB8 -> 2146735 | K8: =BERE2!J8-BERE2!H8 -> 546532 | L8: =BERE!U8-BERE2!F8 -> 321734 | M8: =L8-BERE!AA8 -> 126384 | N8: =K8-BERE!V8 -> 23454
A9: =BERE!A9 -> 2017-18 | B9: =BERE!B9 -> RE | C9: =SUM(BERE!C9:M9) -> 1946119 | D9: =C9-BERE!N9-BERE!O9 -> 1269454 | E9: =SUM(BERE!P9:R9) -> 235974 | F9: 1505428 | G9: =SUM(BERE!S9:T9) -> 117473 | H9: 1622901 | I9: =BERE!U9-BERE!V9-BERE!W9-BERE!X9-BERE!Y9-BERE!Z9 -> 487435 | J9: =BERE!U9+BERE!AB9 -> 2217750 | K9: =BERE2!J9-BERE2!H9 -> 594849 | L9: =BERE!U9-BERE2!F9 -> 439571 | M9: =L9-BERE!AA9 -> 250326 | N9: =K9-BERE!V9 -> 64006
A10: =BERE!A10 -> 2018-19 | B10: =BERE!B10 -> BE | C10: =SUM(BERE!C10:M10) -> 2271242 | D10: =C10-BERE!N10-BERE!O10 -> 1480649 | E10: =SUM(BERE!P10:R10) -> 245089 | F10: 1725738 | G10: =SUM(BERE!S10:T10) -> 92199 | H10: 1817937 | I10: =BERE!U10-BERE!V10-BERE!W10-BERE!X10-BERE!Y10-BERE!Z10 -> 524372 | J10: =BERE!U10+BERE!AB10 -> 2442213 | K10: =BERE2!J10-BERE2!H10 -> 624276 | L10: =BERE!U10-BERE2!F10 -> 416545 | M10: =L10-BERE!AA10 -> 221200 | N10: =K10-BERE!V10 -> 48481
A11: =BERE!A11 -> 2018-19 | B11: =BERE!B11 -> RE | C11: =SUM(BERE!C11:M11) -> 2248175 | D11: =C11-BERE!N11-BERE!O11 -> 1484406 | E11: =SUM(BERE!P11:R11) -> 245276 | F11: 1729682 | G11: =SUM(BERE!S11:T11) -> 93155 | H11: 1822837 | I11: =BERE!U11-BERE!V11-BERE!W11-BERE!X11-BERE!Y11-BERE!Z11 -> 540314 | J11: =BERE!U11+BERE!AB11 -> 2457235 | K11: =BERE2!J11-BERE2!H11 -> 634398 | L11: =BERE!U11-BERE2!F11 -> 411669 | M11: =L11-BERE!AA11 -> 211369 | N11: =K11-BERE!V11 -> 46828
A12: =BERE!A12 -> 2019-20 | B12: =BERE!B12 -> BE | C12: =SUM(BERE!C12:M12) -> 2461195 | D12: =C12-BERE!N12-BERE!O12 -> 1649582 | E12: =SUM(BERE!P12:R12) -> 313179 | F12: 1962761 | G12: =SUM(BERE!S12:T12) -> 119828 | H12: 2082589 | I12: =BERE!U12-BERE!V12-BERE!W12-BERE!X12-BERE!Y12-BERE!Z12 -> 642558 | J12: =BERE!U12+BERE!AB12 -> 2786349 | K12: =BERE2!J12-BERE2!H12 -> 703760 | L12: =BERE!U12-BERE2!F12 -> 485503 | M12: =L12-BERE!AA12 -> 278170 | N12: =K12-BERE!V12 -> 43289
A13: =BERE!A13 -> 2019-20 | B13: =BERE!B13 -> RE | C13: =SUM(BERE!C13:M13) -> 2163423 | D13: =C13-BERE!N13-BERE!O13 -> 1504587 | E13: =SUM(BERE!P13:R13) -> 345514 | F13: 1850101 | G13: =SUM(BERE!S13:T13) -> 81605 | H13: 1931706 | I13: =BERE!U13-BERE!V13-BERE!W13-BERE!X13-BERE!Y13-BERE!Z13 -> 632877 | J13: =BERE!U13+BERE!AB13 -> 2698552 | K13: =BERE2!J13-BERE2!H13 -> 766846 | L13: =BERE!U13-BERE2!F13 -> 500337 | M13: =L13-BERE!AA13 -> 308600 | N13: =K13-BERE!V13 -> 141741
A14: =BERE!A14 -> 2020-21 | B14: =BERE!B14 -> BE | C14: =SUM(BERE!C14:M14) -> 2423020 | D14: =C14-BERE!N14-BERE!O14 -> 1635909 | E14: =SUM(BERE!P14:R14) -> 385017 | F14: 2020926 | G14: =SUM(BERE!S14:T14) -> 224967 | H14: 2245893 | I14: =BERE!U14-BERE!V14-BERE!W14-BERE!X14-BERE!Y14-BERE!Z14 -> 712177 | J14: =BERE!U14+BERE!AB14 -> 3042230 | K14: =BERE2!J14-BERE2!H14 -> 796337 | L14: =BERE!U14-BERE2!F14 -> 609295 | M14: =L14-BERE!AA14 -> 402795 | N14: =K14-BERE!V14 -> 88134
A15: =BERE!A15 -> 2020-21 | B15: =BERE!B15 -> RE | C15: =SUM(BERE!C15:M15) -> 1900280 | D15: =C15-BERE!N15-BERE!O15 -> 1344501 | E15: =SUM(BERE!P15:R15) -> 210652 | F15: 1555153 | G15: =SUM(BERE!S15:T15) -> 46497 | H15: 1601650 | I15: =BERE!U15-BERE!V15-BERE!W15-BERE!X15-BERE!Y15-BERE!Z15 -> 750666 | J15: =BERE!U15+BERE!AB15 -> 3450305 | K15: =BERE2!J15-BERE2!H15 -> 1848655 | L15: =BERE!U15-BERE2!F15 -> 1456763 | M15: =L15-BERE!AA15 -> 1226387 | N15: =K15-BERE!V15 -> 1155755
A16: =BERE!A16 -> 2021-22 | B16: =BERE!B16 -> BE | C16: =SUM(BERE!C16:M16) -> 2217059 | D16: =C16-BERE!N16-BERE!O16 -> 1545396 | E16: =SUM(BERE!P16:R16) -> 243028 | F16: =SUM(D16:E16) -> 1788424 | G16: =SUM(BERE!S16:T16) -> 188000 | H16: =SUM(F16:G16) -> 1976424 | I16: =BERE!U16-BERE!V16-BERE!W16-BERE!X16-BERE!Y16-BERE!Z16 -> 774820 | J16: =BERE!U16+BERE!AB16 -> 3483236 | K16: =BERE2!J16-BERE2!H16 -> 1506812 | L16: =BERE!U16-BERE2!F16 -> 1140704 | M16: =L16-BERE!AA16 -> 921592 | N16: =K16-BERE!V16 -> 697111
A17: =BERE!A17 -> 2021-22 | B17: =BERE!B17 -> RE | C17: =SUM(BERE!C17:M17) -> 2516059 | D17: =C17-BERE!N17-BERE!O17 -> 1765145 | E17: =SUM(BERE!P17:R17) -> 313791 | F17: 2078936 | G17: =SUM(BERE!S17:T17) -> 99975 | H17: 2178911 | I17: =BERE!U17-BERE!V17-BERE!W17-BERE!X17-BERE!Y17-BERE!Z17 -> 915721 | J17: =BERE!U17+BERE!AB17 -> 3770000 | K17: =BERE2!J17-BERE2!H17 -> 1591089 | L17: =BERE!U17-BERE2!F17 -> 1089131 | M17: =L17-BERE!AA17 -> 851446 | N17: =K17-BERE!V17 -> 777298
A18: =BERE!A18 -> 2022-23 | B18: =BERE!B18 -> BE | C18: =SUM(BERE!C18:M18) -> 2757820 | D18: =C18-BERE!N18-BERE!O18 -> 1934771 | E18: =SUM(BERE!P18:R18) -> 269651 | F18: 2204422 | G18: =SUM(BERE!S18:T18) -> 79291 | H18: 2283713 | I18: =BERE!U18-BERE!V18-BERE!W18-BERE!X18-BERE!Y18-BERE!Z18 -> 879550 | J18: =BERE!U18+BERE!AB18 -> 3944909 | K18: =BERE2!J18-BERE2!H18 -> 1661196 | L18: =BERE!U18-BERE2!F18 -> 990835 | M18: =L18-BERE!AA18 -> 673192 | N18: =K18-BERE!V18 -> 720545
A19: =BERE!A19 -> 2022-23 | B19: =BERE!B19 -> RE | C19: =SUM(BERE!C19:M19) -> 3043068 | D19: =C19-BERE!N19-BERE!O19 -> 2086662 | E19: =SUM(BERE!P19:R19) -> 261751 | F19: 2348413 | G19: =SUM(BERE!S19:T19) -> 83500 | H19: 2431913 | I19: =BERE!U19-BERE!V19-BERE!W19-BERE!X19-BERE!Y19-BERE!Z19 -> 879752 | J19: =BERE!U19+BERE!AB19 -> 4187232 | K19: =BERE2!J19-BERE2!H19 -> 1755319 | L19: =BERE!U19-BERE2!F19 -> 1111051 | M19: =L19-BERE!AA19 -> 785463 | N19: =K19-BERE!V19 -> 814668
A20: =BERE!A20 -> 2023-24 | B20: =BERE!B20 -> BE | C20: =SUM(BERE!C20:M20) -> 3360859 | D20: =C20-BERE!N20-BERE!O20 -> 2330631 | E20: =SUM(BERE!P20:R20) -> 301650 | F20: 2632281 | G20: =SUM(BERE!S20:T20) -> 84000 | H20: 2716281 | I20: =BERE!U20-BERE!V20-BERE!W20-BERE!X20-BERE!Y20-BERE!Z20 -> 883831 | J20: =BERE!U20+BERE!AB20 -> 4503097 | K20: =BERE2!J20-BERE2!H20 -> 1786816 | L20: =BERE!U20-BERE2!F20 -> 870443 | M20: =L20-BERE!AA20 -> 500455 | N20: =K20-BERE!V20 -> 706845
A21: =BERE!A21 -> 2023-24 | B21: =BERE!B21 -> RE | C21: =SUM(BERE!C21:M21) -> 3437211 | D21: =C21-BERE!N21-BERE!O21 -> 2323918 | E21: =SUM(BERE!P21:R21) -> 375795 | F21: 2699713 | G21: =SUM(BERE!S21:T21) -> 56000 | H21: 2755713 | I21: =BERE!U21-BERE!V21-BERE!W21-BERE!X21-BERE!Y21-BERE!Z21 -> 944789 | J21: =BERE!U21+BERE!AB21 -> 4490486 | K21: =BERE2!J21-BERE2!H21 -> 1734773 | L21: =BERE!U21-BERE2!F21 -> 841218 | M21: =L21-BERE!AA21 -> 520028 | N21: =K21-BERE!V21 -> 679346
A22: =BERE!A22 -> 2024-25 | B22: =BERE!B22 -> BE | C22: =SUM(BERE!C22:M22) -> 3840170 | D22: =C22-BERE!N22-BERE!O22 -> 2583499 | E22: =SUM(BERE!P22:R22) -> 545701 | F22: 3129200 | G22: =SUM(BERE!S22:T22) -> 78000 | H22: 3207200 | I22: =BERE!U22-BERE!V22-BERE!W22-BERE!X22-BERE!Y22-BERE!Z22 -> 997757 | J22: =BERE!U22+BERE!AB22 -> 4820512 | K22: =BERE2!J22-BERE2!H22 -> 1613312 | L22: =BERE!U22-BERE2!F22 -> 580201 | M22: =L22-BERE!AA22 -> 189423 | N22: =K22-BERE!V22 -> 450372
A23: =BERE!A23 -> 2024-25 | B23: =BERE!B23 -> RE | C23: =SUM(BERE!C23:M23) -> 3853455 | D23: =C23-BERE!N23-BERE!O23 -> 2556960 | E23: =SUM(BERE!P23:R23) -> 531000 | F23: 3087960 | G23: =SUM(BERE!S23:T23) -> 59000 | H23: 3146960 | I23: =BERE!U23-BERE!V23-BERE!W23-BERE!X23-BERE!Y23-BERE!Z23 -> 1010167 | J23: =BERE!U23+BERE!AB23 -> 4716487 | K23: =BERE2!J23-BERE2!H23 -> 1569527 | L23: =BERE!U23-BERE2!F23 -> 610098 | M23: =L23-BERE!AA23 -> 310207 | N23: =K23-BERE!V23 -> 431587
A24: =BERE!A24 -> 0 | B24: =BERE!B24 -> 0 | C24: =SUM(BERE!C24:M24) -> 0 | D24: =C24-BERE!N24-BERE!O24 -> 0 | E24: =SUM(BERE!P24:R24) -> 0 | F24: 0 | G24: =SUM(BERE!S24:T24) -> 0 | H24: 0 | I24: =BERE!U24-BERE!V24-BERE!W24-BERE!X24-BERE!Y24-BERE!Z24 -> 0 | J24: =BERE!U24+BERE!AB24 -> 0 | K24: =BERE2!J24-BERE2!H24 -> 0 | L24: =BERE!U24-BERE2!F24 -> 0 | M24: =L24-BERE!AA24 -> 0 | N24: =K24-BERE!V24 -> 0
A25: =BERE!A25 -> 0 | B25: =BERE!B25 -> 0 | C25: =SUM(BERE!C25:M25) -> 0 | D25: =C25-BERE!N25-BERE!O25 -> 0 | E25: =SUM(BERE!P25:R25) -> 0 | F25: 0 | G25: =SUM(BERE!S25:T25) -> 0 | H25: 0 | I25: =BERE!U25-BERE!V25-BERE!W25-BERE!X25-BERE!Y25-BERE!Z25 -> 0 | J25: =BERE!U25+BERE!AB25 -> 0 | K25: =BERE2!J25-BERE2!H25 -> 0 | L25: =BERE!U25-BERE2!F25 -> 0 | M25: =L25-BERE!AA25 -> 0 | N25: =K25-BERE!V25 -> 0
A26: =BERE!A26 -> 0 | B26: =BERE!B26 -> 0 | C26: =SUM(BERE!C26:M26) -> 0 | D26: =C26-BERE!N26-BERE!O26 -> 0 | E26: =SUM(BERE!P26:R26) -> 0 | F26: 0 | G26: =SUM(BERE!S26:T26) -> 0 | H26: 0 | I26: =BERE!U26-BERE!V26-BERE!W26-BERE!X26-BERE!Y26-BERE!Z26 -> 0 | J26: =BERE!U26+BERE!AB26 -> 0 | K26: =BERE2!J26-BERE2!H26 -> 0 | L26: =BERE!U26-BERE2!F26 -> 0 | M26: =L26-BERE!AA26 -> 0 | N26: =K26-BERE!V26 -> 0
A27: =BERE!A27 -> 0 | B27: =BERE!B27 -> 0 | C27: =SUM(BERE!C27:M27) -> 0 | D27: =C27-BERE!N27-BERE!O27 -> 0 | E27: =SUM(BERE!P27:R27) -> 0 | F27: 0 | G27: =SUM(BERE!S27:T27) -> 0 | H27: 0 | I27: =BERE!U27-BERE!V27-BERE!W27-BERE!X27-BERE!Y27-BERE!Z27 -> 0 | J27: =BERE!U27+BERE!AB27 -> 0 | K27: =BERE2!J27-BERE2!H27 -> 0 | L27: =BERE!U27-BERE2!F27 -> 0 | M27: =L27-BERE!AA27 -> 0 | N27: =K27-BERE!V27 -> 0
A28: =BERE!A28 -> 0 | B28: =BERE!B28 -> 0 | C28: =SUM(BERE!C28:M28) -> 0 | D28: =C28-BERE!N28-BERE!O28 -> 0 | E28: =SUM(BERE!P28:R28) -> 0 | F28: 0 | G28: =SUM(BERE!S28:T28) -> 0 | H28: 0 | I28: =BERE!U28-BERE!V28-BERE!W28-BERE!X28-BERE!Y28-BERE!Z28 -> 0 | J28: =BERE!U28+BERE!AB28 -> 0 | K28: =BERE2!J28-BERE2!H28 -> 0 | L28: =BERE!U28-BERE2!F28 -> 0 | M28: =L28-BERE!AA28 -> 0 | N28: =K28-BERE!V28 -> 0
A29: =BERE!A29 -> 0 | B29: =BERE!B29 -> 0 | C29: =SUM(BERE!C29:M29) -> 0 | D29: =C29-BERE!N29-BERE!O29 -> 0 | E29: =SUM(BERE!P29:R29) -> 0 | F29: 0 | G29: =SUM(BERE!S29:T29) -> 0 | H29: 0 | I29: =BERE!U29-BERE!V29-BERE!W29-BERE!X29-BERE!Y29-BERE!Z29 -> 0 | J29: =BERE!U29+BERE!AB29 -> 0 | K29: =BERE2!J29-BERE2!H29 -> 0 | L29: =BERE!U29-BERE2!F29 -> 0 | M29: =L29-BERE!AA29 -> 0 | N29: =K29-BERE!V29 -> 0
A30: =BERE!A30 -> 0 | B30: =BERE!B30 -> 0 | C30: =SUM(BERE!C30:M30) -> 0 | D30: =C30-BERE!N30-BERE!O30 -> 0 | E30: =SUM(BERE!P30:R30) -> 0 | F30: 0 | G30: =SUM(BERE!S30:T30) -> 0 | H30: 0 | I30: =BERE!U30-BERE!V30-BERE!W30-BERE!X30-BERE!Y30-BERE!Z30 -> 0 | J30: =BERE!U30+BERE!AB30 -> 0 | K30: =BERE2!J30-BERE2!H30 -> 0 | L30: =BERE!U30-BERE2!F30 -> 0 | M30: =L30-BERE!AA30 -> 0 | N30: =K30-BERE!V30 -> 0
A31: =BERE!A31 -> 0 | B31: =BERE!B31 -> 0 | C31: =SUM(BERE!C31:M31) -> 0 | D31: =C31-BERE!N31-BERE!O31 -> 0 | E31: =SUM(BERE!P31:R31) -> 0 | F31: 0 | G31: =SUM(BERE!S31:T31) -> 0 | H31: 0 | I31: =BERE!U31-BERE!V31-BERE!W31-BERE!X31-BERE!Y31-BERE!Z31 -> 0 | J31: =BERE!U31+BERE!AB31 -> 0 | K31: =BERE2!J31-BERE2!H31 -> 0 | L31: =BERE!U31-BERE2!F31 -> 0 | M31: =L31-BERE!AA31 -> 0 | N31: =K31-BERE!V31 -> 0
A32: =BERE!A32 -> 0 | B32: =BERE!B32 -> 0 | C32: =SUM(BERE!C32:M32) -> 0 | D32: =C32-BERE!N32-BERE!O32 -> 0 | E32: =SUM(BERE!P32:R32) -> 0 | F32: 0 | G32: =SUM(BERE!S32:T32) -> 0 | H32: 0 | I32: =BERE!U32-BERE!V32-BERE!W32-BERE!X32-BERE!Y32-BERE!Z32 -> 0 | J32: =BERE!U32+BERE!AB32 -> 0 | K32: =BERE2!J32-BERE2!H32 -> 0 | L32: =BERE!U32-BERE2!F32 -> 0 | M32: =L32-BERE!AA32 -> 0 | N32: =K32-BERE!V32 -> 0
A33: =BERE!A33 -> 0 | B33: =BERE!B33 -> 0 | C33: =SUM(BERE!C33:M33) -> 0 | D33: =C33-BERE!N33-BERE!O33 -> 0 | E33: =SUM(BERE!P33:R33) -> 0 | F33: 0 | G33: =SUM(BERE!S33:T33) -> 0 | H33: 0 | I33: =BERE!U33-BERE!V33-BERE!W33-BERE!X33-BERE!Y33-BERE!Z33 -> 0 | J33: =BERE!U33+BERE!AB33 -> 0 | K33: =BERE2!J33-BERE2!H33 -> 0 | L33: =BERE!U33-BERE2!F33 -> 0 | M33: =L33-BERE!AA33 -> 0 | N33: =K33-BERE!V33 -> 0
A34: =BERE!A34 -> 0 | B34: =BERE!B34 -> 0 | C34: =SUM(BERE!C34:M34) -> 0 | D34: =C34-BERE!N34-BERE!O34 -> 0 | E34: =SUM(BERE!P34:R34) -> 0 | F34: 0 | G34: =SUM(BERE!S34:T34) -> 0 | H34: 0 | I34: =BERE!U34-BERE!V34-BERE!W34-BERE!X34-BERE!Y34-BERE!Z34 -> 0 | J34: =BERE!U34+BERE!AB34 -> 0 | K34: =BERE2!J34-BERE2!H34 -> 0 | L34: =BERE!U34-BERE2!F34 -> 0 | M34: =L34-BERE!AA34 -> 0 | N34: =K34-BERE!V34 -> 0
A35: =BERE!A35 -> 0 | B35: =BERE!B35 -> 0 | C35: =SUM(BERE!C35:M35) -> 0 | D35: =C35-BERE!N35-BERE!O35 -> 0 | E35: =SUM(BERE!P35:R35) -> 0 | F35: 0 | G35: =SUM(BERE!S35:T35) -> 0 | H35: 0 | I35: =BERE!U35-BERE!V35-BERE!W35-BERE!X35-BERE!Y35-BERE!Z35 -> 0 | J35: =BERE!U35+BERE!AB35 -> 0 | K35: =BERE2!J35-BERE2!H35 -> 0 | L35: =BERE!U35-BERE2!F35 -> 0 | M35: =L35-BERE!AA35 -> 0 | N35: =K35-BERE!V35 -> 0
A36: =BERE!A36 -> 0 | B36: =BERE!B36 -> 0 | C36: =SUM(BERE!C36:M36) -> 0 | D36: =C36-BERE!N36-BERE!O36 -> 0 | E36: =SUM(BERE!P36:R36) -> 0 | F36: 0 | G36: =SUM(BERE!S36:T36) -> 0 | H36: 0 | I36: =BERE!U36-BERE!V36-BERE!W36-BERE!X36-BERE!Y36-BERE!Z36 -> 0 | J36: =BERE!U36+BERE!AB36 -> 0 | K36: =BERE2!J36-BERE2!H36 -> 0 | L36: =BERE!U36-BERE2!F36 -> 0 | M36: =L36-BERE!AA36 -> 0 | N36: =K36-BERE!V36 -> 0
A37: =BERE!A37 -> 0 | B37: =BERE!B37 -> 0 | C37: =SUM(BERE!C37:M37) -> 0 | D37: =C37-BERE!N37-BERE!O37 -> 0 | E37: =SUM(BERE!P37:R37) -> 0 | F37: 0 | G37: =SUM(BERE!S37:T37) -> 0 | H37: 0 | I37: =BERE!U37-BERE!V37-BERE!W37-BERE!X37-BERE!Y37-BERE!Z37 -> 0 | J37: =BERE!U37+BERE!AB37 -> 0 | K37: =BERE2!J37-BERE2!H37 -> 0 | L37: =BERE!U37-BERE2!F37 -> 0 | M37: =L37-BERE!AA37 -> 0 | N37: =K37-BERE!V37 -> 0
A38: =BERE!A38 -> 0 | B38: =BERE!B38 -> 0 | C38: =SUM(BERE!C38:M38) -> 0 | D38: =C38-BERE!N38-BERE!O38 -> 0 | E38: =SUM(BERE!P38:R38) -> 0 | F38: 0 | G38: =SUM(BERE!S38:T38) -> 0 | H38: 0 | I38: =BERE!U38-BERE!V38-BERE!W38-BERE!X38-BERE!Y38-BERE!Z38 -> 0 | J38: =BERE!U38+BERE!AB38 -> 0 | K38: =BERE2!J38-BERE2!H38 -> 0 | L38: =BERE!U38-BERE2!F38 -> 0 | M38: =L38-BERE!AA38 -> 0 | N38: =K38-BERE!V38 -> 0
A39: =BERE!A39 -> 0 | B39: =BERE!B39 -> 0 | C39: =SUM(BERE!C39:M39) -> 0 | D39: =C39-BERE!N39-BERE!O39 -> 0 | E39: =SUM(BERE!P39:R39) -> 0 | F39: 0 | G39: =SUM(BERE!S39:T39) -> 0 | H39: 0 | I39: =BERE!U39-BERE!V39-BERE!W39-BERE!X39-BERE!Y39-BERE!Z39 -> 0 | J39: =BERE!U39+BERE!AB39 -> 0 | K39: =BERE2!J39-BERE2!H39 -> 0 | L39: =BERE!U39-BERE2!F39 -> 0 | M39: =L39-BERE!AA39 -> 0 | N39: =K39-BERE!V39 -> 0
A40: =BERE!A40 -> 0 | B40: =BERE!B40 -> 0 | C40: =SUM(BERE!C40:M40) -> 0 | D40: =C40-BERE!N40-BERE!O40 -> 0 | E40: =SUM(BERE!P40:R40) -> 0 | F40: 0 | G40: =SUM(BERE!S40:T40) -> 0 | H40: 0 | I40: =BERE!U40-BERE!V40-BERE!W40-BERE!X40-BERE!Y40-BERE!Z40 -> 0 | J40: =BERE!U40+BERE!AB40 -> 0 | K40: =BERE2!J40-BERE2!H40 -> 0 | L40: =BERE!U40-BERE2!F40 -> 0 | M40: =L40-BERE!AA40 -> 0 | N40: =K40-BERE!V40 -> 0
A41: =BERE!A41 -> 0 | B41: =BERE!B41 -> 0 | C41: =SUM(BERE!C41:M41) -> 0 | D41: =C41-BERE!N41-BERE!O41 -> 0 | E41: =SUM(BERE!P41:R41) -> 0 | F41: 0 | G41: =SUM(BERE!S41:T41) -> 0 | H41: 0 | I41: =BERE!U41-BERE!V41-BERE!W41-BERE!X41-BERE!Y41-BERE!Z41 -> 0 | J41: =BERE!U41+BERE!AB41 -> 0 | K41: =BERE2!J41-BERE2!H41 -> 0 | L41: =BERE!U41-BERE2!F41 -> 0 | M41: =L41-BERE!AA41 -> 0 | N41: =K41-BERE!V41 -> 0
A42: =BERE!A42 -> 0 | B42: =BERE!B42 -> 0 | C42: =SUM(BERE!C42:M42) -> 0 | D42: =C42-BERE!N42-BERE!O42 -> 0 | E42: =SUM(BERE!P42:R42) -> 0 | F42: 0 | G42: =SUM(BERE!S42:T42) -> 0 | H42: 0 | I42: =BERE!U42-BERE!V42-BERE!W42-BERE!X42-BERE!Y42-BERE!Z42 -> 0 | J42: =BERE!U42+BERE!AB42 -> 0 | K42: =BERE2!J42-BERE2!H42 -> 0 | L42: =BERE!U42-BERE2!F42 -> 0 | M42: =L42-BERE!AA42 -> 0 | N42: =K42-BERE!V42 -> 0
A43: =BERE!A43 -> 0 | B43: =BERE!B43 -> 0 | C43: =SUM(BERE!C43:M43) -> 0 | D43: =C43-BERE!N43-BERE!O43 -> 0 | E43: =SUM(BERE!P43:R43) -> 0 | F43: 0 | G43: =SUM(BERE!S43:T43) -> 0 | H43: 0 | I43: =BERE!U43-BERE!V43-BERE!W43-BERE!X43-BERE!Y43-BERE!Z43 -> 0 | J43: =BERE!U43+BERE!AB43 -> 0 | K43: =BERE2!J43-BERE2!H43 -> 0 | L43: =BERE!U43-BERE2!F43 -> 0 | M43: =L43-BERE!AA43 -> 0 | N43: =K43-BERE!V43 -> 0
A44: =BERE!A44 -> 0 | B44: =BERE!B44 -> 0 | C44: =SUM(BERE!C44:M44) -> 0 | D44: =C44-BERE!N44-BERE!O44 -> 0 | E44: =SUM(BERE!P44:R44) -> 0 | F44: 0 | G44: =SUM(BERE!S44:T44) -> 0 | H44: 0 | I44: =BERE!U44-BERE!V44-BERE!W44-BERE!X44-BERE!Y44-BERE!Z44 -> 0 | J44: =BERE!U44+BERE!AB44 -> 0 | K44: =BERE2!J44-BERE2!H44 -> 0 | L44: =BERE!U44-BERE2!F44 -> 0 | M44: =L44-BERE!AA44 -> 0 | N44: =K44-BERE!V44 -> 0

Sheet Sheet4 (hidden)
B1: =I2 -> 2019-20 | C1: 2020-21 | D1: 2021-22 | E1: 2022-23 | F1: 2023-24 | G1: 2024-25
A2: =CONCATENATE("(Upto ",LEFT(B2,3),")") -> (Upto Jan) | B2: =Sheet5!S7 -> Jan-20 | C2: =Sheet5!R7 -> Jan-21 | D2: =Sheet5!Q7 -> Jan-22 | E2: =Sheet5!P7 -> Jan-23 | F2: =Sheet5!E6 -> Jan-24 | G2: =Sheet5!E4 -> Jan-25 | I2: =Sheet5!S6 -> 2019-20 | J2: =Sheet5!R6 -> 2020-21 | K2: =Sheet5!Q6 -> 2021-22 | L2: =Sheet5!P6 -> 2022-23 | M2: =Sheet5!D6 -> 2023-24 | N2: =Sheet5!D4 -> 2024-25
A3: =Sheet5!D15 -> Net Tax Revenue | B3: =Sheet5!S15 -> 998037 | C3: =Sheet5!R15 -> 1101855 | D3: =Sheet5!Q15 -> 1547436 | E3: =Sheet5!P15 -> 1688710 | F3: =Sheet5!F15 -> 1879840 | G3: =Sheet5!E15 -> 1903558 | H3: TRUE | I3: =B3/B$6 -> 0.7779799307 | J3: 0.8586012465 | K3: 0.8268355707 | L3: 0.854245886 | M3: 0.8346950085 | N3: 0.7930130328 | P3: =IF(H3=TRUE,1,0) -> 1
A4: =Sheet5!D17 -> Non Tax Revenue | B4: =Sheet5!S17 -> 252083 | C4: =Sheet5!R17 -> 141104 | D4: =Sheet5!Q17 -> 291485 | E4: =Sheet5!P17 -> 230939 | F4: =Sheet5!F17 -> 338069 | G4: =Sheet5!E17 -> 467630 | H4: TRUE | I4: =B4/B$6 -> 0.1965012468 | J4: 0.1099528253 | K4: =D4/D$6 -> 0.1557480673 | L4: =E4/E$6 -> 0.116822125 | M4: =F4/F$6 -> 0.1501109173 | N4: =G4/G$6 -> 0.1948123905 | P4: =IF(H4=TRUE,2,0) -> 2
A5: =Sheet5!D19 -> Non Debt Capital Receipts | B5: =Sheet5!S19 -> 32737 | C5: =Sheet5!R19 -> 40355 | D5: =Sheet5!Q19 -> 32595 | E5: =Sheet5!P19 -> 57194 | F5: =Sheet5!F19 -> 34219 | G5: =Sheet5!E19 -> 29224 | H5: TRUE | I5: =B5/B$6 -> 0.02551882244 | J5: 0.03144592828 | K5: 0.01741636192 | L5: 0.02893198904 | M5: 0.01519407423 | N5: 0.0121745767 | P5: =IF(H5=TRUE,4,0) -> 4
A6: =Sheet5!D9 -> Total Receipts | B6: =Sheet5!S9 -> 1282857 | C6: =Sheet5!R9 -> 1283314 | D6: =Sheet5!Q9 -> 1871516 | E6: =Sheet5!P9 -> 1976843 | F6: =Sheet5!F9 -> 2252128 | G6: =Sheet5!E9 -> 2400412 | P6: =SUM(P3:P5) -> 7 | Q6: =IF(P6=1,"Net Tax Revenue",IF(P6=2,"Non Tax Revenue",IF(P6=3,"Revenue Receipts",IF(P6=4,"Non Debt Capital Receipts",IF(P6=7,"Total Receipts"," "))))) -> Total Receipts
A8: Dev to States & NCCD | B8: =Sheet5!S63+Sheet5!S65 -> 532904 | C8: =Sheet5!R63+Sheet5!R65 -> 413245 | D8: =Sheet5!Q63+Sheet5!Q65 -> 550744 | E8: =Sheet5!P63+Sheet5!P65 -> 673967 | F8: =Sheet5!F63+Sheet5!F65 -> 826357 | G8: =Sheet5!E63+Sheet5!E65 -> 1080798 | H8: TRUE
A9: =A3 -> Net Tax Revenue | B9: 998037 | C9: 1101855 | D9: 1547436 | E9: 1688710 | F9: 1879840 | G9: 1903558 | H9: TRUE
A11: =Sheet5!D67 -> Interest receipts | B11: =Sheet5!S67 -> 9386 | C11: =Sheet5!R67 -> 12662 | D11: =Sheet5!Q67 -> 18170 | E11: =Sheet5!P67 -> 20357 | F11: =Sheet5!F67 -> 29736 | G11: =Sheet5!E67 -> 32162 | H11: TRUE
A12: =Sheet5!D69 -> Dividends and Profits | B12: =Sheet5!S69 -> 162226 | C12: =Sheet5!R69 -> 74371 | D12: =Sheet5!Q69 -> 141753 | E12: =Sheet5!P69 -> 77303 | F12: =Sheet5!F69 -> 147848 | G12: =Sheet5!E69 -> 285868 | H12: TRUE
A13: =Sheet5!D71 -> Other Non Tax Receipts | B13: =Sheet5!S71 -> 80471 | C13: =Sheet5!R71 -> 54071 | D13: =Sheet5!Q71 -> 131562 | E13: =Sheet5!P71 -> 133279 | F13: =Sheet5!F71 -> 160485 | G13: =Sheet5!E71 -> 149600 | H13: TRUE
A15: =Sheet5!D73 -> Recovery of Loans & Advances | B15: =Sheet5!S73 -> 14386 | C15: =Sheet5!R73 -> 15804 | D15: =Sheet5!Q73 -> 20527 | E15: =Sheet5!P73 -> 18523 | F15: =Sheet5!F73 -> 21664 | G15: =Sheet5!E73 -> 20205 | H15: TRUE
A16: =Sheet5!D75 -> Misc. Capital Receipts | B16: =Sheet5!S75 -> 18351 | C16: =Sheet5!R75 -> 24551 | D16: =Sheet5!Q75 -> 12068 | E16: =Sheet5!P75 -> 38671 | F16: =Sheet5!F75 -> 12555 | G16: =Sheet5!E75 -> 9019 | H16: TRUE
A18: =Sheet5!D21 -> Revenue Expenditure | B18: =Sheet5!S21 -> 2000595 | C18: =Sheet5!R21 -> 2155210 | D18: =Sheet5!Q21 -> 2367698 | E18: =Sheet5!P21 -> 2597756 | F18: =Sheet5!F21 -> 2633543 | G18: =Sheet5!E21 -> 2812595 | H18: TRUE
A19: =Sheet5!D23 -> Capital Expenditure | B19: =Sheet5!S23 -> 267734 | C19: =Sheet5!R23 -> 362108 | D19: =Sheet5!Q23 -> 441686 | E19: =Sheet5!P23 -> 569892 | F19: =Sheet5!F23 -> 721187 | G19: =Sheet5!E23 -> 757359 | H19: TRUE
A20: =IF(MONTH(Dashboard!$D$8)<4,"RE","BE") -> RE | B20: =SUM(B21:B22) -> 2698552 | C20: =SUM(C21:C22) -> 3450305 | D20: 3770000 | E20: 4187232 | F20: 4490486 | G20: 4716487
A21: =IF(MONTH(Dashboard!$D$8)<4,"RE","BE") -> RE | B21: =IF(MONTH(Dashboard!$D$8)<4,Sheet5!AB21,Sheet5!AA21) -> 2350438 | C21: =IF(MONTH(Dashboard!$D$8)<4,Sheet5!Z21,Sheet5!Y21) -> 3011916 | D21: =IF(MONTH(Dashboard!$D$8)<4,Sheet5!X21,Sheet5!W21) -> 3168067 | E21: =IF(MONTH(Dashboard!$D$8)<4,Sheet5!V21,Sheet5!U21) -> 3459464 | F21: =IF(MONTH(Dashboard!$D$8)<4,Sheet5!J21,Sheet5!I21) -> 3540931 | G21: =IF(MONTH(Dashboard!$D$8)<4,Sheet5!H21,Sheet5!G21) -> 3698058
A22: =IF(MONTH(Dashboard!$D$8)<4,"RE","BE") -> RE | B22: =IF(MONTH(Dashboard!$D$8)<4,Sheet5!AB23,Sheet5!AA23) -> 348114 | C22: =IF(MONTH(Dashboard!$D$8)<4,Sheet5!Z23,Sheet5!Y23) -> 438389 | D22: =IF(MONTH(Dashboard!$D$8)<4,Sheet5!X23,Sheet5!W23) -> 601933 | E22: =IF(MONTH(Dashboard!$D$8)<4,Sheet5!V23,Sheet5!U23) -> 727768 | F22: =IF(MONTH(Dashboard!$D$8)<4,Sheet5!J23,Sheet5!I23) -> 949555 | G22: =IF(MONTH(Dashboard!$D$8)<4,Sheet5!H23,Sheet5!G23) -> 1018429
A25: =Sheet5!D25 -> Interest Payments | B25: =Sheet5!S25 -> 471916 | C25: =Sheet5!R25 -> 519597 | D25: =Sheet5!Q25 -> 616076 | E25: =Sheet5!P25 -> 738658 | F25: =Sheet5!F25 -> 821731 | G25: =Sheet5!E25 -> 875461
A26: =Sheet5!D27 -> Defence Services | B26: =Sheet5!S27 -> 178460 | C26: =Sheet5!R27 -> 171692 | D26: =Sheet5!Q27 -> 198220 | E26: =Sheet5!P27 -> 212340 | F26: =Sheet5!F27 -> 237358 | G26: =Sheet5!E27 -> 242924
A27: =Sheet5!D29 -> Grants in Aid to States & UTs | B27: =Sheet5!S29 -> 418070 | C27: =Sheet5!R29 -> 476409 | D27: =Sheet5!Q29 -> 468740 | E27: =Sheet5!P29 -> 423054 | F27: =Sheet5!F29 -> 401814 | G27: =Sheet5!E29 -> 410867
A28: =Sheet5!D31 -> Pensions | B28: =Sheet5!S31 -> 174294 | C28: =Sheet5!R31 -> 175714 | D28: =Sheet5!Q31 -> 166517 | E28: =Sheet5!P31 -> 189100 | F28: =Sheet5!F31 -> 214188 | G28: =Sheet5!E31 -> 237358
A29: =Sheet5!D33 -> Major Subsidies | B29: =Sheet5!S33 -> 262978 | C29: =Sheet5!R33 -> 252656 | D29: =Sheet5!Q33 -> 327703 | E29: =Sheet5!P33 -> 399400 | F29: =Sheet5!F33 -> 315559 | G29: =Sheet5!E33 -> 337733
A30: =Sheet5!D35 -> Other Revenue Expenditure | B30: =Sheet5!S35 -> 494877 | C30: =Sheet5!R35 -> 559142 | D30: =Sheet5!Q35 -> 590442 | E30: =Sheet5!P35 -> 635204 | F30: =Sheet5!F35 -> 642893 | G30: =Sheet5!E35 -> 708252
A32: =A22 -> RE
A33: =A25 -> Interest Payments | B33: =IF(MONTH(Dashboard!$D$8)<4,Sheet5!AB25,Sheet5!AA25) -> 625105 | C33: =IF(MONTH(Dashboard!$D$8)<4,Sheet5!Z25,Sheet5!Y25) -> 692900 | D33: =IF(MONTH(Dashboard!$D$8)<4,Sheet5!X25,Sheet5!W25) -> 813791 | E33: =IF(MONTH(Dashboard!$D$8)<4,Sheet5!V25,Sheet5!U25) -> 940651 | F33: =IF(MONTH(Dashboard!$D$8)<4,Sheet5!J25,Sheet5!I25) -> 1055427 | G33: =IF(MONTH(Dashboard!$D$8)<4,Sheet5!H25,Sheet5!G25) -> 1137940
A34: =A26 -> Defence Services | B34: =IF(MONTH(Dashboard!$D$8)<4,Sheet5!AB27,Sheet5!AA27) -> 205902 | C34: =IF(MONTH(Dashboard!$D$8)<4,Sheet5!Z27,Sheet5!Y27) -> 209312 | D34: =IF(MONTH(Dashboard!$D$8)<4,Sheet5!X27,Sheet5!W27) -> 229567 | E34: =IF(MONTH(Dashboard!$D$8)<4,Sheet5!V27,Sheet5!U27) -> 259500 | F34: =IF(MONTH(Dashboard!$D$8)<4,Sheet5!J27,Sheet5!I27) -> 298669 | G34: =IF(MONTH(Dashboard!$D$8)<4,Sheet5!H27,Sheet5!G27) -> 297222
A35: Grants in Aid to States & UTs | B35: =IF(MONTH(Dashboard!$D$8)<4,Sheet5!AB29,Sheet5!AA29) -> 475152 | C35: =IF(MONTH(Dashboard!$D$8)<4,Sheet5!Z29,Sheet5!Y29) -> 559025 | D35: =IF(MONTH(Dashboard!$D$8)<4,Sheet5!X29,Sheet5!W29) -> 587918 | E35: =IF(MONTH(Dashboard!$D$8)<4,Sheet5!V29,Sheet5!U29) -> 613196 | F35: =IF(MONTH(Dashboard!$D$8)<4,Sheet5!J29,Sheet5!I29) -> 590531 | G35: =IF(MONTH(Dashboard!$D$8)<4,Sheet5!H29,Sheet5!G29) -> 594207
A36: Pensions | B36: =IF(MONTH(Dashboard!$D$8)<4,Sheet5!AB31,Sheet5!AA31) -> 184147 | C36: =IF(MONTH(Dashboard!$D$8)<4,Sheet5!Z31,Sheet5!Y31) -> 204393 | D36: =IF(MONTH(Dashboard!$D$8)<4,Sheet5!X31,Sheet5!W31) -> 198962 | E36: =IF(MONTH(Dashboard!$D$8)<4,Sheet5!V31,Sheet5!U31) -> 244780 | F36: =IF(MONTH(Dashboard!$D$8)<4,Sheet5!J31,Sheet5!I31) -> 238049 | G36: =IF(MONTH(Dashboard!$D$8)<4,Sheet5!H31,Sheet5!G31) -> 275103
A37: Major Subsidies | B37: =IF(MONTH(Dashboard!$D$8)<4,Sheet5!AB33,Sheet5!AA33) -> 227255 | C37: =IF(MONTH(Dashboard!$D$8)<4,Sheet5!Z33,Sheet5!Y33) -> 595620 | D37: =IF(MONTH(Dashboard!$D$8)<4,Sheet5!X33,Sheet5!W33) -> 422108 | E37: =IF(MONTH(Dashboard!$D$8)<4,Sheet5!V33,Sheet5!U33) -> 521585 | F37: =IF(MONTH(Dashboard!$D$8)<4,Sheet5!J33,Sheet5!I33) -> 413466 | G37: =IF(MONTH(Dashboard!$D$8)<4,Sheet5!H33,Sheet5!G33) -> 383419
A38: =A30 -> Other Revenue Expenditure | B38: =IF(MONTH(Dashboard!$D$8)<4,Sheet5!AB35,Sheet5!AA35) -> 632877 | C38: =IF(MONTH(Dashboard!$D$8)<4,Sheet5!Z35,Sheet5!Y35) -> 750666 | D38: =IF(MONTH(Dashboard!$D$8)<4,Sheet5!X35,Sheet5!W35) -> 915721 | E38: =IF(MONTH(Dashboard!$D$8)<4,Sheet5!V35,Sheet5!U35) -> 879752 | F38: =IF(MONTH(Dashboard!$D$8)<4,Sheet5!J35,Sheet5!I35) -> 944789 | G38: =IF(MONTH(Dashboard!$D$8)<4,Sheet5!H35,Sheet5!G35) -> 1010167
A40: =Sheet5!D13 -> Fiscal Deficit | B40: =Sheet5!S13 -> 985472 | C40: =Sheet5!R13 -> 1234004 | D40: =Sheet5!Q13 -> 937868 | E40: =Sheet5!P13 -> 1190805 | F40: =Sheet5!F13 -> 1102602 | G40: =Sheet5!E13 -> 1169542
A41: =Sheet5!D37 -> Revenue Deficit | B41: =Sheet5!S37 -> 750475 | C41: =Sheet5!R37 -> 912251 | D41: =Sheet5!Q37 -> 528777 | E41: =Sheet5!P37 -> 678107 | F41: =Sheet5!F37 -> 415634 | G41: =Sheet5!E37 -> 441407
A42: =Sheet5!D41 -> Primary Deficit | B42: =Sheet5!S41 -> 513556 | C42: =Sheet5!R41 -> 714407 | D42: =Sheet5!Q41 -> 321792 | E42: =Sheet5!P41 -> 452147 | F42: =Sheet5!F41 -> 280871 | G42: =Sheet5!E41 -> 294081
A44: =A22 -> RE
A45: =A40 -> Fiscal Deficit | B45: =IF(MONTH(Dashboard!$D$8)<4,Sheet5!AB13,Sheet5!AA13) -> 766846 | C45: =IF(MONTH(Dashboard!$D$8)<4,Sheet5!Z13,Sheet5!Y13) -> 1848655 | D45: =IF(MONTH(Dashboard!$D$8)<4,Sheet5!X13,Sheet5!W13) -> 1591089 | E45: =IF(MONTH(Dashboard!$D$8)<4,Sheet5!V13,Sheet5!U13) -> 1755319 | F45: =IF(MONTH(Dashboard!$D$8)<4,Sheet5!J13,Sheet5!I13) -> 1734773 | G45: =IF(MONTH(Dashboard!$D$8)<4,Sheet5!H13,Sheet5!G13) -> 1569527
A46: =A41 -> Revenue Deficit | B46: =IF(MONTH(Dashboard!$D$8)<4,Sheet5!AB37,Sheet5!AA37) -> 500337 | C46: =IF(MONTH(Dashboard!$D$8)<4,Sheet5!Z37,Sheet5!Y37) -> 1456763 | D46: =IF(MONTH(Dashboard!$D$8)<4,Sheet5!X37,Sheet5!W37) -> 1089131 | E46: =IF(MONTH(Dashboard!$D$8)<4,Sheet5!V37,Sheet5!U37) -> 1111051 | F46: =IF(MONTH(Dashboard!$D$8)<4,Sheet5!J37,Sheet5!I37) -> 841218 | G46: =IF(MONTH(Dashboard!$D$8)<4,Sheet5!H37,Sheet5!G37) -> 610098
A47: Primary Deficit | B47: =IF(MONTH(Dashboard!$D$8)<4,Sheet5!AB41,Sheet5!AA41) -> 141741 | C47: =IF(MONTH(Dashboard!$D$8)<4,Sheet5!Z41,Sheet5!Y41) -> 1155755 | D47: =IF(MONTH(Dashboard!$D$8)<4,Sheet5!X41,Sheet5!W41) -> 777298 | E47: =IF(MONTH(Dashboard!$D$8)<4,Sheet5!V41,Sheet5!U41) -> 814668 | F47: =IF(MONTH(Dashboard!$D$8)<4,Sheet5!J41,Sheet5!I41) -> 679346 | G47: =IF(MONTH(Dashboard!$D$8)<4,Sheet5!H41,Sheet5!G41) -> 431587
A59: % age to GDP | B59: =Sheet5!S4 -> 20103593 | C59: =Sheet5!R4 -> 19854096 | D59: =Sheet5!Q4 -> 23597399 | E59: =Sheet5!P4 -> 26949646 | F59: =Sheet5!O6 -> 29535667 | G59: =Sheet5!O4 -> 32636912
A60: =A3 -> Net Tax Revenue | B60: =B3/B$59 -> 0.04964470779 | C60: 0.05549761621 | D60: 0.06557654935 | E60: 0.06266167652 | F60: 0.06364643805 | G60: 0.0583253097
A61: =A4 -> Non Tax Revenue | B61: 0.01253920133 | C61: 0.007107047332 | D61: 0.01235242071 | E61: 0.008569277682 | F61: 0.01144612715 | G61: 0.01432825508
A62: =A5 -> Non Debt Capital Receipts | B62: 0.001628415378 | C62: 0.002032578063 | D62: 0.001381296303 | E62: 0.002122254222 | F62: 0.001158565337 | G62: 0.0008954278518
A63: =A6 -> Total Receipts | B63: 0.06381232449 | C63: 0.0646372416 | D63: 0.07931026636 | E63: 0.07335320842 | F63: 0.07625113054 | G63: 0.07354899263
B75: =I2 -> 2019-20 | C75: 2020-21 | D75: 2021-22 | E75: 2022-23 | F75: 2023-24 | G75: 2024-25
A76: =A3 -> Net Tax Revenue | B76: =IF($H3=TRUE,B3,0) -> 998037 | C76: 1101855 | D76: 1547436 | E76: 1688710 | F76: 1879840 | G76: 1903558
A77: =A4 -> Non Tax Revenue | B77: 252083 | C77: 141104 | D77: 291485 | E77: 230939 | F77: 338069 | G77: 467630
A78: =A5 -> Non Debt Capital Receipts | B78: 32737 | C78: 40355 | D78: 32595 | E78: 57194 | F78: 34219 | G78: 29224
B79: =SUM(B76:B78) -> 1282857 | C79: =SUM(C76:C78) -> 1283314 | D79: 1871516 | E79: 1976843 | F79: 2252128 | G79: 2400412
A81: =A76 -> Net Tax Revenue | B81: =IF(B76=0," ",B76/B$6) -> 0.7779799307 | C81: =IF(C76=0," ",C76/C$6) -> 0.8586012465 | D81: 0.8268355707 | E81: 0.854245886 | F81: 0.8346950085 | G81: 0.7930130328
A82: =A77 -> Non Tax Revenue | B82: =IF(B77=0," ",B77/B$6) -> 0.1965012468 | C82: 0.1099528253 | D82: 0.1557480673 | E82: 0.116822125 | F82: 0.1501109173 | G82: 0.1948123905
A83: =A78 -> Non Debt Capital Receipts | B83: =IF(B78=0," ",B78/B$6) -> 0.02551882244 | C83: 0.03144592828 | D83: 0.01741636192 | E83: 0.02893198904 | F83: 0.01519407423 | G83: 0.0121745767
B86: =B75 -> 2019-20 | C86: =C75 -> 2020-21 | D86: 2021-22 | E86: 2022-23 | F86: 2023-24 | G86: 2024-25
A87: =A8 -> Dev to States & NCCD | B87: =IF($H8=TRUE,B8," ") -> 532904 | C87: 413245 | D87: 550744 | E87: 673967 | F87: 826357 | G87: 1080798 | H87: =IF(H8=TRUE,1,0) -> 1
A88: =A9 -> Net Tax Revenue | B88: 998037 | C88: 1101855 | D88: 1547436 | E88: 1688710 | F88: 1879840 | G88: 1903558 | H88: =IF(H9=TRUE,2,0) -> 2
A89: Gross Tax Revenue | B89: =IF($H$89=3,SUM(B87:B88)," ") -> 1530941 | C89: =IF($H$89=3,SUM(C87:C88)," ") -> 1515100 | D89: 2098180 | E89: 2362677 | F89: 2706197 | G89: 2984356 | H89: =SUM(H87:H88) -> 3 | I89: =IF(H89=1,"Devolution to States & Transfer to NCCD",IF(H89=2,"Net Tax Revenue",IF(H89=3,"Gross Tax Revenue"," " ))) -> Gross Tax Revenue
B91: =B86 -> 2019-20 | C91: =C86 -> 2020-21 | D91: 2021-22 | E91: 2022-23 | F91: 2023-24 | G91: 2024-25
A92: =A11 -> Interest receipts | B92: =IF($H11=TRUE,B11," ") -> 9386 | C92: 12662 | D92: 18170 | E92: 20357 | F92: 29736 | G92: 32162 | H92: =IF(H11=TRUE,1,0) -> 1
A93: =A12 -> Dividends and Profits | B93: 162226 | C93: 74371 | D93: 141753 | E93: 77303 | F93: 147848 | G93: 285868 | H93: =IF(H12=TRUE,2,0) -> 2
A94: =A13 -> Other Non Tax Receipts | B94: 80471 | C94: 54071 | D94: 131562 | E94: 133279 | F94: 160485 | G94: 149600 | H94: =IF(H13=TRUE,4,0) -> 4
A95: Total Non Tax Revenue | B95: =SUM(B92:B94) -> 252083 | C95: =SUM(C92:C94) -> 141104 | D95: 291485 | E95: 230939 | F95: 338069 | G95: 467630 | H95: =SUM(H92:H94) -> 7 | I95: =IF(H95=1,"Interest Receipts",IF(H95=2,"Dividends and Profits",IF(H95=4,"Other Non Tax Receipts",IF(H95=7,"Total Non Tax Revenue"," ")))) -> Total Non Tax Revenue
B97: =B91 -> 2019-20 | C97: =C91 -> 2020-21 | D97: 2021-22 | E97: 2022-23 | F97: 2023-24 | G97: 2024-25
A98: =A15 -> Recovery of Loans & Advances | B98: =IF($H15=TRUE,B15," ") -> 14386 | C98: 15804 | D98: 20527 | E98: 18523 | F98: 21664 | G98: 20205 | H98: =IF(H15=TRUE,1,0) -> 1
A99: =A16 -> Misc. Capital Receipts | B99: 18351 | C99: 24551 | D99: 12068 | E99: 38671 | F99: 12555 | G99: 9019 | H99: =IF(H16=TRUE,2,0) -> 2
A100: Non Debt Capital Receipts | B100: =SUM(B98:B99) -> 32737 | C100: =SUM(C98:C99) -> 40355 | D100: 32595 | E100: 57194 | F100: 34219 | G100: 29224 | H100: =SUM(H98:H99) -> 3 | I100: =IF(H100=1,"Rec. of Loans & Advances",IF(H100=2,"Misc. Capital Receipts",IF(H100=3,"Non Debt Capital Receipts"," " ))) -> Non Debt Capital Receipts
B102: =B97 -> 2019-20 | C102: =C97 -> 2020-21 | D102: 2021-22 | E102: 2022-23 | F102: 2023-24 | G102: 2024-25
A103: =A18 -> Revenue Expenditure | B103: =IF($H18=TRUE,B18," ") -> 2000595 | C103: 2155210 | D103: 2367698 | E103: 2597756 | F103: 2633543 | G103: 2812595 | H103: =IF(H18=TRUE,1,0) -> 1
A104: =A19 -> Capital Expenditure | B104: 267734 | C104: 362108 | D104: 441686 | E104: 569892 | F104: 721187 | G104: 757359 | H104: =IF(H19=TRUE,2,0) -> 2
A105: Total Expenditure | B105: =SUM(B103:B104) -> 2268329 | C105: =SUM(C103:C104) -> 2517318 | D105: 2809384 | E105: 3167648 | F105: 3354730 | G105: 3569954 | H105: =SUM(H103:H104) -> 3 | I105: =IF(H105=1,"Revenue Expenditure",IF(H105=2,"Capital Expenditure",IF(H105=3,"Total Expenditure"," " ))) -> Total Expenditure
A108: % to GDP | B108: =B102 -> 2019-20 | C108: =C102 -> 2020-21 | D108: 2021-22 | E108: 2022-23 | F108: 2023-24 | G108: 2024-25
A109: =A103 -> Revenue Expenditure | B109: =IF($H$103=1,B103/B$59," ") -> 0.09951430075 | C109: =IF($H$103=1,C103/C$59," ") -> 0.1085524116 | D109: 0.1003372448 | E109: 0.09639295448 | F109: 0.08916483924 | G109: 0.0861783431
A110: =A104 -> Capital Expenditure | B110: =IF($H$104=2,B104/B$59," ") -> 0.01331771888 | C110: =IF($H$104=2,C104/C$59," ") -> 0.01823845316 | D110: 0.01871757137 | E110: 0.02114654864 | F110: 0.02441749496 | G110: 0.02320559617
A111: Total Expenditure | B111: =IF($H$105=3,B105/B$59," ") -> 0.1128320196 | C111: =IF($H$105=3,C105/C$59," ") -> 0.1267908647 | D111: 0.1190548162 | E111: 0.1175395031 | F111: 0.1135823342 | G111: 0.1093839393
A113: YoY Growth | C113: =C102 -> 2020-21 | D113: =D102 -> 2021-22 | E113: 2022-23 | F113: 2023-24 | G113: 2024-25
A114: =A109 -> Revenue Expenditure | C114: =C103/B103-1 -> 0.07728450786 | D114: =D103/C103-1 -> 0.09859271254 | E114: 0.09716526348 | F114: 0.01377612062 | G114: 0.06798901708
A115: =A110 -> Capital Expenditure | C115: =C104/B104-1 -> 0.3524916522 | D115: 0.2197631646 | E115: 0.2902650299 | F115: 0.2654801261 | G115: 0.05015620082
A116: Total Expenditure | C116: =C105/B105-1 -> 0.1097675866 | D116: 0.1160226876 | E116: 0.1275240409 | F116: 0.05906022386 | G116: 0.06415538657
B119: =B102 -> 2019-20 | C119: =C102 -> 2020-21 | D119: 2021-22 | E119: 2022-23 | F119: 2023-24 | G119: 2024-25
A120: =A103 -> Revenue Expenditure | B120: =B103 -> 2000595 | C120: 2155210 | D120: 2367698 | E120: 2597756 | F120: 2633543 | G120: 2812595
A121: =A104 -> Capital Expenditure | B121: =B104 -> 267734 | C121: 362108 | D121: 441686 | E121: 569892 | F121: 721187 | G121: 757359
A122: =A105 -> Total Expenditure | B122: =B105 -> 2268329 | C122: 2517318 | D122: 2809384 | E122: 3167648 | F122: 3354730 | G122: 3569954
A123: =A20 -> RE | B123: =SUM(B124:B125) -> 2698552 | C123: =SUM(C124:C125) -> 3450305 | D123: 3770000 | E123: 4187232 | F123: 4490486 | G123: 4716487
A124: =A21 -> RE | B124: =IF($H18=TRUE,B21," ") -> 2350438 | C124: 3011916 | D124: 3168067 | E124: 3459464 | F124: 3540931 | G124: 3698058
A125: =A22 -> RE | B125: 348114 | C125: 438389 | D125: 601933 | E125: 727768 | F125: 949555 | G125: 1018429
B128: =B119 -> 2019-20 | C128: =C119 -> 2020-21 | D128: 2021-22 | E128: 2022-23 | F128: 2023-24 | G128: 2024-25
A129: =A25 -> Interest Payments | B129: =B25 -> 471916 | C129: 519597 | D129: 616076 | E129: 738658 | F129: 821731 | G129: 875461
A130: =A26 -> Defence Services | B130: 178460 | C130: 171692 | D130: 198220 | E130: 212340 | F130: 237358 | G130: 242924
A131: =A27 -> Grants in Aid to States & UTs | B131: 418070 | C131: 476409 | D131: 468740 | E131: 423054 | F131: 401814 | G131: 410867
A132: =A28 -> Pensions | B132: 174294 | C132: 175714 | D132: 166517 | E132: 189100 | F132: 214188 | G132: 237358
A133: =A29 -> Major Subsidies | B133: 262978 | C133: 252656 | D133: 327703 | E133: 399400 | F133: 315559 | G133: 337733
A134: =A30 -> Other Revenue Expenditure | B134: 494877 | C134: 559142 | D134: 590442 | E134: 635204 | F134: 642893 | G134: 708252
A135: Total | B135: =SUM(B129:B134) -> 2000595 | C135: =SUM(C129:C134) -> 2155210 | D135: 2367698 | E135: 2597756 | F135: 2633543 | G135: 2812595
B137: =B129/B$135 -> 0.2358878234 | C137: =C129/C$135 -> 0.2410888034 | D137: 0.2602004141 | E137: 0.2843446421 | F137: 0.3120249033 | G137: 0.3112645084
B138: =B130/B$135 -> 0.08920346197 | C138: 0.07966369867 | D138: 0.0837184472 | E138: 0.08173977849 | F138: 0.09012877329 | G138: 0.08637006039
B139: =B131/B$135 -> 0.2089728306 | C139: 0.2210499209 | D139: 0.1979728834 | E139: 0.1628536321 | F139: 0.1525754468 | G139: 0.1460811101
B140: =B132/B$135 -> 0.08712108148 | C140: 0.08152987412 | D140: 0.07032864833 | E140: 0.0727935957 | F140: 0.08133073962 | G140: 0.08439110501
B141: =B133/B$135 -> 0.1314498937 | C141: 0.1172303395 | D141: 0.1384057426 | E141: 0.153748081 | F141: 0.1198229913 | G141: 0.1200787884
B142: =B134/B$135 -> 0.2473649089 | C142: 0.2594373634 | D142: 0.2493738644 | E142: 0.2445202706 | F142: 0.2441171456 | G142: 0.2518144276
A144: =CONCATENATE("Actuals ", $A$2) -> Actuals (Upto Jan)
B147: =B128 -> 2019-20 | C147: =C128 -> 2020-21 | D147: 2021-22 | E147: 2022-23 | F147: 2023-24 | G147: 2024-25
A148: =A144 -> Actuals (Upto Jan) | B148: =B129 -> 471916 | C148: 519597 | D148: 616076 | E148: 738658 | F148: 821731 | G148: 875461
A149: =A20 -> RE | B149: =B33 -> 625105 | C149: 692900 | D149: 813791 | E149: 940651 | F149: 1055427 | G149: 1137940
A151: =A144 -> Actuals (Upto Jan) | B151: =B130 -> 178460 | C151: 171692 | D151: 198220 | E151: 212340 | F151: 237358 | G151: 242924
A152: =A149 -> RE | B152: =B34 -> 205902 | C152: =C34 -> 209312 | D152: 229567 | E152: 259500 | F152: 298669 | G152: 297222
A154: =A144 -> Actuals (Upto Jan) | B154: =B27 -> 418070 | C154: =C27 -> 476409 | D154: 468740 | E154: 423054 | F154: 401814 | G154: 410867
A155: =A152 -> RE | B155: =B35 -> 475152 | C155: 559025 | D155: 587918 | E155: 613196 | F155: 590531 | G155: 594207
A157: =A144 -> Actuals (Upto Jan) | B157: =B28 -> 174294 | C157: =C28 -> 175714 | D157: 166517 | E157: 189100 | F157: 214188 | G157: 237358
A158: =A152 -> RE | B158: =B36 -> 184147 | C158: 204393 | D158: 198962 | E158: 244780 | F158: 238049 | G158: 275103
A160: =A144 -> Actuals (Upto Jan) | B160: =B29 -> 262978 | C160: =C29 -> 252656 | D160: 327703 | E160: 399400 | F160: 315559 | G160: 337733
A161: =A158 -> RE | B161: =B37 -> 227255 | C161: 595620 | D161: 422108 | E161: 521585 | F161: 413466 | G161: 383419
A163: =A144 -> Actuals (Upto Jan) | B163: =B40 -> 985472 | C163: 1234004 | D163: 937868 | E163: 1190805 | F163: 1102602 | G163: 1169542
A164: =A158 -> RE | B164: =B45 -> 766846 | C164: 1848655 | D164: 1591089 | E164: 1755319 | F164: 1734773 | G164: 1569527
A166: =A144 -> Actuals (Upto Jan) | B166: =B41 -> 750475 | C166: 912251 | D166: 528777 | E166: 678107 | F166: 415634 | G166: 441407
A167: =A164 -> RE | B167: =B46 -> 500337 | C167: 1456763 | D167: 1089131 | E167: 1111051 | F167: 841218 | G167: 610098
A169: =A144 -> Actuals (Upto Jan) | B169: =B42 -> 513556 | C169: 714407 | D169: 321792 | E169: 452147 | F169: 280871 | G169: 294081
A170: =A167 -> RE | B170: =B47 -> 141741 | C170: 1155755 | D170: 777298 | E170: 814668 | F170: 679346 | G170: 431587
A172: % age to GDP | B172: =B147 -> 2019-20 | C172: =C147 -> 2020-21 | D172: 2021-22 | E172: 2022-23 | F172: 2023-24 | G172: 2024-25
A173: =A40 -> Fiscal Deficit | B173: =B163/B$59 -> 0.04901969514 | C173: =C163/C$59 -> 0.06215362311 | D173: 0.03974454981 | E173: 0.04418629469 | F173: 0.03733120366 | G173: 0.03583494664
A174: =A41 -> Revenue Deficit | B174: =B166/B$59 -> 0.03733039164 | C174: =C166/C$59 -> 0.04594774801 | D174: 0.02240827474 | E174: 0.02516200027 | F174: 0.01407227404 | G174: 0.01352477832
A175: Primary Deficit | B175: =B169/B$59 -> 0.02554548334 | C175: =C169/C$59 -> 0.0359828521 | D175: 0.01363675717 | E175: 0.01677747455 | F175: 0.009509553314 | G175: 0.00901068704

Sheet Sheet5 (hidden)
A3: Row Labels | D3: FY | E3: Month
A4: 2018-19 | C4: Current | D4: =Dashboard!D6 -> 2024-25 | E4: =Dashboard!D8 -> Jan-25 | H4: =MONTH(E4) -> 1 | J4: =MONTH(E4) -> 1 | O4: =VLOOKUP(D4,GDP[],2,0) -> 32636912 | P4: =VLOOKUP(P6,GDP[],2,0) -> 26949646 | Q4: =VLOOKUP(Q6,GDP[],2,0) -> 23597399 | R4: =VLOOKUP(R6,GDP[],2,0) -> 19854096 | S4: =VLOOKUP(S6,GDP[],2,0) -> 20103593
A5: 2019-20 | AG5: =CONCATENATE("Apr-",MID($D$4,3,2)) -> Apr-24 | AH5: =CONCATENATE("Apr-",MID($D$6,3,2)) -> Apr-23 | AI5: =CONCATENATE("Apr-",MID(P$6,3,2)) -> Apr-22 | AJ5: =CONCATENATE("Apr-",MID(Q$6,3,2)) -> Apr-21 | AK5: Apr-20
A6: 2020-21 | C6: COPPY | D6: =CONCATENATE(LEFT(D4,4)-1,"-",RIGHT(D4,2)-1) -> 2023-24 | E6: =CONCATENATE(LEFT(E4,4),RIGHT(E4,2)-1) -> Jan-24 | O6: =VLOOKUP(D6,GDP[],2,0) -> 29535667 | P6: =CONCATENATE(LEFT(D4,4)-2,"-",RIGHT(D4,2)-2) -> 2022-23 | Q6: =CONCATENATE(LEFT(D4,4)-3,"-",RIGHT(D4,2)-3) -> 2021-22 | R6: =CONCATENATE(LEFT(D4,4)-4,"-",RIGHT(D4,2)-4) -> 2020-21 | S6: =CONCATENATE(LEFT(D4,4)-5,"-",RIGHT(D4,2)-5) -> 2019-20 | U6: =P6 -> 2022-23 | W6: =Q6 -> 2021-22 | Y6: =R6 -> 2020-21 | AA6: =S6 -> 2019-20 | AG6: =CONCATENATE("May-",MID($D$4,3,2)) -> May-24 | AH6: =CONCATENATE("May-",MID($D$6,3,2)) -> May-23 | AI6: =CONCATENATE("May-",MID(P$6,3,2)) -> May-22 | AJ6: =CONCATENATE("May-",MID(Q$6,3,2)) -> May-21 | AK6: May-20
A7: 2014-15 | G7: Current | I7: COPPY | P7: =CONCATENATE(LEFT(E4,4),RIGHT(E4,2)-2) -> Jan-23 | Q7: =CONCATENATE(LEFT(E4,4),RIGHT(E4,2)-3) -> Jan-22 | R7: =CONCATENATE(LEFT(E4,4),RIGHT(E4,2)-4) -> Jan-21 | S7: =CONCATENATE(LEFT(E4,4),RIGHT(E4,2)-5) -> Jan-20 | AG7: =CONCATENATE("Jun-",MID($D$4,3,2)) -> Jun-24 | AH7: =CONCATENATE("Jun-",MID($D$6,3,2)) -> Jun-23 | AI7: =CONCATENATE("Jun-",MID(P$6,3,2)) -> Jun-22 | AJ7: =CONCATENATE("Jun-",MID(Q$6,3,2)) -> Jun-21 | AK7: Jun-20
A8: 2015-16 | E8: Current | F8: COPPY | G8: BE | H8: RE | I8: BE | J8: RE | K8: Growth | L8: ▲▼ | M8: % to BE | N8: % to RE | O8: % to GDP | U8: BE | V8: RE | W8: BE | X8: RE | Y8: BE | Z8: RE | AA8: BE | AB8: RE | AG8: =CONCATENATE("Jul-",MID($D$4,3,2)) -> Jul-24 | AH8: =CONCATENATE("Jul-",MID($D$6,3,2)) -> Jul-23 | AI8: =CONCATENATE("Jul-",MID(P$6,3,2)) -> Jul-22 | AJ8: =CONCATENATE("Jul-",MID(Q$6,3,2)) -> Jul-21 | AK8: Jul-20
A9: 2016-17 | D9: Total Receipts | E9: =INDEX(actual2[Total Receipts],MATCH($E$4,actual2[Month],0)) -> 2400412 | F9: =INDEX(actual2[Total Receipts],MATCH($E$6,actual2[Month],0)) -> 2252128 | G9: =INDEX(BERE2[Total Receipts],MATCH($D$4&$G$8,BERE2[FY]&BERE2[Month],0)) -> 3207200 | H9: =INDEX(BERE2[Total Receipts],MATCH($D$4&$H$8,BERE2[FY]&BERE2[Month],0)) -> 3146960 | I9: =INDEX(BERE2[Total Receipts],MATCH($D$6&$I$8,BERE2[FY]&BERE2[Month],0)) -> 2716281 | J9: =INDEX(BERE2[Total Receipts],MATCH($D$6&$J$8,BERE2[FY]&BERE2[Month],0)) -> 2755713 | K9: =E9/F9-1 -> 0.06584172836 | L9: =E9/F9-1 -> 0.06584172836 | M9: =E9/G9 -> 0.7484447493 | N9: =E9/H9 -> 0.7627716908 | O9: =E9/O$4 -> 0.07354899263 | P9: =INDEX(actual2[Total Receipts],MATCH(P$7,actual2[Month],0)) -> 1976843 | Q9: =INDEX(actual2[Total Receipts],MATCH(Q$7,actual2[Month],0)) -> 1871516 | R9: =INDEX(actual2[Total Receipts],MATCH(R$7,actual2[Month],0)) -> 1283314 | S9: =INDEX(actual2[Total Receipts],MATCH(S$7,actual2[Month],0)) -> 1282857 | AG9: =CONCATENATE("Aug-",MID($D$4,3,2)) -> Aug-24 | AH9: =CONCATENATE("Aug-",MID($D$6,3,2)) -> Aug-23 | AI9: =CONCATENATE("Aug-",MID(P$6,3,2)) -> Aug-22 | AJ9: =CONCATENATE("Aug-",MID(Q$6,3,2)) -> Aug-21 | AK9: Aug-20
A10: 2017-18 | AG10: =CONCATENATE("Sep-",MID($D$4,3,2)) -> Sep-24 | AH10: =CONCATENATE("Sep-",MID($D$6,3,2)) -> Sep-23 | AI10: =CONCATENATE("Sep-",MID(P$6,3,2)) -> Sep-22 | AJ10: =CONCATENATE("Sep-",MID(Q$6,3,2)) -> Sep-21 | AK10: Sep-20
A11: (blank) | D11: Total expenditure | E11: =INDEX(actual2[Total Expenditure],MATCH($E$4,actual2[Month],0)) -> 3569954 | F11: =INDEX(actual2[Total Expenditure],MATCH($E$6,actual2[Month],0)) -> 3354730 | G11: =INDEX(BERE2[Total Expenditure],MATCH($D$4&$G$8,BERE2[FY]&BERE2[Month],0)) -> 4820512 | H11: =INDEX(BERE2[Total Expenditure],MATCH($D$4&$H$8,BERE2[FY]&BERE2[Month],0)) -> 4716487 | I11: =INDEX(BERE2[Total Expenditure],MATCH($D$6&$I$8,BERE2[FY]&BERE2[Month],0)) -> 4503097 | J11: =INDEX(BERE2[Total Expenditure],MATCH($D$6&$J$8,BERE2[FY]&BERE2[Month],0)) -> 4490486 | K11: =E11/F11-1 -> 0.06415538657 | L11: =E11/F11-1 -> 0.06415538657 | M11: =E11/G11 -> 0.7405756899 | N11: =E11/H11 -> 0.7569095388 | O11: =E11/O$4 -> 0.1093839393 | P11: =INDEX(actual2[Total Expenditure],MATCH(P$7,actual2[Month],0)) -> 3167648 | Q11: =INDEX(actual2[Total Expenditure],MATCH(Q$7,actual2[Month],0)) -> 2809384 | R11: =INDEX(actual2[Total Expenditure],MATCH(R$7,actual2[Month],0)) -> 2517318 | S11: =INDEX(actual2[Total Expenditure],MATCH(S$7,actual2[Month],0)) -> 2268329 | U11: =INDEX(BERE2[Total Expenditure],MATCH($U$6&U$8,BERE2[FY]&BERE2[Month],0)) -> 3944909 | V11: =INDEX(BERE2[Total Expenditure],MATCH($U$6&V$8,BERE2[FY]&BERE2[Month],0)) -> 4187232 | W11: =INDEX(BERE2[Total Expenditure],MATCH($W$6&W$8,BERE2[FY]&BERE2[Month],0)) -> 3483236 | X11: =INDEX(BERE2[Total Expenditure],MATCH($W$6&X$8,BERE2[FY]&BERE2[Month],0)) -> 3770000 | Y11: =INDEX(BERE2[Total Expenditure],MATCH($Y$6&Y$8,BERE2[FY]&BERE2[Month],0)) -> 3042230 | Z11: =INDEX(BERE2[Total Expenditure],MATCH($Y$6&Z$8,BERE2[FY]&BERE2[Month],0)) -> 3450305 | AA11: =INDEX(BERE2[Total Expenditure],MATCH($AA$6&AA$8,BERE2[FY]&BERE2[Month],0)) -> 2786349 | AB11: =INDEX(BERE2[Total Expenditure],MATCH($AA$6&AB$8,BERE2[FY]&BERE2[Month],0)) -> 2698552 | AG11: =CONCATENATE("Oct-",MID($D$4,3,2)) -> Oct-24 | AH11: =CONCATENATE("Oct-",MID($D$6,3,2)) -> Oct-23 | AI11: =CONCATENATE("Oct-",MID(P$6,3,2)) -> Oct-22 | AJ11: =CONCATENATE("Oct-",MID(Q$6,3,2)) -> Oct-21 | AK11: Oct-20
A12: 2021-22 | AG12: =CONCATENATE("Nov-",MID($D$4,3,2)) -> Nov-24 | AH12: =CONCATENATE("Nov-",MID($D$6,3,2)) -> Nov-23 | AI12: =CONCATENATE("Nov-",MID(P$6,3,2)) -> Nov-22 | AJ12: =CONCATENATE("Nov-",MID(Q$6,3,2)) -> Nov-21 | AK12: Nov-20
A13: 2022-23 | D13: Fiscal Deficit | E13: =INDEX(actual2[Fiscal Deficit],MATCH($E$4,actual2[Month],0)) -> 1169542 | F13: =INDEX(actual2[Fiscal Deficit],MATCH($E$6,actual2[Month],0)) -> 1102602 | G13: =INDEX(BERE2[Fiscal Deficit],MATCH($D$4&$G$8,BERE2[FY]&BERE2[Month],0)) -> 1613312 | H13: =INDEX(BERE2[Fiscal Deficit],MATCH($D$4&$H$8,BERE2[FY]&BERE2[Month],0)) -> 1569527 | I13: =INDEX(BERE2[Fiscal Deficit],MATCH($D$6&$I$8,BERE2[FY]&BERE2[Month],0)) -> 1786816 | J13: =INDEX(BERE2[Fiscal Deficit],MATCH($D$6&$J$8,BERE2[FY]&BERE2[Month],0)) -> 1734773 | K13: =E13/F13-1 -> 0.06071093649 | L13: =E13/F13-1 -> 0.06071093649 | M13: =E13/G13 -> 0.7249323132 | N13: =E13/H13 -> 0.7451557061 | O13: =E13/O$4 -> 0.03583494664 | P13: =INDEX(actual2[Fiscal Deficit],MATCH(P$7,actual2[Month],0)) -> 1190805 | Q13: =INDEX(actual2[Fiscal Deficit],MATCH(Q$7,actual2[Month],0)) -> 937868 | R13: =INDEX(actual2[Fiscal Deficit],MATCH(R$7,actual2[Month],0)) -> 1234004 | S13: =INDEX(actual2[Fiscal Deficit],MATCH(S$7,actual2[Month],0)) -> 985472 | U13: =INDEX(BERE2[Fiscal Deficit],MATCH($U$6&U$8,BERE2[FY]&BERE2[Month],0)) -> 1661196 | V13: =INDEX(BERE2[Fiscal Deficit],MATCH($U$6&V$8,BERE2[FY]&BERE2[Month],0)) -> 1755319 | W13: =INDEX(BERE2[Fiscal Deficit],MATCH($W$6&W$8,BERE2[FY]&BERE2[Month],0)) -> 1506812 | X13: =INDEX(BERE2[Fiscal Deficit],MATCH($W$6&X$8,BERE2[FY]&BERE2[Month],0)) -> 1591089 | Y13: =INDEX(BERE2[Fiscal Deficit],MATCH($Y$6&Y$8,BERE2[FY]&BERE2[Month],0)) -> 796337 | Z13: =INDEX(BERE2[Fiscal Deficit],MATCH($Y$6&Z$8,BERE2[FY]&BERE2[Month],0)) -> 1848655 | AA13: =INDEX(BERE2[Fiscal Deficit],MATCH($AA$6&AA$8,BERE2[FY]&BERE2[Month],0)) -> 703760 | AB13: =INDEX(BERE2[Fiscal Deficit],MATCH($AA$6&AB$8,BERE2[FY]&BERE2[Month],0)) -> 766846 | AG13: =CONCATENATE("Dec-",MID($D$4,3,2)) -> Dec-24 | AH13: =CONCATENATE("Dec-",MID($D$6,3,2)) -> Dec-23 | AI13: =CONCATENATE("Dec-",MID(P$6,3,2)) -> Dec-22 | AJ13: =CONCATENATE("Dec-",MID(Q$6,3,2)) -> Dec-21 | AK13: Dec-20
A14: 2023-24 | AG14: =CONCATENATE("Jan-",MID($D$4,6,2)) -> Jan-25 | AH14: =CONCATENATE("Jan-",MID($D$6,6,2)) -> Jan-24 | AI14: =CONCATENATE("Jan-",MID(P$6,6,2)) -> Jan-23 | AJ14: =CONCATENATE("Jan-",MID(Q$6,6,2)) -> Jan-22 | AK14: Jan-21
A15: 2024-25 | D15: Net Tax Revenue | E15: =INDEX(actual2[Net Tax Revenue],MATCH($E$4,actual2[Month],0)) -> 1903558 | F15: =INDEX(actual2[Net Tax Revenue],MATCH($E$6,actual2[Month],0)) -> 1879840 | G15: =INDEX(BERE2[Net Tax Revenue],MATCH($D$4&$G$8,BERE2[FY]&BERE2[Month],0)) -> 2583499 | H15: =INDEX(BERE2[Net Tax Revenue],MATCH($D$4&$H$8,BERE2[FY]&BERE2[Month],0)) -> 2556960 | I15: =INDEX(BERE2[Net Tax Revenue],MATCH($D$6&$I$8,BERE2[FY]&BERE2[Month],0)) -> 2330631 | J15: =INDEX(BERE2[Net Tax Revenue],MATCH($D$6&$J$8,BERE2[FY]&BERE2[Month],0)) -> 2323918 | K15: =E15/F15-1 -> 0.01261703124 | L15: =E15/F15-1 -> 0.01261703124 | M15: =E15/G15 -> 0.7368139101 | N15: =E15/H15 -> 0.7444613917 | O15: =E15/O$4 -> 0.0583253097 | P15: =INDEX(actual2[Net Tax Revenue],MATCH(P$7,actual2[Month],0)) -> 1688710 | Q15: =INDEX(actual2[Net Tax Revenue],MATCH(Q$7,actual2[Month],0)) -> 1547436 | R15: =INDEX(actual2[Net Tax Revenue],MATCH(R$7,actual2[Month],0)) -> 1101855 | S15: =INDEX(actual2[Net Tax Revenue],MATCH(S$7,actual2[Month],0)) -> 998037 | AG15: =CONCATENATE("Feb-",MID($D$4,6,2)) -> Feb-25 | AH15: =CONCATENATE("Feb-",MID($D$6,6,2)) -> Feb-24 | AI15: =CONCATENATE("Feb-",MID(P$6,6,2)) -> Feb-23 | AJ15: =CONCATENATE("Feb-",MID(Q$6,6,2)) -> Feb-22 | AK15: Feb-21
AG16: =CONCATENATE("Mar-",MID($D$4,6,2)) -> Mar-25 | AH16: =CONCATENATE("Mar-",MID($D$6,6,2)) -> Mar-24 | AI16: =CONCATENATE("Mar-",MID(P$6,6,2)) -> Mar-23 | AJ16: =CONCATENATE("Mar-",MID(Q$6,6,2)) -> Mar-22 | AK16: Mar-21
D17: Non Tax Revenue | E17: =INDEX(actual2[Non Tax Revenue],MATCH($E$4,actual2[Month],0)) -> 467630 | F17: =INDEX(actual2[Non Tax Revenue],MATCH($E$6,actual2[Month],0)) -> 338069 | G17: =INDEX(BERE2[Non Tax Revenue],MATCH($D$4&$G$8,BERE2[FY]&BERE2[Month],0)) -> 545701 | H17: =INDEX(BERE2[Non Tax Revenue],MATCH($D$4&$H$8,BERE2[FY]&BERE2[Month],0)) -> 531000 | I17: =INDEX(BERE2[Non Tax Revenue],MATCH($D$6&$I$8,BERE2[FY]&BERE2[Month],0)) -> 301650 | J17: =INDEX(BERE2[Non Tax Revenue],MATCH($D$6&$J$8,BERE2[FY]&BERE2[Month],0)) -> 375795 | K17: =E17/F17-1 -> 0.383238333 | L17: =E17/F17-1 -> 0.383238333 | M17: =E17/G17 -> 0.8569344751 | N17: =E17/H17 -> 0.8806591337 | O17: =E17/O$4 -> 0.01432825508 | P17: =INDEX(actual2[Non Tax Revenue],MATCH(P$7,actual2[Month],0)) -> 230939 | Q17: =INDEX(actual2[Non Tax Revenue],MATCH(Q$7,actual2[Month],0)) -> 291485 | R17: =INDEX(actual2[Non Tax Revenue],MATCH(R$7,actual2[Month],0)) -> 141104 | S17: =INDEX(actual2[Non Tax Revenue],MATCH(S$7,actual2[Month],0)) -> 252083
D19: Non Debt Capital Receipts | E19: =INDEX(actual2[Non Debt Capital Receipts],MATCH($E$4,actual2[Month],0)) -> 29224 | F19: =INDEX(actual2[Non Debt Capital Receipts],MATCH($E$6,actual2[Month],0)) -> 34219 | G19: =INDEX(BERE2[Non Debt Capital Receipts],MATCH($D$4&$G$8,BERE2[FY]&BERE2[Month],0)) -> 78000 | H19: =INDEX(BERE2[Non Debt Capital Receipts],MATCH($D$4&$H$8,BERE2[FY]&BERE2[Month],0)) -> 59000 | I19: =INDEX(BERE2[Non Debt Capital Receipts],MATCH($D$6&$I$8,BERE2[FY]&BERE2[Month],0)) -> 84000 | J19: =INDEX(BERE2[Non Debt Capital Receipts],MATCH($D$6&$J$8,BERE2[FY]&BERE2[Month],0)) -> 56000 | K19: =E19/F19-1 -> -0.1459715363 | L19: =E19/F19-1 -> -0.1459715363 | M19: =E19/G19 -> 0.3746666667 | N19: =E19/H19 -> 0.4953220339 | O19: =E19/O$4 -> 0.0008954278518 | P19: =INDEX(actual2[Non Debt Capital Receipts],MATCH(P$7,actual2[Month],0)) -> 57194 | Q19: =INDEX(actual2[Non Debt Capital Receipts],MATCH(Q$7,actual2[Month],0)) -> 32595 | R19: =INDEX(actual2[Non Debt Capital Receipts],MATCH(R$7,actual2[Month],0)) -> 40355 | S19: =INDEX(actual2[Non Debt Capital Receipts],MATCH(S$7,actual2[Month],0)) -> 32737
D21: Revenue Expenditure | E21: =INDEX(actual1[Revenue Expenditure],MATCH($E$4,actual1[Month],0)) -> 2812595 | F21: =INDEX(actual1[Revenue Expenditure],MATCH($E$6,actual1[Month],0)) -> 2633543 | G21: =INDEX(BERE1[Revenue Expenditure],MATCH($D$4&$G$8,BERE2[FY]&BERE1[Month],0)) -> 3709401 | H21: =INDEX(BERE1[Revenue Expenditure],MATCH($D$4&$H$8,BERE1[FY]&BERE2[Month],0)) -> 3698058 | I21: =INDEX(BERE1[Revenue Expenditure],MATCH($D$6&$I$8,BERE1[FY]&BERE1[Month],0)) -> 3502724 | J21: =INDEX(BERE1[Revenue Expenditure],MATCH($D$6&$J$8,BERE1[FY]&BERE1[Month],0)) -> 3540931 | K21: =E21/F21-1 -> 0.06798901708 | L21: =E21/F21-1 -> 0.06798901708 | M21: =E21/G21 -> 0.758234281 | N21: =E21/H21 -> 0.760560002 | O21: =E21/O$4 -> 0.0861783431 | P21: =INDEX(actual1[Revenue Expenditure],MATCH(P$7,actual1[Month],0)) -> 2597756 | Q21: =INDEX(actual1[Revenue Expenditure],MATCH(Q$7,actual1[Month],0)) -> 2367698 | R21: =INDEX(actual1[Revenue Expenditure],MATCH(R$7,actual1[Month],0)) -> 2155210 | S21: =INDEX(actual1[Revenue Expenditure],MATCH(S$7,actual1[Month],0)) -> 2000595 | U21: =INDEX(BERE1[Revenue Expenditure],MATCH($U$6&U$8,BERE1[FY]&BERE1[Month],0)) -> 3195257 | V21: =INDEX(BERE1[Revenue Expenditure],MATCH($U$6&V$8,BERE1[FY]&BERE1[Month],0)) -> 3459464 | W21: =INDEX(BERE1[Revenue Expenditure],MATCH($W$6&W$8,BERE1[FY]&BERE1[Month],0)) -> 2929128 | X21: =INDEX(BERE1[Revenue Expenditure],MATCH($W$6&X$8,BERE1[FY]&BERE1[Month],0)) -> 3168067 | Y21: =INDEX(BERE1[Revenue Expenditure],MATCH($Y$6&Y$8,BERE1[FY]&BERE1[Month],0)) -> 2630221 | Z21: =INDEX(BERE1[Revenue Expenditure],MATCH($Y$6&Z$8,BERE1[FY]&BERE1[Month],0)) -> 3011916 | AA21: =INDEX(BERE1[Revenue Expenditure],MATCH($AA$6&AA$8,BERE1[FY]&BERE1[Month],0)) -> 2448264 | AB21: =INDEX(BERE1[Revenue Expenditure],MATCH($AA$6&AB$8,BERE1[FY]&BERE1[Month],0)) -> 2350438
AH22: =D4 -> 2024-25 | AI22: =D6 -> 2023-24
D23: Capital Expenditure | E23: =INDEX(actual1[Capital Expenditure],MATCH($E$4,actual1[Month],0)) -> 757359 | F23: =INDEX(actual1[Capital Expenditure],MATCH($E$6,actual1[Month],0)) -> 721187 | G23: =INDEX(BERE1[Capital Expenditure],MATCH($D$4&$G$8,BERE1[FY]&BERE1[Month],0)) -> 1111111 | H23: =INDEX(BERE1[Capital Expenditure],MATCH($D$4&$H$8,BERE1[FY]&BERE1[Month],0)) -> 1018429 | I23: =INDEX(BERE1[Capital Expenditure],MATCH($D$6&$I$8,BERE1[FY]&BERE1[Month],0)) -> 1000373 | J23: =INDEX(BERE1[Capital Expenditure],MATCH($D$6&$J$8,BERE1[FY]&BERE1[Month],0)) -> 949555 | K23: =E23/F23-1 -> 0.05015620082 | L23: =E23/F23-1 -> 0.05015620082 | M23: =E23/G23 -> 0.6816231682 | N23: =E23/H23 -> 0.7436541968 | O23: =E23/O$4 -> 0.02320559617 | P23: =INDEX(actual1[Capital Expenditure],MATCH(P$7,actual1[Month],0)) -> 569892 | Q23: =INDEX(actual1[Capital Expenditure],MATCH(Q$7,actual1[Month],0)) -> 441686 | R23: =INDEX(actual1[Capital Expenditure],MATCH(R$7,actual1[Month],0)) -> 362108 | S23: =INDEX(actual1[Capital Expenditure],MATCH(S$7,actual1[Month],0)) -> 267734 | U23: =INDEX(BERE1[Capital Expenditure],MATCH($U$6&U$8,BERE1[FY]&BERE1[Month],0)) -> 749652 | V23: =INDEX(BERE1[Capital Expenditure],MATCH($U$6&V$8,BERE1[FY]&BERE1[Month],0)) -> 727768 | W23: =INDEX(BERE1[Capital Expenditure],MATCH($W$6&W$8,BERE1[FY]&BERE1[Month],0)) -> 554108 | X23: =INDEX(BERE1[Capital Expenditure],MATCH($W$6&X$8,BERE1[FY]&BERE1[Month],0)) -> 601933 | Y23: =INDEX(BERE1[Capital Expenditure],MATCH($Y$6&Y$8,BERE1[FY]&BERE1[Month],0)) -> 412009 | Z23: =INDEX(BERE1[Capital Expenditure],MATCH($Y$6&Z$8,BERE1[FY]&BERE1[Month],0)) -> 438389 | AA23: =INDEX(BERE1[Capital Expenditure],MATCH($AA$6&AA$8,BERE1[FY]&BERE1[Month],0)) -> 338085 | AB23: =INDEX(BERE1[Capital Expenditure],MATCH($AA$6&AB$8,BERE1[FY]&BERE1[Month],0)) -> 348114 | AG23: Apr | AH23: =INDEX(actual2[Total Receipts],MATCH(AG5,actual2[Month],0)) -> 213334 | AI23: =INDEX(actual2[Total Receipts],MATCH(AH5,actual2[Month],0)) -> 170501
AG24: May | AH24: =INDEX(actual2[Total Receipts],MATCH(AG6,actual2[Month],0)) -> 572845 | AI24: =INDEX(actual2[Total Receipts],MATCH(AH6,actual2[Month],0)) -> 415691
D25: Interest Payments | E25: =INDEX(actual1[Interest Payments],MATCH($E$4,actual1[Month],0)) -> 875461 | F25: =INDEX(actual1[Interest Payments],MATCH($E$6,actual1[Month],0)) -> 821731 | G25: =INDEX(BERE1[Interest Payments],MATCH($D$4&$G$8,BERE1[FY]&BERE1[Month],0)) -> 1162940 | H25: =INDEX(BERE1[Interest Payments],MATCH($D$4&$H$8,BERE1[FY]&BERE1[Month],0)) -> 1137940 | I25: =INDEX(BERE1[Interest Payments],MATCH($D$6&$I$8,BERE1[FY]&BERE1[Month],0)) -> 1079971 | J25: =INDEX(BERE1[Interest Payments],MATCH($D$6&$J$8,BERE1[FY]&BERE1[Month],0)) -> 1055427 | K25: =E25/F25-1 -> 0.06538636123 | L25: =E25/F25-1 -> 0.06538636123 | M25: =E25/G25 -> 0.7527998005 | N25: =E25/H25 -> 0.7693384537 | O25: =E25/O$4 -> 0.0268242596 | P25: =INDEX(actual1[Interest Payments],MATCH(P$7,actual1[Month],0)) -> 738658 | Q25: =INDEX(actual1[Interest Payments],MATCH(Q$7,actual1[Month],0)) -> 616076 | R25: =INDEX(actual1[Interest Payments],MATCH(R$7,actual1[Month],0)) -> 519597 | S25: =INDEX(actual1[Interest Payments],MATCH(S$7,actual1[Month],0)) -> 471916 | U25: =INDEX(BERE1[Interest Payments],MATCH($U$6&U$8,BERE1[FY]&BERE1[Month],0)) -> 940651 | V25: =INDEX(BERE1[Interest Payments],MATCH($U$6&V$8,BERE1[FY]&BERE1[Month],0)) -> 940651 | W25: =INDEX(BERE1[Interest Payments],MATCH($W$6&W$8,BERE1[FY]&BERE1[Month],0)) -> 809701 | X25: =INDEX(BERE1[Interest Payments],MATCH($W$6&X$8,BERE1[FY]&BERE1[Month],0)) -> 813791 | Y25: =INDEX(BERE1[Interest Payments],MATCH($Y$6&Y$8,BERE1[FY]&BERE1[Month],0)) -> 708203 | Z25: =INDEX(BERE1[Interest Payments],MATCH($Y$6&Z$8,BERE1[FY]&BERE1[Month],0)) -> 692900 | AA25: =INDEX(BERE1[Interest Payments],MATCH($AA$6&AA$8,BERE1[FY]&BERE1[Month],0)) -> 660471 | AB25: =INDEX(BERE1[Interest Payments],MATCH($AA$6&AB$8,BERE1[FY]&BERE1[Month],0)) -> 625105 | AG25: Jun | AH25: =INDEX(actual2[Total Receipts],MATCH(AG7,actual2[Month],0)) -> 834197 | AI25: =INDEX(actual2[Total Receipts],MATCH(AH7,actual2[Month],0)) -> 599291
AG26: Jul | AH26: =INDEX(actual2[Total Receipts],MATCH(AG8,actual2[Month],0)) -> 1023406 | AI26: =INDEX(actual2[Total Receipts],MATCH(AH8,actual2[Month],0)) -> 775107
D27: Defence Services | E27: =INDEX(actual1[Defence Services],MATCH($E$4,actual1[Month],0)) -> 242924 | F27: =INDEX(actual1[Defence Services],MATCH($E$6,actual1[Month],0)) -> 237358 | G27: =INDEX(BERE1[Defence Services],MATCH($D$4&$G$8,BERE1[FY]&BERE1[Month],0)) -> 282773 | H27: =INDEX(BERE1[Defence Services],MATCH($D$4&$H$8,BERE1[FY]&BERE1[Month],0)) -> 297222 | I27: =INDEX(BERE1[Defence Services],MATCH($D$6&$I$8,BERE1[FY]&BERE1[Month],0)) -> 270120 | J27: =INDEX(BERE1[Defence Services],MATCH($D$6&$J$8,BERE1[FY]&BERE1[Month],0)) -> 298669 | K27: =E27/F27-1 -> 0.02344980999 | L27: =E27/F27-1 -> 0.02344980999 | M27: =E27/G27 -> 0.8590777762 | N27: =E27/H27 -> 0.8173150036 | O27: =E27/O$4 -> 0.007443228698 | P27: =INDEX(actual1[Defence Services],MATCH(P$7,actual1[Month],0)) -> 212340 | Q27: =INDEX(actual1[Defence Services],MATCH(Q$7,actual1[Month],0)) -> 198220 | R27: =INDEX(actual1[Defence Services],MATCH(R$7,actual1[Month],0)) -> 171692 | S27: =INDEX(actual1[Defence Services],MATCH(S$7,actual1[Month],0)) -> 178460 | U27: =INDEX(BERE1[Defence Services],MATCH($U$6&U$8,BERE1[FY]&BERE1[Month],0)) -> 233001 | V27: =INDEX(BERE1[Defence Services],MATCH($U$6&V$8,BERE1[FY]&BERE1[Month],0)) -> 259500 | W27: =INDEX(BERE1[Defence Services],MATCH($W$6&W$8,BERE1[FY]&BERE1[Month],0)) -> 212028 | X27: =INDEX(BERE1[Defence Services],MATCH($W$6&X$8,BERE1[FY]&BERE1[Month],0)) -> 229567 | Y27: =INDEX(BERE1[Defence Services],MATCH($Y$6&Y$8,BERE1[FY]&BERE1[Month],0)) -> 209319 | Z27: =INDEX(BERE1[Defence Services],MATCH($Y$6&Z$8,BERE1[FY]&BERE1[Month],0)) -> 209312 | AA27: =INDEX(BERE1[Defence Services],MATCH($AA$6&AA$8,BERE1[FY]&BERE1[Month],0)) -> 201902 | AB27: =INDEX(BERE1[Defence Services],MATCH($AA$6&AB$8,BERE1[FY]&BERE1[Month],0)) -> 205902 | AG27: Aug | AH27: =INDEX(actual2[Total Receipts],MATCH(AG9,actual2[Month],0)) -> 1217178 | AI27: =INDEX(actual2[Total Receipts],MATCH(AH9,actual2[Month],0)) -> 1028931
AG28: Sep | AH28: =INDEX(actual2[Total Receipts],MATCH(AG10,actual2[Month],0)) -> 1636974 | AI28: =INDEX(actual2[Total Receipts],MATCH(AH10,actual2[Month],0)) -> 1417278
D29: Grants in Aid to States & UTs | E29: =INDEX(actual1[Grants in Aid to States & UTs],MATCH($E$4,actual1[Month],0)) -> 410867 | F29: =INDEX(actual1[Grants in Aid to States & UTs],MATCH($E$6,actual1[Month],0)) -> 401814 | G29: =INDEX(BERE1[Grants in Aid to States & UTs],MATCH($D$4&$G$8,BERE1[FY]&BERE1[Month],0)) -> 641460 | H29: =INDEX(BERE1[Grants in Aid to States & UTs],MATCH($D$4&$H$8,BERE1[FY]&BERE1[Month],0)) -> 594207 | I29: =INDEX(BERE1[Grants in Aid to States & UTs],MATCH($D$6&$I$8,BERE1[FY]&BERE1[Month],0)) -> 659736 | J29: =INDEX(BERE1[Grants in Aid to States & UTs],MATCH($D$6&$J$8,BERE1[FY]&BERE1[Month],0)) -> 590531 | K29: =E29/F29-1 -> 0.02253032498 | L29: =E29/F29-1 -> 0.02253032498 | M29: =E29/G29 -> 0.6405185047 | N29: =E29/H29 -> 0.6914543248 | O29: =E29/O$4 -> 0.01258902803 | P29: =INDEX(actual1[Grants in Aid to States & UTs],MATCH(P$7,actual1[Month],0)) -> 423054 | Q29: =INDEX(actual1[Grants in Aid to States & UTs],MATCH(Q$7,actual1[Month],0)) -> 468740 | R29: =INDEX(actual1[Grants in Aid to States & UTs],MATCH(R$7,actual1[Month],0)) -> 476409 | S29: =INDEX(actual1[Grants in Aid to States & UTs],MATCH(S$7,actual1[Month],0)) -> 418070 | U29: =INDEX(BERE1[Grants in Aid to States & UTs],MATCH($U$6&U$8,BERE1[FY]&BERE1[Month],0)) -> 617057 | V29: =INDEX(BERE1[Grants in Aid to States & UTs],MATCH($U$6&V$8,BERE1[FY]&BERE1[Month],0)) -> 613196 | W29: =INDEX(BERE1[Grants in Aid to States & UTs],MATCH($W$6&W$8,BERE1[FY]&BERE1[Month],0)) -> 605812 | X29: =INDEX(BERE1[Grants in Aid to States & UTs],MATCH($W$6&X$8,BERE1[FY]&BERE1[Month],0)) -> 587918 | Y29: =INDEX(BERE1[Grants in Aid to States & UTs],MATCH($Y$6&Y$8,BERE1[FY]&BERE1[Month],0)) -> 562046 | Z29: =INDEX(BERE1[Grants in Aid to States & UTs],MATCH($Y$6&Z$8,BERE1[FY]&BERE1[Month],0)) -> 559025 | AA29: =INDEX(BERE1[Grants in Aid to States & UTs],MATCH($AA$6&AA$8,BERE1[FY]&BERE1[Month],0)) -> 467339 | AB29: =INDEX(BERE1[Grants in Aid to States & UTs],MATCH($AA$6&AB$8,BERE1[FY]&BERE1[Month],0)) -> 475152 | AG29: Oct | AH29: =INDEX(actual2[Total Receipts],MATCH(AG11,actual2[Month],0)) -> 1723074 | AI29: =INDEX(actual2[Total Receipts],MATCH(AH11,actual2[Month],0)) -> 1590712
AG30: Nov | AH30: =INDEX(actual2[Total Receipts],MATCH(AG12,actual2[Month],0)) -> 1894408 | AI30: =INDEX(actual2[Total Receipts],MATCH(AH12,actual2[Month],0)) -> 1745583
D31: Pensions | E31: =INDEX(actual1[Pensions],MATCH($E$4,actual1[Month],0)) -> 237358 | F31: =INDEX(actual1[Pensions],MATCH($E$6,actual1[Month],0)) -> 214188 | G31: =INDEX(BERE1[Pensions],MATCH($D$4&$G$8,BERE1[FY]&BERE1[Month],0)) -> 243296 | H31: =INDEX(BERE1[Pensions],MATCH($D$4&$H$8,BERE1[FY]&BERE1[Month],0)) -> 275103 | I31: =INDEX(BERE1[Pensions],MATCH($D$6&$I$8,BERE1[FY]&BERE1[Month],0)) -> 234359 | J31: =INDEX(BERE1[Pensions],MATCH($D$6&$J$8,BERE1[FY]&BERE1[Month],0)) -> 238049 | K31: =E31/F31-1 -> 0.1081759949 | L31: =E31/F31-1 -> 0.1081759949 | M31: =E31/G31 -> 0.9755935157 | N31: =E31/H31 -> 0.8627968434 | O31: =E31/O$4 -> 0.007272685602 | P31: =INDEX(actual1[Pensions],MATCH(P$7,actual1[Month],0)) -> 189100 | Q31: =INDEX(actual1[Pensions],MATCH(Q$7,actual1[Month],0)) -> 166517 | R31: =INDEX(actual1[Pensions],MATCH(R$7,actual1[Month],0)) -> 175714 | S31: =INDEX(actual1[Pensions],MATCH(S$7,actual1[Month],0)) -> 174294 | U31: =INDEX(BERE1[Pensions],MATCH($U$6&U$8,BERE1[FY]&BERE1[Month],0)) -> 207132 | V31: =INDEX(BERE1[Pensions],MATCH($U$6&V$8,BERE1[FY]&BERE1[Month],0)) -> 244780 | W31: =INDEX(BERE1[Pensions],MATCH($W$6&W$8,BERE1[FY]&BERE1[Month],0)) -> 190328 | X31: =INDEX(BERE1[Pensions],MATCH($W$6&X$8,BERE1[FY]&BERE1[Month],0)) -> 198962 | Y31: =INDEX(BERE1[Pensions],MATCH($Y$6&Y$8,BERE1[FY]&BERE1[Month],0)) -> 210682 | Z31: =INDEX(BERE1[Pensions],MATCH($Y$6&Z$8,BERE1[FY]&BERE1[Month],0)) -> 204393 | AA31: =INDEX(BERE1[Pensions],MATCH($AA$6&AA$8,BERE1[FY]&BERE1[Month],0)) -> 174300 | AB31: =INDEX(BERE1[Pensions],MATCH($AA$6&AB$8,BERE1[FY]&BERE1[Month],0)) -> 184147 | AG31: Dec | AH31: =INDEX(actual2[Total Receipts],MATCH(AG13,actual2[Month],0)) -> 2318005 | AI31: =INDEX(actual2[Total Receipts],MATCH(AH13,actual2[Month],0)) -> 2071939
AG32: Jan | AH32: =INDEX(actual2[Total Receipts],MATCH(AG14,actual2[Month],0)) -> 2400412 | AI32: =INDEX(actual2[Total Receipts],MATCH(AH14,actual2[Month],0)) -> 2252128
